Workbook

Sheet 表紙(簡易様式) (hidden)
E2: OK | I2: 調達に係るお取引先法人等に関する情報の共同利用について 本見積様式にご記載いただくお取引先法人等に関する情報※を、適正に管理し、NTTグループで共同利用させていただきます。詳細はこちら https://group.ntt/jp/protection/partners_procure.html ※お取引先の名称、担当者情報やお振込み情報等
B3: 【見積内訳書（物品統一見積り様式）】
A4: ■必須入力願います | D4: ピンク：必須、黄色：条件付き必須、グレー：自動転記・入力不可、白色：任意 | E4: 入力必須 | F4: 入力型 | G4: 半角/全角 | H4: 最大桁数 | I4: 項目補足
B5: 見積依頼番号 (ソーシング/コラボ/購買申請番号) | D5: SR2662423719 | E5: 任意 | F5: 英数字 | G5: 半角 | H5: 13 | I5: Ariba Networkをご利用するサプライヤ様の場合は、Doc番号(Docで始まる番号。Ariba画面で確認可能)、又はソーシング番号（SRで始まる番号。NTT側見積依頼者から指示があった場合）を入力してください。 Ariba Networkをご利用でないサプライヤ様の場合は、NTT側見積依頼者から連絡された番号（例：バイヤの社員番号yymmdd）を入力してください。
B6: 見積バージョン | E6: 任意 | F6: 数字 | G6: 半角 | H6: 2 | I6: 初回作成の場合は１を設定
A7: ■ | B7: 社内/再販 | D7: 再販 | E7: 必須 | F7: プルダウン | G7: - | H7: - | I7: プルダウンより選択
A9: =IF(E9=リスト!CP5,"■","") -> ■ | B9: 案件名 | D9: ネットワーク負荷測定機器の購買案件 | E9: 必須 | F9: テキスト | G9: 半角/全角 | H9: 50
B10: 見積日 | E10: 任意 | F10: 日付(YYYY/MM/DD) | G10: 半角 | H10: 10 | I10: 本見積書の見積日を記入
A11: =IF(E11=リスト!CP5,"■","") ->  | B11: 見積有効期限 | D11: 見積日から3か月 | E11: 任意 | F11: テキスト | G11: 半角/全角 | H11: 100 | I11: 本見積書の見積有効期限を記入
A12: ■ | B12: 社情報イヤ会サプラ | C12: サプライヤ会社名 | D12: エヌ・ティ・ティ・ビジネスアソシエ（株） | E12: 必須 | F12: テキスト | G12: 半角/全角 | H12: 100
A13: =IF(E13=リスト!CP5,"■","") -> ■ | C13: サプライヤのNTTグループ共通企業ID | D13: G000134434 | E13: 必須 | F13: 英数字 | G13: 半角 | H13: 10（固定長） | I13: グループ共通企業ID（NTTグループが付与したID）が不明な場合は、NTT側見積依頼者へお問い合わせください

Sheet 表紙
E2: OK | I2: 調達に係るお取引先法人等に関する情報の共同利用について 本見積様式にご記載いただくお取引先法人等に関する情報※を、適正に管理し、NTTグループで共同利用させていただきます。詳細はこちら https://group.ntt/jp/protection/partners_procure.html ※お取引先の名称、担当者情報やお振込み情報等 | GY2: Ver. | GZ2: 9.3 | HA2: カタログ用
B3: 【見積内訳書（物品統一見積り様式）】
A4: ■必須入力願います | D4: ピンク：必須、黄色：条件付き必須、グレー：自動転記・入力不可、白色：任意 | E4: 入力必須 | F4: 入力型 | G4: 半角/全角 | H4: 最大桁数 | I4: 項目補足
A5: ■ | B5: 見積依頼番号 (ソーシング/コラボ/購買申請番号) | D5: SR2662423719 | E5: 必須 | F5: 英数字 | G5: 半角 | H5: 13 | I5: Ariba Networkをご利用するサプライヤ様の場合は、Doc番号(Docで始まる番号。Ariba画面で確認可能)、又はソーシング番号（SRで始まる番号。NTT側見積依頼者から指示があった場合）を入力してください。 Ariba Networkをご利用でないサプライヤ様の場合は、NTT側見積依頼者から連絡された番号（例：バイヤの社員番号yymmdd）を入力してください。
B6: 見積バージョン | E6: 任意 | F6: 数字 | G6: 半角 | H6: 2 | I6: 初回作成の場合は１を設定
B7: サプライヤ見積番号 | E7: 任意 | F7: テキスト | G7: 半角/全角 | H7: 100 | I7: 貴社（サプライヤ様）側で管理されている見積番号を記入（任意）
B8: バイヤ希望納入日 | E8: 任意 | F8: 日付(YYYY/MM/DD) | G8: 半角 | H8: 10 | I8: カタログ外購買の場合に任意で記入
A9: ■ | B9: 社内/再販 | D9: 再販 | E9: 必須 | F9: プルダウン | G9: - | H9: - | I9: プルダウンより選択
A11: =IF(E11=リスト!CP5,"■","") -> ■ | B11: 案件名 | D11: ネットワーク負荷測定機器の購買案件 | E11: 必須 | F11: テキスト | G11: 半角/全角 | H11: 50
A12: ■ | B12: 見積日 | D12: 2022/11/01 | E12: 必須 | F12: 日付(YYYY/MM/DD) | G12: 半角 | H12: 10 | I12: 本見積書の見積日を記入
B13: 見積有効期限 | D13: 見積日から3か月 | E13: 任意 | F13: テキスト | G13: 半角/全角 | H13: 100 | I13: 本見積書の見積有効期限を記入
A14: ■ | B14: サプライヤ会社情報 | C14: サプライヤ会社名 | D14: エヌ・ティ・ティ・ビジネスアソシエ（株） | E14: 必須 | F14: テキスト | G14: 半角/全角 | H14: 100
A15: ■ | C15: サプライヤのNTTグループ共通企業ID | D15: G000134434 | E15: 必須 | F15: 英数字 | G15: 半角 | H15: 10（固定長） | I15: グループ共通企業ID（NTTグループが付与したID）が不明な場合は、NTT側見積依頼者へお問い合わせください
A16: =IF(E16=リスト!CP5,"■","") ->  | C16: サプライヤANID | D16: AN01745129987 | E16: 条件付き必須 | F16: 英数字 | G16: 半角 | H16: 15 | I16: ANIDを保有する場合は記入必須 "AN"からのID（13~15桁）を記入
A17: =IF(E17=リスト!CP5,"■","") ->  | C17: サプライヤ担当部署名 | D17: アクセスソリューション部インタービジネスBU | E17: 任意 | F17: テキスト | G17: 半角/全角 | H17: 36
A18: =IF(E18=リスト!CP5,"■","") -> ■ | C18: サプライヤ担当者名 | D18: サプライヤ 太郎 | E18: 必須 | F18: テキスト | G18: 半角/全角 | H18: 36
A19: =IF(E19=リスト!CP5,"■","") ->  | C19: サプライヤ連絡先（Tel） | D19: 03-0000-0000 | E19: 任意 | F19: 電話番号 | G19: 半角 | H19: 36
A20: =IF(E20=リスト!CP5,"■","") -> ■ | C20: サプライヤ連絡先（Mail） | D20: taro@ntt-ba.co.jp | E20: 必須 | F20: メールアドレス | G20: 半角 | H20: 36
C21: サプライヤ担当者 所在地 | E21: 任意 | F21: 住所 | G21: 半角/全角 | H21: 36
B23: 見積価格情報 | E23: 入力必須 | F23: 入力型 | G23: 半角/全角 | H23: 最大桁数 | I23: 項目補足
A24: ■ | B24: 見積価格 (税抜) | D24: =明細!AD1010 -> 65000 | E24: 自動入力 | F24: - | G24: - | H24: - | I24: 明細(値引き後合計金額(税抜))から自動転記
A25: ■ | C25: 見積価格 通貨 | D25: JPY | E25: 必須 | F25: プルダウン | G25: - | H25: - | I25: JPYが標準設定、プルダウンより変更可能
A26: ■ | B26: 見積価格 (税込総額) | D26: =明細!AI1008 -> 71500 | E26: 必須 | F26: 数字 | G26: 半角 | H26: 15 | I26: 明細(値引き後合計金額(税込))から自動転記のため、意図しない金額となる可能性があります。 意図しない計算結果の場合は、手入力にて修正ください。
A27: ■ | B27: 見積価格 税額 | D27: =D26-D24 -> 6500 | E27: 自動入力 | F27: - | G27: - | H27: - | I27: 自動計算
B29: 支払先情報 | E29: 入力必須 | F29: 入力型 | G29: 半角/全角 | H29: 最大桁数 | I29: 項目補足
A30: =IF(E30=リスト!$CP$5,"■","") ->  | B30: 支払先コード | D30: 001 | E30: 任意 | F30: 数字 | G30: 半角 | H30: 100
A31: =IF(E31=リスト!$CP$5,"■","") ->  | B31: 銀行名 | D31: 三菱ＵＦＪ銀行 | E31: 任意 | F31: テキスト | G31: 半角/全角 | H31: 100
A32: =IF(E32=リスト!$CP$5,"■","") ->  | B32: 支店名 | D32: 東海支店 | E32: 任意 | F32: テキスト | G32: 半角/全角 | H32: 100
A33: =IF(E33=リスト!$CP$5,"■","") ->  | B33: 支店コード | D33: 311 | E33: 任意 | F33: 数字 | G33: 半角 | H33: 100
A34: =IF(E34=リスト!$CP$5,"■","") ->  | B34: 口座種別 | D34: 普通 | E34: 任意 | F34: プルダウン | G34: - | H34: -
A35: =IF(E35=リスト!$CP$5,"■","") ->  | B35: 口座番号 | D35: 1234567 | E35: 任意 | F35: 数字 | G35: 半角 | H35: 100
A36: =IF(E36=リスト!$CP$5,"■","") ->  | B36: 口座名義 | D36: ABC東京株式会社 | E36: 任意 | F36: テキスト | G36: 半角/全角 | H36: 100
A37: ■ | B37: 契約方式 | D37: 1_注文書_Purchase order only | E37: 必須 | F37: プルダウン | G37: - | H37: - | I37: サプライヤがオンライン（ANID取得済み）の場合には「1_注文書_Purchase order only」、 サプライヤがオフライン確定（AN登録拒否フラグがついているもの）の場合には「2_注文書＋請書_Purchase order and confirmation」を選択してください
A38: ■ | B38: 支払条件・検収条件 | D38: 1_一括支払（固定額）_Lump-sum payment (fixed) | E38: 必須 | F38: プルダウン | G38: - | H38: - | I38: 「1_一括支払（固定額）_Lump-sum payment (fixed)」を選択してください
A39: ■ | B39: 支払方法 | D39: 23_銀行VAN支払_Bank VAN payment | E39: 必須 | F39: プルダウン | G39: - | H39: - | I39: プルダウンより選択
B41: 備考 | E41: 入力必須 | F41: 入力型 | G41: 半角/全角 | H41: 最大桁数 | I41: 項目補足
B42: 個社項目1 | E42: 任意 | F42: テキスト | G42: 半角/全角 | H42: 30
B43: 個社項目2 | E43: 任意 | F43: テキスト | G43: 半角/全角 | H43: 30
B44: 個社項目3 | E44: 任意 | F44: テキスト | G44: 半角/全角 | H44: 30
B45: 個社項目4 | E45: 任意 | F45: テキスト | G45: 半角/全角 | H45: 30
B46: 個社項目5 | E46: 任意 | F46: テクスト | G46: 半角/全角 | H46: 30
NA2020: quotation

Sheet 明細(簡易様式) (hidden)
B1: 【記載要領】 １． ：必須項目です。【依頼時に、弊社からの記入がない場合でも必ず記入して下さい。 ※項番を記載すると必須記入欄が着色/記載により元に戻ります。】 ２．メーカー型番が付く最小単位の製品に分けて記入願います。 依頼時に弊社からの提示が最小単位となっていない場合は追記・修正をお願いします。 複数製品を組合せた一式での記入はしないで下さい。 | I1: OK
A2: 入力型 | B2: 数字 | C2: テキスト | D2: テキスト | E2: 数字 | F2: 数字 | G2: 数字 | H2: テキスト | I2: プルダウン | J2: 数字 | K2: 数字 | L2: テキスト | M2: 金額 | N2: 金額 | O2: 割合 | P2: 金額 | Q2: 金額 | R2: 金額 | S2: 割合 | T2: 金額 | U2: 金額 | V2: 金額 | W2: 金額 | X2: 住所 | Y2: 数字 | Z2: 日数 | AA2: テキスト
A3: 半角/全角 | B3: 半角 | C3: 半角/全角 | D3: 半角/全角 | E3: 半角 | F3: 半角 | G3: 半角 | H3: 半角/全角 | I3: - | J3: 半角 | K3: 半角 | L3: 半角/全角 | M3: 半角 | N3: 半角 | O3: 半角 | P3: 半角 | Q3: 半角 | R3: 半角 | S3: 半角 | T3: 半角 | U3: 半角 | V3: 半角 | W3: 半角 | X3: 半角/全角 | Y3: 半角 | Z3: 半角 | AA3: 半角/全角
A4: 最大桁数 | B4: 10 | C4: 40 | D4: 255 | E4: 9 | F4: 13 | G4: 14 | H4: 40 | I4: - | J4: 19 | K4: 15 | L4: 32 | M4: 10 | N4: 15 | O4: 11 | P4: 11 | Q4: 11 | R4: 15 | S4: 10 | T4: 15 | U4: 15 | V4: 15 | W4: 15 | X4: 200 | Y4: 10 | Z4: 3 | AA4: 500
A5: 項目概要 | B5: １からの半角数字を記載 | C5: 商品名を記載 | D5: 製造メーカー名を記載 ※メーカー不明の場合は「メーカー不明」と記載 | E5: 製造メーカーのDunsNo／法人番号のいずれかを記載 | F5: 製造メーカーのDunsNo／法人番号のいずれかを記載 | G5: 可能な限り記載 | H5: メーカー型番がない場合は「ベース型番」を記載、それもない場合には「メーカ型番無し」で記載 | I5: ソフトウェア製品の場合は、プルダウン選択より入力 | J5: 必ず月換算で記載。 無期限の場合は"9999999999"(10桁)を記載 | K5: 予定数量を記載、記載ができない場合には"1"を記載 | L5: 「個またはM」を記載 | M5: 通常時に標準単価を記載、記載ができない場合には“1”を記載 | N5: 標準単価の合計価格を自動設定 | O5: ZZZZZZZ9.ZZ（整数8桁、小数2桁） | P5: ダムおよびコネクタの価格を記載 | Q5: 値引き額は「提案単価」および「提案合価」の金額に含めて記載 | R5: 提案単価の合計価格を自動設定 | S5: プルダウン選択より税率を設定 | T5: 小数点以下切り捨て | U5: 小数点以下切り捨て | V5: 小数点以下切り捨て | W5: 小数点以下切り捨て | X5: 記入不要 | Y5: 製品価格に含まれる保守期間の月数を記載 | Z5: 予定している品目の発注から入庫までにかかる日数を記載（基本営業日数、土日祝を含めない） | AA5: 自由記載
B6: 【見積内訳書（物品統一見積り様式）】 | E6: 【条件付き必須】 | F6: 【条件付き必須】 | M6: 【必須】
B7: 項番 【必須】 | C7: 品名 【必須】 | D7: メーカー名 【必須】 | E7: DUNS No. 【条件付き必須】 | F7: 法人番号 【条件付き必須】 | G7: GTINコード | H7: メーカー型番 【必須】 | I7: ソフトウェア 製品 【ソフトウェアは必須】 | J7: ソフトウェア 利用期間(月) 【ソフトウェアは必須】 | K7: 数量 【必須】 | L7: 購入単位 【必須】 | M7: 標準単価 【必須】 | N7: 標準合価 【自動計算】 | O7: 仕切率 【自動計算】 | P7: 追加固定費 | Q7: 提案単価 【必須】 | R7: 提案合価 【自動計算】 | S7: 税率 【必須】 | T7: 値引配賦額 【自動計算】 | U7: 配賦後合価 【自動計算】 | V7: 配賦後単価 【自動計算】 | W7: 税込配賦後合価 【自動計算】 | X7: 納入場所 | Y7: 製品価格に含まれる保守期間（ヶ月） | Z7: 標準調達期間/出荷可能期間 【必須】 | AA7: 備考 | AF7: 税率別計算 10% | AG7: 8% | AH7: 5% | AI7: 0%
B8: 1 | C8: A測定器 | D8: エヌ・ティ・ティ・アドバンステクノロジ（株） | E8: 691015309 | F8: 9011101028202 | H8: BL0001 | I8: ソフトウェア | J8: 12 | K8: 1 | L8: 個 | M8: 20,000 | N8: =IF(AND(K8<>"",M8<>""),IFERROR(IF(M8<>1,K8*M8,""),""),"") -> 20,000 | O8: =IF(ISNUMBER(M8),IF(M8<>1,IF(M8<>0,ROUND(Q8/M8,2),""),""),"") -> 90% | P8: 1,000 | Q8: 18,000 | R8: =IF(AND($K8<>"",Q8<>""),IFERROR($K8*Q8,""),"") -> 18,000 | S8: 10% | T8: =IF(AND(ISNUMBER($R$1009),$R8<>""),ROUNDDOWN($R$1009*($R8/SUM($R$8:$R$1007)),0),"") -> 0 | U8: =IFERROR(R8-T8,"") -> 18,000 | V8: =IFERROR(ROUNDDOWN(U8/K8,0),"") -> 18,000 | W8: =IF(AND($S8<>"",U8<>""),ROUNDDOWN(S8*U8+U8,0),"") -> 19,800 | Y8: 12 | Z8: 10 | AF8: =IF($S8=10%,U8,0) -> 18000 | AG8: =IF($S8=8%,U8,0) -> 0 | AH8: =IF($S8=5%,U8,0) -> 0 | AI8: =IF($S8=0%,U8,0) -> 0
B9: 2 | C9: A測定器 | D9: ｴﾇ･ﾃｨ･ﾃｨ･ｱﾄﾞﾊﾞﾝｽﾃｸﾉﾛｼﾞ(株) | E9: 691015309 | F9: 9011101028202 | H9: BL0001 | I9: ソフトウェア | J9: 12 | K9: 1 | L9: 個 | M9: 20,000 | N9: 20,000 | O9: 95% | P9: 1,000 | Q9: 19,000 | R9: =IF(AND($K9<>"",Q9<>""),IFERROR($K9*Q9,""),"") -> 19,000 | S9: 10% | T9: =IF(AND(ISNUMBER($R$1009),$R9<>""),ROUNDDOWN($R$1009*($R9/SUM($R$8:$R$1007)),0),"") -> 0 | U9: 19,000 | V9: 19,000 | W9: =IF(AND($S9<>"",U9<>""),ROUNDDOWN(S9*U9+U9,0),"") -> 20,900 | Y9: 12 | Z9: 12 | AF9: =IF($S9=10%,U9,0) -> 19000 | AG9: =IF($S9=8%,U9,0) -> 0 | AH9: =IF($S9=5%,U9,0) -> 0 | AI9: =IF($S9=0%,U9,0) -> 0
B10: 3 | C10: ソフトウェア | D10: ＮＴＴテクノクロス（株） | E10: 691017529 | F10: 5010401056882 | H10: ＢＬ０００２ | K10: 1 | L10: 個 | M10: 1 | N10: =IF(AND(K10<>"",M10<>""),IFERROR(IF(M10<>1,K10*M10,""),""),"") ->  | O10: =IF(ISNUMBER(M10),IF(M10<>1,IF(M10<>0,ROUND(Q10/M10,2),""),""),"") ->  | P10: 2,000 | Q10: 4,000 | R10: 4,000 | S10: 10% | T10: 0 | U10: 4,000 | V10: 4,000 | W10: 4,400 | Z10: 10 | AF10: 0 | AG10: 0 | AH10: 187 | AI10: 0
B11: 4 | C11: Hard Disk | D11: ＮＴＴ・ＴＥＣＨ | E11: 691017529 | F11: 5010401056882 | H11: ＢＬ０００3_１２３４５ | K11: 1 | L11: 個 | M11: 10,000 | N11: 10,000 | O11: 90% | Q11: 9,000 | R11: 9,000 | S11: 10% | T11: 0 | U11: =IFERROR(R11-T11,"") -> 9,000 | V11: 9,000 | W11: 9,900 | Z11: 10 | AF11: 9000 | AG11: 0 | AH11: 0 | AI11: 0
B12: 5 | C12: ＨＤＤ | D12: NTT･Tech | E12: 691017529 | F12: 5010401056882 | H12: ＢＬ０００3-12345 | K12: 1 | L12: 個 | M12: 10,000 | N12: 10,000 | O12: 80% | Q12: 8,000 | R12: 8,000 | S12: 10% | T12: 0 | U12: 8,000 | V12: 8,000 | W12: 8,800 | Z12: 10 | AF12: 8000 | AG12: 0 | AH12: 0 | AI12: 0
B13: 6 | C13: ＨＤＤ_０１ | D13: NTT･Tech | E13: 691017529 | F13: 5010401056882 | H13: 令和４年１２３４５ | K13: 1 | L13: 個 | M13: 10,000 | N13: 10,000 | O13: 70% | Q13: 7,000 | R13: 7,000 | S13: 10% | T13: 0 | U13: 7,000 | V13: 7,000 | W13: 7,700 | Z13: 10 | AF13: 7000 | AG13: 0 | AH13: 0 | AI13: 0
L14: 個 | S14: 10% | AG14: 0 | AH14: 0 | AI14: 0
L15: 個 | S15: 10% | AG15: 0 | AH15: 0 | AI15: 0
L16: 個 | S16: 10% | AG16: 0 | AH16: 0 | AI16: 0
L17: 個 | S17: 10% | AG17: 0 | AH17: 0 | AI17: 0
L18: 個 | S18: 10% | AG18: 0 | AH18: 0 | AI18: 0
L19: 個 | S19: 10% | AG19: 0 | AH19: 0 | AI19: 0
L20: 個 | S20: 10% | AG20: 0 | AH20: 0 | AI20: 0
L21: 個 | S21: 10% | AG21: 0 | AH21: 0 | AI21: 0
L22: 個 | S22: 10% | AG22: 0 | AH22: 0 | AI22: 0
L23: 個 | S23: 10% | AG23: 0 | AH23: 0 | AI23: 0
L24: 個 | S24: 10% | AG24: 0 | AH24: 0 | AI24: 0
L25: 個 | S25: 10% | AG25: 0 | AH25: 0 | AI25: 0
L26: 個 | S26: 10% | AG26: 0 | AH26: 0 | AI26: 0
L27: 個 | S27: 10% | AG27: 0 | AH27: 0 | AI27: 0
L28: 個 | S28: 10% | AG28: 0 | AH28: 0 | AI28: 0
L29: 個 | S29: 10% | AG29: 0 | AH29: 0 | AI29: 0
L30: 個 | S30: 10% | AG30: 0 | AH30: 0 | AI30: 0
L31: 個 | S31: 10% | AG31: 0 | AH31: 0 | AI31: 0
L32: 個 | S32: 10% | AG32: 0 | AH32: 0 | AI32: 0
L33: 個 | S33: 10% | AG33: 0 | AH33: 0 | AI33: 0
L34: 個 | S34: 10% | AG34: 0 | AH34: 0 | AI34: 0
L35: 個 | S35: 10% | AG35: 0 | AH35: 0 | AI35: 0
L36: 個 | S36: 10% | AG36: 0 | AH36: 0 | AI36: 0
L37: 個 | S37: 10% | AG37: 0 | AH37: 0 | AI37: 0
L38: 個 | S38: 10% | AG38: 0 | AH38: 0 | AI38: 0
L39: 個 | S39: 10% | AG39: 0 | AH39: 0 | AI39: 0
L40: 個 | S40: 10% | AG40: 0 | AH40: 0 | AI40: 0
L41: 個 | S41: 10% | AG41: 0 | AH41: 0 | AI41: 0
L42: 個 | S42: 10% | AG42: 0 | AH42: 0 | AI42: 0
L43: 個 | S43: 10% | AG43: 0 | AH43: 0 | AI43: 0
L44: 個 | S44: 10% | AG44: 0 | AH44: 0 | AI44: 0
L45: 個 | S45: 10% | AG45: 0 | AH45: 0 | AI45: 0
L46: 個 | S46: 10% | AG46: 0 | AH46: 0 | AI46: 0
L47: 個 | S47: 10% | AG47: 0 | AH47: 0 | AI47: 0
L48: 個 | S48: 10% | AG48: 0 | AH48: 0 | AI48: 0
L49: 個 | S49: 10% | AG49: 0 | AH49: 0 | AI49: 0
L50: 個 | S50: 10% | AG50: 0 | AH50: 0 | AI50: 0
L51: 個 | S51: 10% | AG51: 0 | AH51: 0 | AI51: 0
L52: 個 | S52: 10% | AG52: 0 | AH52: 0 | AI52: 0
L53: 個 | S53: 10% | AG53: 0 | AH53: 0 | AI53: 0
L54: 個 | S54: 10% | AG54: 0 | AH54: 0 | AI54: 0
L55: 個 | S55: 10% | AG55: 0 | AH55: 0 | AI55: 0
L56: 個 | S56: 10% | AG56: 0 | AH56: 0 | AI56: 0
L57: 個 | S57: 10% | AG57: 0 | AH57: 0 | AI57: 0
L58: 個 | S58: 10% | AG58: 0 | AH58: 0 | AI58: 0
L59: 個 | S59: 10% | AG59: 0 | AH59: 0 | AI59: 0
L60: 個 | S60: 10% | AG60: 0 | AH60: 0 | AI60: 0
L61: 個 | S61: 10% | AG61: 0 | AH61: 0 | AI61: 0
L62: 個 | S62: 10% | AG62: 0 | AH62: 0 | AI62: 0
L63: 個 | S63: 10% | AG63: 0 | AH63: 0 | AI63: 0
L64: 個 | S64: 10% | AG64: 0 | AH64: 0 | AI64: 0
L65: 個 | S65: 10% | AG65: 0 | AH65: 0 | AI65: 0
L66: 個 | S66: 10% | AG66: 0 | AH66: 0 | AI66: 0
L67: 個 | S67: 10% | AG67: 0 | AH67: 0 | AI67: 0
L68: 個 | S68: 10% | AG68: 0 | AH68: 0 | AI68: 0
L69: 個 | S69: 10% | AG69: 0 | AH69: 0 | AI69: 0
L70: 個 | S70: 10% | AG70: 0 | AH70: 0 | AI70: 0
L71: 個 | S71: 10% | AG71: 0 | AH71: 0 | AI71: 0
L72: 個 | N72: =IF(AND(K72<>"",M72<>""),IFERROR(IF(M72<>1,K72*M72,""),""),"") ->  | O72: =IF(ISNUMBER(M72),IF(M72<>1,IF(M72<>0,ROUND(Q72/M72,2),""),""),"") ->  | S72: 10% | V72: =IFERROR(ROUNDDOWN(U72/K72,0),"") ->  | AG72: 0 | AH72: 0 | AI72: 0
L73: 個 | R73: =IF(AND($K73<>"",Q73<>""),IFERROR($K73*Q73,""),"") ->  | S73: 10% | T73: =IF(AND(ISNUMBER($R$1009),$R73<>""),ROUNDDOWN($R$1009*($R73/SUM($R$8:$R$1007)),0),"") ->  | U73: =IFERROR(R73-T73,"") ->  | W73: =IF(AND($S73<>"",U73<>""),ROUNDDOWN(S73*U73+U73,0),"") ->  | AF73: =IF($S73=10%,U73,0) ->  | AG73: =IF($S73=8%,U73,0) -> 0 | AH73: =IF($S73=5%,U73,0) -> 0 | AI73: =IF($S73=0%,U73,0) -> 0
L74: 個 | S74: 10% | AG74: 0 | AH74: 0 | AI74: 0
L75: 個 | S75: 10% | AG75: 0 | AH75: 0 | AI75: 0
L76: 個 | S76: 10% | AG76: 0 | AH76: 0 | AI76: 0
L77: 個 | S77: 10% | AG77: 0 | AH77: 0 | AI77: 0
L78: 個 | S78: 10% | AG78: 0 | AH78: 0 | AI78: 0
L79: 個 | S79: 10% | AG79: 0 | AH79: 0 | AI79: 0
L80: 個 | S80: 10% | AG80: 0 | AH80: 0 | AI80: 0
L81: 個 | S81: 10% | AG81: 0 | AH81: 0 | AI81: 0
L82: 個 | S82: 10% | AG82: 0 | AH82: 0 | AI82: 0
L83: 個 | S83: 10% | AG83: 0 | AH83: 0 | AI83: 0
L84: 個 | S84: 10% | AG84: 0 | AH84: 0 | AI84: 0
L85: 個 | S85: 10% | AG85: 0 | AH85: 0 | AI85: 0
L86: 個 | S86: 10% | AG86: 0 | AH86: 0 | AI86: 0
L87: 個 | S87: 10% | AG87: 0 | AH87: 0 | AI87: 0
L88: 個 | S88: 10% | AG88: 0 | AH88: 0 | AI88: 0
L89: 個 | S89: 10% | AG89: 0 | AH89: 0 | AI89: 0
L90: 個 | S90: 10% | AG90: 0 | AH90: 0 | AI90: 0
L91: 個 | S91: 10% | AG91: 0 | AH91: 0 | AI91: 0
L92: 個 | S92: 10% | AG92: 0 | AH92: 0 | AI92: 0
L93: 個 | S93: 10% | AG93: 0 | AH93: 0 | AI93: 0
L94: 個 | S94: 10% | AG94: 0 | AH94: 0 | AI94: 0
L95: 個 | S95: 10% | AG95: 0 | AH95: 0 | AI95: 0
L96: 個 | S96: 10% | AG96: 0 | AH96: 0 | AI96: 0
L97: 個 | S97: 10% | AG97: 0 | AH97: 0 | AI97: 0
L98: 個 | S98: 10% | AG98: 0 | AH98: 0 | AI98: 0
L99: 個 | S99: 10% | AG99: 0 | AH99: 0 | AI99: 0
L100: 個 | S100: 10% | AG100: 0 | AH100: 0 | AI100: 0
L101: 個 | S101: 10% | AG101: 0 | AH101: 0 | AI101: 0
L102: 個 | S102: 10% | AG102: 0 | AH102: 0 | AI102: 0
L103: 個 | S103: 10% | AG103: 0 | AH103: 0 | AI103: 0
L104: 個 | S104: 10% | AG104: 0 | AH104: 0 | AI104: 0
L105: 個 | S105: 10% | AG105: 0 | AH105: 0 | AI105: 0
L106: 個 | S106: 10% | AG106: 0 | AH106: 0 | AI106: 0
L107: 個 | S107: 10% | AG107: 0 | AH107: 0 | AI107: 0
L108: 個 | S108: 10% | AG108: 0 | AH108: 0 | AI108: 0
L109: 個 | S109: 10% | AG109: 0 | AH109: 0 | AI109: 0
L110: 個 | S110: 10% | AG110: 0 | AH110: 0 | AI110: 0
L111: 個 | S111: 10% | AG111: 0 | AH111: 0 | AI111: 0
L112: 個 | S112: 10% | AG112: 0 | AH112: 0 | AI112: 0
L113: 個 | S113: 10% | AG113: 0 | AH113: 0 | AI113: 0
L114: 個 | S114: 10% | AG114: 0 | AH114: 0 | AI114: 0
L115: 個 | S115: 10% | AG115: 0 | AH115: 0 | AI115: 0
L116: 個 | S116: 10% | AG116: 0 | AH116: 0 | AI116: 0
L117: 個 | S117: 10% | AG117: 0 | AH117: 0 | AI117: 0
L118: 個 | S118: 10% | AG118: 0 | AH118: 0 | AI118: 0
L119: 個 | S119: 10% | AG119: 0 | AH119: 0 | AI119: 0
L120: 個 | S120: 10% | AG120: 0 | AH120: 0 | AI120: 0
L121: 個 | S121: 10% | AG121: 0 | AH121: 0 | AI121: 0
L122: 個 | S122: 10% | AG122: 0 | AH122: 0 | AI122: 0
L123: 個 | S123: 10% | AG123: 0 | AH123: 0 | AI123: 0
L124: 個 | S124: 10% | AG124: 0 | AH124: 0 | AI124: 0
L125: 個 | S125: 10% | AG125: 0 | AH125: 0 | AI125: 0
L126: 個 | S126: 10% | AG126: 0 | AH126: 0 | AI126: 0
L127: 個 | S127: 10% | AG127: 0 | AH127: 0 | AI127: 0
L128: 個 | S128: 10% | AG128: 0 | AH128: 0 | AI128: 0
L129: 個 | S129: 10% | AG129: 0 | AH129: 0 | AI129: 0
L130: 個 | S130: 10% | AG130: 0 | AH130: 0 | AI130: 0
L131: 個 | S131: 10% | AG131: 0 | AH131: 0 | AI131: 0
L132: 個 | S132: 10% | AG132: 0 | AH132: 0 | AI132: 0
L133: 個 | S133: 10% | AG133: 0 | AH133: 0 | AI133: 0
L134: 個 | S134: 10% | AG134: 0 | AH134: 0 | AI134: 0
L135: 個 | S135: 10% | AG135: 0 | AH135: 0 | AI135: 0
L136: 個 | N136: =IF(AND(K136<>"",M136<>""),IFERROR(IF(M136<>1,K136*M136,""),""),"") ->  | O136: =IF(ISNUMBER(M136),IF(M136<>1,IF(M136<>0,ROUND(Q136/M136,2),""),""),"") ->  | S136: 10% | V136: =IFERROR(ROUNDDOWN(U136/K136,0),"") ->  | AG136: 0 | AH136: 0 | AI136: 0
L137: 個 | R137: =IF(AND($K137<>"",Q137<>""),IFERROR($K137*Q137,""),"") ->  | S137: 10% | T137: =IF(AND(ISNUMBER($R$1009),$R137<>""),ROUNDDOWN($R$1009*($R137/SUM($R$8:$R$1007)),0),"") ->  | U137: =IFERROR(R137-T137,"") ->  | W137: =IF(AND($S137<>"",U137<>""),ROUNDDOWN(S137*U137+U137,0),"") ->  | AF137: =IF($S137=10%,U137,0) ->  | AG137: =IF($S137=8%,U137,0) -> 0 | AH137: =IF($S137=5%,U137,0) -> 0 | AI137: =IF($S137=0%,U137,0) -> 0
L138: 個 | S138: 10% | AG138: 0 | AH138: 0 | AI138: 0
L139: 個 | S139: 10% | AG139: 0 | AH139: 0 | AI139: 0
L140: 個 | S140: 10% | AG140: 0 | AH140: 0 | AI140: 0
L141: 個 | S141: 10% | AG141: 0 | AH141: 0 | AI141: 0
L142: 個 | S142: 10% | AG142: 0 | AH142: 0 | AI142: 0
L143: 個 | S143: 10% | AG143: 0 | AH143: 0 | AI143: 0
L144: 個 | S144: 10% | AG144: 0 | AH144: 0 | AI144: 0
L145: 個 | S145: 10% | AG145: 0 | AH145: 0 | AI145: 0
L146: 個 | S146: 10% | AG146: 0 | AH146: 0 | AI146: 0
L147: 個 | S147: 10% | AG147: 0 | AH147: 0 | AI147: 0
L148: 個 | S148: 10% | AG148: 0 | AH148: 0 | AI148: 0
L149: 個 | S149: 10% | AG149: 0 | AH149: 0 | AI149: 0
L150: 個 | S150: 10% | AG150: 0 | AH150: 0 | AI150: 0
L151: 個 | S151: 10% | AG151: 0 | AH151: 0 | AI151: 0
L152: 個 | S152: 10% | AG152: 0 | AH152: 0 | AI152: 0
L153: 個 | S153: 10% | AG153: 0 | AH153: 0 | AI153: 0
L154: 個 | S154: 10% | AG154: 0 | AH154: 0 | AI154: 0
L155: 個 | S155: 10% | AG155: 0 | AH155: 0 | AI155: 0
L156: 個 | S156: 10% | AG156: 0 | AH156: 0 | AI156: 0
L157: 個 | S157: 10% | AG157: 0 | AH157: 0 | AI157: 0
L158: 個 | S158: 10% | AG158: 0 | AH158: 0 | AI158: 0
L159: 個 | S159: 10% | AG159: 0 | AH159: 0 | AI159: 0
L160: 個 | S160: 10% | AG160: 0 | AH160: 0 | AI160: 0
L161: 個 | S161: 10% | AG161: 0 | AH161: 0 | AI161: 0
L162: 個 | S162: 10% | AG162: 0 | AH162: 0 | AI162: 0
L163: 個 | S163: 10% | AG163: 0 | AH163: 0 | AI163: 0
L164: 個 | S164: 10% | AG164: 0 | AH164: 0 | AI164: 0
L165: 個 | S165: 10% | AG165: 0 | AH165: 0 | AI165: 0
L166: 個 | S166: 10% | AG166: 0 | AH166: 0 | AI166: 0
L167: 個 | S167: 10% | AG167: 0 | AH167: 0 | AI167: 0
L168: 個 | S168: 10% | AG168: 0 | AH168: 0 | AI168: 0
L169: 個 | S169: 10% | AG169: 0 | AH169: 0 | AI169: 0
L170: 個 | S170: 10% | AG170: 0 | AH170: 0 | AI170: 0
L171: 個 | S171: 10% | AG171: 0 | AH171: 0 | AI171: 0
L172: 個 | S172: 10% | AG172: 0 | AH172: 0 | AI172: 0
L173: 個 | S173: 10% | AG173: 0 | AH173: 0 | AI173: 0
L174: 個 | S174: 10% | AG174: 0 | AH174: 0 | AI174: 0
L175: 個 | S175: 10% | AG175: 0 | AH175: 0 | AI175: 0
L176: 個 | S176: 10% | AG176: 0 | AH176: 0 | AI176: 0
L177: 個 | S177: 10% | AG177: 0 | AH177: 0 | AI177: 0
L178: 個 | S178: 10% | AG178: 0 | AH178: 0 | AI178: 0
L179: 個 | S179: 10% | AG179: 0 | AH179: 0 | AI179: 0
L180: 個 | S180: 10% | AG180: 0 | AH180: 0 | AI180: 0
L181: 個 | S181: 10% | AG181: 0 | AH181: 0 | AI181: 0
L182: 個 | S182: 10% | AG182: 0 | AH182: 0 | AI182: 0
L183: 個 | S183: 10% | AG183: 0 | AH183: 0 | AI183: 0
L184: 個 | S184: 10% | AG184: 0 | AH184: 0 | AI184: 0
L185: 個 | S185: 10% | AG185: 0 | AH185: 0 | AI185: 0
L186: 個 | S186: 10% | AG186: 0 | AH186: 0 | AI186: 0
L187: 個 | S187: 10% | AG187: 0 | AH187: 0 | AI187: 0
L188: 個 | S188: 10% | AG188: 0 | AH188: 0 | AI188: 0
L189: 個 | S189: 10% | AG189: 0 | AH189: 0 | AI189: 0
L190: 個 | S190: 10% | AG190: 0 | AH190: 0 | AI190: 0
L191: 個 | S191: 10% | AG191: 0 | AH191: 0 | AI191: 0
L192: 個 | S192: 10% | AG192: 0 | AH192: 0 | AI192: 0
L193: 個 | S193: 10% | AG193: 0 | AH193: 0 | AI193: 0
L194: 個 | S194: 10% | AG194: 0 | AH194: 0 | AI194: 0
L195: 個 | S195: 10% | AG195: 0 | AH195: 0 | AI195: 0
L196: 個 | S196: 10% | AG196: 0 | AH196: 0 | AI196: 0
L197: 個 | S197: 10% | AG197: 0 | AH197: 0 | AI197: 0
L198: 個 | S198: 10% | AG198: 0 | AH198: 0 | AI198: 0
L199: 個 | S199: 10% | AG199: 0 | AH199: 0 | AI199: 0
L200: 個 | N200: =IF(AND(K200<>"",M200<>""),IFERROR(IF(M200<>1,K200*M200,""),""),"") ->  | O200: =IF(ISNUMBER(M200),IF(M200<>1,IF(M200<>0,ROUND(Q200/M200,2),""),""),"") ->  | S200: 10% | V200: =IFERROR(ROUNDDOWN(U200/K200,0),"") ->  | AG200: 0 | AH200: 0 | AI200: 0
... 810 more rows

Sheet 明細
B1: 【記載要領】 １． ：必須項目です。【依頼時に、弊社からの記入がない場合でも必ず記入して下さい。】 ２．メーカー型番が付く最小単位の製品に分けて記入願います。依頼時に弊社からの提示が最小単位となっていない場合は追記・修正をお願いします。 複数製品を組合せた一式での記入はしないで下さい。 | K1: OK
A2: 入力型 | B2: 数字 | C2: テキスト | D2: テキスト | E2: テキスト | F2: テキスト | G2: 数字 | H2: 数字 | I2: 数字 | J2: テキスト | K2: テキスト | L2: テキスト | M2: テキスト | N2: テキスト | O2: URL | P2: URL | Q2: プルダウン | R2: 数字 | S2: 日付 | T2: 日付 | U2: 数字 | V2: テキスト | W2: テキスト | X2: 金額 | Y2: 金額 | Z2: 割合 | AA2: 金額 | AB2: 金額 | AC2: 金額 | AD2: 金額 | AE2: 割合 | AF2: 金額 | AG2: 金額 | AH2: 金額 | AI2: 金額 | AJ2: 住所 | AK2: 数字 | AL2: 日数 | AM2: テキスト | AN2: テキスト | AO2: テキスト | AP2: テキスト | AQ2: テキスト | AR2: テキスト | GY2: Ver. | GZ2: 9.3 | HA2: カタログ用
A3: 半角/全角 | B3: 半角 | C3: 半角/全角 | D3: 半角 | E3: 半角/全角 | F3: 半角/全角 | G3: 半角 | H3: 半角 | I3: 半角 | J3: 半角/全角 | K3: 半角(英数字、-、_のみ) | L3: 半角(英数、-、_のみ) | M3: 半角/全角 | N3: 半角/全角 | O3: 半角 | P3: 半角 | Q3: - | R3: 半角 | S3: 半角 | T3: 半角 | U3: 半角 | V3: 半角/全角 | W3: 半角/全角 | X3: 半角 | Y3: 半角 | Z3: 半角 | AA3: 半角 | AB3: 半角 | AC3: 半角 | AD3: 半角 | AE3: 半角 | AF3: 半角 | AG3: 半角 | AH3: 半角 | AI3: 半角 | AJ3: 半角/全角 | AK3: 半角 | AL3: 半角 | AM3: 半角/全角 | AN3: 半角/全角 | AO3: 半角/全角 | AP3: 半角/全角 | AQ3: 半角/全角 | AR3: 半角/全角
A4: 最大桁数 | B4: 10 | C4: 40 | D4: 110 | E4: 40 | F4: 255 | G4: 9 | H4: 13 | I4: 14 | J4: 40 | K4: 15 | L4: 18 | M4: 10 | N4: 33 | O4: 50 | P4: 255 | Q4: - | R4: 19 | S4: 10 | T4: 10 | U4: 15 | V4: 32 | W4: 2000 | X4: 10 | Y4: 15 | Z4: 11 | AA4: 11 | AB4: 10 | AC4: 11 | AD4: 15 | AE4: 10 | AF4: 15 | AG4: 15 | AH4: 15 | AI4: 15 | AJ4: 200 | AK4: 10 | AL4: 3 | AM4: 500 | AN4: 30 | AO4: 30 | AP4: 30 | AQ4: 30 | AR4: 30
A5: 項目概要 | B5: "1"からの半角数字を記載 | C5: 商品名を記載 | D5: 商品のカナ品名を記載 ※Aribaカタログの場合空欄可 | E5: 商品のライセンス名を記載 | F5: 製造メーカー名を記載 ※メーカー不明の場合は「メーカー不明」と記載 | G5: 製造メーカーのDunsNo／法人番号のいずれか記載必須 | H5: 製造メーカーのDunsNo／法人番号のいずれか記載必須 | I5: 可能な限り記載 | J5: メーカー型番がない場合は「ベース型番」を記載、それもない場合には「メーカ型番無し」で記載 | K5: サプライヤ品番がない場合は「ベース型番」を記載、それもない場合には「X」で記載 | L5: 同一サプライヤ品番で複数の価格が存在する場合には、サプライヤ補助品番にて区別してください。補助品番の入力についてはバイヤからの指示に従ってください Aribaでは必須、S4では記載不要 | M5: 事業会社各社が登録した品目マスタに記載されるメーカ型番の製品バージョンを記載 | N5: メーカーが払い出す商品のシリーズ名を記載 | O5: http://又はhttps://で始まるURL、 サプライヤが準備している該当物品の説明URLなどの参照リンクがある場合、そのURLを記載 | P5: http://又はhttps://で始まるURL、 製造メーカーが準備している該当物品の説明URLなどの参照リンクがある場合、そのURLを記載 | Q5: ソフトウェア製品の場合は、プルダウン選択より入力 | R5: 必ず月換算で記載。 無期限の場合は"9999999999"(10桁)を記載 | S5: YYYY/MM/DD | T5: YYYY/MM/DD | U5: 予定数量を記載、記載ができない場合には"1"を記載 | V5: 「個またはM」を記載 | W5: カタログアイテムに関する詳細な説明（日本語）を記載、オフラインサプライヤ様の場合は注文書には264文字しか表示されません。 改行は、<BR>のみ許容します。（改行コード(CR,LF)は、エラーとします） ※S4カタログの場合省略可 | X5: 通常時に標準単価を記載、記載ができない場合には“1”を記載 | Y5: 標準単価の合計価格を自動設定 | Z5: ZZZZZZZ9.ZZ（整数8桁、小数2桁） | AA5: ダムおよびコネクタの価格を記載 | AB5: 物品の固定部単価を記載 | AC5: 値引き額は「提案単価」および「提案合価」の金額に含めて記載 | AD5: 提案単価の合計価格を自動設定 | AE5: プルダウン選択より税率を設定 | AF5: 小数点以下切り捨て | AG5: 小数点以下切り捨て | AH5: 小数点以下切り捨て | AI5: 小数点以下切り捨て | AJ5: 記入不要 | AK5: 製品価格に含まれる保守期間の月数を記載 | AL5: 予定している品目の発注から入庫までにかかる日数を記載（基本営業日数、土日祝を含めない） | AM5: 自由記載 | AN5: 自由記載 | AO5: 自由記載 | AP5: 自由記載 | AQ5: 自由記載 | AR5: 自由記載
B6: 【見積内訳書（物品統一見積り様式）】 | L6: 【条件付き必須】 | Q6: 【ソフトウェアは必須】 | R6: 【ソフトウェアは必須】 | S6: 【任意】 | T6: 【任意】 | AK6: 【任意】
B7: 項番 【必須】 | C7: 品名 【必須】 | D7: カナ品名 【必須】 | E7: ライセンス名 | F7: メーカー名 【必須】 | G7: DUNS No. 【条件付き必須】 | H7: 法人番号 【条件付き必須】 | I7: GTINコード | J7: メーカー型番 【必須】 | K7: サプライヤ品番 【必須】 | L7: サプライヤー補助品目ID 【条件付き必須】 | M7: 製品バージョン | N7: シリーズ名 | O7: サプライヤ製品URL | P7: 製造メーカー製品URL | Q7: ソフトウェア 製品 【ソフトウェアは必須】 | R7: ソフトウェア 利用期間(月) 【ソフトウェアは必須】 | S7: ライセンス保守開始日 | T7: ライセンス保守終了日 | U7: 数量 【必須】 | V7: 購入単位 【必須】 | W7: 詳しい説明 【必須】 | X7: 標準単価 【必須】 | Y7: 標準合価 【自動計算】 | Z7: 仕切率 【自動計算】 | AA7: 追加固定費 | AB7: 固定部単価 | AC7: 提案単価 【必須】 | AD7: 提案合価 【自動計算】 | AE7: 税率 【必須】 | AF7: 値引配賦額 【自動計算】 | AG7: 配賦後合価 【自動計算】 | AH7: 配賦後単価 【自動計算】 | AI7: 税込配賦後合価 【自動計算】 | AJ7: 納入場所 | AK7: 製品価格に含まれる保守期間（ヶ月） | AL7: 標準調達期間/出荷可能期間 【必須】 | AM7: 備考 | AN7: 個社項目1 | AO7: 個社項目2 | AP7: 個社項目3 | AQ7: 個社項目4 | AR7: 個社項目5 | AX7: 税率別計算 10% | AY7: 8% | AZ7: 5% | BA7: 0%
B8: 1 | C8: A測定器 | F8: エヌ・ティ・ティ・アドバンステクノロジ（株） | G8: 691015309 | H8: 9011101028202 | J8: BL0001 | K8: SUX-60 | L8: 100 | Q8: ソフトウェア | R8: 12 | S8: 2023/05/01 | T8: 2025/12/31 | U8: 1 | V8: 個 | W8: ネットワーク負荷測定 | X8: 20,000 | Y8: =IF(AND(U8<>"",X8<>""),IFERROR(IF(X8<>1,U8*X8,""),""),"") -> 20,000 | Z8: =IF(ISNUMBER(X8),IF(X8<>1,IF(X8<>0,ROUND(AC8/X8,2),""),""),"") -> 90% | AA8: 1,000 | AC8: 18,000 | AD8: =IF(AND($U8<>"",AC8<>""),IFERROR($U8*AC8,""),"") -> 18,000 | AE8: 10% | AF8: =IF(AND(ISNUMBER($AD$1009),$AD8<>""),ROUNDDOWN($AD$1009*($AD8/SUM($AD$8:$AD$1007)),0),"") -> 0 | AG8: =IFERROR(AD8-AF8,"") -> 18,000 | AH8: =IFERROR(ROUNDDOWN(AG8/U8,0),"") -> 18,000 | AI8: =IF(AND($AE8<>"",AG8<>""),ROUNDDOWN(AE8*AG8+AG8,0),"") -> 19,800 | AK8: 12 | AL8: 10 | AX8: =IF($AE8=10%,AG8,0) -> 18000 | AY8: =IF($AE8=8%,AG8,0) -> 0 | AZ8: =IF($AE8=5%,AG8,0) -> 0 | BA8: =IF($AE8=0%,AG8,0) -> 0
B9: 2 | C9: A測定器 | F9: ｴﾇ･ﾃｨ･ﾃｨ･ｱﾄﾞﾊﾞﾝｽﾃｸﾉﾛｼﾞ(株) | G9: 691015309 | H9: 9011101028202 | J9: BL0001 | K9: SUX-61 | L9: 200 | Q9: ソフトウェア | R9: 12 | S9: 2023/05/01 | T9: 2025/12/31 | U9: 1 | V9: 個 | W9: ネットワーク負荷測定 | X9: 20,000 | Y9: =IF(AND(U9<>"",X9<>""),IFERROR(IF(X9<>1,U9*X9,""),""),"") -> 20,000 | Z9: =IF(ISNUMBER(X9),IF(X9<>1,IF(X9<>0,ROUND(AC9/X9,2),""),""),"") -> 95% | AA9: 1,000 | AC9: 19,000 | AD9: 19,000 | AE9: 10% | AF9: =IF(AND(ISNUMBER($AD$1009),$AD9<>""),ROUNDDOWN($AD$1009*($AD9/SUM($AD$8:$AD$1007)),0),"") -> 0 | AG9: =IFERROR(AD9-AF9,"") -> 19,000 | AH9: =IFERROR(ROUNDDOWN(AG9/U9,0),"") -> 19,000 | AI9: =IF(AND($AE9<>"",AG9<>""),ROUNDDOWN(AE9*AG9+AG9,0),"") -> 20,900 | AK9: 12 | AL9: 12 | AX9: =IF($AE9=10%,AG9,0) -> 19000 | AY9: =IF($AE9=8%,AG9,0) -> 0 | AZ9: =IF($AE9=5%,AG9,0) -> 0 | BA9: =IF($AE9=0%,AG9,0) -> 0
B10: 3 | C10: ソフトウェア | F10: ＮＴＴテクノクロス（株） | G10: 691017529 | H10: 5010401056882 | J10: ＢＬ０００２ | K10: X | L10: 300 | U10: 1 | V10: 個 | W10: sortware | X10: 1 | AA10: 2,000 | AC10: 4,000 | AD10: 4,000 | AE10: 10% | AF10: 0 | AG10: 4,000 | AH10: 4,000 | AI10: 4,400 | AL10: 10 | AX10: 4000 | AY10: 0 | AZ10: 0 | BA10: 0
B11: 4 | C11: Hard Disk | F11: ＮＴＴ・ＴＥＣＨ | G11: 691017529 | H11: 5010401056882 | J11: ＢＬ０００3_１２３４５ | K11: SUX_62 | L11: abc-100 | U11: 1 | V11: 個 | W11: ハードディスク<BR>衝撃に強いハードディスク<BR>データ保証３年付き | X11: 10,000 | Y11: 10,000 | Z11: 90% | AC11: 9,000 | AD11: 9,000 | AE11: 10% | AF11: 0 | AG11: 9,000 | AH11: 9,000 | AI11: 9,900 | AL11: 10 | AX11: 9000 | AY11: 0 | AZ11: 0 | BA11: 0
B12: 5 | C12: ＨＤＤ | F12: NTT･Tech | G12: 691017529 | H12: 5010401056882 | J12: ＢＬ０００3-12345 | K12: SUX_63 | L12: abc_200 | U12: 1 | V12: 個 | W12: ＨＤＤ | X12: 10,000 | Y12: 10,000 | Z12: 80% | AC12: 8,000 | AD12: 8,000 | AE12: 10% | AF12: 0 | AG12: 8,000 | AH12: 8,000 | AI12: 8,800 | AL12: 10 | AX12: 8000 | AY12: 0 | AZ12: 0 | BA12: 0
B13: 6 | C13: ＨＤＤ_０１ | F13: NTT･Tech | G13: 691017529 | H13: 5010401056882 | J13: 令和４年１２３４５ | K13: SUX_64 | L13: abc-300 | U13: 1 | V13: 個 | W13: hdd | X13: 10,000 | Y13: 10,000 | Z13: 70% | AC13: 7,000 | AD13: 7,000 | AE13: 10% | AF13: 0 | AG13: 7,000 | AH13: 7,000 | AI13: 7,700 | AL13: 10 | AX13: 7000 | AY13: 0 | AZ13: 0 | BA13: 0
V14: 個 | AE14: 10% | AY14: 0 | AZ14: 0 | BA14: 0
V15: 個 | AE15: 10% | AY15: 0 | AZ15: 0 | BA15: 0
V16: 個 | AE16: 10% | AY16: 0 | AZ16: 0 | BA16: 0
V17: 個 | AE17: 10% | AY17: 0 | AZ17: 0 | BA17: 0
V18: 個 | AE18: 10% | AY18: 0 | AZ18: 0 | BA18: 0
V19: 個 | AE19: 10% | AY19: 0 | AZ19: 0 | BA19: 0
V20: 個 | AE20: 10% | AY20: 0 | AZ20: 0 | BA20: 0
V21: 個 | AE21: 10% | AY21: 0 | AZ21: 0 | BA21: 0
V22: 個 | AE22: 10% | AY22: 0 | AZ22: 0 | BA22: 0
V23: 個 | AE23: 10% | AY23: 0 | AZ23: 0 | BA23: 0
V24: 個 | AE24: 10% | AY24: 0 | AZ24: 0 | BA24: 0
V25: 個 | AE25: 10% | AY25: 0 | AZ25: 0 | BA25: 0
V26: 個 | AE26: 10% | AY26: 0 | AZ26: 0 | BA26: 0
V27: 個 | AE27: 10% | AY27: 0 | AZ27: 0 | BA27: 0
V28: 個 | AE28: 10% | AY28: 0 | AZ28: 0 | BA28: 0
V29: 個 | AE29: 10% | AY29: 0 | AZ29: 0 | BA29: 0
V30: 個 | AE30: 10% | AY30: 0 | AZ30: 0 | BA30: 0
V31: 個 | AE31: 10% | AY31: 0 | AZ31: 0 | BA31: 0
V32: 個 | AE32: 10% | AY32: 0 | AZ32: 0 | BA32: 0
V33: 個 | AE33: 10% | AY33: 0 | AZ33: 0 | BA33: 0
V34: 個 | AE34: 10% | AY34: 0 | AZ34: 0 | BA34: 0
V35: 個 | AE35: 10% | AY35: 0 | AZ35: 0 | BA35: 0
V36: 個 | AE36: 10% | AY36: 0 | AZ36: 0 | BA36: 0
V37: 個 | AE37: 10% | AY37: 0 | AZ37: 0 | BA37: 0
V38: 個 | AE38: 10% | AY38: 0 | AZ38: 0 | BA38: 0
V39: 個 | AE39: 10% | AY39: 0 | AZ39: 0 | BA39: 0
V40: 個 | AE40: 10% | AY40: 0 | AZ40: 0 | BA40: 0
V41: 個 | AE41: 10% | AY41: 0 | AZ41: 0 | BA41: 0
V42: 個 | AE42: 10% | AY42: 0 | AZ42: 0 | BA42: 0
V43: 個 | AE43: 10% | AY43: 0 | AZ43: 0 | BA43: 0
V44: 個 | AE44: 10% | AY44: 0 | AZ44: 0 | BA44: 0
V45: 個 | AE45: 10% | AY45: 0 | AZ45: 0 | BA45: 0
V46: 個 | AE46: 10% | AY46: 0 | AZ46: 0 | BA46: 0
V47: 個 | AE47: 10% | AY47: 0 | AZ47: 0 | BA47: 0
V48: 個 | AE48: 10% | AY48: 0 | AZ48: 0 | BA48: 0
V49: 個 | AE49: 10% | AY49: 0 | AZ49: 0 | BA49: 0
V50: 個 | AE50: 10% | AY50: 0 | AZ50: 0 | BA50: 0
V51: 個 | AE51: 10% | AY51: 0 | AZ51: 0 | BA51: 0
V52: 個 | AE52: 10% | AY52: 0 | AZ52: 0 | BA52: 0
V53: 個 | AE53: 10% | AY53: 0 | AZ53: 0 | BA53: 0
V54: 個 | AE54: 10% | AY54: 0 | AZ54: 0 | BA54: 0
V55: 個 | AE55: 10% | AY55: 0 | AZ55: 0 | BA55: 0
V56: 個 | AE56: 10% | AY56: 0 | AZ56: 0 | BA56: 0
V57: 個 | AE57: 10% | AY57: 0 | AZ57: 0 | BA57: 0
V58: 個 | AE58: 10% | AY58: 0 | AZ58: 0 | BA58: 0
V59: 個 | AE59: 10% | AY59: 0 | AZ59: 0 | BA59: 0
V60: 個 | AE60: 10% | AY60: 0 | AZ60: 0 | BA60: 0
V61: 個 | AE61: 10% | AY61: 0 | AZ61: 0 | BA61: 0
V62: 個 | AE62: 10% | AY62: 0 | AZ62: 0 | BA62: 0
V63: 個 | AE63: 10% | AY63: 0 | AZ63: 0 | BA63: 0
V64: 個 | AE64: 10% | AY64: 0 | AZ64: 0 | BA64: 0
V65: 個 | AE65: 10% | AY65: 0 | AZ65: 0 | BA65: 0
V66: 個 | AE66: 10% | AY66: 0 | AZ66: 0 | BA66: 0
V67: 個 | AE67: 10% | AY67: 0 | AZ67: 0 | BA67: 0
V68: 個 | AE68: 10% | AY68: 0 | AZ68: 0 | BA68: 0
V69: 個 | AE69: 10% | AY69: 0 | AZ69: 0 | BA69: 0
V70: 個 | AE70: 10% | AY70: 0 | AZ70: 0 | BA70: 0
V71: 個 | AE71: 10% | AY71: 0 | AZ71: 0 | BA71: 0
V72: 個 | AE72: 10% | AY72: 0 | AZ72: 0 | BA72: 0
V73: 個 | Y73: =IF(AND(U73<>"",X73<>""),IFERROR(IF(X73<>1,U73*X73,""),""),"") ->  | Z73: =IF(ISNUMBER(X73),IF(X73<>1,IF(X73<>0,ROUND(AC73/X73,2),""),""),"") ->  | AD73: =IF(AND($U73<>"",AC73<>""),IFERROR($U73*AC73,""),"") ->  | AE73: 10% | AF73: =IF(AND(ISNUMBER($AD$1009),$AD73<>""),ROUNDDOWN($AD$1009*($AD73/SUM($AD$8:$AD$1007)),0),"") ->  | AG73: =IFERROR(AD73-AF73,"") ->  | AH73: =IFERROR(ROUNDDOWN(AG73/U73,0),"") ->  | AI73: =IF(AND($AE73<>"",AG73<>""),ROUNDDOWN(AE73*AG73+AG73,0),"") ->  | AX73: =IF($AE73=10%,AG73,0) ->  | AY73: =IF($AE73=8%,AG73,0) -> 0 | AZ73: =IF($AE73=5%,AG73,0) -> 0 | BA73: =IF($AE73=0%,AG73,0) -> 0
V74: 個 | AE74: 10% | AY74: 0 | AZ74: 0 | BA74: 0
V75: 個 | AE75: 10% | AY75: 0 | AZ75: 0 | BA75: 0
V76: 個 | AE76: 10% | AY76: 0 | AZ76: 0 | BA76: 0
V77: 個 | AE77: 10% | AY77: 0 | AZ77: 0 | BA77: 0
V78: 個 | AE78: 10% | AY78: 0 | AZ78: 0 | BA78: 0
V79: 個 | AE79: 10% | AY79: 0 | AZ79: 0 | BA79: 0
V80: 個 | AE80: 10% | AY80: 0 | AZ80: 0 | BA80: 0
V81: 個 | AE81: 10% | AY81: 0 | AZ81: 0 | BA81: 0
V82: 個 | AE82: 10% | AY82: 0 | AZ82: 0 | BA82: 0
V83: 個 | AE83: 10% | AY83: 0 | AZ83: 0 | BA83: 0
V84: 個 | AE84: 10% | AY84: 0 | AZ84: 0 | BA84: 0
V85: 個 | AE85: 10% | AY85: 0 | AZ85: 0 | BA85: 0
V86: 個 | AE86: 10% | AY86: 0 | AZ86: 0 | BA86: 0
V87: 個 | AE87: 10% | AY87: 0 | AZ87: 0 | BA87: 0
V88: 個 | AE88: 10% | AY88: 0 | AZ88: 0 | BA88: 0
V89: 個 | AE89: 10% | AY89: 0 | AZ89: 0 | BA89: 0
V90: 個 | AE90: 10% | AY90: 0 | AZ90: 0 | BA90: 0
V91: 個 | AE91: 10% | AY91: 0 | AZ91: 0 | BA91: 0
V92: 個 | AE92: 10% | AY92: 0 | AZ92: 0 | BA92: 0
V93: 個 | AE93: 10% | AY93: 0 | AZ93: 0 | BA93: 0
V94: 個 | AE94: 10% | AY94: 0 | AZ94: 0 | BA94: 0
V95: 個 | AE95: 10% | AY95: 0 | AZ95: 0 | BA95: 0
V96: 個 | AE96: 10% | AY96: 0 | AZ96: 0 | BA96: 0
V97: 個 | AE97: 10% | AY97: 0 | AZ97: 0 | BA97: 0
V98: 個 | AE98: 10% | AY98: 0 | AZ98: 0 | BA98: 0
V99: 個 | AE99: 10% | AY99: 0 | AZ99: 0 | BA99: 0
V100: 個 | AE100: 10% | AY100: 0 | AZ100: 0 | BA100: 0
V101: 個 | AE101: 10% | AY101: 0 | AZ101: 0 | BA101: 0
V102: 個 | AE102: 10% | AY102: 0 | AZ102: 0 | BA102: 0
V103: 個 | AE103: 10% | AY103: 0 | AZ103: 0 | BA103: 0
V104: 個 | AE104: 10% | AY104: 0 | AZ104: 0 | BA104: 0
V105: 個 | AE105: 10% | AY105: 0 | AZ105: 0 | BA105: 0
V106: 個 | AE106: 10% | AY106: 0 | AZ106: 0 | BA106: 0
V107: 個 | AE107: 10% | AY107: 0 | AZ107: 0 | BA107: 0
V108: 個 | AE108: 10% | AY108: 0 | AZ108: 0 | BA108: 0
V109: 個 | AE109: 10% | AY109: 0 | AZ109: 0 | BA109: 0
V110: 個 | AE110: 10% | AY110: 0 | AZ110: 0 | BA110: 0
V111: 個 | AE111: 10% | AY111: 0 | AZ111: 0 | BA111: 0
V112: 個 | AE112: 10% | AY112: 0 | AZ112: 0 | BA112: 0
V113: 個 | AE113: 10% | AY113: 0 | AZ113: 0 | BA113: 0
V114: 個 | AE114: 10% | AY114: 0 | AZ114: 0 | BA114: 0
V115: 個 | AE115: 10% | AY115: 0 | AZ115: 0 | BA115: 0
V116: 個 | AE116: 10% | AY116: 0 | AZ116: 0 | BA116: 0
V117: 個 | AE117: 10% | AY117: 0 | AZ117: 0 | BA117: 0
V118: 個 | AE118: 10% | AY118: 0 | AZ118: 0 | BA118: 0
V119: 個 | AE119: 10% | AY119: 0 | AZ119: 0 | BA119: 0
V120: 個 | AE120: 10% | AY120: 0 | AZ120: 0 | BA120: 0
V121: 個 | AE121: 10% | AY121: 0 | AZ121: 0 | BA121: 0
V122: 個 | AE122: 10% | AY122: 0 | AZ122: 0 | BA122: 0
V123: 個 | AE123: 10% | AY123: 0 | AZ123: 0 | BA123: 0
V124: 個 | AE124: 10% | AY124: 0 | AZ124: 0 | BA124: 0
V125: 個 | AE125: 10% | AY125: 0 | AZ125: 0 | BA125: 0
V126: 個 | AE126: 10% | AY126: 0 | AZ126: 0 | BA126: 0
V127: 個 | AE127: 10% | AY127: 0 | AZ127: 0 | BA127: 0
V128: 個 | AE128: 10% | AY128: 0 | AZ128: 0 | BA128: 0
V129: 個 | AE129: 10% | AY129: 0 | AZ129: 0 | BA129: 0
V130: 個 | AE130: 10% | AY130: 0 | AZ130: 0 | BA130: 0
V131: 個 | AE131: 10% | AY131: 0 | AZ131: 0 | BA131: 0
V132: 個 | AE132: 10% | AY132: 0 | AZ132: 0 | BA132: 0
V133: 個 | AE133: 10% | AY133: 0 | AZ133: 0 | BA133: 0
V134: 個 | AE134: 10% | AY134: 0 | AZ134: 0 | BA134: 0
V135: 個 | AE135: 10% | AY135: 0 | AZ135: 0 | BA135: 0
V136: 個 | AE136: 10% | AY136: 0 | AZ136: 0 | BA136: 0
V137: 個 | Y137: =IF(AND(U137<>"",X137<>""),IFERROR(IF(X137<>1,U137*X137,""),""),"") ->  | Z137: =IF(ISNUMBER(X137),IF(X137<>1,IF(X137<>0,ROUND(AC137/X137,2),""),""),"") ->  | AD137: =IF(AND($U137<>"",AC137<>""),IFERROR($U137*AC137,""),"") ->  | AE137: 10% | AF137: =IF(AND(ISNUMBER($AD$1009),$AD137<>""),ROUNDDOWN($AD$1009*($AD137/SUM($AD$8:$AD$1007)),0),"") ->  | AG137: =IFERROR(AD137-AF137,"") ->  | AH137: =IFERROR(ROUNDDOWN(AG137/U137,0),"") ->  | AI137: =IF(AND($AE137<>"",AG137<>""),ROUNDDOWN(AE137*AG137+AG137,0),"") ->  | AX137: =IF($AE137=10%,AG137,0) ->  | AY137: =IF($AE137=8%,AG137,0) -> 0 | AZ137: =IF($AE137=5%,AG137,0) -> 0 | BA137: =IF($AE137=0%,AG137,0) -> 0
V138: 個 | AE138: 10% | AY138: 0 | AZ138: 0 | BA138: 0
V139: 個 | AE139: 10% | AY139: 0 | AZ139: 0 | BA139: 0
V140: 個 | AE140: 10% | AY140: 0 | AZ140: 0 | BA140: 0
V141: 個 | AE141: 10% | AY141: 0 | AZ141: 0 | BA141: 0
V142: 個 | AE142: 10% | AY142: 0 | AZ142: 0 | BA142: 0
V143: 個 | AE143: 10% | AY143: 0 | AZ143: 0 | BA143: 0
V144: 個 | AE144: 10% | AY144: 0 | AZ144: 0 | BA144: 0
V145: 個 | AE145: 10% | AY145: 0 | AZ145: 0 | BA145: 0
V146: 個 | AE146: 10% | AY146: 0 | AZ146: 0 | BA146: 0
V147: 個 | AE147: 10% | AY147: 0 | AZ147: 0 | BA147: 0
V148: 個 | AE148: 10% | AY148: 0 | AZ148: 0 | BA148: 0
V149: 個 | AE149: 10% | AY149: 0 | AZ149: 0 | BA149: 0
V150: 個 | AE150: 10% | AY150: 0 | AZ150: 0 | BA150: 0
V151: 個 | AE151: 10% | AY151: 0 | AZ151: 0 | BA151: 0
V152: 個 | AE152: 10% | AY152: 0 | AZ152: 0 | BA152: 0
V153: 個 | AE153: 10% | AY153: 0 | AZ153: 0 | BA153: 0
V154: 個 | AE154: 10% | AY154: 0 | AZ154: 0 | BA154: 0
V155: 個 | AE155: 10% | AY155: 0 | AZ155: 0 | BA155: 0
V156: 個 | AE156: 10% | AY156: 0 | AZ156: 0 | BA156: 0
V157: 個 | AE157: 10% | AY157: 0 | AZ157: 0 | BA157: 0
V158: 個 | AE158: 10% | AY158: 0 | AZ158: 0 | BA158: 0
V159: 個 | AE159: 10% | AY159: 0 | AZ159: 0 | BA159: 0
V160: 個 | AE160: 10% | AY160: 0 | AZ160: 0 | BA160: 0
V161: 個 | AE161: 10% | AY161: 0 | AZ161: 0 | BA161: 0
V162: 個 | AE162: 10% | AY162: 0 | AZ162: 0 | BA162: 0
V163: 個 | AE163: 10% | AY163: 0 | AZ163: 0 | BA163: 0
V164: 個 | AE164: 10% | AY164: 0 | AZ164: 0 | BA164: 0
V165: 個 | AE165: 10% | AY165: 0 | AZ165: 0 | BA165: 0
V166: 個 | AE166: 10% | AY166: 0 | AZ166: 0 | BA166: 0
V167: 個 | AE167: 10% | AY167: 0 | AZ167: 0 | BA167: 0
V168: 個 | AE168: 10% | AY168: 0 | AZ168: 0 | BA168: 0
V169: 個 | AE169: 10% | AY169: 0 | AZ169: 0 | BA169: 0
V170: 個 | AE170: 10% | AY170: 0 | AZ170: 0 | BA170: 0
V171: 個 | AE171: 10% | AY171: 0 | AZ171: 0 | BA171: 0
V172: 個 | AE172: 10% | AY172: 0 | AZ172: 0 | BA172: 0
V173: 個 | AE173: 10% | AY173: 0 | AZ173: 0 | BA173: 0
V174: 個 | AE174: 10% | AY174: 0 | AZ174: 0 | BA174: 0
V175: 個 | AE175: 10% | AY175: 0 | AZ175: 0 | BA175: 0
V176: 個 | AE176: 10% | AY176: 0 | AZ176: 0 | BA176: 0
V177: 個 | AE177: 10% | AY177: 0 | AZ177: 0 | BA177: 0
V178: 個 | AE178: 10% | AY178: 0 | AZ178: 0 | BA178: 0
V179: 個 | AE179: 10% | AY179: 0 | AZ179: 0 | BA179: 0
V180: 個 | AE180: 10% | AY180: 0 | AZ180: 0 | BA180: 0
V181: 個 | AE181: 10% | AY181: 0 | AZ181: 0 | BA181: 0
V182: 個 | AE182: 10% | AY182: 0 | AZ182: 0 | BA182: 0
V183: 個 | AE183: 10% | AY183: 0 | AZ183: 0 | BA183: 0
V184: 個 | AE184: 10% | AY184: 0 | AZ184: 0 | BA184: 0
V185: 個 | AE185: 10% | AY185: 0 | AZ185: 0 | BA185: 0
V186: 個 | AE186: 10% | AY186: 0 | AZ186: 0 | BA186: 0
V187: 個 | AE187: 10% | AY187: 0 | AZ187: 0 | BA187: 0
V188: 個 | AE188: 10% | AY188: 0 | AZ188: 0 | BA188: 0
V189: 個 | AE189: 10% | AY189: 0 | AZ189: 0 | BA189: 0
V190: 個 | AE190: 10% | AY190: 0 | AZ190: 0 | BA190: 0
V191: 個 | AE191: 10% | AY191: 0 | AZ191: 0 | BA191: 0
V192: 個 | AE192: 10% | AY192: 0 | AZ192: 0 | BA192: 0
V193: 個 | AE193: 10% | AY193: 0 | AZ193: 0 | BA193: 0
V194: 個 | AE194: 10% | AY194: 0 | AZ194: 0 | BA194: 0
V195: 個 | AE195: 10% | AY195: 0 | AZ195: 0 | BA195: 0
V196: 個 | AE196: 10% | AY196: 0 | AZ196: 0 | BA196: 0
V197: 個 | AE197: 10% | AY197: 0 | AZ197: 0 | BA197: 0
V198: 個 | AE198: 10% | AY198: 0 | AZ198: 0 | BA198: 0
V199: 個 | AE199: 10% | AY199: 0 | AZ199: 0 | BA199: 0
V200: 個 | AE200: 10% | AY200: 0 | AZ200: 0 | BA200: 0
... 811 more rows

Sheet →バイヤ側記入のため入力不要

Sheet 表紙 (バイヤ)
E2: OK
B3: 【見積内訳書（物品統一見積り様式）】
A4: ■必須入力願います | D4: ピンク：必須、黄色：条件付き必須、グレー：自動転記・入力不可、白色：任意
A5: ■ | B5: 見積依頼番号 (ソーシング/コラボ/購買申請番号) | D5: =IF(表紙!D5="","",表紙!D5) -> SR2662423719
A6: ■ | B6: 見積バージョン | D6: =IF(表紙!D6="","",表紙!D6) -> 
B7: サプライヤ見積番号 | D7: =IF(表紙!D7="","",表紙!D7) -> 
B8: バイヤ希望納入日 | D8: =IF(表紙!D8="","",表紙!D8) -> 
B9: 社内/再販 | D9: =IF(表紙!D9="","",表紙!D9) -> 再販
A11: ■ | B11: 案件名 | D11: =IF(表紙!D11="","",表紙!D11) -> ネットワーク負荷測定機器の購買案件
A12: ■ | B12: 見積日 | D12: =IF(表紙!D12="","",表紙!D12) -> 2022/11/01
A13: ■ | B13: 見積有効期限 | D13: =IF(表紙!D13="","",表紙!D13) -> 見積日から3か月
A14: ■ | B14: サプライヤ会社情報 | C14: サプライヤ会社名 | D14: =IF(表紙!D14="","",表紙!D14) -> エヌ・ティ・ティ・ビジネスアソシエ（株）
A15: ■ | C15: サプライヤのNTTグループ共通企業ID | D15: =IF(表紙!D15="","",表紙!D15) -> G000134434
C16: サプライヤANID | D16: =IF(表紙!D16="","",表紙!D16) -> AN01745129987
C17: サプライヤ担当部署名 | D17: =IF(表紙!D17="","",表紙!D17) -> アクセスソリューション部インタービジネスBU
C18: サプライヤ担当者名 | D18: =IF(表紙!D18="","",表紙!D18) -> サプライヤ 太郎
C19: サプライヤ連絡先（Tel） | D19: =IF(表紙!D19="","",表紙!D19) -> 03-0000-0000
C20: サプライヤ連絡先（Mail） | D20: =IF(表紙!D20="","",表紙!D20) -> taro@ntt-ba.co.jp
C21: サプライヤ担当者 所在地 | D21: =IF(表紙!D21="","",表紙!D21) -> 
B23: 見積価格情報
A24: ■ | B24: 見積価格 (税抜) | D24: =IF(表紙!D24="","",表紙!D24) -> 65000
A25: ■ | C25: 見積価格 通貨 | D25: =IF(表紙!D25="","",表紙!D25) -> JPY
A26: ■ | B26: 見積価格 (税込総額) | D26: =IF(表紙!D26="","",表紙!D26) -> 71500
A27: ■ | B27: 見積価格 税額 | D27: =IF(表紙!D27="","",表紙!D27) -> 6500
B29: 支払先情報
B30: 支払先コード | D30: =IF(表紙!D30="","",表紙!D30) -> 001
B31: 銀行名 | D31: =IF(表紙!D31="","",表紙!D31) -> 三菱ＵＦＪ銀行
B32: 支店名 | D32: =IF(表紙!D32="","",表紙!D32) -> 東海支店
B33: 支店コード | D33: =IF(表紙!D33="","",表紙!D33) -> 311
B34: 口座種別 | D34: =IF(表紙!D34="","",表紙!D34) -> 普通
B35: 口座番号 | D35: =IF(表紙!D35="","",表紙!D35) -> 1234567
B36: 口座名義 | D36: =IF(表紙!D36="","",表紙!D36) -> ABC東京株式会社
A37: ■ | B37: 契約方式 | D37: =IF(表紙!D37="","",表紙!D37) -> 1_注文書_Purchase order only
A38: ■ | B38: 支払条件・検収条件 | D38: =IF(表紙!D38="","",表紙!D38) -> 1_一括支払（固定額）_Lump-sum payment (fixed)
A39: ■ | B39: 支払方法 | D39: =IF(表紙!D39="","",表紙!D39) -> 23_銀行VAN支払_Bank VAN payment
B41: 備考
B42: 個社項目1 | D42: =IF(表紙!D42="","",表紙!D42) -> 
B43: 個社項目2 | D43: =IF(表紙!D43="","",表紙!D43) -> 
B44: 個社項目3 | D44: =IF(表紙!D44="","",表紙!D44) -> 
B45: 個社項目4 | D45: =IF(表紙!D45="","",表紙!D45) -> 
B46: 個社項目5 | D46: =IF(表紙!D46="","",表紙!D46) -> 
B48: ▼バイヤ記入欄（Ariba） | E48: 入力必須 | F48: 入力型 | G48: 半角/全角 | H48: 最大桁数 | I48: 項目補足
A49: ■ | B49: Ariba | C49: サプライヤID | D49: =IF(AND(D15<>"",D16<>""),D15&"-"&D16,IF(AND(D15<>"",D16=""),D15,"")) -> G000134434-AN01745129987 | E49: 自動入力 | F49: - | G49: - | H49: - | I49: 自動設定。 該当サプライヤのANIDが登録済の場合には「サプライヤのG共通企業ID ＋ -（半角ハイフン）＋ANID」、 該当サプライヤのANIDが未登録の場合には「サプライヤのG共通企業ID」のみを自動設定
C50: カタログ名 | E50: 入力不可 | F50: - | G50: - | H50: - | I50: 記入不要
C51: 言語 | E51: 入力不可 | F51: - | G51: - | H51: - | I51: 記入不要
C52: 要求部署名 | E52: 任意 | F52: テキスト | G52: 半角/全角 | H52: 300 | I52: 物品を購入したい部署を記入
C53: 参照会社コード | D53: 021554 | E53: 条件付き必須 | F53: 数字 | G53: 半角 | H53: 6（固定長） | I53: 参照会社コードを記入（リストシートのCK列を参考にして、CJ列のコード値を記入）
C54: 調達相談番号 | D54: A00000000001 | E54: 任意 | F54: 英数字 | G54: 半角 | H54: 20 | I54: 要求元が調達部・資材部へ相談する場合、Aribaソーシングの調達相談番号を記入
C55: 価格交渉主体フラグ（コード） | D55: =IF(D56="","",VLOOKUP(D56,リスト!$G$5:$H$7,2,FALSE)) ->  | E55: 自動入力 | F55: - | G55: - | H55: - | I55: 自動設定
A56: =IF(E56=リスト!CP5,"■","") ->  | C56: 価格交渉主体フラグ（名称） | E56: 任意 | F56: プルダウン | G56: - | H56: - | I56: プルダウンより選択
C57: 目標価格(総額) | E57: 任意 | F57: 金額 | G57: 半角 | H57: 15 | I57: 明細（バイヤ）シートの目標価格(明細）が記入されない場合は、案件単位の目標価格を記入
C58: 価格低減ポイント(コード) | D58: =IF(D59="","",VLOOKUP(D59,リスト!$I$5:$J$23,2,FALSE)) ->  | E58: 自動入力 | F58: - | G58: - | H58: - | I58: 自動設定
C59: 価格低減ポイント(案件) | E59: 任意 | F59: プルダウン | G59: - | H59: - | I59: プルダウンより選択、明細（バイヤ）シートの価格低減ポイント(明細)が記入されない場合は、案件単位の価格低減ポイントを記入
C60: 1社指定理由 | E60: 任意 | F60: テキスト | G60: 半角/全角 | H60: 200 | I60: 随意契約/1社指定の場合に、その理由を記載
C61: 再販先企業名 | E61: 任意 | F61: テキスト | G61: 半角/全角 | H61: 200 | I61: 再販の場合に記入
C62: 再販先グループ共通企業ID | E62: 任意 | F62: 英数字 | G62: 半角 | H62: 10（固定長） | I62: 再販の場合に記入
B64: ▼バイヤ記入欄（S/4） | E64: 入力必須 | F64: 入力型 | G64: 半角/全角 | H64: 最大桁数 | I64: 項目補足
A65: ■ | B65: S/4 | C65: BPコード | E65: 必須 | F65: 数字 | G65: 半角 | H65: 10 | I65: S/4 （507）BPコードを記入
C66: 要求部署名 | E66: 任意 | F66: テキスト | G66: 半角/全角 | H66: 300 | I66: 物品を購入したい部署を記入
C67: 調達相談番号 | E67: 任意 | F67: 英数字 | G67: 半角 | H67: 20 | I67: 要求元が調達部・資材部へ相談する場合、Aribaソーシングの調達相談番号を記入
C68: 開発主管 | E68: 任意 | F68: テキスト | G68: 半角/全角 | H68: 40 | I68: 担当部署名を記入
C69: 販売主管 | E69: 任意 | F69: テキスト | G69: 半角/全角 | H69: 40 | I69: 担当部署名を記入
C70: 導入主管 | E70: 任意 | F70: テキスト | G70: 半角/全角 | H70: 40 | I70: 担当部署名を記入
C71: 保守主管 | E71: 任意 | F71: テキスト | G71: 半角/全角 | H71: 40 | I71: 担当部署名を記入
A72: ■ | C72: 価格交渉主体フラグ（コード） | D72: =IF(D73="","",VLOOKUP(D73,リスト!$G$5:$H$7,2,FALSE)) ->  | E72: 自動入力 | F72: - | G72: - | H72: - | I72: 自動設定
A73: =IF(E73=リスト!CP5,"■","") ->  | C73: 価格交渉主体フラグ（名称） | E73: 任意 | F73: プルダウン | G73: - | H73: - | I73: プルダウンより選択
C74: 目標価格(総額) | E74: 任意 | F74: 金額 | G74: 半角 | H74: 15 | I74: 明細（バイヤ）シートの目標価格(明細)が記入されない場合は、必ず案件単位の目標価格を記入
C75: 価格低減ポイント(コード) | D75: =IF(D76="","",VLOOKUP(D76,リスト!$I$5:$J$23,2,FALSE)) ->  | E75: 自動入力 | F75: - | G75: - | H75: - | I75: 自動設定
C76: 価格低減ポイント(案件) | E76: 任意 | F76: プルダウン | G76: - | H76: - | I76: プルダウンより選択、明細（バイヤ）シートの価格低減ポイント(明細)が記入されない場合は、必ず案件単位の価格低減ポイントを記入
C77: 1社指定理由 | E77: 任意 | F77: テキスト | G77: 半角/全角 | H77: 200 | I77: 随意契約/1社指定の場合に、その理由を記載
C78: 再販先企業名 | E78: 任意 | F78: テキスト | G78: 半角/全角 | H78: 200 | I78: 再販の場合に記入
C79: 再販先グループ共通企業ID | E79: 任意 | F79: 英数字 | G79: 半角 | H79: 10（固定長） | I79: 再販の場合に記入

Sheet 明細 (バイヤ)
AU2: 【任意】 | AV2: 【任意】 | AW2: 【任意】 | BL2: ▶バイヤ記入欄（S/4）
BL3: 入力型 | BM3: 英数字 | BN3: 数字 | BO3: 自動入力 | BP3: 自動入力 | BQ3: プルダウン | BR3: テキスト | BS3: 金額 | BT3: 自動入力 | BU3: プルダウン | BV3: 英数字 | BW3: 入力不要 | BX3: 入力不要 | BY3: 自動入力 | BZ3: プルダウン | CA3: プルダウン | CB3: 数字 | CC3: 単位 | CD3: 数字 | CE3: 数字 | CF3: 数字 | CG3: 数字 | CH3: 単位 | CI3: 数字 | CJ3: 単位 | CK3: テキスト | CL3: 数字 | CM3: 数字 | CN3: 数字 | CO3: 数字 | CP3: 単位 | CQ3: 数字 | CR3: 単位 | CS3: テキスト | CT3: テキスト | CU3: 自動入力 | CV3: プルダウン | CW3: 自動入力 | CX3: プルダウン | CY3: 数字 | CZ3: 数字 | DA3: 数字 | DB3: 数字 | DC3: 数字 | DD3: 数字 | DE3: 自動入力 | DF3: プルダウン | DG3: 自動入力 | DH3: プルダウン | DI3: 自動入力 | DJ3: プルダウン | DK3: 自動入力 | DL3: プルダウン | DM3: 自動入力 | DN3: プルダウン | DO3: 自動入力 | DP3: プルダウン | DQ3: 自動入力 | DR3: プルダウン | DS3: 英数字 | DT3: 数字 | DU3: 数字 | DV3: 自動入力 | DW3: プルダウン | DX3: 英数字 | DY3: 入力不要 | DZ3: 英数字 | EA3: 入力不要 | EB3: 自動入力 | EC3: プルダウン | ED3: 数字 | EE3: 自動入力 | EF3: プルダウン | EG3: 自動入力 | EH3: プルダウン | EI3: 自動入力 | EJ3: プルダウン | EK3: 自動入力 | EL3: プルダウン | EM3: 数字 | EN3: 金額 | EO3: 金額 | EP3: 日付 | EQ3: 日付 | ER3: 自動入力 | ES3: プルダウン | ET3: 日付 | EU3: 日付 | EV3: 日付 | EW3: 日付 | EX3: 数字 | EY3: 数字 | EZ3: プルダウン | FA3: 自動入力 | FB3: 自動入力 | FC3: プルダウン | FD3: 英数字 | FE3: テキスト | FF3: 自動入力 | FG3: プルダウン | FH3: 自動入力 | FI3: プルダウン | FJ3: 入力不要 | FK3: 自動入力 | FL3: プルダウン | FM3: 日付 | FN3: 日付 | FO3: プルダウン | FP3: 数字 | FQ3: 数字 | FR3: テキスト | FS3: 数字 | FT3: 数字 | FU3: 英数字 | FV3: 自動入力 | FW3: プルダウン | FX3: テキスト | FY3: 自動入力 | FZ3: プルダウン | GA3: 自動入力 | GB3: プルダウン | GC3: 自動入力 | GD3: プルダウン | GE3: 日付 | GF3: 日付 | GG3: 数字 | GH3: 自動入力 | GI3: 割合 | GJ3: 自動入力 | GK3: プルダウン | GL3: 自動入力 | GM3: プルダウン | GN3: 入力不要 | GO3: 入力不要 | GP3: 入力不要 | GQ3: 入力不要 | GR3: 入力不要 | GS3: 入力不要 | GT3: 入力不要 | GU3: 入力不要 | GV3: 入力不要 | GW3: 入力不要 | GX3: 入力不要
AT4: ▶バイヤ記入欄（Ariba） | BL4: 半角/全角 | BM4: 半角 | BN4: 半角 | BO4: - | BP4: - | BQ4: - | BR4: 半角 | BS4: 半角 | BT4: - | BU4: - | BV4: 半角 | BW4: - | BX4: - | BY4: - | BZ4: - | CA4: - | CB4: 半角 | CC4: 半角 | CD4: 半角 | CE4: 半角 | CF4: 半角 | CG4: 半角 | CH4: 半角 | CI4: 半角 | CJ4: 半角 | CK4: 半角 | CL4: 半角 | CM4: 半角 | CN4: 半角 | CO4: 半角 | CP4: 半角 | CQ4: 半角 | CR4: 半角 | CS4: 半角/全角 | CT4: 半角/全角 | CU4: - | CV4: - | CW4: - | CX4: - | CY4: 半角 | CZ4: 半角 | DA4: 半角 | DB4: 半角 | DC4: 半角 | DD4: 半角 | DE4: - | DF4: - | DG4: - | DH4: - | DI4: - | DJ4: - | DK4: - | DL4: - | DM4: - | DN4: - | DO4: - | DP4: - | DQ4: - | DR4: - | DS4: 半角 | DT4: 半角 | DU4: 半角 | DV4: - | DW4: - | DX4: 半角 | DY4: - | DZ4: 半角 | EA4: - | EB4: - | EC4: - | ED4: 半角 | EE4: - | EF4: - | EG4: - | EH4: - | EI4: - | EJ4: - | EK4: - | EL4: - | EM4: 半角 | EN4: 半角 | EO4: 半角 | EP4: 半角 | EQ4: 半角 | ER4: - | ES4: - | ET4: 半角 | EU4: 半角 | EV4: 半角 | EW4: 半角 | EX4: 半角 | EY4: 半角 | EZ4: - | FA4: - | FB4: - | FC4: - | FD4: 半角 | FE4: 半角/全角 | FF4: - | FG4: - | FH4: - | FI4: - | FJ4: - | FK4: - | FL4: - | FM4: 半角 | FN4: 半角 | FO4: 半角 | FP4: 半角 | FQ4: 半角 | FR4: 半角/全角 | FS4: 半角 | FT4: 半角 | FU4: 半角 | FV4: - | FW4: - | FX4: 半角 | FY4: - | FZ4: - | GA4: - | GB4: - | GC4: - | GD4: - | GE4: 半角 | GF4: 半角 | GG4: 半角 | GH4: - | GI4: 半角 | GJ4: - | GK4: - | GL4: - | GM4: - | GN4: - | GO4: - | GP4: - | GQ4: - | GR4: - | GS4: - | GT4: - | GU4: - | GV4: - | GW4: - | GX4: -
N5: ver1.2 | O5: ←削除不可 | BL5: 最大桁数 | BM5: 10（固定長） | BN5: 14（固定長） | BO5: - | BP5: - | BQ5: - | BR5: 10 | BS5: 18 | BT5: - | BU5: - | BV5: 18（固定長） | BW5: - | BX5: - | BY5: - | BZ5: - | CA5: - | CB5: 14 | CC5: 3 | CD5: 14 | CE5: 14 | CF5: 14 | CG5: 14 | CH5: 3 | CI5: 14 | CJ5: 3 | CK5: 32 | CL5: 5 | CM5: 14 | CN5: 14 | CO5: 14 | CP5: 3 | CQ5: 14 | CR5: 3 | CS5: 15 | CT5: 90 | CU5: - | CV5: - | CW5: - | CX5: - | CY5: 3 | CZ5: 1 | DA5: 3 | DB5: 1 | DC5: 3 | DD5: 1 | DE5: - | DF5: - | DG5: - | DH5: - | DI5: - | DJ5: - | DK5: - | DL5: - | DM5: - | DN5: - | DO5: - | DP5: - | DQ5: - | DR5: - | DS5: 2 | DT5: 14 | DU5: 14 | DV5: - | DW5: - | DX5: 4 | DY5: - | DZ5: 4 | EA5: - | EB5: - | EC5: - | ED5: 14 | EE5: - | EF5: - | EG5: - | EH5: - | EI5: - | EJ5: - | EK5: - | EL5: - | EM5: 5 | EN5: 6 | EO5: 6 | EP5: 10 | EQ5: 10 | ER5: - | ES5: - | ET5: 10 | EU5: 10 | EV5: 10 | EW5: 10 | EX5: 14 | EY5: 14 | EZ5: - | FA5: - | FB5: - | FC5: - | FD5: 10（固定長） | FE5: 60 | FF5: - | FG5: - | FH5: - | FI5: - | FJ5: - | FK5: - | FL5: - | FM5: 10 | FN5: 10 | FO5: 3 | FP5: 5 | FQ5: 5 | FR5: 36 | FS5: 14 | FT5: 14 | FU5: 1 | FV5: - | FW5: - | FX5: 1 | FY5: - | FZ5: - | GA5: - | GB5: - | GC5: - | GD5: - | GE5: 10 | GF5: 10 | GG5: 5 | GH5: - | GI5: 6 | GJ5: - | GK5: - | GL5: - | GM5: - | GN5: - | GO5: - | GP5: - | GQ5: - | GR5: - | GS5: - | GT5: - | GU5: - | GV5: - | GW5: - | GX5: -
AT6: 入力型 | AU6: 日付 | AV6: 日付 | AW6: 英数字 | AX6: 数字 | AY6: 自動入力 | AZ6: テキスト | BA6: 自動入力 | BB6: プルダウン | BC6: 英数字 | BD6: 金額 | BE6: 自動入力 | BF6: プルダウン | BG6: 自動入力 | BH6: プルダウン | BI6: 自動入力 | BJ6: プルダウン | BL6: 品目マスタ | BM6: 〇 | BN6: - | BP6: - | BR6: - | BV6: 〇 | BW6: 〇 | BY6: 〇 | CA6: 〇 | CC6: 〇 | CH6: 〇 | CI6: 〇 | CJ6: 〇 | CK6: 〇 | CP6: 〇 | CQ6: 〇 | CR6: 〇 | CS6: 〇 | CT6: 〇 | CU6: 〇 | CW6: 〇 | CY6: 〇 | CZ6: 〇 | DA6: 〇 | DB6: 〇 | DC6: 〇 | DD6: 〇 | DE6: 〇 | DG6: 〇 | DI6: 〇 | DK6: 〇 | DM6: 〇 | DO6: 〇 | DQ6: 〇 | DS6: 〇 | DT6: 〇 | DU6: 〇 | DV6: 〇 | DX6: 〇 | DZ6: 〇 | EB6: 〇 | ED6: 〇 | EE6: 〇 | EG6: 〇 | EI6: 〇 | EK6: 〇 | EM6: 〇 | EN6: 〇 | EO6: 〇 | EP6: 〇 | EQ6: 〇 | ER6: 〇 | ET6: 〇 | EU6: 〇 | EV6: 〇 | EW6: 〇 | EX6: 〇 | EY6: 〇 | EZ6: 〇 | FB6: 〇 | FD6: 〇 | FF6: 〇
AT7: 半角/全角 | AU7: 半角 | AV7: 半角 | AW7: 半角 | AX7: 半角 | AY7: - | AZ7: 半角/全角 | BA7: - | BB7: - | BC7: 半角 | BD7: 半角 | BE7: - | BF7: - | BG7: - | BH7: - | BI7: - | BJ7: - | BL7: 購買情報マスタ | BM7: 〇 | BN7: - | BP7: - | BR7: - | BT7: 〇 | BV7: 〇 | BW7: 〇 | EZ7: 〇 | FH7: 〇 | FJ7: 〇 | FK7: 〇 | FM7: 〇 | FN7: 〇 | FO7: 〇 | FP7: 〇 | FQ7: 〇 | FR7: 〇 | FS7: 〇 | FT7: 〇 | FU7: 〇 | FV7: 〇 | FX7: 〇 | FY7: 〇
AT8: 最大桁数 | AU8: 10 | AV8: 10 | AW8: 10（固定長） | AX8: 14（固定長） | AY8: - | AZ8: 250 | BA8: - | BB8: - | BC8: 10 | BD8: 18 | BE8: - | BF8: - | BG8: - | BH8: - | BI8: - | BJ8: - | BL8: 条件マスタ | BN8: - | BP8: - | BR8: - | BV8: 〇 | BW8: 〇 | FH8: 〇 | FJ8: 〇 | GA8: 〇 | GC8: 〇 | GE8: 〇 | GF8: 〇 | GG8: 〇 | GH8: 〇 | GI8: 〇 | GJ8: 〇 | GL8: 〇 | GN8: 〇 | GP8: 〇 | GQ8: 〇 | GR8: 〇 | GS8: 〇 | GT8: 〇 | GU8: 〇 | GV8: 〇 | GW8: 〇 | GX8: 〇
B11: OK | L11: ↓バージョン情報として数字を入力してください。（半角数字1桁と半角ハイフンを入力、サプライヤー補助品目IDの最大桁数は20桁） | AT11: 項目概要 | AU11: カタログの品目として表示を終了する日付を記載 | AV11: カタログの品目として表示を開始する日付を記載 | AW11: 製造メーカのグループ共通企業IDを記載ください。 製造メーカのDUNS No. 法人番号から、Central Master Searchにて検索してください。 https://hdsrv060.hdsrv.gvm-jp.groupis-gn.ntt/cms/gccm/ | AX11: ・「調達分析カテゴリコード」ファイルの共通コードから、適切なカテゴリを記載 ・東西ドコモのみ、「調達分析カテゴリコード」ファイルの東西ドコモの独自コードを利用可能 ・先頭の0が消えないように、ご注意ください | AZ11: サプライヤとやり取りする仕様書番号等があれば記載 | BA11: 契約条件(価格含む)決定へのNTT Global Sourcing(NTT-GS社) の関与をプルダウンから選択してください。 なお「1」を使用するのは東西ドコモ、ドコモビジネス、ドコモソリューションズ、持株、LTD JPのみです。「2」は「１」の各社に加えてAT、テクノクロス、US、インフラネットです。その他の各社は「0」です。 | BC11: GS契約条件で「1」を選択した場合は、必ず記載 | BD11: 購入予定目標単価（購入前に予め設定した購入したい単価）を設定、 表紙 (バイヤ)シートの目標価格(総額)が記入されない場合は、必ず記載 | BE11: 表紙 (バイヤ)シートの価格低減ポイント(案件)が記入されない場合は、必ず記載。 価格低減となったか、価格低減となった場合は主な理由を１つ選択して下さい。 | BG11: Ariba内で定義する商品分類コードをプルダウンから選択してください。 | BI11: ・区分 上1桁目は料金体系：[1]定額制、[2]従量制 上2桁目は使用許諾範囲：[1]マシン許諾、[2]ユーザ許諾、[9]その他 ・入力例 11:定額制-マシン許諾、12:定額制-ユーザ許諾、19:定額制-その他 21:従量制-マシン許諾、22:従量制-ユーザ許諾、29:従量制-その他 | BL11: 項目概要 | BM11: 製造メーカのグループ共通企業IDを記載ください。 製造メーカのDUNS No. 法人番号から、Central Master Searchにて検索してください。 https://hdsrv060.hdsrv.gvm-jp.groupis-gn.ntt/cms/gccm/ | BN11: ・「調達分析カテゴリコード」ファイルの共通コードから、適切なカテゴリを記載 ・東西ドコモのみ、「調達分析カテゴリコード」ファイルの東西ドコモの独自コードを利用可能 ・先頭の0が消えないように、ご注意ください | BP11: 契約条件(価格含む)決定へのNTT Global Sourcing(NTT-GS社) の関与をプルダウンから選択してください。 なお「1」を使用するのは東西ドコモ、ドコモビジネス、ドコモソリューションズ、持株、LTD JPのみです。「2」は「１」の各社に加えてAT、テクノクロス、US、インフラネットです。その他の各社は「0」です。 | BR11: GS契約条件で「1」を選択した場合は、必ず記載 | BS11: 購入予定目標単価（購入前に予め設定した購入したい単価）を設定、 表紙 (バイヤ)シートの目標価格(総額)が記入されない場合は、必ず記載 | BT11: 表紙 (バイヤ)シートの価格低減ポイント(案件)が記入されない場合は、必ず記載。 価格低減となったか、価格低減となった場合は主な理由を１つ選択して下さい。 | BV11: 品目を一意に識別する英数字キー、頭4桁が102_NTTグループ会社コードになっており、後14桁は各社が自由に設定 | BW11: ツールで一律展開するため入力不要 | BY11: 品目の種別を分類するコード、 通常物品または所掌替品をプルダウンから選択してください。 | CA11: ab長単価物品(ab長単価表示=１)の場合、M(メートル)を記載 | CB11: 品目の総重量を記載 | CC11: 品目の重量単位、G：グラムで固定 | CD11: ロジスコ入力項目 | CE11: ロジスコ入力項目 | CF11: ロジスコ入力項目 | CG11: ロジスコ入力項目 | CH11: 品目の長さ、幅、高さの単位、MM：ミリメートルで固定 | CI11: 品目の容積を記載 | CJ11: 品目の容積単位、MM3：立方ミリメートルで固定 | CK11: 品目のサイズ/寸法 | CL11: ロジスコ入力項目 外装箱内商品個数／件として使用（1箱の中身が10個 → 箱を設定） | CM11: ロジスコ入力項目 | CN11: ロジスコ入力項目 | CO11: ロジスコ入力項目 | CP11: 外箱寸法単位、MM：ミリメートルで固定 | CQ11: 外箱寸法容積を記載 | CR11: 外箱寸法容積単位、MM3：立方ミリメートルで固定 | CS11: 品目の仕様書番号を記載 | CT11: 仕様書の名称を記載 | CU11: ab長物品か否かを判断する項目 | CW11: 指定事項の入力チェック、カナ品名生成に使用する項目 | CY11: 指定事項有無ガ「1:指定事項あり」の場合は、必ず記載 | CZ11: 指定事項有無ガ「1:指定事項あり」の場合は、必ず記載 | DA11: 指定事項の入力チェック、カナ品名生成に使用する項目 | DB11: 指定事項の入力チェック、カナ品名生成に使用する項目 | DC11: 指定事項の入力チェック、カナ品名生成に使用する項目 | DD11: 指定事項の入力チェック、カナ品名生成に使用する項目 | DE11: 物品の形状を識別するコード | DG11: ロジスコ入力項目 | DI11: 一括管理、個別管理、個体管理を識別する項目 | DK11: 利活用認定後の再用品有効活用するための区分として必要な項目 | DM11: 物品が保守用対象かどうかを識別する項目 | DO11: 返納可否の判断として必要な項目 | DQ11: 再用品の未償却残額に対する分類として必要な項目 | DS11: 評価方法が「3:個別償却」以外の場合は、必ず記載 | DT11: 払出単位数量として基本数量単位ベースで記載 | DU11: 払出時の上限数量チェックとして必要な項目 | DV11: パスワードチェックの要否を記載 | DX11: 集中管理対象の品目の場合、集中管理を実施しているプラントコードを記載。集中管理保管場所を入力した場合は記載必須 | DY11: 記載不要 | DZ11: 集中管理対象の品目の場合、集中管理を実施している保管場所コードを記載。集中管理プラントを入力した場合は記載必須 | EA11: 記載不要 | EB11: 物品のお買い上げ、レンタルの判断項目 | ED11: お客様直送要求の限度数を設定、直送表示コードが「1～5」を指定した場合は、必ず記載 | EE11: 商品表示が"0"(商品以外)の場合、1～5のコード値は入力不可 | EG11: 物品の代引き表示を識別するコード、直送表示コードが「1～5」を指定した場合は、必ず記載 | EI11: 物品のサプライ商品表示を識別するコード、直送表示コードが「1～5」を指定した場合は、必ず記載 | EK11: 物品の経理流通区分を識別するコード、東西(品目コードの上4桁= "0002","1555")の場合は、必ず記載 | EM11: ロジスコ入力項目、 外箱に入っている内箱数を指定 | EN11: 直送表示コードが「３、５」を指定した場合は、必ず記載 | EO11: 直送表示コードが「４、５」を指定した場合は、必ず記載 | EP11: 利活用の回収開始時期を記載 | EQ11: 利活用の回収終了時期を記載 | ER11: 回収、再生を実施しているかどうかを識別する項目 | ET11: 品目単位で再生を開始した年月日を記載 | EU11: 品目単位で再生を終了した年月日を記載 | EV11: 品目のEOL期日を記載 | EW11: 品目のEOS期日を記載 | EX11: 返納時の上限数を記載 | EY11: 購買業務での丸め単位数量を記載 | EZ11: 一定の購買業務で責任を負う購買担当者または購買担当のグループのキー | FB11: 品目の原産国を記載 | FD11: 利益管理(伝票計上・損益管理・予実管理)を行うための最小の組織単位を設定 | FF11: 東西のみ登録するView。購買品/払出品の判別に使用 ⇒支店プラントに対して購買品/払出品を設定。物流センタプラントは一律ブランク ※MRPエリアの「特殊調達タイプ」と名前は同じだが用途は異なる | FH11: 登録対象の購買組織コードを記載 | FJ11: システムが自動で付与する番号、入力不可 | FK11: 購買情報マスタのキー項目 通常は「標準」を選択し、組立物品発注の際は「外注」の登録が必要 | FM11: サプライヤとの取引期間を指定する項目（期間外だと購買伝票が登録不可となる） | FN11: サプライヤとの取引期間を指定する項目（期間外だと購買伝票が登録不可となる） | FO11: 発注時に使用する単位を指定 | FP11: 発注時に使用する単位と基本数量単位との変換数量を指定 例）1箱(発注単位）⇔10個（基本数量単位） →「1箱」を設定 | FQ11: 発注時に使用する単位と基本数量単位との変換数量を指定 例）1箱(発注単位）⇔10個（基本数量単位） →「10個」を設定 | FR11: 商品コメントに関する記事を自由記述 | FS11: 最低発注数量を使用する場合、最低発注数量と同じ値を記載、 最低発注数量を使用しない場合は一律1を設定してください。 | FT11: 発注時の 最小数量を設定 数量が1ならNullを入力、1以外の場合は数量を入力 | FU11: D：日で固定 | FV11: 税率を設定 | FX11: MRP実行時に購買情報を考慮するよう設定するフラグ（当プロジェクトでは固定でチェックをつける想定） 一律「X」での設定 | FY11: 発注日ベース、入庫ベースといった価格を取得するタイミングを設定する項目 | GA11: 更新対象レコード：X | GC11: 追加固定費が入力された場合、必ず記載 | GE11: 価格が有効となる期間の開始日 | GF11: 価格が有効となる期間の終了日 | GG11: 小数点以下をなくす | GH11: アップロード処理時、品目マスタの基本数量単位を取得 | GI11: 小数点がある場合は2桁まで入力可能 | GJ11: 単価情報承認後サプライヤにメール通知する場合、”X”を入力 | GL11: 承認済のデータを削除する場合には"X"を入力、削除しない場合にはブランクのまま | GN11: 品目マスタ登録時は不要 | GP11: 品目マスタ登録時は不要 | GQ11: カタログ情報の担当者社員番号 | GR11: 品目マスタ登録時は不要 | GS11: 品目マスタ登録時は不要 | GT11: 品目マスタ登録時は不要 | GU11: 品目マスタ登録時は不要 | GV11: 品目マスタ登録時は不要 | GW11: 品目マスタ登録時は不要 | GX11: 品目マスタ登録時は不要
B12: 【見積内訳書（物品統一見積り様式）】 | L12: 3- | AT12: 形式 | AU12: YYYY/MM/DD | AV12: YYYY/MM/DD | BA12: 初期値：0 | BD12: ZZZZZZZZZZZZZ9.ZZZ （整数14桁、小数3桁） | BL12: 形式 | BP12: 初期値：0 | BS12: ZZZZZZZZZZZZZ9.ZZZ （整数14桁、小数3桁） | CB12: ZZZZZZZZZ9.ZZZ （整数10桁、小数3桁） | CC12: 固定値：G | CD12: ZZZZZZZZZ9.ZZZ （整数10桁、小数3桁） | CE12: ZZZZZZZZZ9.ZZZ （整数10桁、小数3桁） | CF12: ZZZZZZZZZ9.ZZZ （整数10桁、小数3桁） | CG12: ZZZZZZZZZ9.ZZZ （整数10桁、小数3桁） | CH12: 固定値：MM | CI12: ZZZZZZZZZ9.ZZZ （整数10桁、小数3桁） | CJ12: 固定値：MM3 | CL12: ZZZZ9 | CM12: ZZZZZZZZZ9.ZZZ （整数10桁、小数3桁） | CN12: ZZZZZZZZZ9.ZZZ （整数10桁、小数3桁） | CO12: ZZZZZZZZZ9.ZZZ （整数10桁、小数3桁） | CP12: 固定値：MM | CQ12: ZZZZZZZZZ9.ZZZ （整数10桁、小数3桁） | CR12: 固定値：MM3 | CY12: 1～110までの数字入力 | CZ12: 1～6までの数字入力 | DA12: 1～110までの数字入力 | DB12: 1～6までの数字入力 | DC12: 1～110までの数字入力 | DD12: 1～6までの数字入力 | DT12: ZZZZZZZZZ9.ZZZ （整数10桁、小数3桁） | DU12: ZZZZZZZZZ9.ZZZ （整数10桁、小数3桁） | DX12: 会社ごと設定（東・西のみ） | DZ12: 会社ごと設定（東・西のみ） | ED12: ZZZZZZZZZ9.ZZZ （整数10桁、小数3桁） | EM12: ZZZZ9 | EN12: ZZZZZ9 | EO12: ZZZZZ9 | EP12: YYYY/MM/DD | EQ12: YYYY/MM/DD | ET12: YYYY/MM/DD | EU12: YYYY/MM/DD | EV12: YYYY/MM/DD | EW12: YYYY/MM/DD | EX12: ZZZZZZZZZ9.ZZZ （整数10桁、小数3桁） | EY12: ZZZZZZZZZ9.ZZZ （整数10桁、小数3桁） | EZ12: 会社ごと設定 | FD12: 会社ごと設定 | FM12: YYYY/MM/DD | FN12: YYYY/MM/DD | FP12: 固定値：1 | FQ12: 固定値：1 | FS12: ZZZZZZZZZ9.ZZZ （整数10桁、小数3桁） | FT12: ZZZZZZZZZ9.ZZZ （整数10桁、小数3桁） | FU12: 固定値：D | FX12: 固定値：X | FY12: 東西・ドコモビジネス：1固定 | GE12: YYYY/MM/DD | GF12: YYYY/MM/DD | GG12: ZZZZ9 | GI12: ZZ9.ZZ
B13: 項番 【必須】 | C13: 品名 【必須】 | D13: カナ品名 【必須】 | E13: ライセンス名 | F13: メーカー名 【必須】 | G13: DUNS No. 【条件付き必須】 | H13: 法人番号 【条件付き必須】 | I13: GTINコード | J13: メーカー型番 【必須】 | K13: サプライヤ品番 【必須】 | L13: サプライヤー補助品目ID 【Aribaは必須】 | M13: 製品バージョン | N13: シリーズ名 | O13: サプライヤ製品URL | P13: 製造メーカー製品URL | Q13: ソフトウェア 製品 【ソフトウェアは必須】 | R13: ソフトウェア 利用期間(月) 【ソフトウェアは必須】 | S13: ライセンス保守開始日 | T13: ライセンス保守終了日 | U13: 数量 【必須】 | V13: 購入単位 【必須】 | W13: 詳しい説明 【必須】 | X13: 標準単価 【必須】 | Y13: 標準合価 【自動計算】 | Z13: 仕切率 【自動計算】 | AA13: 追加固定費 | AB13: 固定部単価 | AC13: 提案単価 【必須】 | AD13: 提案合価 【自動計算】 | AE13: 税率 【自動計算】 | AF13: 値引配賦額 【自動計算】 | AG13: 配賦後合価 【自動計算】 | AH13: 配賦後単価 【自動計算】 | AI13: 税込配賦後合価 【自動計算】 | AJ13: 納入場所 | AK13: 製品価格に含まれる保守期間（ヶ月） | AL13: 標準調達期間/出荷可能期間 【必須】 | AM13: 備考 | AN13: 個社項目1 | AO13: 個社項目2 | AP13: 個社項目3 | AQ13: 個社項目4 | AR13: 個社項目5 | AU13: 有効期限終了日 | AV13: 有効期限開始日 | AW13: 製造メーカーコード | AX13: 調達分析カテゴリコード 【必須】 | AY13: 調達分析カテゴリコード （名称） | AZ13: 仕様書番号 | BA13: GS契約条件 （コード） | BB13: GS契約条件 【必須】 | BC13: GS社のWSS番号 【条件付必須】 | BD13: 目標価格(単価) 【条件付必須】 | BE13: 価格低減ポイント （コード） | BF13: 価格低減ポイント(明細) 【条件付必須】 | BG13: 商品分類コード （コード） | BH13: 商品分類コード 【必須】 | BI13: ライセンス種別 （コード） | BJ13: ライセンス種別 | BM13: 製造メーカーコード | BN13: 調達分析カテゴリコード 【必須】 | BO13: 調達分析カテゴリコード （名称） | BP13: GS契約条件 (コード) | BQ13: GS契約条件 【必須】 | BR13: GS社のWSS番号 【条件付き必須】 | BS13: 目標価格(単価) 【条件付き必須】 | BT13: 価格低減ポイント （コード） | BU13: 価格低減ポイント(明細) 【条件付き必須】 | BV13: 品目コード 【必須】 | BW13: プラント （コード） | BX13: プラント | BY13: 品目タイプ （コード） | BZ13: 品目タイプ 【必須】 | CA13: 基本数量単位 【必須】 | CB13: 総重量 | CC13: 重量単位 | CD13: 正味重量 | CE13: 実寸法／縦 | CF13: 実寸法／横 | CG13: 実寸法／高 | CH13: 実寸法単位 | CI13: 容積 | CJ13: 容積単位 | CK13: サイズ/寸法 | CL13: 外装箱内商品個数 | CM13: 外箱寸法／縦 | CN13: 外箱寸法／横 | CO13: 外箱寸法／高 | CP13: 外箱寸法単位 | CQ13: 外箱寸法容積 | CR13: 外箱寸法容積単位 | CS13: 仕様書番号 【必須】 | CT13: 仕様書名 | CU13: ab長単価表示 （コード） | CV13: ab長単価表示 【必須】 | CW13: 指定事項有無 （コード） | CX13: 指定事項有無 【必須】 | CY13: 指定事項１／ＦＲＯＭ 【条件付き必須】 | CZ13: 指定事項１／桁数 【条件付き必須】 | DA13: 指定事項２／ＦＲＯＭ | DB13: 指定事項２／桁数 | DC13: 指定事項３／ＦＲＯＭ | DD13: 指定事項３／桁数 | DE13: 形状表示 （コード） | DF13: 形状表示 【必須】 | DG13: 梱包区分 （コード） | DH13: 梱包区分 | DI13: 在庫管理区分 （コード） | DJ13: 在庫管理区分 【必須】 | DK13: 利活用区分 （コード） | DL13: 利活用区分 | DM13: 保守用区分 （コード） | DN13: 保守用区分 | DO13: 返納可否表示 （コード） | DP13: 返納可否表示 | DQ13: 評価方法 （コード） | DR13: 評価方法 【必須】 | DS13: 再用品細目番号 【条件付き必須】 | DT13: 払出単位数量 | DU13: 最大払出数 | DV13: パスワードチェック要否フラグ （コード） | DW13: パスワードチェック要否フラグ | DX13: 集中管理プラント （コード） 【条件付き必須】 | DY13: 集中管理プラント | DZ13: 集中管理保管場所 （コード） 【条件付き必須】 | EA13: 集中管理保管場所 | EB13: 商品表示 （コード） | EC13: 商品表示 | ED13: 直送上限数 【条件付き必須】 | EE13: 直送表示 （コード） | EF13: 直送表示 | EG13: 代引き表示 （コード） | EH13: 代引き表示 【条件付き必須】 | EI13: サプライ商品表示 （コード） | EJ13: サプライ商品表示 【条件付き必須】 | EK13: 経理流通区分 （コード） | EL13: 経理流通区分 【条件付き必須】 | EM13: 実外箱入数 | EN13: 定額保守料金１：金額 【条件付き必須】 | EO13: 定額保守料金２：金額 【条件付き必須】 | EP13: 利活用開始にともなう回収開始時期 | EQ13: 利活用終了にともなう回収終了時期 | ER13: 再生実施有無 （コード） | ES13: 再生実施有無 | ET13: 再生開始時期 | EU13: 再生終了時期 | EV13: EOL期日 | EW13: EOS期日 | EX13: 返納上限数 | EY13: 丸め数量 | EZ13: 購買グループ （コード） 【必須】 | FA13: 購買グループ | FB13: 原産国 （コード） | FC13: 原産国 | FD13: 利益センタ （コード） 【必須】 | FE13: 利益センタ 【必須】 | FF13: 特殊調達タイプコード | FG13: 特殊調達タイプ | FH13: 購買組織 （コード） | FI13: 利用会社 【必須】 | FJ13: 購買情報番号 | FK13: 購買情報カテゴリ （コード） | FL13: 購買情報カテゴリ 【必須】 | FM13: 利用可能開始日 | FN13: 利用可能終了日 | FO13: 発注単位 【必須】 | FP13: 発注単位から基本単位への換算式の分母 【必須】 | FQ13: 発注単位から基本単位への換算式の分子 【必須】 | FR13: 商品コメント | FS13: 標準数量 【必須】 | FT13: 最低発注数量 | FU13: 有効期間期限日の期間区分 【必須】 | FV13: 税コード 【コード】 | FW13: 税コード 【必須】 | FX13: 自動ソーシング関連 | FY13: 価格設定日制御 （コード） | FZ13: 価格設定日制御 | GA13: 更新対象コード | GB13: 更新対象 | GC13: バリアント条件（コード） | GD13: バリアント条件 【条件付き必須】 | GE13: 有効開始日 【必須】 | GF13: 有効終了日 【必須】 | GG13: 価格条件単位 【必須】 | GH13: 数量単位 【必須】 | GI13: 緊急価格率 | GJ13: サプライヤメール通知フラグ （コード） | GK13: サプライヤメール通知フラグ | GL13: 取消フラグ （コード） | GM13: 取消フラグ | GN13: 承認却下削除 （コード） | GO13: 承認却下削除 | GP13: コメント | GQ13: 担当者ID | GR13: 登録ステータス | GS13: 承認依頼日付 | GT13: 承認依頼時刻 | GU13: 承認日付 | GV13: 承認時刻 | GW13: 差戻日付 | GX13: 差戻時刻
B14: =IF(明細!B8="","",明細!B8) -> 1 | C14: =IF(明細!C8="","",明細!C8) -> A測定器 | D14: =IF(明細!D8="","",明細!D8) ->  | E14: =IF(明細!E8="","",明細!E8) ->  | F14: =IF(明細!F8="","",明細!F8) -> エヌ・ティ・ティ・アドバンステクノロジ（株） | G14: =IF(明細!G8="","",明細!G8) -> 691015309 | H14: =IF(明細!H8="","",明細!H8) -> 9011101028202 | I14: =IF(明細!I8="","",明細!I8) ->  | J14: =IF(明細!J8="","",明細!J8) -> BL0001 | K14: =IF(明細!K8="","",明細!K8) -> SUX-60 | L14: =IF(明細!K8<>"",CONCATENATE($L$12,明細!L8),"") -> 3-100 | M14: =IF(明細!M8="","",明細!M8) ->  | N14: =IF(明細!N8="","",明細!N8) ->  | O14: =IF(明細!O8="","",明細!O8) ->  | P14: =IF(明細!P8="","",明細!P8) ->  | Q14: =IF(明細!Q8="","",明細!Q8) -> ソフトウェア | R14: =IF(明細!R8="","",明細!R8) -> 12 | S14: =IF(明細!S8="","",明細!S8) -> 2023/05/01 | T14: =IF(明細!T8="","",明細!T8) -> 2025/12/31 | U14: =IF(明細!U8="","",明細!U8) -> 1 | V14: =IF(明細!V8<>"","EA","") -> EA | W14: =IF(明細!W8="","",明細!W8) -> ネットワーク負荷測定 | X14: =IF(明細!X8="","",明細!X8) -> 20,000 | Y14: =IF(明細!Y8="","",明細!Y8) -> 20,000 | Z14: =IF(明細!Z8="","",明細!Z8) -> 90% | AA14: =IF(明細!AA8="","",明細!AA8) -> 1,000 | AB14: =IF(明細!AB9="","",明細!AB9) ->  | AC14: =IF(明細!AC8="","",明細!AC8) -> 18,000 | AD14: =IF(明細!AD8="","",明細!AD8) -> 18,000 | AE14: =IF(明細!AE8="","",明細!AE8) -> 10% | AF14: =IF(明細!AF8="","",明細!AF8) -> 0 | AG14: =IF(明細!AG8="","",明細!AG8) -> 18,000 | AH14: =IF(明細!AH8="","",明細!AH8) -> 18,000 | AI14: =IF(明細!AI8="","",明細!AI8) -> 19,800 | AJ14: =IF(明細!AJ8="","",明細!AJ8) ->  | AK14: =IF(明細!AK8="","",明細!AK8) -> 12 | AL14: =IF(明細!AL8="","",明細!AL8) -> 10 | AM14: =IF(明細!AM8="","",明細!AM8) ->  | AN14: =IF(明細!AN8="","",明細!AN8) ->  | AO14: =IF(明細!AO8="","",明細!AO8) ->  | AP14: =IF(明細!AP8="","",明細!AP8) ->  | AQ14: =IF(明細!AQ8="","",明細!AQ8) ->  | AR14: =IF(明細!AR8="","",明細!AR8) ->  | AU14: 2023/05/31 | AV14: 2022/11/30 | AW14: G000363283 | AX14: 03020300000008 | AY14: =IF($AX14="","",VLOOKUP($AX14,リスト!$CL:$CM,2,FALSE)) -> 役務_ソフトウェア保守・運用_応用ソフトウェア_画像･映像･音楽ソフトウェア | AZ14: 仕123456 | BA14: =IF(BB14="","",VLOOKUP(BB14,リスト!$K:$L,2,FALSE)) -> 1 | BB14: NTT-GS社が実施した条件交渉結果に基づく個社契約による購買 | BC14: WSS00001 | BE14: =IF(BF14="","",VLOOKUP(BF14,リスト!$I:$J,2,FALSE)) ->  | BG14: =IF(BH14="","",VLOOKUP(BH14,リスト!$M:$N,2,FALSE)) -> 010101 | BH14: ハードウェア | BI14: =IF(BJ14="","",VLOOKUP(BJ14,リスト!$O:$P,2,FALSE)) ->  | BM14: G000131402 | BN14: 03020300000008 | BO14: =IF($BN14="","",VLOOKUP($BN14,リスト!$CL:$CM,2,FALSE)) -> 役務_ソフトウェア保守・運用_応用ソフトウェア_画像･映像･音楽ソフトウェア | BP14: =IF(BQ14="","",VLOOKUP(BQ14,リスト!$K$5:$L$7,2,FALSE)) -> 1 | BQ14: NTT-GS社が実施した条件交渉結果に基づく個社契約による購買 | BR14: WS00001 | BT14: =IF(BU14="","",VLOOKUP(BU14,リスト!I5:J23,2,FALSE)) ->  | BV14: 0002NTT0000BLT0001 | BY14: =IF(BZ14="","",VLOOKUP(BZ14,リスト!$S$5:$T$6,2,FALSE)) -> Z001 | BZ14: 物品 | CA14: M | CC14: =IF($B14="","","G") -> G | CH14: =IF($B14="","","MM") -> MM | CJ14: =IF($B14="","","MM3") -> MM3 | CP14: =IF($B14="","","MM") -> MM | CR14: =IF($B14="","","MM3") -> MM3 | CS14: 仕123456 | CU14: =IF(CV14="","",VLOOKUP(CV14,リスト!$V$5:$W$6,2,FALSE)) -> 1 | CV14: ａｂ長単価物品 | CW14: =IF(CX14="","",VLOOKUP(CX14,リスト!$X$5:$Y$6,2,FALSE)) -> 1 | CX14: 指定事項あり | CY14: 110 | CZ14: 3 | DE14: =IF(DF14="","",VLOOKUP(DF14,リスト!$Z$5:$AA$10,2,FALSE)) -> 1 | DF14: 一般物品 | DG14: =IF(DH14="","",VLOOKUP(DH14,リスト!$AB$5:$AC$12,2,FALSE)) ->  | DI14: =IF(DJ14="","",VLOOKUP(DJ14,リスト!$AD$5:$AE$7,2,FALSE)) -> 0 | DJ14: 一括管理物品 | DK14: =IF(DL14="","",VLOOKUP(DL14,リスト!$AF$5:$AG$10,2,FALSE)) ->  | DM14: =IF(DN14="","",VLOOKUP(DN14,リスト!$AH$5:$AI$6,2,FALSE)) ->  | DO14: =IF(DP14="","",VLOOKUP(DP14,リスト!$AJ$5:$AK$6,2,FALSE)) -> X | DP14: 返納可 | DQ14: =IF(DR14="","",VLOOKUP(DR14,リスト!$AL$5:$AM$7,2,FALSE)) -> 1 | DR14: 総合償却 | DS14: 10 | DV14: =IF(DW14="","",VLOOKUP(DW14,リスト!$AN$5:$AO$6,2,FALSE)) ->  | DX14: EC10 | DZ14: ZC11 | EB14: =IF(EC14="","",VLOOKUP(EC14,リスト!$AW$5:$AX$8,2,FALSE)) ->  | ED14: 100 | EE14: =IF(EF14="","",VLOOKUP(EF14,リスト!$AY$5:$AZ$10,2,FALSE)) ->  | EG14: =IF(EH14="","",VLOOKUP(EH14,リスト!$BA$5:$BB$10,2,FALSE)) ->  | EI14: =IF(EJ14="","",VLOOKUP(EJ14,リスト!$BC$5:$BD$10,2,FALSE)) -> 1 | EJ14: 対象 | EK14: =IF(EL14="","",VLOOKUP(EL14,リスト!$BE$5:$BF$10,2,FALSE)) -> 1 | EL14: 経理流通抑止物品の在庫品 | EN14: 10,000 | ER14: =IF(ES14="","",VLOOKUP(ES14,リスト!$BG$5:$BH$10,2,FALSE)) ->  | EZ14: E01 | FA14: =IF($EZ14="","",INDEX(リスト!$BI$5:$BJ$40,MATCH($EZ14,リスト!$BJ$5:$BJ$40,0),1)) -> 第1調達担当（アクセス） | FB14: =IF(FC14="","",VLOOKUP(FC14,リスト!$BK:$BL,2,FALSE)) ->  | FD14: 3211008035 | FE14: 北関東・信越総合料金センター | FF14: =IF(FG14="","",VLOOKUP(FG14,リスト!$BO$5:$BP$6,2,FALSE)) ->  | FH14: =IF(FI14="","",VLOOKUP(FI14,リスト!$BQ$5:$BR$8,2,FALSE)) ->  | FI14: 東日本電信電話（株） | FK14: =IF(FL14="","",VLOOKUP(FL14,リスト!$BS$5:$BT$6,2,FALSE)) -> 0 | FL14: 標準 | FM14: 2023/01/01 | FN14: 2025/12/31 | FO14: PC | FP14: =IF($B14="","",1) -> 1 | FQ14: =IF($B14="","",1) -> 1 | FR14: 年度末まで期間限定割引を実施中 | FS14: 200 | FU14: =IF($B14="","","D") -> D | FV14: =IF(FW14="","",VLOOKUP(FW14,リスト!$BV$5:$BW$10,2,FALSE)) -> FA | FW14: 仕入１０％（税込）（税個別なし） | FX14: =IF($B14="","","X") -> X | FY14: =IF(FZ14="","",VLOOKUP(FZ14,リスト!$BX$5:$BY$6,2,FALSE)) -> 1 | FZ14: 購買発注日付 | GA14: =IF(GB14="","",VLOOKUP(GB14,リスト!$BZ$5:$CA$6,2,FALSE)) -> X | GB14: 更新対象 | GC14: =IF(GD14="","",VLOOKUP(GD14,リスト!$CB$5:$CC$6,2,FALSE)) -> A1 | GD14: ダム部単価 | GE14: 2023/01/01 | GF14: 2025/12/31 | GG14: 1 | GH14: =(IF($CA14<>"",$CA14,"")) -> M | GJ14: =IF(GK14="","",VLOOKUP(GK14,リスト!$CD$5:$CE$6,2,FALSE)) ->  | GL14: =IF(GM14="","",VLOOKUP(GM14,リスト!$CF$5:$CG$6,2,FALSE)) -> X | GM14: 削除対象 | GN14: =IF(GO14="","",VLOOKUP(GO14,リスト!$CH$5:$CI$6,2,FALSE)) -> 
B15: =IF(明細!B9="","",明細!B9) -> 2 | C15: =IF(明細!C9="","",明細!C9) -> A測定器 | D15: =IF(明細!D9="","",明細!D9) ->  | E15: =IF(明細!E9="","",明細!E9) ->  | F15: =IF(明細!F9="","",明細!F9) -> ｴﾇ･ﾃｨ･ﾃｨ･ｱﾄﾞﾊﾞﾝｽﾃｸﾉﾛｼﾞ(株) | G15: =IF(明細!G9="","",明細!G9) -> 691015309 | H15: =IF(明細!H9="","",明細!H9) -> 9011101028202 | I15: =IF(明細!I9="","",明細!I9) ->  | J15: =IF(明細!J9="","",明細!J9) -> BL0001 | K15: =IF(明細!K9="","",明細!K9) -> SUX-61 | L15: =IF(明細!K9<>"",CONCATENATE($L$12,明細!L9),"") -> 3-200 | M15: =IF(明細!M9="","",明細!M9) ->  | N15: =IF(明細!N9="","",明細!N9) ->  | O15: =IF(明細!O9="","",明細!O9) ->  | P15: =IF(明細!P9="","",明細!P9) ->  | Q15: =IF(明細!Q9="","",明細!Q9) -> ソフトウェア | R15: =IF(明細!R9="","",明細!R9) -> 12 | S15: =IF(明細!S9="","",明細!S9) -> 2023/05/01 | T15: =IF(明細!T9="","",明細!T9) -> 2025/12/31 | U15: =IF(明細!U9="","",明細!U9) -> 1 | V15: =IF(明細!V9<>"","EA","") -> EA | W15: =IF(明細!W9="","",明細!W9) -> ネットワーク負荷測定 | X15: =IF(明細!X9="","",明細!X9) -> 20,000 | Y15: =IF(明細!Y9="","",明細!Y9) -> 20,000 | Z15: =IF(明細!Z9="","",明細!Z9) -> 95% | AA15: =IF(明細!AA9="","",明細!AA9) -> 1,000 | AB15: =IF(明細!#REF!="","",明細!#REF!) ->  | AC15: =IF(明細!AC9="","",明細!AC9) -> 19,000 | AD15: =IF(明細!AD9="","",明細!AD9) -> 19,000 | AE15: =IF(明細!AE9="","",明細!AE9) -> 10% | AF15: =IF(明細!AF9="","",明細!AF9) -> 0 | AG15: =IF(明細!AG9="","",明細!AG9) -> 19,000 | AH15: =IF(明細!AH9="","",明細!AH9) -> 19,000 | AI15: =IF(明細!AI9="","",明細!AI9) -> 20,900 | AJ15: =IF(明細!AJ9="","",明細!AJ9) ->  | AK15: =IF(明細!AK9="","",明細!AK9) -> 12 | AL15: =IF(明細!AL9="","",明細!AL9) -> 12 | AM15: =IF(明細!AM9="","",明細!AM9) ->  | AN15: =IF(明細!AN9="","",明細!AN9) ->  | AO15: =IF(明細!AO9="","",明細!AO9) ->  | AP15: =IF(明細!AP9="","",明細!AP9) ->  | AQ15: =IF(明細!AQ9="","",明細!AQ9) ->  | AR15: =IF(明細!AR9="","",明細!AR9) ->  | AW15: G000363283 | AX15: 01100000060001 | AY15: =IF($AX15="","",VLOOKUP($AX15,リスト!$CL:$CM,2,FALSE)) -> 開発品_サーバ/ストレージ装置類_分類無(開発品)_サーバ本体_ドコモ | AZ15: 仕123456 | BA15: =IF(BB15="","",VLOOKUP(BB15,リスト!$K:$L,2,FALSE)) -> 0 | BB15: NTT-GS社の関与無し | BE15: =IF(BF15="","",VLOOKUP(BF15,リスト!$I:$J,2,FALSE)) ->  | BG15: =IF(BH15="","",VLOOKUP(BH15,リスト!$M:$N,2,FALSE)) -> 110103 | BH15: 事務用品等（海外） | BI15: =IF(BJ15="","",VLOOKUP(BJ15,リスト!$O:$P,2,FALSE)) ->  | BM15: G000131424 | BN15: 01030000020004 | BO15: =IF($BN15="","",VLOOKUP($BN15,リスト!$CL:$CM,2,FALSE)) -> 開発品_NW装置類_分類無(開発品)_RSBM_東日本 | BP15: =IF(BQ15="","",VLOOKUP(BQ15,リスト!$K$5:$L$7,2,FALSE)) -> 2 | BQ15: NTT-GS社が締結したGFA契約（NTT向け包括契約、Global Framework Agreement）を利用した購買 | BT15: =IF(BU15="","",VLOOKUP(BU15,リスト!I6:J24,2,FALSE)) ->  | BV15: 1555NTT0000BLT0002 | BY15: =IF(BZ15="","",VLOOKUP(BZ15,リスト!$S$5:$T$6,2,FALSE)) -> Z002 | BZ15: 所掌替品 | CA15: PC | CC15: =IF($B15="","","G") -> G | CH15: =IF($B15="","","MM") -> MM | CJ15: =IF($B15="","","MM3") -> MM3 | CP15: =IF($B15="","","MM") -> MM | CR15: =IF($B15="","","MM3") -> MM3 | CS15: 仕・１２３４５６ | CU15: =IF(CV15="","",VLOOKUP(CV15,リスト!$V$5:$W$6,2,FALSE)) -> 0 | CV15: ａｂ長単価物品以外 | CW15: =IF(CX15="","",VLOOKUP(CX15,リスト!$X$5:$Y$6,2,FALSE)) -> 1 | CX15: 指定事項あり | CY15: 100 | CZ15: 1 | DE15: =IF(DF15="","",VLOOKUP(DF15,リスト!$Z$5:$AA$10,2,FALSE)) -> 2 | DF15: 長尺物品 | DG15: =IF(DH15="","",VLOOKUP(DH15,リスト!$AB$5:$AC$12,2,FALSE)) ->  | DI15: =IF(DJ15="","",VLOOKUP(DJ15,リスト!$AD$5:$AE$7,2,FALSE)) -> 1 | DJ15: 個別管理物品 | DK15: =IF(DL15="","",VLOOKUP(DL15,リスト!$AF$5:$AG$10,2,FALSE)) ->  | DM15: =IF(DN15="","",VLOOKUP(DN15,リスト!$AH$5:$AI$6,2,FALSE)) ->  | DO15: =IF(DP15="","",VLOOKUP(DP15,リスト!$AJ$5:$AK$6,2,FALSE)) -> X | DP15: 返納可 | DQ15: =IF(DR15="","",VLOOKUP(DR15,リスト!$AL$5:$AM$7,2,FALSE)) -> 1 | DR15: 総合償却 | DS15: 05 | DV15: =IF(DW15="","",VLOOKUP(DW15,リスト!$AN$5:$AO$6,2,FALSE)) ->  | DX15: EC10 | DZ15: ZC11 | EB15: =IF(EC15="","",VLOOKUP(EC15,リスト!$AW$5:$AX$8,2,FALSE)) ->  | EE15: =IF(EF15="","",VLOOKUP(EF15,リスト!$AY$5:$AZ$10,2,FALSE)) ->  | EG15: =IF(EH15="","",VLOOKUP(EH15,リスト!$BA$5:$BB$10,2,FALSE)) ->  | EI15: =IF(EJ15="","",VLOOKUP(EJ15,リスト!$BC$5:$BD$10,2,FALSE)) -> 0 | EJ15: 対象外 | EK15: =IF(EL15="","",VLOOKUP(EL15,リスト!$BE$5:$BF$10,2,FALSE)) -> 0 | EL15: 経理流通抑止物品以外 | EO15: 10,000 | ER15: =IF(ES15="","",VLOOKUP(ES15,リスト!$BG$5:$BH$10,2,FALSE)) ->  | EZ15: E02 | FA15: =IF($EZ15="","",INDEX(リスト!$BI$5:$BJ$40,MATCH($EZ15,リスト!$BJ$5:$BJ$40,0),1)) -> 第1調達担当（端末） | FB15: =IF(FC15="","",VLOOKUP(FC15,リスト!$BK:$BL,2,FALSE)) ->  | FD15: 3211008045 | FE15: 東京総合料金センター | FF15: =IF(FG15="","",VLOOKUP(FG15,リスト!$BO$5:$BP$6,2,FALSE)) ->  | FH15: =IF(FI15="","",VLOOKUP(FI15,リスト!$BQ$5:$BR$8,2,FALSE)) ->  | FI15: ｴﾇ･ﾃｨ･ﾃｨ･ｺﾐｭﾆｹｰｼｮﾝｽﾞ（株） | FK15: =IF(FL15="","",VLOOKUP(FL15,リスト!$BS$5:$BT$6,2,FALSE)) -> 3 | FL15: 外注 | FO15: M | FP15: =IF($B15="","",1) -> 1 | FQ15: =IF($B15="","",1) -> 1 | FS15: 300 | FU15: =IF($B15="","","D") -> D | FV15: =IF(FW15="","",VLOOKUP(FW15,リスト!$BV$5:$BW$10,2,FALSE)) -> FA | FW15: 仕入１０％（税込）（税個別なし） | FX15: =IF($B15="","","X") -> X | FY15: =IF(FZ15="","",VLOOKUP(FZ15,リスト!$BX$5:$BY$6,2,FALSE)) -> 5 | FZ15: 入庫日付 | GA15: =IF(GB15="","",VLOOKUP(GB15,リスト!$BZ$5:$CA$6,2,FALSE)) ->  | GB15: 更新対象外 | GC15: =IF(GD15="","",VLOOKUP(GD15,リスト!$CB$5:$CC$6,2,FALSE)) -> A2 | GD15: コネクタ単価 | GE15: 2023/01/01 | GF15: 2025/12/31 | GG15: 1 | GH15: =(IF($CA15<>"",$CA15,"")) -> PC | GJ15: =IF(GK15="","",VLOOKUP(GK15,リスト!$CD$5:$CE$6,2,FALSE)) ->  | GL15: =IF(GM15="","",VLOOKUP(GM15,リスト!$CF$5:$CG$6,2,FALSE)) ->  | GN15: =IF(GO15="","",VLOOKUP(GO15,リスト!$CH$5:$CI$6,2,FALSE)) -> 
B16: =IF(明細!B10="","",明細!B10) -> 3 | C16: =IF(明細!C10="","",明細!C10) -> ソフトウェア | D16: =IF(明細!D10="","",明細!D10) ->  | E16: =IF(明細!E10="","",明細!E10) ->  | F16: =IF(明細!F10="","",明細!F10) -> ＮＴＴテクノクロス（株） | G16: =IF(明細!G10="","",明細!G10) -> 691017529 | H16: =IF(明細!H10="","",明細!H10) -> 5010401056882 | I16: =IF(明細!I10="","",明細!I10) ->  | J16: =IF(明細!J10="","",明細!J10) -> ＢＬ０００２ | K16: =IF(明細!K10="","",明細!K10) -> X | L16: =IF(明細!K10<>"",CONCATENATE($L$12,明細!L10),"") -> 3-300 | M16: =IF(明細!M10="","",明細!M10) ->  | N16: =IF(明細!N10="","",明細!N10) ->  | O16: =IF(明細!O10="","",明細!O10) ->  | P16: =IF(明細!P10="","",明細!P10) ->  | Q16: =IF(明細!Q10="","",明細!Q10) ->  | R16: =IF(明細!R10="","",明細!R10) ->  | S16: =IF(明細!S10="","",明細!S10) ->  | T16: =IF(明細!T10="","",明細!T10) ->  | U16: =IF(明細!U10="","",明細!U10) -> 1 | V16: =IF(明細!V10<>"","EA","") -> EA | W16: =IF(明細!W10="","",明細!W10) -> sortware | X16: =IF(明細!X10="","",明細!X10) -> 1 | Y16: =IF(明細!Y10="","",明細!Y10) ->  | Z16: =IF(明細!Z10="","",明細!Z10) ->  | AA16: =IF(明細!AA10="","",明細!AA10) -> 2,000 | AB16: =IF(明細!AB10="","",明細!AB10) ->  | AC16: =IF(明細!AC10="","",明細!AC10) -> 4,000 | AD16: =IF(明細!AD10="","",明細!AD10) -> 4,000 | AE16: =IF(明細!AE10="","",明細!AE10) -> 10% | AF16: =IF(明細!AF10="","",明細!AF10) -> 0 | AG16: =IF(明細!AG10="","",明細!AG10) -> 4,000 | AH16: =IF(明細!AH10="","",明細!AH10) -> 4,000 | AI16: =IF(明細!AI10="","",明細!AI10) -> 4,400 | AJ16: =IF(明細!AJ10="","",明細!AJ10) ->  | AK16: =IF(明細!AK10="","",明細!AK10) ->  | AL16: =IF(明細!AL10="","",明細!AL10) -> 10 | AM16: =IF(明細!AM10="","",明細!AM10) ->  | AN16: =IF(明細!AN10="","",明細!AN10) ->  | AO16: =IF(明細!AO10="","",明細!AO10) ->  | AP16: =IF(明細!AP10="","",明細!AP10) ->  | AQ16: =IF(明細!AQ10="","",明細!AQ10) ->  | AR16: =IF(明細!AR10="","",明細!AR10) ->  | AW16: G000363283 | AX16: 01020000020607 | AY16: =IF($AX16="","",VLOOKUP($AX16,リスト!$CL:$CM,2,FALSE)) -> 開発品_アクセス系装置類_分類無(開発品)_公衆電話_ICカード公衆電話機_東日本 | AZ16: 仕・１２３４５６ | BA16: =IF(BB16="","",VLOOKUP(BB16,リスト!$K:$L,2,FALSE)) -> 1 | BB16: NTT-GS社が実施した条件交渉結果に基づく個社契約による購買 | BC16: WSS00002 | BE16: =IF(BF16="","",VLOOKUP(BF16,リスト!$I:$J,2,FALSE)) ->  | BG16: =IF(BH16="","",VLOOKUP(BH16,リスト!$M:$N,2,FALSE)) -> 019103 | BH16: 【単価契約】事務用品等 | BI16: =IF(BJ16="","",VLOOKUP(BJ16,リスト!$O:$P,2,FALSE)) ->  | BM16: G000131424 | BN16: 03020300000002 | BO16: =IF($BN16="","",VLOOKUP($BN16,リスト!$CL:$CM,2,FALSE)) -> 役務_ソフトウェア保守・運用_応用ソフトウェア_セキュリティソフトウェア | BP16: =IF(BQ16="","",VLOOKUP(BQ16,リスト!$K$5:$L$7,2,FALSE)) -> 1 | BQ16: NTT-GS社が実施した条件交渉結果に基づく個社契約による購買 | BR16: WS00002 | BT16: =IF(BU16="","",VLOOKUP(BU16,リスト!I7:J25,2,FALSE)) ->  | BV16: 0002NTT0000BLT0001 | BY16: =IF(BZ16="","",VLOOKUP(BZ16,リスト!$S$5:$T$6,2,FALSE)) -> Z001 | BZ16: 物品 | CA16: M | CC16: G | CH16: MM | CJ16: MM3 | CP16: =IF($B16="","","MM") -> MM | CR16: =IF($B16="","","MM3") -> MM3 | CS16: 仕ー１２３４５６ | CU16: =IF(CV16="","",VLOOKUP(CV16,リスト!$V$5:$W$6,2,FALSE)) -> 1 | CV16: ａｂ長単価物品 | CW16: =IF(CX16="","",VLOOKUP(CX16,リスト!$X$5:$Y$6,2,FALSE)) -> 0 | CX16: 指定事項なし | DE16: =IF(DF16="","",VLOOKUP(DF16,リスト!$Z$5:$AA$10,2,FALSE)) -> 3 | DF16: ケーブル | DG16: =IF(DH16="","",VLOOKUP(DH16,リスト!$AB$5:$AC$12,2,FALSE)) ->  | DI16: =IF(DJ16="","",VLOOKUP(DJ16,リスト!$AD$5:$AE$7,2,FALSE)) -> 1 | DJ16: 個別管理物品 | DK16: =IF(DL16="","",VLOOKUP(DL16,リスト!$AF$5:$AG$10,2,FALSE)) ->  | DM16: =IF(DN16="","",VLOOKUP(DN16,リスト!$AH$5:$AI$6,2,FALSE)) ->  | DO16: =IF(DP16="","",VLOOKUP(DP16,リスト!$AJ$5:$AK$6,2,FALSE)) -> X | DP16: 返納可 | DQ16: =IF(DR16="","",VLOOKUP(DR16,リスト!$AL$5:$AM$7,2,FALSE)) -> 2 | DR16: グループ償却 | DS16: 04 | DV16: =IF(DW16="","",VLOOKUP(DW16,リスト!$AN$5:$AO$6,2,FALSE)) ->  | DX16: E520 | DZ16: 3Z01 | EB16: =IF(EC16="","",VLOOKUP(EC16,リスト!$AW$5:$AX$8,2,FALSE)) ->  | ED16: 50 | EE16: =IF(EF16="","",VLOOKUP(EF16,リスト!$AY$5:$AZ$10,2,FALSE)) ->  | EG16: =IF(EH16="","",VLOOKUP(EH16,リスト!$BA$5:$BB$10,2,FALSE)) ->  | EI16: =IF(EJ16="","",VLOOKUP(EJ16,リスト!$BC$5:$BD$10,2,FALSE)) ->  | EK16: =IF(EL16="","",VLOOKUP(EL16,リスト!$BE$5:$BF$10,2,FALSE)) -> 2 | EL16: 経理流通抑止物品の再用品 | ER16: =IF(ES16="","",VLOOKUP(ES16,リスト!$BG$5:$BH$10,2,FALSE)) ->  | EZ16: E07 | FA16: =IF($EZ16="","",INDEX(リスト!$BI$5:$BJ$40,MATCH($EZ16,リスト!$BJ$5:$BJ$40,0),1)) -> EG（ファシリティーズ） | FB16: =IF(FC16="","",VLOOKUP(FC16,リスト!$BK:$BL,2,FALSE)) ->  | FD16: 3211008046 | FE16: 東京総合料金センター料金企画部 | FF16: =IF(FG16="","",VLOOKUP(FG16,リスト!$BO$5:$BP$6,2,FALSE)) ->  | FH16: =IF(FI16="","",VLOOKUP(FI16,リスト!$BQ$5:$BR$8,2,FALSE)) -> 0006 | FI16: （株）NTTﾄﾞｺﾓ | FK16: =IF(FL16="","",VLOOKUP(FL16,リスト!$BS$5:$BT$6,2,FALSE)) -> 0 | FL16: 標準 | FO16: PC | FP16: 1 | FQ16: =IF($B16="","",1) -> 1 | FS16: 400 | FU16: D | FV16: =IF(FW16="","",VLOOKUP(FW16,リスト!$BV$5:$BW$10,2,FALSE)) -> FA | FW16: 仕入１０％（税込）（税個別なし） | FX16: X | FY16: =IF(FZ16="","",VLOOKUP(FZ16,リスト!$BX$5:$BY$6,2,FALSE)) ->  | GA16: =IF(GB16="","",VLOOKUP(GB16,リスト!$BZ$5:$CA$6,2,FALSE)) ->  | GC16: =IF(GD16="","",VLOOKUP(GD16,リスト!$CB$5:$CC$6,2,FALSE)) -> A1 | GD16: ダム部単価 | GE16: 2023/01/01 | GF16: 2025/12/31 | GG16: 1 | GH16: M | GJ16: =IF(GK16="","",VLOOKUP(GK16,リスト!$CD$5:$CE$6,2,FALSE)) ->  | GL16: =IF(GM16="","",VLOOKUP(GM16,リスト!$CF$5:$CG$6,2,FALSE)) ->  | GN16: =IF(GO16="","",VLOOKUP(GO16,リスト!$CH$5:$CI$6,2,FALSE)) -> 
B17: =IF(明細!B11="","",明細!B11) -> 4 | C17: =IF(明細!C11="","",明細!C11) -> Hard Disk | D17: =IF(明細!D11="","",明細!D11) ->  | E17: =IF(明細!E11="","",明細!E11) ->  | F17: =IF(明細!F11="","",明細!F11) -> ＮＴＴ・ＴＥＣＨ | G17: =IF(明細!G11="","",明細!G11) -> 691017529 | H17: =IF(明細!H11="","",明細!H11) -> 5010401056882 | I17: =IF(明細!I11="","",明細!I11) ->  | J17: =IF(明細!J11="","",明細!J11) -> ＢＬ０００3_１２３４５ | K17: =IF(明細!K11="","",明細!K11) -> SUX_62 | L17: =IF(明細!K11<>"",CONCATENATE($L$12,明細!L11),"") -> 3-abc-100 | M17: =IF(明細!M11="","",明細!M11) ->  | N17: =IF(明細!N11="","",明細!N11) ->  | O17: =IF(明細!O11="","",明細!O11) ->  | P17: =IF(明細!P11="","",明細!P11) ->  | Q17: =IF(明細!Q11="","",明細!Q11) ->  | R17: =IF(明細!R11="","",明細!R11) ->  | S17: =IF(明細!S11="","",明細!S11) ->  | T17: =IF(明細!T11="","",明細!T11) ->  | U17: =IF(明細!U11="","",明細!U11) -> 1 | V17: =IF(明細!V11<>"","EA","") -> EA | W17: =IF(明細!W11="","",明細!W11) -> ハードディスク<BR>衝撃に強いハードディスク<BR>データ保証３年付き | X17: =IF(明細!X11="","",明細!X11) -> 10,000 | Y17: =IF(明細!Y11="","",明細!Y11) -> 10,000 | Z17: =IF(明細!Z11="","",明細!Z11) -> 90% | AA17: =IF(明細!AA11="","",明細!AA11) ->  | AB17: =IF(明細!AB11="","",明細!AB11) ->  | AC17: =IF(明細!AC11="","",明細!AC11) -> 9,000 | AD17: =IF(明細!AD11="","",明細!AD11) -> 9,000 | AE17: =IF(明細!AE11="","",明細!AE11) -> 10% | AF17: =IF(明細!AF11="","",明細!AF11) -> 0 | AG17: =IF(明細!AG11="","",明細!AG11) -> 9,000 | AH17: =IF(明細!AH11="","",明細!AH11) -> 9,000 | AI17: =IF(明細!AI11="","",明細!AI11) -> 9,900 | AJ17: =IF(明細!AJ11="","",明細!AJ11) ->  | AK17: =IF(明細!AK11="","",明細!AK11) ->  | AL17: =IF(明細!AL11="","",明細!AL11) -> 10 | AM17: =IF(明細!AM11="","",明細!AM11) ->  | AN17: =IF(明細!AN11="","",明細!AN11) ->  | AO17: =IF(明細!AO11="","",明細!AO11) ->  | AP17: =IF(明細!AP11="","",明細!AP11) ->  | AQ17: =IF(明細!AQ11="","",明細!AQ11) ->  | AR17: =IF(明細!AR11="","",明細!AR11) ->  | AW17: G000131424 | AX17: 03190200000010 | AY17: =IF($AX17="","",VLOOKUP($AX17,リスト!$CL:$CM,2,FALSE)) -> 役務_旅費交通_地上交通費_タクシーとリムジン | BA17: =IF(BB17="","",VLOOKUP(BB17,リスト!$K:$L,2,FALSE)) -> 2 | BB17: NTT-GS社が締結したGFA契約（NTT向け包括契約、Global Framework Agreement）を利用した購買 | BE17: =IF(BF17="","",VLOOKUP(BF17,リスト!$I:$J,2,FALSE)) ->  | BG17: =IF(BH17="","",VLOOKUP(BH17,リスト!$M:$N,2,FALSE)) -> 029602 | BH17: 【単価契約】レンタル | BI17: =IF(BJ17="","",VLOOKUP(BJ17,リスト!$O:$P,2,FALSE)) ->  | BM17: G000131424 | BN17: 01030000020004 | BO17: =IF($BN17="","",VLOOKUP($BN17,リスト!$CL:$CM,2,FALSE)) -> 開発品_NW装置類_分類無(開発品)_RSBM_東日本 | BP17: =IF(BQ17="","",VLOOKUP(BQ17,リスト!$K$5:$L$7,2,FALSE)) -> 0 | BQ17: NTT-GS社の関与無し | BT17: =IF(BU17="","",VLOOKUP(BU17,リスト!I8:J26,2,FALSE)) ->  | BV17: 0002NTT0000BLT0001 | BY17: =IF(BZ17="","",VLOOKUP(BZ17,リスト!$S$5:$T$6,2,FALSE)) -> Z002 | BZ17: 所掌替品 | CA17: PC | CC17: G | CH17: MM | CJ17: MM3 | CP17: =IF($B17="","","MM") -> MM | CR17: =IF($B17="","","MM3") -> MM3 | CS17: 仕＿１２３４５６ | CU17: =IF(CV17="","",VLOOKUP(CV17,リスト!$V$5:$W$6,2,FALSE)) -> 0 | CV17: ａｂ長単価物品以外 | CW17: =IF(CX17="","",VLOOKUP(CX17,リスト!$X$5:$Y$6,2,FALSE)) -> 0 | CX17: 指定事項なし | DE17: =IF(DF17="","",VLOOKUP(DF17,リスト!$Z$5:$AA$10,2,FALSE)) -> 4 | DF17: 鋼撚線 | DG17: =IF(DH17="","",VLOOKUP(DH17,リスト!$AB$5:$AC$12,2,FALSE)) ->  | DI17: =IF(DJ17="","",VLOOKUP(DJ17,リスト!$AD$5:$AE$7,2,FALSE)) -> 0 | DJ17: 一括管理物品 | DK17: =IF(DL17="","",VLOOKUP(DL17,リスト!$AF$5:$AG$10,2,FALSE)) ->  | DM17: =IF(DN17="","",VLOOKUP(DN17,リスト!$AH$5:$AI$6,2,FALSE)) ->  | DO17: =IF(DP17="","",VLOOKUP(DP17,リスト!$AJ$5:$AK$6,2,FALSE)) -> X | DP17: 返納可 | DQ17: =IF(DR17="","",VLOOKUP(DR17,リスト!$AL$5:$AM$7,2,FALSE)) -> 3 | DR17: 個別償却 | DV17: =IF(DW17="","",VLOOKUP(DW17,リスト!$AN$5:$AO$6,2,FALSE)) ->  | DX17: W710 | DZ17: EKBW | EB17: =IF(EC17="","",VLOOKUP(EC17,リスト!$AW$5:$AX$8,2,FALSE)) ->  | EE17: =IF(EF17="","",VLOOKUP(EF17,リスト!$AY$5:$AZ$10,2,FALSE)) ->  | EG17: =IF(EH17="","",VLOOKUP(EH17,リスト!$BA$5:$BB$10,2,FALSE)) ->  | EI17: =IF(EJ17="","",VLOOKUP(EJ17,リスト!$BC$5:$BD$10,2,FALSE)) -> 0 | EJ17: 対象外 | EK17: =IF(EL17="","",VLOOKUP(EL17,リスト!$BE$5:$BF$10,2,FALSE)) -> 3 | EL17: 経理流通抑止物品の在庫品・再用品 | EN17: 9,999 | EO17: 9,999 | ER17: =IF(ES17="","",VLOOKUP(ES17,リスト!$BG$5:$BH$10,2,FALSE)) ->  | EZ17: W01 | FA17: =IF($EZ17="","",INDEX(リスト!$BI$5:$BJ$40,MATCH($EZ17,リスト!$BJ$5:$BJ$40,0),1)) -> 調達企画Ｇ | FB17: =IF(FC17="","",VLOOKUP(FC17,リスト!$BK:$BL,2,FALSE)) ->  | FD17: 3211008055 | FE17: 南関東総合料金センター | FF17: =IF(FG17="","",VLOOKUP(FG17,リスト!$BO$5:$BP$6,2,FALSE)) ->  | FH17: =IF(FI17="","",VLOOKUP(FI17,リスト!$BQ$5:$BR$8,2,FALSE)) ->  | FI17: 西日本電信電話（株） | FK17: =IF(FL17="","",VLOOKUP(FL17,リスト!$BS$5:$BT$6,2,FALSE)) -> 3 | FL17: 外注 | FO17: M | FP17: 1 | FQ17: 1 | FS17: 500 | FU17: D | FV17: =IF(FW17="","",VLOOKUP(FW17,リスト!$BV$5:$BW$10,2,FALSE)) -> FA | FW17: 仕入１０％（税込）（税個別なし） | FX17: X | FY17: =IF(FZ17="","",VLOOKUP(FZ17,リスト!$BX$5:$BY$6,2,FALSE)) ->  | GA17: =IF(GB17="","",VLOOKUP(GB17,リスト!$BZ$5:$CA$6,2,FALSE)) ->  | GC17: =IF(GD17="","",VLOOKUP(GD17,リスト!$CB$5:$CC$6,2,FALSE)) ->  | GE17: 2023/01/01 | GF17: 2025/12/31 | GG17: 1 | GH17: PC | GJ17: =IF(GK17="","",VLOOKUP(GK17,リスト!$CD$5:$CE$6,2,FALSE)) ->  | GL17: =IF(GM17="","",VLOOKUP(GM17,リスト!$CF$5:$CG$6,2,FALSE)) ->  | GN17: =IF(GO17="","",VLOOKUP(GO17,リスト!$CH$5:$CI$6,2,FALSE)) -> 
B18: =IF(明細!B12="","",明細!B12) -> 5 | C18: =IF(明細!C12="","",明細!C12) -> ＨＤＤ | D18: =IF(明細!D12="","",明細!D12) ->  | E18: =IF(明細!E12="","",明細!E12) ->  | F18: =IF(明細!F12="","",明細!F12) -> NTT･Tech | G18: =IF(明細!G12="","",明細!G12) -> 691017529 | H18: =IF(明細!H12="","",明細!H12) -> 5010401056882 | I18: =IF(明細!I12="","",明細!I12) ->  | J18: =IF(明細!J12="","",明細!J12) -> ＢＬ０００3-12345 | K18: =IF(明細!K12="","",明細!K12) -> SUX_63 | L18: =IF(明細!K12<>"",CONCATENATE($L$12,明細!L12),"") -> 3-abc_200 | M18: =IF(明細!M12="","",明細!M12) ->  | N18: =IF(明細!N12="","",明細!N12) ->  | O18: =IF(明細!O12="","",明細!O12) ->  | P18: =IF(明細!P12="","",明細!P12) ->  | Q18: =IF(明細!Q12="","",明細!Q12) ->  | R18: =IF(明細!R12="","",明細!R12) ->  | S18: =IF(明細!S12="","",明細!S12) ->  | T18: =IF(明細!T12="","",明細!T12) ->  | U18: =IF(明細!U12="","",明細!U12) -> 1 | V18: =IF(明細!V12<>"","EA","") -> EA | W18: =IF(明細!W12="","",明細!W12) -> ＨＤＤ | X18: =IF(明細!X12="","",明細!X12) -> 10,000 | Y18: =IF(明細!Y12="","",明細!Y12) -> 10,000 | Z18: =IF(明細!Z12="","",明細!Z12) -> 80% | AA18: =IF(明細!AA12="","",明細!AA12) ->  | AB18: =IF(明細!AB12="","",明細!AB12) ->  | AC18: =IF(明細!AC12="","",明細!AC12) -> 8,000 | AD18: =IF(明細!AD12="","",明細!AD12) -> 8,000 | AE18: =IF(明細!AE12="","",明細!AE12) -> 10% | AF18: =IF(明細!AF12="","",明細!AF12) -> 0 | AG18: =IF(明細!AG12="","",明細!AG12) -> 8,000 | AH18: =IF(明細!AH12="","",明細!AH12) -> 8,000 | AI18: =IF(明細!AI12="","",明細!AI12) -> 8,800 | AJ18: =IF(明細!AJ12="","",明細!AJ12) ->  | AK18: =IF(明細!AK12="","",明細!AK12) ->  | AL18: =IF(明細!AL12="","",明細!AL12) -> 10 | AM18: =IF(明細!AM12="","",明細!AM12) ->  | AN18: =IF(明細!AN12="","",明細!AN12) ->  | AO18: =IF(明細!AO12="","",明細!AO12) ->  | AP18: =IF(明細!AP12="","",明細!AP12) ->  | AQ18: =IF(明細!AQ12="","",明細!AQ12) ->  | AR18: =IF(明細!AR12="","",明細!AR12) ->  | AW18: G000131424 | AX18: 03260000000000 | AY18: =IF($AX18="","",VLOOKUP($AX18,リスト!$CL:$CM,2,FALSE)) -> 役務_ロイヤリティ、手数料_分類無_分類無 | BA18: =IF(BB18="","",VLOOKUP(BB18,リスト!$K:$L,2,FALSE)) -> 2 | BB18: NTT-GS社が締結したGFA契約（NTT向け包括契約、Global Framework Agreement）を利用した購買 | BE18: =IF(BF18="","",VLOOKUP(BF18,リスト!$I:$J,2,FALSE)) ->  | BG18: =IF(BH18="","",VLOOKUP(BH18,リスト!$M:$N,2,FALSE)) -> 039110 | BH18: 【単価契約】その他サービス | BI18: =IF(BJ18="","",VLOOKUP(BJ18,リスト!$O:$P,2,FALSE)) ->  | BM18: G000363283 | BN18: 01030000020004 | BO18: =IF($BN18="","",VLOOKUP($BN18,リスト!$CL:$CM,2,FALSE)) -> 開発品_NW装置類_分類無(開発品)_RSBM_東日本 | BP18: =IF(BQ18="","",VLOOKUP(BQ18,リスト!$K$5:$L$7,2,FALSE)) -> 2 | BQ18: NTT-GS社が締結したGFA契約（NTT向け包括契約、Global Framework Agreement）を利用した購買 | BT18: =IF(BU18="","",VLOOKUP(BU18,リスト!I9:J27,2,FALSE)) ->  | BV18: 1555NTT0000BLT0002 | BY18: =IF(BZ18="","",VLOOKUP(BZ18,リスト!$S$5:$T$6,2,FALSE)) -> Z001 | BZ18: 物品 | CA18: M | CC18: G | CH18: MM | CJ18: MM3 | CP18: =IF($B18="","","MM") -> MM | CR18: =IF($B18="","","MM3") -> MM3 | CS18: シ １２３４５６ | CU18: =IF(CV18="","",VLOOKUP(CV18,リスト!$V$5:$W$6,2,FALSE)) -> 1 | CV18: ａｂ長単価物品 | CW18: =IF(CX18="","",VLOOKUP(CX18,リスト!$X$5:$Y$6,2,FALSE)) -> 0 | CX18: 指定事項なし | DE18: =IF(DF18="","",VLOOKUP(DF18,リスト!$Z$5:$AA$10,2,FALSE)) -> 5 | DF18: その他のケーブル(分線を伴わないケーブル) | DG18: =IF(DH18="","",VLOOKUP(DH18,リスト!$AB$5:$AC$12,2,FALSE)) ->  | DI18: =IF(DJ18="","",VLOOKUP(DJ18,リスト!$AD$5:$AE$7,2,FALSE)) -> 1 | DJ18: 個別管理物品 | DK18: =IF(DL18="","",VLOOKUP(DL18,リスト!$AF$5:$AG$10,2,FALSE)) ->  | DM18: =IF(DN18="","",VLOOKUP(DN18,リスト!$AH$5:$AI$6,2,FALSE)) ->  | DO18: =IF(DP18="","",VLOOKUP(DP18,リスト!$AJ$5:$AK$6,2,FALSE)) -> X | DP18: 返納可 | DQ18: =IF(DR18="","",VLOOKUP(DR18,リスト!$AL$5:$AM$7,2,FALSE)) -> 3 | DR18: 個別償却 | DV18: =IF(DW18="","",VLOOKUP(DW18,リスト!$AN$5:$AO$6,2,FALSE)) ->  | DX18: W710 | DZ18: EKBX | EB18: =IF(EC18="","",VLOOKUP(EC18,リスト!$AW$5:$AX$8,2,FALSE)) ->  | EE18: =IF(EF18="","",VLOOKUP(EF18,リスト!$AY$5:$AZ$10,2,FALSE)) ->  | EG18: =IF(EH18="","",VLOOKUP(EH18,リスト!$BA$5:$BB$10,2,FALSE)) ->  | EI18: =IF(EJ18="","",VLOOKUP(EJ18,リスト!$BC$5:$BD$10,2,FALSE)) -> 0 | EJ18: 対象外 | EK18: =IF(EL18="","",VLOOKUP(EL18,リスト!$BE$5:$BF$10,2,FALSE)) -> 0 | EL18: 経理流通抑止物品以外 | EO18: 15,000 | ER18: =IF(ES18="","",VLOOKUP(ES18,リスト!$BG$5:$BH$10,2,FALSE)) ->  | EZ18: C01 | FA18: =IF($EZ18="","",INDEX(リスト!$BI$5:$BJ$40,MATCH($EZ18,リスト!$BJ$5:$BJ$40,0),1)) -> プロキュアメント&ビリング部 | FB18: =IF(FC18="","",VLOOKUP(FC18,リスト!$BK:$BL,2,FALSE)) ->  | FD18: 3211008502 | FE18: 九州第二サービス部ビリング鹿児島BS担当 | FF18: =IF(FG18="","",VLOOKUP(FG18,リスト!$BO$5:$BP$6,2,FALSE)) ->  | FH18: =IF(FI18="","",VLOOKUP(FI18,リスト!$BQ$5:$BR$8,2,FALSE)) -> 0006 | FI18: （株）NTTﾄﾞｺﾓ | FK18: =IF(FL18="","",VLOOKUP(FL18,リスト!$BS$5:$BT$6,2,FALSE)) -> 0 | FL18: 標準 | FO18: PC | FP18: 1 | FQ18: 1 | FS18: 600 | FU18: D | FV18: =IF(FW18="","",VLOOKUP(FW18,リスト!$BV$5:$BW$10,2,FALSE)) -> FA | FW18: 仕入１０％（税込）（税個別なし） | FX18: X | FY18: =IF(FZ18="","",VLOOKUP(FZ18,リスト!$BX$5:$BY$6,2,FALSE)) ->  | GA18: =IF(GB18="","",VLOOKUP(GB18,リスト!$BZ$5:$CA$6,2,FALSE)) ->  | GC18: =IF(GD18="","",VLOOKUP(GD18,リスト!$CB$5:$CC$6,2,FALSE)) ->  | GE18: 2023/01/01 | GF18: 2025/12/31 | GG18: 1 | GH18: M | GJ18: =IF(GK18="","",VLOOKUP(GK18,リスト!$CD$5:$CE$6,2,FALSE)) ->  | GL18: =IF(GM18="","",VLOOKUP(GM18,リスト!$CF$5:$CG$6,2,FALSE)) ->  | GN18: =IF(GO18="","",VLOOKUP(GO18,リスト!$CH$5:$CI$6,2,FALSE)) -> 
B19: =IF(明細!B13="","",明細!B13) -> 6 | C19: =IF(明細!C13="","",明細!C13) -> ＨＤＤ_０１ | D19: =IF(明細!D13="","",明細!D13) ->  | E19: =IF(明細!E13="","",明細!E13) ->  | F19: =IF(明細!F13="","",明細!F13) -> NTT･Tech | G19: =IF(明細!G13="","",明細!G13) -> 691017529 | H19: =IF(明細!H13="","",明細!H13) -> 5010401056882 | I19: =IF(明細!I13="","",明細!I13) ->  | J19: =IF(明細!J13="","",明細!J13) -> 令和４年１２３４５ | K19: =IF(明細!K13="","",明細!K13) -> SUX_64 | L19: =IF(明細!K13<>"",CONCATENATE($L$12,明細!L13),"") -> 3-abc-300 | M19: =IF(明細!M13="","",明細!M13) ->  | N19: =IF(明細!N13="","",明細!N13) ->  | O19: =IF(明細!O13="","",明細!O13) ->  | P19: =IF(明細!P13="","",明細!P13) ->  | Q19: =IF(明細!Q13="","",明細!Q13) ->  | R19: =IF(明細!R13="","",明細!R13) ->  | S19: =IF(明細!S13="","",明細!S13) ->  | T19: =IF(明細!T13="","",明細!T13) ->  | U19: =IF(明細!U13="","",明細!U13) -> 1 | V19: =IF(明細!V13<>"","EA","") -> EA | W19: =IF(明細!W13="","",明細!W13) -> hdd | X19: =IF(明細!X13="","",明細!X13) -> 10,000 | Y19: =IF(明細!Y13="","",明細!Y13) -> 10,000 | Z19: =IF(明細!Z13="","",明細!Z13) -> 70% | AA19: =IF(明細!AA13="","",明細!AA13) ->  | AB19: =IF(明細!AB13="","",明細!AB13) ->  | AC19: =IF(明細!AC13="","",明細!AC13) -> 7,000 | AD19: =IF(明細!AD13="","",明細!AD13) -> 7,000 | AE19: =IF(明細!AE13="","",明細!AE13) -> 10% | AF19: =IF(明細!AF13="","",明細!AF13) -> 0 | AG19: =IF(明細!AG13="","",明細!AG13) -> 7,000 | AH19: =IF(明細!AH13="","",明細!AH13) -> 7,000 | AI19: =IF(明細!AI13="","",明細!AI13) -> 7,700 | AJ19: =IF(明細!AJ13="","",明細!AJ13) ->  | AK19: =IF(明細!AK13="","",明細!AK13) ->  | AL19: =IF(明細!AL13="","",明細!AL13) -> 10 | AM19: =IF(明細!AM13="","",明細!AM13) ->  | AN19: =IF(明細!AN13="","",明細!AN13) ->  | AO19: =IF(明細!AO13="","",明細!AO13) ->  | AP19: =IF(明細!AP13="","",明細!AP13) ->  | AQ19: =IF(明細!AQ13="","",明細!AQ13) ->  | AR19: =IF(明細!AR13="","",明細!AR13) ->  | AW19: G000131424 | AX19: 03999900000000 | AY19: =IF($AX19="","",VLOOKUP($AX19,リスト!$CL:$CM,2,FALSE)) -> 役務_その他_その他_分類無 | BA19: =IF(BB19="","",VLOOKUP(BB19,リスト!$K:$L,2,FALSE)) -> 2 | BB19: NTT-GS社が締結したGFA契約（NTT向け包括契約、Global Framework Agreement）を利用した購買 | BE19: =IF(BF19="","",VLOOKUP(BF19,リスト!$I:$J,2,FALSE)) ->  | BG19: =IF(BH19="","",VLOOKUP(BH19,リスト!$M:$N,2,FALSE)) -> 110103 | BH19: 事務用品等（海外） | BI19: =IF(BJ19="","",VLOOKUP(BJ19,リスト!$O:$P,2,FALSE)) ->  | BM19: G000363283 | BN19: 01030000020004 | BO19: =IF($BN19="","",VLOOKUP($BN19,リスト!$CL:$CM,2,FALSE)) -> 開発品_NW装置類_分類無(開発品)_RSBM_東日本 | BP19: =IF(BQ19="","",VLOOKUP(BQ19,リスト!$K$5:$L$7,2,FALSE)) -> 2 | BQ19: NTT-GS社が締結したGFA契約（NTT向け包括契約、Global Framework Agreement）を利用した購買 | BT19: =IF(BU19="","",VLOOKUP(BU19,リスト!I10:J28,2,FALSE)) ->  | BV19: 0004NTT0000BLT0001 | BY19: =IF(BZ19="","",VLOOKUP(BZ19,リスト!$S$5:$T$6,2,FALSE)) -> Z002 | BZ19: 所掌替品 | CA19: PC | CC19: G | CH19: MM | CJ19: MM3 | CP19: MM | CR19: MM3 | CS19: ｼ123456 | CU19: =IF(CV19="","",VLOOKUP(CV19,リスト!$V$5:$W$6,2,FALSE)) -> 0 | CV19: ａｂ長単価物品以外 | CW19: =IF(CX19="","",VLOOKUP(CX19,リスト!$X$5:$Y$6,2,FALSE)) -> 0 | CX19: 指定事項なし | DE19: =IF(DF19="","",VLOOKUP(DF19,リスト!$Z$5:$AA$10,2,FALSE)) -> 1 | DF19: 一般物品 | DG19: =IF(DH19="","",VLOOKUP(DH19,リスト!$AB$5:$AC$12,2,FALSE)) ->  | DI19: =IF(DJ19="","",VLOOKUP(DJ19,リスト!$AD$5:$AE$7,2,FALSE)) -> 2 | DJ19: 個体管理物品 | DK19: =IF(DL19="","",VLOOKUP(DL19,リスト!$AF$5:$AG$10,2,FALSE)) ->  | DM19: =IF(DN19="","",VLOOKUP(DN19,リスト!$AH$5:$AI$6,2,FALSE)) ->  | DO19: =IF(DP19="","",VLOOKUP(DP19,リスト!$AJ$5:$AK$6,2,FALSE)) -> X | DP19: 返納可 | DQ19: =IF(DR19="","",VLOOKUP(DR19,リスト!$AL$5:$AM$7,2,FALSE)) -> 3 | DR19: 個別償却 | DV19: =IF(DW19="","",VLOOKUP(DW19,リスト!$AN$5:$AO$6,2,FALSE)) ->  | DX19: W710 | DZ19: EJBR | EB19: =IF(EC19="","",VLOOKUP(EC19,リスト!$AW$5:$AX$8,2,FALSE)) ->  | EE19: =IF(EF19="","",VLOOKUP(EF19,リスト!$AY$5:$AZ$10,2,FALSE)) ->  | EG19: =IF(EH19="","",VLOOKUP(EH19,リスト!$BA$5:$BB$10,2,FALSE)) ->  | EI19: =IF(EJ19="","",VLOOKUP(EJ19,リスト!$BC$5:$BD$10,2,FALSE)) -> 1 | EJ19: 対象 | EK19: =IF(EL19="","",VLOOKUP(EL19,リスト!$BE$5:$BF$10,2,FALSE)) ->  | EN19: 20,000 | EO19: 20,000 | ER19: =IF(ES19="","",VLOOKUP(ES19,リスト!$BG$5:$BH$10,2,FALSE)) ->  | EZ19: D19 | FA19: =IF($EZ19="","",INDEX(リスト!$BI$5:$BJ$40,MATCH($EZ19,リスト!$BJ$5:$BJ$40,0),1)) -> 九州支社ネットワーク部 | FB19: =IF(FC19="","",VLOOKUP(FC19,リスト!$BK:$BL,2,FALSE)) ->  | FD19: 3211008503 | FE19: 九州第二サービス部鹿児島料金業務担当 | FF19: =IF(FG19="","",VLOOKUP(FG19,リスト!$BO$5:$BP$6,2,FALSE)) ->  | FH19: =IF(FI19="","",VLOOKUP(FI19,リスト!$BQ$5:$BR$8,2,FALSE)) ->  | FI19: 西日本電信電話（株） | FK19: =IF(FL19="","",VLOOKUP(FL19,リスト!$BS$5:$BT$6,2,FALSE)) -> 3 | FL19: 外注 | FO19: M | FP19: 1 | FQ19: 1 | FS19: 700 | FU19: D | FV19: =IF(FW19="","",VLOOKUP(FW19,リスト!$BV$5:$BW$10,2,FALSE)) -> FA | FW19: 仕入１０％（税込）（税個別なし） | FX19: X | FY19: =IF(FZ19="","",VLOOKUP(FZ19,リスト!$BX$5:$BY$6,2,FALSE)) ->  | GA19: =IF(GB19="","",VLOOKUP(GB19,リスト!$BZ$5:$CA$6,2,FALSE)) ->  | GC19: =IF(GD19="","",VLOOKUP(GD19,リスト!$CB$5:$CC$6,2,FALSE)) ->  | GE19: 2023/01/01 | GF19: 2025/12/31 | GG19: 1 | GH19: PC | GJ19: =IF(GK19="","",VLOOKUP(GK19,リスト!$CD$5:$CE$6,2,FALSE)) ->  | GL19: =IF(GM19="","",VLOOKUP(GM19,リスト!$CF$5:$CG$6,2,FALSE)) ->  | GN19: =IF(GO19="","",VLOOKUP(GO19,リスト!$CH$5:$CI$6,2,FALSE)) -> 
B20: =IF(明細!B14="","",明細!B14) ->  | C20: =IF(明細!C14="","",明細!C14) ->  | D20: =IF(明細!D14="","",明細!D14) ->  | E20: =IF(明細!E14="","",明細!E14) ->  | F20: =IF(明細!F14="","",明細!F14) ->  | G20: =IF(明細!G14="","",明細!G14) ->  | H20: =IF(明細!H14="","",明細!H14) ->  | I20: =IF(明細!I14="","",明細!I14) ->  | J20: =IF(明細!J14="","",明細!J14) ->  | K20: =IF(明細!K14="","",明細!K14) ->  | L20: =IF(明細!K14<>"",CONCATENATE($L$12,明細!L14),"") ->  | M20: =IF(明細!M14="","",明細!M14) ->  | N20: =IF(明細!N14="","",明細!N14) ->  | O20: =IF(明細!O14="","",明細!O14) ->  | P20: =IF(明細!P14="","",明細!P14) ->  | Q20: =IF(明細!Q14="","",明細!Q14) ->  | R20: =IF(明細!R14="","",明細!R14) ->  | S20: =IF(明細!S14="","",明細!S14) ->  | T20: =IF(明細!T14="","",明細!T14) ->  | U20: =IF(明細!U14="","",明細!U14) ->  | V20: =IF(明細!V14<>"","EA","") -> EA | W20: =IF(明細!W14="","",明細!W14) ->  | X20: =IF(明細!X14="","",明細!X14) ->  | Y20: =IF(明細!Y14="","",明細!Y14) ->  | Z20: =IF(明細!Z14="","",明細!Z14) ->  | AA20: =IF(明細!AA14="","",明細!AA14) ->  | AB20: =IF(明細!AB14="","",明細!AB14) ->  | AC20: =IF(明細!AC14="","",明細!AC14) ->  | AD20: =IF(明細!AD14="","",明細!AD14) ->  | AE20: =IF(明細!AE14="","",明細!AE14) -> 10% | AF20: =IF(明細!AF14="","",明細!AF14) ->  | AG20: =IF(明細!AG14="","",明細!AG14) ->  | AH20: =IF(明細!AH14="","",明細!AH14) ->  | AI20: =IF(明細!AI14="","",明細!AI14) ->  | AJ20: =IF(明細!AJ14="","",明細!AJ14) ->  | AK20: =IF(明細!AK14="","",明細!AK14) ->  | AL20: =IF(明細!AL14="","",明細!AL14) ->  | AM20: =IF(明細!AM14="","",明細!AM14) ->  | AN20: =IF(明細!AN14="","",明細!AN14) ->  | AO20: =IF(明細!AO14="","",明細!AO14) ->  | AP20: =IF(明細!AP14="","",明細!AP14) ->  | AQ20: =IF(明細!AQ14="","",明細!AQ14) ->  | AR20: =IF(明細!AR14="","",明細!AR14) ->  | AY20: =IF($AX20="","",VLOOKUP($AX20,リスト!$CL:$CM,2,FALSE)) ->  | BA20: =IF(BB20="","",VLOOKUP(BB20,リスト!$K:$L,2,FALSE)) ->  | BE20: =IF(BF20="","",VLOOKUP(BF20,リスト!$I:$J,2,FALSE)) ->  | BG20: =IF(BH20="","",VLOOKUP(BH20,リスト!$M:$N,2,FALSE)) ->  | BI20: =IF(BJ20="","",VLOOKUP(BJ20,リスト!$O:$P,2,FALSE)) ->  | BO20: =IF($BN20="","",VLOOKUP($BN20,リスト!$CL:$CM,2,FALSE)) ->  | BP20: =IF(BQ20="","",VLOOKUP(BQ20,リスト!$K$5:$L$7,2,FALSE)) ->  | BT20: =IF(BU20="","",VLOOKUP(BU20,リスト!I11:J29,2,FALSE)) ->  | BY20: =IF(BZ20="","",VLOOKUP(BZ20,リスト!$S$5:$T$6,2,FALSE)) ->  | CU20: =IF(CV20="","",VLOOKUP(CV20,リスト!$V$5:$W$6,2,FALSE)) ->  | CW20: =IF(CX20="","",VLOOKUP(CX20,リスト!$X$5:$Y$6,2,FALSE)) ->  | DE20: =IF(DF20="","",VLOOKUP(DF20,リスト!$Z$5:$AA$10,2,FALSE)) ->  | DG20: =IF(DH20="","",VLOOKUP(DH20,リスト!$AB$5:$AC$12,2,FALSE)) ->  | DI20: =IF(DJ20="","",VLOOKUP(DJ20,リスト!$AD$5:$AE$7,2,FALSE)) ->  | DK20: =IF(DL20="","",VLOOKUP(DL20,リスト!$AF$5:$AG$10,2,FALSE)) ->  | DM20: =IF(DN20="","",VLOOKUP(DN20,リスト!$AH$5:$AI$6,2,FALSE)) ->  | DO20: =IF(DP20="","",VLOOKUP(DP20,リスト!$AJ$5:$AK$6,2,FALSE)) ->  | DQ20: =IF(DR20="","",VLOOKUP(DR20,リスト!$AL$5:$AM$7,2,FALSE)) ->  | DV20: =IF(DW20="","",VLOOKUP(DW20,リスト!$AN$5:$AO$6,2,FALSE)) ->  | EB20: =IF(EC20="","",VLOOKUP(EC20,リスト!$AW$5:$AX$8,2,FALSE)) ->  | EE20: =IF(EF20="","",VLOOKUP(EF20,リスト!$AY$5:$AZ$10,2,FALSE)) ->  | EG20: =IF(EH20="","",VLOOKUP(EH20,リスト!$BA$5:$BB$10,2,FALSE)) ->  | EI20: =IF(EJ20="","",VLOOKUP(EJ20,リスト!$BC$5:$BD$10,2,FALSE)) ->  | EK20: =IF(EL20="","",VLOOKUP(EL20,リスト!$BE$5:$BF$10,2,FALSE)) ->  | ER20: =IF(ES20="","",VLOOKUP(ES20,リスト!$BG$5:$BH$10,2,FALSE)) ->  | FA20: =IF($EZ20="","",INDEX(リスト!$BI$5:$BJ$40,MATCH($EZ20,リスト!$BJ$5:$BJ$40,0),1)) ->  | FB20: =IF(FC20="","",VLOOKUP(FC20,リスト!$BK:$BL,2,FALSE)) ->  | FF20: =IF(FG20="","",VLOOKUP(FG20,リスト!$BO$5:$BP$6,2,FALSE)) ->  | FH20: =IF(FI20="","",VLOOKUP(FI20,リスト!$BQ$5:$BR$8,2,FALSE)) ->  | FK20: =IF(FL20="","",VLOOKUP(FL20,リスト!$BS$5:$BT$6,2,FALSE)) ->  | FV20: =IF(FW20="","",VLOOKUP(FW20,リスト!$BV$5:$BW$10,2,FALSE)) ->  | FY20: =IF(FZ20="","",VLOOKUP(FZ20,リスト!$BX$5:$BY$6,2,FALSE)) ->  | GA20: =IF(GB20="","",VLOOKUP(GB20,リスト!$BZ$5:$CA$6,2,FALSE)) ->  | GC20: =IF(GD20="","",VLOOKUP(GD20,リスト!$CB$5:$CC$6,2,FALSE)) ->  | GJ20: =IF(GK20="","",VLOOKUP(GK20,リスト!$CD$5:$CE$6,2,FALSE)) ->  | GL20: =IF(GM20="","",VLOOKUP(GM20,リスト!$CF$5:$CG$6,2,FALSE)) ->  | GN20: =IF(GO20="","",VLOOKUP(GO20,リスト!$CH$5:$CI$6,2,FALSE)) -> 
B21: =IF(明細!B15="","",明細!B15) ->  | C21: =IF(明細!C15="","",明細!C15) ->  | D21: =IF(明細!D15="","",明細!D15) ->  | E21: =IF(明細!E15="","",明細!E15) ->  | F21: =IF(明細!F15="","",明細!F15) ->  | G21: =IF(明細!G15="","",明細!G15) ->  | H21: =IF(明細!H15="","",明細!H15) ->  | I21: =IF(明細!I15="","",明細!I15) ->  | J21: =IF(明細!J15="","",明細!J15) ->  | K21: =IF(明細!K15="","",明細!K15) ->  | L21: =IF(明細!K15<>"",CONCATENATE($L$12,明細!L15),"") ->  | M21: =IF(明細!M15="","",明細!M15) ->  | N21: =IF(明細!N15="","",明細!N15) ->  | O21: =IF(明細!O15="","",明細!O15) ->  | P21: =IF(明細!P15="","",明細!P15) ->  | Q21: =IF(明細!Q15="","",明細!Q15) ->  | R21: =IF(明細!R15="","",明細!R15) ->  | S21: =IF(明細!S15="","",明細!S15) ->  | T21: =IF(明細!T15="","",明細!T15) ->  | U21: =IF(明細!U15="","",明細!U15) ->  | V21: =IF(明細!V15<>"","EA","") -> EA | W21: =IF(明細!W15="","",明細!W15) ->  | X21: =IF(明細!X15="","",明細!X15) ->  | Y21: =IF(明細!Y15="","",明細!Y15) ->  | Z21: =IF(明細!Z15="","",明細!Z15) ->  | AA21: =IF(明細!AA15="","",明細!AA15) ->  | AB21: =IF(明細!AB15="","",明細!AB15) ->  | AC21: =IF(明細!AC15="","",明細!AC15) ->  | AD21: =IF(明細!AD15="","",明細!AD15) ->  | AE21: =IF(明細!AE15="","",明細!AE15) -> 10% | AF21: =IF(明細!AF15="","",明細!AF15) ->  | AG21: =IF(明細!AG15="","",明細!AG15) ->  | AH21: =IF(明細!AH15="","",明細!AH15) ->  | AI21: =IF(明細!AI15="","",明細!AI15) ->  | AJ21: =IF(明細!AJ15="","",明細!AJ15) ->  | AK21: =IF(明細!AK15="","",明細!AK15) ->  | AL21: =IF(明細!AL15="","",明細!AL15) ->  | AM21: =IF(明細!AM15="","",明細!AM15) ->  | AN21: =IF(明細!AN15="","",明細!AN15) ->  | AO21: =IF(明細!AO15="","",明細!AO15) ->  | AP21: =IF(明細!AP15="","",明細!AP15) ->  | AQ21: =IF(明細!AQ15="","",明細!AQ15) ->  | AR21: =IF(明細!AR15="","",明細!AR15) ->  | AY21: =IF($AX21="","",VLOOKUP($AX21,リスト!$CL:$CM,2,FALSE)) ->  | BA21: =IF(BB21="","",VLOOKUP(BB21,リスト!$K:$L,2,FALSE)) ->  | BE21: =IF(BF21="","",VLOOKUP(BF21,リスト!$I:$J,2,FALSE)) ->  | BG21: =IF(BH21="","",VLOOKUP(BH21,リスト!$M:$N,2,FALSE)) ->  | BI21: =IF(BJ21="","",VLOOKUP(BJ21,リスト!$O:$P,2,FALSE)) ->  | BO21: =IF($BN21="","",VLOOKUP($BN21,リスト!$CL:$CM,2,FALSE)) ->  | BP21: =IF(BQ21="","",VLOOKUP(BQ21,リスト!$K$5:$L$7,2,FALSE)) ->  | BT21: =IF(BU21="","",VLOOKUP(BU21,リスト!I12:J30,2,FALSE)) ->  | BY21: =IF(BZ21="","",VLOOKUP(BZ21,リスト!$S$5:$T$6,2,FALSE)) ->  | CU21: =IF(CV21="","",VLOOKUP(CV21,リスト!$V$5:$W$6,2,FALSE)) ->  | CW21: =IF(CX21="","",VLOOKUP(CX21,リスト!$X$5:$Y$6,2,FALSE)) ->  | DE21: =IF(DF21="","",VLOOKUP(DF21,リスト!$Z$5:$AA$10,2,FALSE)) ->  | DG21: =IF(DH21="","",VLOOKUP(DH21,リスト!$AB$5:$AC$12,2,FALSE)) ->  | DI21: =IF(DJ21="","",VLOOKUP(DJ21,リスト!$AD$5:$AE$7,2,FALSE)) ->  | DK21: =IF(DL21="","",VLOOKUP(DL21,リスト!$AF$5:$AG$10,2,FALSE)) ->  | DM21: =IF(DN21="","",VLOOKUP(DN21,リスト!$AH$5:$AI$6,2,FALSE)) ->  | DO21: =IF(DP21="","",VLOOKUP(DP21,リスト!$AJ$5:$AK$6,2,FALSE)) ->  | DQ21: =IF(DR21="","",VLOOKUP(DR21,リスト!$AL$5:$AM$7,2,FALSE)) ->  | DV21: =IF(DW21="","",VLOOKUP(DW21,リスト!$AN$5:$AO$6,2,FALSE)) ->  | EB21: =IF(EC21="","",VLOOKUP(EC21,リスト!$AW$5:$AX$8,2,FALSE)) ->  | EE21: =IF(EF21="","",VLOOKUP(EF21,リスト!$AY$5:$AZ$10,2,FALSE)) ->  | EG21: =IF(EH21="","",VLOOKUP(EH21,リスト!$BA$5:$BB$10,2,FALSE)) ->  | EI21: =IF(EJ21="","",VLOOKUP(EJ21,リスト!$BC$5:$BD$10,2,FALSE)) ->  | EK21: =IF(EL21="","",VLOOKUP(EL21,リスト!$BE$5:$BF$10,2,FALSE)) ->  | ER21: =IF(ES21="","",VLOOKUP(ES21,リスト!$BG$5:$BH$10,2,FALSE)) ->  | FA21: =IF($EZ21="","",INDEX(リスト!$BI$5:$BJ$40,MATCH($EZ21,リスト!$BJ$5:$BJ$40,0),1)) ->  | FB21: =IF(FC21="","",VLOOKUP(FC21,リスト!$BK:$BL,2,FALSE)) ->  | FF21: =IF(FG21="","",VLOOKUP(FG21,リスト!$BO$5:$BP$6,2,FALSE)) ->  | FH21: =IF(FI21="","",VLOOKUP(FI21,リスト!$BQ$5:$BR$8,2,FALSE)) ->  | FK21: =IF(FL21="","",VLOOKUP(FL21,リスト!$BS$5:$BT$6,2,FALSE)) ->  | FV21: =IF(FW21="","",VLOOKUP(FW21,リスト!$BV$5:$BW$10,2,FALSE)) ->  | FY21: =IF(FZ21="","",VLOOKUP(FZ21,リスト!$BX$5:$BY$6,2,FALSE)) ->  | GA21: =IF(GB21="","",VLOOKUP(GB21,リスト!$BZ$5:$CA$6,2,FALSE)) ->  | GC21: =IF(GD21="","",VLOOKUP(GD21,リスト!$CB$5:$CC$6,2,FALSE)) ->  | GJ21: =IF(GK21="","",VLOOKUP(GK21,リスト!$CD$5:$CE$6,2,FALSE)) ->  | GL21: =IF(GM21="","",VLOOKUP(GM21,リスト!$CF$5:$CG$6,2,FALSE)) ->  | GN21: =IF(GO21="","",VLOOKUP(GO21,リスト!$CH$5:$CI$6,2,FALSE)) -> 
B22: =IF(明細!B16="","",明細!B16) ->  | C22: =IF(明細!C16="","",明細!C16) ->  | D22: =IF(明細!D16="","",明細!D16) ->  | E22: =IF(明細!E16="","",明細!E16) ->  | F22: =IF(明細!F16="","",明細!F16) ->  | G22: =IF(明細!G16="","",明細!G16) ->  | H22: =IF(明細!H16="","",明細!H16) ->  | I22: =IF(明細!I16="","",明細!I16) ->  | J22: =IF(明細!J16="","",明細!J16) ->  | K22: =IF(明細!K16="","",明細!K16) ->  | L22: =IF(明細!K16<>"",CONCATENATE($L$12,明細!L16),"") ->  | M22: =IF(明細!M16="","",明細!M16) ->  | N22: =IF(明細!N16="","",明細!N16) ->  | O22: =IF(明細!O16="","",明細!O16) ->  | P22: =IF(明細!P16="","",明細!P16) ->  | Q22: =IF(明細!Q16="","",明細!Q16) ->  | R22: =IF(明細!R16="","",明細!R16) ->  | S22: =IF(明細!S16="","",明細!S16) ->  | T22: =IF(明細!T16="","",明細!T16) ->  | U22: =IF(明細!U16="","",明細!U16) ->  | V22: =IF(明細!V16<>"","EA","") -> EA | W22: =IF(明細!W16="","",明細!W16) ->  | X22: =IF(明細!X16="","",明細!X16) ->  | Y22: =IF(明細!Y16="","",明細!Y16) ->  | Z22: =IF(明細!Z16="","",明細!Z16) ->  | AA22: =IF(明細!AA16="","",明細!AA16) ->  | AB22: =IF(明細!AB16="","",明細!AB16) ->  | AC22: =IF(明細!AC16="","",明細!AC16) ->  | AD22: =IF(明細!AD16="","",明細!AD16) ->  | AE22: =IF(明細!AE16="","",明細!AE16) -> 10% | AF22: =IF(明細!AF16="","",明細!AF16) ->  | AG22: =IF(明細!AG16="","",明細!AG16) ->  | AH22: =IF(明細!AH16="","",明細!AH16) ->  | AI22: =IF(明細!AI16="","",明細!AI16) ->  | AJ22: =IF(明細!AJ16="","",明細!AJ16) ->  | AK22: =IF(明細!AK16="","",明細!AK16) ->  | AL22: =IF(明細!AL16="","",明細!AL16) ->  | AM22: =IF(明細!AM16="","",明細!AM16) ->  | AN22: =IF(明細!AN16="","",明細!AN16) ->  | AO22: =IF(明細!AO16="","",明細!AO16) ->  | AP22: =IF(明細!AP16="","",明細!AP16) ->  | AQ22: =IF(明細!AQ16="","",明細!AQ16) ->  | AR22: =IF(明細!AR16="","",明細!AR16) ->  | AY22: =IF($AX22="","",VLOOKUP($AX22,リスト!$CL:$CM,2,FALSE)) ->  | BA22: =IF(BB22="","",VLOOKUP(BB22,リスト!$K:$L,2,FALSE)) ->  | BE22: =IF(BF22="","",VLOOKUP(BF22,リスト!$I:$J,2,FALSE)) ->  | BG22: =IF(BH22="","",VLOOKUP(BH22,リスト!$M:$N,2,FALSE)) ->  | BI22: =IF(BJ22="","",VLOOKUP(BJ22,リスト!$O:$P,2,FALSE)) ->  | BO22: =IF($BN22="","",VLOOKUP($BN22,リスト!$CL:$CM,2,FALSE)) ->  | BP22: =IF(BQ22="","",VLOOKUP(BQ22,リスト!$K$5:$L$7,2,FALSE)) ->  | BT22: =IF(BU22="","",VLOOKUP(BU22,リスト!I13:J31,2,FALSE)) ->  | BY22: =IF(BZ22="","",VLOOKUP(BZ22,リスト!$S$5:$T$6,2,FALSE)) ->  | CU22: =IF(CV22="","",VLOOKUP(CV22,リスト!$V$5:$W$6,2,FALSE)) ->  | CW22: =IF(CX22="","",VLOOKUP(CX22,リスト!$X$5:$Y$6,2,FALSE)) ->  | DE22: =IF(DF22="","",VLOOKUP(DF22,リスト!$Z$5:$AA$10,2,FALSE)) ->  | DG22: =IF(DH22="","",VLOOKUP(DH22,リスト!$AB$5:$AC$12,2,FALSE)) ->  | DI22: =IF(DJ22="","",VLOOKUP(DJ22,リスト!$AD$5:$AE$7,2,FALSE)) ->  | DK22: =IF(DL22="","",VLOOKUP(DL22,リスト!$AF$5:$AG$10,2,FALSE)) ->  | DM22: =IF(DN22="","",VLOOKUP(DN22,リスト!$AH$5:$AI$6,2,FALSE)) ->  | DO22: =IF(DP22="","",VLOOKUP(DP22,リスト!$AJ$5:$AK$6,2,FALSE)) ->  | DQ22: =IF(DR22="","",VLOOKUP(DR22,リスト!$AL$5:$AM$7,2,FALSE)) ->  | DV22: =IF(DW22="","",VLOOKUP(DW22,リスト!$AN$5:$AO$6,2,FALSE)) ->  | EB22: =IF(EC22="","",VLOOKUP(EC22,リスト!$AW$5:$AX$8,2,FALSE)) ->  | EE22: =IF(EF22="","",VLOOKUP(EF22,リスト!$AY$5:$AZ$10,2,FALSE)) ->  | EG22: =IF(EH22="","",VLOOKUP(EH22,リスト!$BA$5:$BB$10,2,FALSE)) ->  | EI22: =IF(EJ22="","",VLOOKUP(EJ22,リスト!$BC$5:$BD$10,2,FALSE)) ->  | EK22: =IF(EL22="","",VLOOKUP(EL22,リスト!$BE$5:$BF$10,2,FALSE)) ->  | ER22: =IF(ES22="","",VLOOKUP(ES22,リスト!$BG$5:$BH$10,2,FALSE)) ->  | FA22: =IF($EZ22="","",INDEX(リスト!$BI$5:$BJ$40,MATCH($EZ22,リスト!$BJ$5:$BJ$40,0),1)) ->  | FB22: =IF(FC22="","",VLOOKUP(FC22,リスト!$BK:$BL,2,FALSE)) ->  | FF22: =IF(FG22="","",VLOOKUP(FG22,リスト!$BO$5:$BP$6,2,FALSE)) ->  | FH22: =IF(FI22="","",VLOOKUP(FI22,リスト!$BQ$5:$BR$8,2,FALSE)) ->  | FK22: =IF(FL22="","",VLOOKUP(FL22,リスト!$BS$5:$BT$6,2,FALSE)) ->  | FV22: =IF(FW22="","",VLOOKUP(FW22,リスト!$BV$5:$BW$10,2,FALSE)) ->  | FY22: =IF(FZ22="","",VLOOKUP(FZ22,リスト!$BX$5:$BY$6,2,FALSE)) ->  | GA22: =IF(GB22="","",VLOOKUP(GB22,リスト!$BZ$5:$CA$6,2,FALSE)) ->  | GC22: =IF(GD22="","",VLOOKUP(GD22,リスト!$CB$5:$CC$6,2,FALSE)) ->  | GJ22: =IF(GK22="","",VLOOKUP(GK22,リスト!$CD$5:$CE$6,2,FALSE)) ->  | GL22: =IF(GM22="","",VLOOKUP(GM22,リスト!$CF$5:$CG$6,2,FALSE)) ->  | GN22: =IF(GO22="","",VLOOKUP(GO22,リスト!$CH$5:$CI$6,2,FALSE)) -> 
B23: =IF(明細!B17="","",明細!B17) ->  | C23: =IF(明細!C17="","",明細!C17) ->  | D23: =IF(明細!D17="","",明細!D17) ->  | E23: =IF(明細!E17="","",明細!E17) ->  | F23: =IF(明細!F17="","",明細!F17) ->  | G23: =IF(明細!G17="","",明細!G17) ->  | H23: =IF(明細!H17="","",明細!H17) ->  | I23: =IF(明細!I17="","",明細!I17) ->  | J23: =IF(明細!J17="","",明細!J17) ->  | K23: =IF(明細!K17="","",明細!K17) ->  | L23: =IF(明細!K17<>"",CONCATENATE($L$12,明細!L17),"") ->  | M23: =IF(明細!M17="","",明細!M17) ->  | N23: =IF(明細!N17="","",明細!N17) ->  | O23: =IF(明細!O17="","",明細!O17) ->  | P23: =IF(明細!P17="","",明細!P17) ->  | Q23: =IF(明細!Q17="","",明細!Q17) ->  | R23: =IF(明細!R17="","",明細!R17) ->  | S23: =IF(明細!S17="","",明細!S17) ->  | T23: =IF(明細!T17="","",明細!T17) ->  | U23: =IF(明細!U17="","",明細!U17) ->  | V23: =IF(明細!V17<>"","EA","") -> EA | W23: =IF(明細!W17="","",明細!W17) ->  | X23: =IF(明細!X17="","",明細!X17) ->  | Y23: =IF(明細!Y17="","",明細!Y17) ->  | Z23: =IF(明細!Z17="","",明細!Z17) ->  | AA23: =IF(明細!AA17="","",明細!AA17) ->  | AB23: =IF(明細!AB17="","",明細!AB17) ->  | AC23: =IF(明細!AC17="","",明細!AC17) ->  | AD23: =IF(明細!AD17="","",明細!AD17) ->  | AE23: =IF(明細!AE17="","",明細!AE17) -> 10% | AF23: =IF(明細!AF17="","",明細!AF17) ->  | AG23: =IF(明細!AG17="","",明細!AG17) ->  | AH23: =IF(明細!AH17="","",明細!AH17) ->  | AI23: =IF(明細!AI17="","",明細!AI17) ->  | AJ23: =IF(明細!AJ17="","",明細!AJ17) ->  | AK23: =IF(明細!AK17="","",明細!AK17) ->  | AL23: =IF(明細!AL17="","",明細!AL17) ->  | AM23: =IF(明細!AM17="","",明細!AM17) ->  | AN23: =IF(明細!AN17="","",明細!AN17) ->  | AO23: =IF(明細!AO17="","",明細!AO17) ->  | AP23: =IF(明細!AP17="","",明細!AP17) ->  | AQ23: =IF(明細!AQ17="","",明細!AQ17) ->  | AR23: =IF(明細!AR17="","",明細!AR17) ->  | AY23: =IF($AX23="","",VLOOKUP($AX23,リスト!$CL:$CM,2,FALSE)) ->  | BA23: =IF(BB23="","",VLOOKUP(BB23,リスト!$K:$L,2,FALSE)) ->  | BE23: =IF(BF23="","",VLOOKUP(BF23,リスト!$I:$J,2,FALSE)) ->  | BG23: =IF(BH23="","",VLOOKUP(BH23,リスト!$M:$N,2,FALSE)) ->  | BI23: =IF(BJ23="","",VLOOKUP(BJ23,リスト!$O:$P,2,FALSE)) ->  | BO23: =IF($BN23="","",VLOOKUP($BN23,リスト!$CL:$CM,2,FALSE)) ->  | BP23: =IF(BQ23="","",VLOOKUP(BQ23,リスト!$K$5:$L$7,2,FALSE)) ->  | BT23: =IF(BU23="","",VLOOKUP(BU23,リスト!I14:J32,2,FALSE)) ->  | BY23: =IF(BZ23="","",VLOOKUP(BZ23,リスト!$S$5:$T$6,2,FALSE)) ->  | CU23: =IF(CV23="","",VLOOKUP(CV23,リスト!$V$5:$W$6,2,FALSE)) ->  | CW23: =IF(CX23="","",VLOOKUP(CX23,リスト!$X$5:$Y$6,2,FALSE)) ->  | DE23: =IF(DF23="","",VLOOKUP(DF23,リスト!$Z$5:$AA$10,2,FALSE)) ->  | DG23: =IF(DH23="","",VLOOKUP(DH23,リスト!$AB$5:$AC$12,2,FALSE)) ->  | DI23: =IF(DJ23="","",VLOOKUP(DJ23,リスト!$AD$5:$AE$7,2,FALSE)) ->  | DK23: =IF(DL23="","",VLOOKUP(DL23,リスト!$AF$5:$AG$10,2,FALSE)) ->  | DM23: =IF(DN23="","",VLOOKUP(DN23,リスト!$AH$5:$AI$6,2,FALSE)) ->  | DO23: =IF(DP23="","",VLOOKUP(DP23,リスト!$AJ$5:$AK$6,2,FALSE)) ->  | DQ23: =IF(DR23="","",VLOOKUP(DR23,リスト!$AL$5:$AM$7,2,FALSE)) ->  | DV23: =IF(DW23="","",VLOOKUP(DW23,リスト!$AN$5:$AO$6,2,FALSE)) ->  | EB23: =IF(EC23="","",VLOOKUP(EC23,リスト!$AW$5:$AX$8,2,FALSE)) ->  | EE23: =IF(EF23="","",VLOOKUP(EF23,リスト!$AY$5:$AZ$10,2,FALSE)) ->  | EG23: =IF(EH23="","",VLOOKUP(EH23,リスト!$BA$5:$BB$10,2,FALSE)) ->  | EI23: =IF(EJ23="","",VLOOKUP(EJ23,リスト!$BC$5:$BD$10,2,FALSE)) ->  | EK23: =IF(EL23="","",VLOOKUP(EL23,リスト!$BE$5:$BF$10,2,FALSE)) ->  | ER23: =IF(ES23="","",VLOOKUP(ES23,リスト!$BG$5:$BH$10,2,FALSE)) ->  | FA23: =IF($EZ23="","",INDEX(リスト!$BI$5:$BJ$40,MATCH($EZ23,リスト!$BJ$5:$BJ$40,0),1)) ->  | FB23: =IF(FC23="","",VLOOKUP(FC23,リスト!$BK:$BL,2,FALSE)) ->  | FF23: =IF(FG23="","",VLOOKUP(FG23,リスト!$BO$5:$BP$6,2,FALSE)) ->  | FH23: =IF(FI23="","",VLOOKUP(FI23,リスト!$BQ$5:$BR$8,2,FALSE)) ->  | FK23: =IF(FL23="","",VLOOKUP(FL23,リスト!$BS$5:$BT$6,2,FALSE)) ->  | FV23: =IF(FW23="","",VLOOKUP(FW23,リスト!$BV$5:$BW$10,2,FALSE)) ->  | FY23: =IF(FZ23="","",VLOOKUP(FZ23,リスト!$BX$5:$BY$6,2,FALSE)) ->  | GA23: =IF(GB23="","",VLOOKUP(GB23,リスト!$BZ$5:$CA$6,2,FALSE)) ->  | GC23: =IF(GD23="","",VLOOKUP(GD23,リスト!$CB$5:$CC$6,2,FALSE)) ->  | GJ23: =IF(GK23="","",VLOOKUP(GK23,リスト!$CD$5:$CE$6,2,FALSE)) ->  | GL23: =IF(GM23="","",VLOOKUP(GM23,リスト!$CF$5:$CG$6,2,FALSE)) ->  | GN23: =IF(GO23="","",VLOOKUP(GO23,リスト!$CH$5:$CI$6,2,FALSE)) -> 
B24: =IF(明細!B18="","",明細!B18) ->  | C24: =IF(明細!C18="","",明細!C18) ->  | D24: =IF(明細!D18="","",明細!D18) ->  | E24: =IF(明細!E18="","",明細!E18) ->  | F24: =IF(明細!F18="","",明細!F18) ->  | G24: =IF(明細!G18="","",明細!G18) ->  | H24: =IF(明細!H18="","",明細!H18) ->  | I24: =IF(明細!I18="","",明細!I18) ->  | J24: =IF(明細!J18="","",明細!J18) ->  | K24: =IF(明細!K18="","",明細!K18) ->  | L24: =IF(明細!K18<>"",CONCATENATE($L$12,明細!L18),"") ->  | M24: =IF(明細!M18="","",明細!M18) ->  | N24: =IF(明細!N18="","",明細!N18) ->  | O24: =IF(明細!O18="","",明細!O18) ->  | P24: =IF(明細!P18="","",明細!P18) ->  | Q24: =IF(明細!Q18="","",明細!Q18) ->  | R24: =IF(明細!R18="","",明細!R18) ->  | S24: =IF(明細!S18="","",明細!S18) ->  | T24: =IF(明細!T18="","",明細!T18) ->  | U24: =IF(明細!U18="","",明細!U18) ->  | V24: =IF(明細!V18<>"","EA","") -> EA | W24: =IF(明細!W18="","",明細!W18) ->  | X24: =IF(明細!X18="","",明細!X18) ->  | Y24: =IF(明細!Y18="","",明細!Y18) ->  | Z24: =IF(明細!Z18="","",明細!Z18) ->  | AA24: =IF(明細!AA18="","",明細!AA18) ->  | AB24: =IF(明細!AB18="","",明細!AB18) ->  | AC24: =IF(明細!AC18="","",明細!AC18) ->  | AD24: =IF(明細!AD18="","",明細!AD18) ->  | AE24: =IF(明細!AE18="","",明細!AE18) -> 10% | AF24: =IF(明細!AF18="","",明細!AF18) ->  | AG24: =IF(明細!AG18="","",明細!AG18) ->  | AH24: =IF(明細!AH18="","",明細!AH18) ->  | AI24: =IF(明細!AI18="","",明細!AI18) ->  | AJ24: =IF(明細!AJ18="","",明細!AJ18) ->  | AK24: =IF(明細!AK18="","",明細!AK18) ->  | AL24: =IF(明細!AL18="","",明細!AL18) ->  | AM24: =IF(明細!AM18="","",明細!AM18) ->  | AN24: =IF(明細!AN18="","",明細!AN18) ->  | AO24: =IF(明細!AO18="","",明細!AO18) ->  | AP24: =IF(明細!AP18="","",明細!AP18) ->  | AQ24: =IF(明細!AQ18="","",明細!AQ18) ->  | AR24: =IF(明細!AR18="","",明細!AR18) ->  | AY24: =IF($AX24="","",VLOOKUP($AX24,リスト!$CL:$CM,2,FALSE)) ->  | BA24: =IF(BB24="","",VLOOKUP(BB24,リスト!$K:$L,2,FALSE)) ->  | BE24: =IF(BF24="","",VLOOKUP(BF24,リスト!$I:$J,2,FALSE)) ->  | BG24: =IF(BH24="","",VLOOKUP(BH24,リスト!$M:$N,2,FALSE)) ->  | BI24: =IF(BJ24="","",VLOOKUP(BJ24,リスト!$O:$P,2,FALSE)) ->  | BO24: =IF($BN24="","",VLOOKUP($BN24,リスト!$CL:$CM,2,FALSE)) ->  | BP24: =IF(BQ24="","",VLOOKUP(BQ24,リスト!$K$5:$L$7,2,FALSE)) ->  | BT24: =IF(BU24="","",VLOOKUP(BU24,リスト!I15:J33,2,FALSE)) ->  | BY24: =IF(BZ24="","",VLOOKUP(BZ24,リスト!$S$5:$T$6,2,FALSE)) ->  | CU24: =IF(CV24="","",VLOOKUP(CV24,リスト!$V$5:$W$6,2,FALSE)) ->  | CW24: =IF(CX24="","",VLOOKUP(CX24,リスト!$X$5:$Y$6,2,FALSE)) ->  | DE24: =IF(DF24="","",VLOOKUP(DF24,リスト!$Z$5:$AA$10,2,FALSE)) ->  | DG24: =IF(DH24="","",VLOOKUP(DH24,リスト!$AB$5:$AC$12,2,FALSE)) ->  | DI24: =IF(DJ24="","",VLOOKUP(DJ24,リスト!$AD$5:$AE$7,2,FALSE)) ->  | DK24: =IF(DL24="","",VLOOKUP(DL24,リスト!$AF$5:$AG$10,2,FALSE)) ->  | DM24: =IF(DN24="","",VLOOKUP(DN24,リスト!$AH$5:$AI$6,2,FALSE)) ->  | DO24: =IF(DP24="","",VLOOKUP(DP24,リスト!$AJ$5:$AK$6,2,FALSE)) ->  | DQ24: =IF(DR24="","",VLOOKUP(DR24,リスト!$AL$5:$AM$7,2,FALSE)) ->  | DV24: =IF(DW24="","",VLOOKUP(DW24,リスト!$AN$5:$AO$6,2,FALSE)) ->  | EB24: =IF(EC24="","",VLOOKUP(EC24,リスト!$AW$5:$AX$8,2,FALSE)) ->  | EE24: =IF(EF24="","",VLOOKUP(EF24,リスト!$AY$5:$AZ$10,2,FALSE)) ->  | EG24: =IF(EH24="","",VLOOKUP(EH24,リスト!$BA$5:$BB$10,2,FALSE)) ->  | EI24: =IF(EJ24="","",VLOOKUP(EJ24,リスト!$BC$5:$BD$10,2,FALSE)) ->  | EK24: =IF(EL24="","",VLOOKUP(EL24,リスト!$BE$5:$BF$10,2,FALSE)) ->  | ER24: =IF(ES24="","",VLOOKUP(ES24,リスト!$BG$5:$BH$10,2,FALSE)) ->  | FA24: =IF($EZ24="","",INDEX(リスト!$BI$5:$BJ$40,MATCH($EZ24,リスト!$BJ$5:$BJ$40,0),1)) ->  | FB24: =IF(FC24="","",VLOOKUP(FC24,リスト!$BK:$BL,2,FALSE)) ->  | FF24: =IF(FG24="","",VLOOKUP(FG24,リスト!$BO$5:$BP$6,2,FALSE)) ->  | FH24: =IF(FI24="","",VLOOKUP(FI24,リスト!$BQ$5:$BR$8,2,FALSE)) ->  | FK24: =IF(FL24="","",VLOOKUP(FL24,リスト!$BS$5:$BT$6,2,FALSE)) ->  | FV24: =IF(FW24="","",VLOOKUP(FW24,リスト!$BV$5:$BW$10,2,FALSE)) ->  | FY24: =IF(FZ24="","",VLOOKUP(FZ24,リスト!$BX$5:$BY$6,2,FALSE)) ->  | GA24: =IF(GB24="","",VLOOKUP(GB24,リスト!$BZ$5:$CA$6,2,FALSE)) ->  | GC24: =IF(GD24="","",VLOOKUP(GD24,リスト!$CB$5:$CC$6,2,FALSE)) ->  | GJ24: =IF(GK24="","",VLOOKUP(GK24,リスト!$CD$5:$CE$6,2,FALSE)) ->  | GL24: =IF(GM24="","",VLOOKUP(GM24,リスト!$CF$5:$CG$6,2,FALSE)) ->  | GN24: =IF(GO24="","",VLOOKUP(GO24,リスト!$CH$5:$CI$6,2,FALSE)) -> 
B25: =IF(明細!B19="","",明細!B19) ->  | C25: =IF(明細!C19="","",明細!C19) ->  | D25: =IF(明細!D19="","",明細!D19) ->  | E25: =IF(明細!E19="","",明細!E19) ->  | F25: =IF(明細!F19="","",明細!F19) ->  | G25: =IF(明細!G19="","",明細!G19) ->  | H25: =IF(明細!H19="","",明細!H19) ->  | I25: =IF(明細!I19="","",明細!I19) ->  | J25: =IF(明細!J19="","",明細!J19) ->  | K25: =IF(明細!K19="","",明細!K19) ->  | L25: =IF(明細!K19<>"",CONCATENATE($L$12,明細!L19),"") ->  | M25: =IF(明細!M19="","",明細!M19) ->  | N25: =IF(明細!N19="","",明細!N19) ->  | O25: =IF(明細!O19="","",明細!O19) ->  | P25: =IF(明細!P19="","",明細!P19) ->  | Q25: =IF(明細!Q19="","",明細!Q19) ->  | R25: =IF(明細!R19="","",明細!R19) ->  | S25: =IF(明細!S19="","",明細!S19) ->  | T25: =IF(明細!T19="","",明細!T19) ->  | U25: =IF(明細!U19="","",明細!U19) ->  | V25: =IF(明細!V19<>"","EA","") -> EA | W25: =IF(明細!W19="","",明細!W19) ->  | X25: =IF(明細!X19="","",明細!X19) ->  | Y25: =IF(明細!Y19="","",明細!Y19) ->  | Z25: =IF(明細!Z19="","",明細!Z19) ->  | AA25: =IF(明細!AA19="","",明細!AA19) ->  | AB25: =IF(明細!AB19="","",明細!AB19) ->  | AC25: =IF(明細!AC19="","",明細!AC19) ->  | AD25: =IF(明細!AD19="","",明細!AD19) ->  | AE25: =IF(明細!AE19="","",明細!AE19) -> 10% | AF25: =IF(明細!AF19="","",明細!AF19) ->  | AG25: =IF(明細!AG19="","",明細!AG19) ->  | AH25: =IF(明細!AH19="","",明細!AH19) ->  | AI25: =IF(明細!AI19="","",明細!AI19) ->  | AJ25: =IF(明細!AJ19="","",明細!AJ19) ->  | AK25: =IF(明細!AK19="","",明細!AK19) ->  | AL25: =IF(明細!AL19="","",明細!AL19) ->  | AM25: =IF(明細!AM19="","",明細!AM19) ->  | AN25: =IF(明細!AN19="","",明細!AN19) ->  | AO25: =IF(明細!AO19="","",明細!AO19) ->  | AP25: =IF(明細!AP19="","",明細!AP19) ->  | AQ25: =IF(明細!AQ19="","",明細!AQ19) ->  | AR25: =IF(明細!AR19="","",明細!AR19) ->  | AY25: =IF($AX25="","",VLOOKUP($AX25,リスト!$CL:$CM,2,FALSE)) ->  | BA25: =IF(BB25="","",VLOOKUP(BB25,リスト!$K:$L,2,FALSE)) ->  | BE25: =IF(BF25="","",VLOOKUP(BF25,リスト!$I:$J,2,FALSE)) ->  | BG25: =IF(BH25="","",VLOOKUP(BH25,リスト!$M:$N,2,FALSE)) ->  | BI25: =IF(BJ25="","",VLOOKUP(BJ25,リスト!$O:$P,2,FALSE)) ->  | BO25: =IF($BN25="","",VLOOKUP($BN25,リスト!$CL:$CM,2,FALSE)) ->  | BP25: =IF(BQ25="","",VLOOKUP(BQ25,リスト!$K$5:$L$7,2,FALSE)) ->  | BT25: =IF(BU25="","",VLOOKUP(BU25,リスト!I16:J34,2,FALSE)) ->  | BY25: =IF(BZ25="","",VLOOKUP(BZ25,リスト!$S$5:$T$6,2,FALSE)) ->  | CU25: =IF(CV25="","",VLOOKUP(CV25,リスト!$V$5:$W$6,2,FALSE)) ->  | CW25: =IF(CX25="","",VLOOKUP(CX25,リスト!$X$5:$Y$6,2,FALSE)) ->  | DE25: =IF(DF25="","",VLOOKUP(DF25,リスト!$Z$5:$AA$10,2,FALSE)) ->  | DG25: =IF(DH25="","",VLOOKUP(DH25,リスト!$AB$5:$AC$12,2,FALSE)) ->  | DI25: =IF(DJ25="","",VLOOKUP(DJ25,リスト!$AD$5:$AE$7,2,FALSE)) ->  | DK25: =IF(DL25="","",VLOOKUP(DL25,リスト!$AF$5:$AG$10,2,FALSE)) ->  | DM25: =IF(DN25="","",VLOOKUP(DN25,リスト!$AH$5:$AI$6,2,FALSE)) ->  | DO25: =IF(DP25="","",VLOOKUP(DP25,リスト!$AJ$5:$AK$6,2,FALSE)) ->  | DQ25: =IF(DR25="","",VLOOKUP(DR25,リスト!$AL$5:$AM$7,2,FALSE)) ->  | DV25: =IF(DW25="","",VLOOKUP(DW25,リスト!$AN$5:$AO$6,2,FALSE)) ->  | EB25: =IF(EC25="","",VLOOKUP(EC25,リスト!$AW$5:$AX$8,2,FALSE)) ->  | EE25: =IF(EF25="","",VLOOKUP(EF25,リスト!$AY$5:$AZ$10,2,FALSE)) ->  | EG25: =IF(EH25="","",VLOOKUP(EH25,リスト!$BA$5:$BB$10,2,FALSE)) ->  | EI25: =IF(EJ25="","",VLOOKUP(EJ25,リスト!$BC$5:$BD$10,2,FALSE)) ->  | EK25: =IF(EL25="","",VLOOKUP(EL25,リスト!$BE$5:$BF$10,2,FALSE)) ->  | ER25: =IF(ES25="","",VLOOKUP(ES25,リスト!$BG$5:$BH$10,2,FALSE)) ->  | FA25: =IF($EZ25="","",INDEX(リスト!$BI$5:$BJ$40,MATCH($EZ25,リスト!$BJ$5:$BJ$40,0),1)) ->  | FB25: =IF(FC25="","",VLOOKUP(FC25,リスト!$BK:$BL,2,FALSE)) ->  | FF25: =IF(FG25="","",VLOOKUP(FG25,リスト!$BO$5:$BP$6,2,FALSE)) ->  | FH25: =IF(FI25="","",VLOOKUP(FI25,リスト!$BQ$5:$BR$8,2,FALSE)) ->  | FK25: =IF(FL25="","",VLOOKUP(FL25,リスト!$BS$5:$BT$6,2,FALSE)) ->  | FV25: =IF(FW25="","",VLOOKUP(FW25,リスト!$BV$5:$BW$10,2,FALSE)) ->  | FY25: =IF(FZ25="","",VLOOKUP(FZ25,リスト!$BX$5:$BY$6,2,FALSE)) ->  | GA25: =IF(GB25="","",VLOOKUP(GB25,リスト!$BZ$5:$CA$6,2,FALSE)) ->  | GC25: =IF(GD25="","",VLOOKUP(GD25,リスト!$CB$5:$CC$6,2,FALSE)) ->  | GJ25: =IF(GK25="","",VLOOKUP(GK25,リスト!$CD$5:$CE$6,2,FALSE)) ->  | GL25: =IF(GM25="","",VLOOKUP(GM25,リスト!$CF$5:$CG$6,2,FALSE)) ->  | GN25: =IF(GO25="","",VLOOKUP(GO25,リスト!$CH$5:$CI$6,2,FALSE)) -> 
B26: =IF(明細!B20="","",明細!B20) ->  | C26: =IF(明細!C20="","",明細!C20) ->  | D26: =IF(明細!D20="","",明細!D20) ->  | E26: =IF(明細!E20="","",明細!E20) ->  | F26: =IF(明細!F20="","",明細!F20) ->  | G26: =IF(明細!G20="","",明細!G20) ->  | H26: =IF(明細!H20="","",明細!H20) ->  | I26: =IF(明細!I20="","",明細!I20) ->  | J26: =IF(明細!J20="","",明細!J20) ->  | K26: =IF(明細!K20="","",明細!K20) ->  | L26: =IF(明細!K20<>"",CONCATENATE($L$12,明細!L20),"") ->  | M26: =IF(明細!M20="","",明細!M20) ->  | N26: =IF(明細!N20="","",明細!N20) ->  | O26: =IF(明細!O20="","",明細!O20) ->  | P26: =IF(明細!P20="","",明細!P20) ->  | Q26: =IF(明細!Q20="","",明細!Q20) ->  | R26: =IF(明細!R20="","",明細!R20) ->  | S26: =IF(明細!S20="","",明細!S20) ->  | T26: =IF(明細!T20="","",明細!T20) ->  | U26: =IF(明細!U20="","",明細!U20) ->  | V26: =IF(明細!V20<>"","EA","") -> EA | W26: =IF(明細!W20="","",明細!W20) ->  | X26: =IF(明細!X20="","",明細!X20) ->  | Y26: =IF(明細!Y20="","",明細!Y20) ->  | Z26: =IF(明細!Z20="","",明細!Z20) ->  | AA26: =IF(明細!AA20="","",明細!AA20) ->  | AB26: =IF(明細!AB20="","",明細!AB20) ->  | AC26: =IF(明細!AC20="","",明細!AC20) ->  | AD26: =IF(明細!AD20="","",明細!AD20) ->  | AE26: =IF(明細!AE20="","",明細!AE20) -> 10% | AF26: =IF(明細!AF20="","",明細!AF20) ->  | AG26: =IF(明細!AG20="","",明細!AG20) ->  | AH26: =IF(明細!AH20="","",明細!AH20) ->  | AI26: =IF(明細!AI20="","",明細!AI20) ->  | AJ26: =IF(明細!AJ20="","",明細!AJ20) ->  | AK26: =IF(明細!AK20="","",明細!AK20) ->  | AL26: =IF(明細!AL20="","",明細!AL20) ->  | AM26: =IF(明細!AM20="","",明細!AM20) ->  | AN26: =IF(明細!AN20="","",明細!AN20) ->  | AO26: =IF(明細!AO20="","",明細!AO20) ->  | AP26: =IF(明細!AP20="","",明細!AP20) ->  | AQ26: =IF(明細!AQ20="","",明細!AQ20) ->  | AR26: =IF(明細!AR20="","",明細!AR20) ->  | AY26: =IF($AX26="","",VLOOKUP($AX26,リスト!$CL:$CM,2,FALSE)) ->  | BA26: =IF(BB26="","",VLOOKUP(BB26,リスト!$K:$L,2,FALSE)) ->  | BE26: =IF(BF26="","",VLOOKUP(BF26,リスト!$I:$J,2,FALSE)) ->  | BG26: =IF(BH26="","",VLOOKUP(BH26,リスト!$M:$N,2,FALSE)) ->  | BI26: =IF(BJ26="","",VLOOKUP(BJ26,リスト!$O:$P,2,FALSE)) ->  | BO26: =IF($BN26="","",VLOOKUP($BN26,リスト!$CL:$CM,2,FALSE)) ->  | BP26: =IF(BQ26="","",VLOOKUP(BQ26,リスト!$K$5:$L$7,2,FALSE)) ->  | BT26: =IF(BU26="","",VLOOKUP(BU26,リスト!I17:J35,2,FALSE)) ->  | BY26: =IF(BZ26="","",VLOOKUP(BZ26,リスト!$S$5:$T$6,2,FALSE)) ->  | CU26: =IF(CV26="","",VLOOKUP(CV26,リスト!$V$5:$W$6,2,FALSE)) ->  | CW26: =IF(CX26="","",VLOOKUP(CX26,リスト!$X$5:$Y$6,2,FALSE)) ->  | DE26: =IF(DF26="","",VLOOKUP(DF26,リスト!$Z$5:$AA$10,2,FALSE)) ->  | DG26: =IF(DH26="","",VLOOKUP(DH26,リスト!$AB$5:$AC$12,2,FALSE)) ->  | DI26: =IF(DJ26="","",VLOOKUP(DJ26,リスト!$AD$5:$AE$7,2,FALSE)) ->  | DK26: =IF(DL26="","",VLOOKUP(DL26,リスト!$AF$5:$AG$10,2,FALSE)) ->  | DM26: =IF(DN26="","",VLOOKUP(DN26,リスト!$AH$5:$AI$6,2,FALSE)) ->  | DO26: =IF(DP26="","",VLOOKUP(DP26,リスト!$AJ$5:$AK$6,2,FALSE)) ->  | DQ26: =IF(DR26="","",VLOOKUP(DR26,リスト!$AL$5:$AM$7,2,FALSE)) ->  | DV26: =IF(DW26="","",VLOOKUP(DW26,リスト!$AN$5:$AO$6,2,FALSE)) ->  | EB26: =IF(EC26="","",VLOOKUP(EC26,リスト!$AW$5:$AX$8,2,FALSE)) ->  | EE26: =IF(EF26="","",VLOOKUP(EF26,リスト!$AY$5:$AZ$10,2,FALSE)) ->  | EG26: =IF(EH26="","",VLOOKUP(EH26,リスト!$BA$5:$BB$10,2,FALSE)) ->  | EI26: =IF(EJ26="","",VLOOKUP(EJ26,リスト!$BC$5:$BD$10,2,FALSE)) ->  | EK26: =IF(EL26="","",VLOOKUP(EL26,リスト!$BE$5:$BF$10,2,FALSE)) ->  | ER26: =IF(ES26="","",VLOOKUP(ES26,リスト!$BG$5:$BH$10,2,FALSE)) ->  | FA26: =IF($EZ26="","",INDEX(リスト!$BI$5:$BJ$40,MATCH($EZ26,リスト!$BJ$5:$BJ$40,0),1)) ->  | FB26: =IF(FC26="","",VLOOKUP(FC26,リスト!$BK:$BL,2,FALSE)) ->  | FF26: =IF(FG26="","",VLOOKUP(FG26,リスト!$BO$5:$BP$6,2,FALSE)) ->  | FH26: =IF(FI26="","",VLOOKUP(FI26,リスト!$BQ$5:$BR$8,2,FALSE)) ->  | FK26: =IF(FL26="","",VLOOKUP(FL26,リスト!$BS$5:$BT$6,2,FALSE)) ->  | FV26: =IF(FW26="","",VLOOKUP(FW26,リスト!$BV$5:$BW$10,2,FALSE)) ->  | FY26: =IF(FZ26="","",VLOOKUP(FZ26,リスト!$BX$5:$BY$6,2,FALSE)) ->  | GA26: =IF(GB26="","",VLOOKUP(GB26,リスト!$BZ$5:$CA$6,2,FALSE)) ->  | GC26: =IF(GD26="","",VLOOKUP(GD26,リスト!$CB$5:$CC$6,2,FALSE)) ->  | GJ26: =IF(GK26="","",VLOOKUP(GK26,リスト!$CD$5:$CE$6,2,FALSE)) ->  | GL26: =IF(GM26="","",VLOOKUP(GM26,リスト!$CF$5:$CG$6,2,FALSE)) ->  | GN26: =IF(GO26="","",VLOOKUP(GO26,リスト!$CH$5:$CI$6,2,FALSE)) -> 
B27: =IF(明細!B21="","",明細!B21) ->  | C27: =IF(明細!C21="","",明細!C21) ->  | D27: =IF(明細!D21="","",明細!D21) ->  | E27: =IF(明細!E21="","",明細!E21) ->  | F27: =IF(明細!F21="","",明細!F21) ->  | G27: =IF(明細!G21="","",明細!G21) ->  | H27: =IF(明細!H21="","",明細!H21) ->  | I27: =IF(明細!I21="","",明細!I21) ->  | J27: =IF(明細!J21="","",明細!J21) ->  | K27: =IF(明細!K21="","",明細!K21) ->  | L27: =IF(明細!K21<>"",CONCATENATE($L$12,明細!L21),"") ->  | M27: =IF(明細!M21="","",明細!M21) ->  | N27: =IF(明細!N21="","",明細!N21) ->  | O27: =IF(明細!O21="","",明細!O21) ->  | P27: =IF(明細!P21="","",明細!P21) ->  | Q27: =IF(明細!Q21="","",明細!Q21) ->  | R27: =IF(明細!R21="","",明細!R21) ->  | S27: =IF(明細!S21="","",明細!S21) ->  | T27: =IF(明細!T21="","",明細!T21) ->  | U27: =IF(明細!U21="","",明細!U21) ->  | V27: =IF(明細!V21<>"","EA","") -> EA | W27: =IF(明細!W21="","",明細!W21) ->  | X27: =IF(明細!X21="","",明細!X21) ->  | Y27: =IF(明細!Y21="","",明細!Y21) ->  | Z27: =IF(明細!Z21="","",明細!Z21) ->  | AA27: =IF(明細!AA21="","",明細!AA21) ->  | AB27: =IF(明細!AB21="","",明細!AB21) ->  | AC27: =IF(明細!AC21="","",明細!AC21) ->  | AD27: =IF(明細!AD21="","",明細!AD21) ->  | AE27: =IF(明細!AE21="","",明細!AE21) -> 10% | AF27: =IF(明細!AF21="","",明細!AF21) ->  | AG27: =IF(明細!AG21="","",明細!AG21) ->  | AH27: =IF(明細!AH21="","",明細!AH21) ->  | AI27: =IF(明細!AI21="","",明細!AI21) ->  | AJ27: =IF(明細!AJ21="","",明細!AJ21) ->  | AK27: =IF(明細!AK21="","",明細!AK21) ->  | AL27: =IF(明細!AL21="","",明細!AL21) ->  | AM27: =IF(明細!AM21="","",明細!AM21) ->  | AN27: =IF(明細!AN21="","",明細!AN21) ->  | AO27: =IF(明細!AO21="","",明細!AO21) ->  | AP27: =IF(明細!AP21="","",明細!AP21) ->  | AQ27: =IF(明細!AQ21="","",明細!AQ21) ->  | AR27: =IF(明細!AR21="","",明細!AR21) ->  | AY27: =IF($AX27="","",VLOOKUP($AX27,リスト!$CL:$CM,2,FALSE)) ->  | BA27: =IF(BB27="","",VLOOKUP(BB27,リスト!$K:$L,2,FALSE)) ->  | BE27: =IF(BF27="","",VLOOKUP(BF27,リスト!$I:$J,2,FALSE)) ->  | BG27: =IF(BH27="","",VLOOKUP(BH27,リスト!$M:$N,2,FALSE)) ->  | BI27: =IF(BJ27="","",VLOOKUP(BJ27,リスト!$O:$P,2,FALSE)) ->  | BO27: =IF($BN27="","",VLOOKUP($BN27,リスト!$CL:$CM,2,FALSE)) ->  | BP27: =IF(BQ27="","",VLOOKUP(BQ27,リスト!$K$5:$L$7,2,FALSE)) ->  | BT27: =IF(BU27="","",VLOOKUP(BU27,リスト!I18:J36,2,FALSE)) ->  | BY27: =IF(BZ27="","",VLOOKUP(BZ27,リスト!$S$5:$T$6,2,FALSE)) ->  | CU27: =IF(CV27="","",VLOOKUP(CV27,リスト!$V$5:$W$6,2,FALSE)) ->  | CW27: =IF(CX27="","",VLOOKUP(CX27,リスト!$X$5:$Y$6,2,FALSE)) ->  | DE27: =IF(DF27="","",VLOOKUP(DF27,リスト!$Z$5:$AA$10,2,FALSE)) ->  | DG27: =IF(DH27="","",VLOOKUP(DH27,リスト!$AB$5:$AC$12,2,FALSE)) ->  | DI27: =IF(DJ27="","",VLOOKUP(DJ27,リスト!$AD$5:$AE$7,2,FALSE)) ->  | DK27: =IF(DL27="","",VLOOKUP(DL27,リスト!$AF$5:$AG$10,2,FALSE)) ->  | DM27: =IF(DN27="","",VLOOKUP(DN27,リスト!$AH$5:$AI$6,2,FALSE)) ->  | DO27: =IF(DP27="","",VLOOKUP(DP27,リスト!$AJ$5:$AK$6,2,FALSE)) ->  | DQ27: =IF(DR27="","",VLOOKUP(DR27,リスト!$AL$5:$AM$7,2,FALSE)) ->  | DV27: =IF(DW27="","",VLOOKUP(DW27,リスト!$AN$5:$AO$6,2,FALSE)) ->  | EB27: =IF(EC27="","",VLOOKUP(EC27,リスト!$AW$5:$AX$8,2,FALSE)) ->  | EE27: =IF(EF27="","",VLOOKUP(EF27,リスト!$AY$5:$AZ$10,2,FALSE)) ->  | EG27: =IF(EH27="","",VLOOKUP(EH27,リスト!$BA$5:$BB$10,2,FALSE)) ->  | EI27: =IF(EJ27="","",VLOOKUP(EJ27,リスト!$BC$5:$BD$10,2,FALSE)) ->  | EK27: =IF(EL27="","",VLOOKUP(EL27,リスト!$BE$5:$BF$10,2,FALSE)) ->  | ER27: =IF(ES27="","",VLOOKUP(ES27,リスト!$BG$5:$BH$10,2,FALSE)) ->  | FA27: =IF($EZ27="","",INDEX(リスト!$BI$5:$BJ$40,MATCH($EZ27,リスト!$BJ$5:$BJ$40,0),1)) ->  | FB27: =IF(FC27="","",VLOOKUP(FC27,リスト!$BK:$BL,2,FALSE)) ->  | FF27: =IF(FG27="","",VLOOKUP(FG27,リスト!$BO$5:$BP$6,2,FALSE)) ->  | FH27: =IF(FI27="","",VLOOKUP(FI27,リスト!$BQ$5:$BR$8,2,FALSE)) ->  | FK27: =IF(FL27="","",VLOOKUP(FL27,リスト!$BS$5:$BT$6,2,FALSE)) ->  | FV27: =IF(FW27="","",VLOOKUP(FW27,リスト!$BV$5:$BW$10,2,FALSE)) ->  | FY27: =IF(FZ27="","",VLOOKUP(FZ27,リスト!$BX$5:$BY$6,2,FALSE)) ->  | GA27: =IF(GB27="","",VLOOKUP(GB27,リスト!$BZ$5:$CA$6,2,FALSE)) ->  | GC27: =IF(GD27="","",VLOOKUP(GD27,リスト!$CB$5:$CC$6,2,FALSE)) ->  | GJ27: =IF(GK27="","",VLOOKUP(GK27,リスト!$CD$5:$CE$6,2,FALSE)) ->  | GL27: =IF(GM27="","",VLOOKUP(GM27,リスト!$CF$5:$CG$6,2,FALSE)) ->  | GN27: =IF(GO27="","",VLOOKUP(GO27,リスト!$CH$5:$CI$6,2,FALSE)) -> 
B28: =IF(明細!B22="","",明細!B22) ->  | C28: =IF(明細!C22="","",明細!C22) ->  | D28: =IF(明細!D22="","",明細!D22) ->  | E28: =IF(明細!E22="","",明細!E22) ->  | F28: =IF(明細!F22="","",明細!F22) ->  | G28: =IF(明細!G22="","",明細!G22) ->  | H28: =IF(明細!H22="","",明細!H22) ->  | I28: =IF(明細!I22="","",明細!I22) ->  | J28: =IF(明細!J22="","",明細!J22) ->  | K28: =IF(明細!K22="","",明細!K22) ->  | L28: =IF(明細!K22<>"",CONCATENATE($L$12,明細!L22),"") ->  | M28: =IF(明細!M22="","",明細!M22) ->  | N28: =IF(明細!N22="","",明細!N22) ->  | O28: =IF(明細!O22="","",明細!O22) ->  | P28: =IF(明細!P22="","",明細!P22) ->  | Q28: =IF(明細!Q22="","",明細!Q22) ->  | R28: =IF(明細!R22="","",明細!R22) ->  | S28: =IF(明細!S22="","",明細!S22) ->  | T28: =IF(明細!T22="","",明細!T22) ->  | U28: =IF(明細!U22="","",明細!U22) ->  | V28: =IF(明細!V22<>"","EA","") -> EA | W28: =IF(明細!W22="","",明細!W22) ->  | X28: =IF(明細!X22="","",明細!X22) ->  | Y28: =IF(明細!Y22="","",明細!Y22) ->  | Z28: =IF(明細!Z22="","",明細!Z22) ->  | AA28: =IF(明細!AA22="","",明細!AA22) ->  | AB28: =IF(明細!AB22="","",明細!AB22) ->  | AC28: =IF(明細!AC22="","",明細!AC22) ->  | AD28: =IF(明細!AD22="","",明細!AD22) ->  | AE28: =IF(明細!AE22="","",明細!AE22) -> 10% | AF28: =IF(明細!AF22="","",明細!AF22) ->  | AG28: =IF(明細!AG22="","",明細!AG22) ->  | AH28: =IF(明細!AH22="","",明細!AH22) ->  | AI28: =IF(明細!AI22="","",明細!AI22) ->  | AJ28: =IF(明細!AJ22="","",明細!AJ22) ->  | AK28: =IF(明細!AK22="","",明細!AK22) ->  | AL28: =IF(明細!AL22="","",明細!AL22) ->  | AM28: =IF(明細!AM22="","",明細!AM22) ->  | AN28: =IF(明細!AN22="","",明細!AN22) ->  | AO28: =IF(明細!AO22="","",明細!AO22) ->  | AP28: =IF(明細!AP22="","",明細!AP22) ->  | AQ28: =IF(明細!AQ22="","",明細!AQ22) ->  | AR28: =IF(明細!AR22="","",明細!AR22) ->  | AY28: =IF($AX28="","",VLOOKUP($AX28,リスト!$CL:$CM,2,FALSE)) ->  | BA28: =IF(BB28="","",VLOOKUP(BB28,リスト!$K:$L,2,FALSE)) ->  | BE28: =IF(BF28="","",VLOOKUP(BF28,リスト!$I:$J,2,FALSE)) ->  | BG28: =IF(BH28="","",VLOOKUP(BH28,リスト!$M:$N,2,FALSE)) ->  | BI28: =IF(BJ28="","",VLOOKUP(BJ28,リスト!$O:$P,2,FALSE)) ->  | BO28: =IF($BN28="","",VLOOKUP($BN28,リスト!$CL:$CM,2,FALSE)) ->  | BP28: =IF(BQ28="","",VLOOKUP(BQ28,リスト!$K$5:$L$7,2,FALSE)) ->  | BT28: =IF(BU28="","",VLOOKUP(BU28,リスト!I19:J37,2,FALSE)) ->  | BY28: =IF(BZ28="","",VLOOKUP(BZ28,リスト!$S$5:$T$6,2,FALSE)) ->  | CU28: =IF(CV28="","",VLOOKUP(CV28,リスト!$V$5:$W$6,2,FALSE)) ->  | CW28: =IF(CX28="","",VLOOKUP(CX28,リスト!$X$5:$Y$6,2,FALSE)) ->  | DE28: =IF(DF28="","",VLOOKUP(DF28,リスト!$Z$5:$AA$10,2,FALSE)) ->  | DG28: =IF(DH28="","",VLOOKUP(DH28,リスト!$AB$5:$AC$12,2,FALSE)) ->  | DI28: =IF(DJ28="","",VLOOKUP(DJ28,リスト!$AD$5:$AE$7,2,FALSE)) ->  | DK28: =IF(DL28="","",VLOOKUP(DL28,リスト!$AF$5:$AG$10,2,FALSE)) ->  | DM28: =IF(DN28="","",VLOOKUP(DN28,リスト!$AH$5:$AI$6,2,FALSE)) ->  | DO28: =IF(DP28="","",VLOOKUP(DP28,リスト!$AJ$5:$AK$6,2,FALSE)) ->  | DQ28: =IF(DR28="","",VLOOKUP(DR28,リスト!$AL$5:$AM$7,2,FALSE)) ->  | DV28: =IF(DW28="","",VLOOKUP(DW28,リスト!$AN$5:$AO$6,2,FALSE)) ->  | EB28: =IF(EC28="","",VLOOKUP(EC28,リスト!$AW$5:$AX$8,2,FALSE)) ->  | EE28: =IF(EF28="","",VLOOKUP(EF28,リスト!$AY$5:$AZ$10,2,FALSE)) ->  | EG28: =IF(EH28="","",VLOOKUP(EH28,リスト!$BA$5:$BB$10,2,FALSE)) ->  | EI28: =IF(EJ28="","",VLOOKUP(EJ28,リスト!$BC$5:$BD$10,2,FALSE)) ->  | EK28: =IF(EL28="","",VLOOKUP(EL28,リスト!$BE$5:$BF$10,2,FALSE)) ->  | ER28: =IF(ES28="","",VLOOKUP(ES28,リスト!$BG$5:$BH$10,2,FALSE)) ->  | FA28: =IF($EZ28="","",INDEX(リスト!$BI$5:$BJ$40,MATCH($EZ28,リスト!$BJ$5:$BJ$40,0),1)) ->  | FB28: =IF(FC28="","",VLOOKUP(FC28,リスト!$BK:$BL,2,FALSE)) ->  | FF28: =IF(FG28="","",VLOOKUP(FG28,リスト!$BO$5:$BP$6,2,FALSE)) ->  | FH28: =IF(FI28="","",VLOOKUP(FI28,リスト!$BQ$5:$BR$8,2,FALSE)) ->  | FK28: =IF(FL28="","",VLOOKUP(FL28,リスト!$BS$5:$BT$6,2,FALSE)) ->  | FV28: =IF(FW28="","",VLOOKUP(FW28,リスト!$BV$5:$BW$10,2,FALSE)) ->  | FY28: =IF(FZ28="","",VLOOKUP(FZ28,リスト!$BX$5:$BY$6,2,FALSE)) ->  | GA28: =IF(GB28="","",VLOOKUP(GB28,リスト!$BZ$5:$CA$6,2,FALSE)) ->  | GC28: =IF(GD28="","",VLOOKUP(GD28,リスト!$CB$5:$CC$6,2,FALSE)) ->  | GJ28: =IF(GK28="","",VLOOKUP(GK28,リスト!$CD$5:$CE$6,2,FALSE)) ->  | GL28: =IF(GM28="","",VLOOKUP(GM28,リスト!$CF$5:$CG$6,2,FALSE)) ->  | GN28: =IF(GO28="","",VLOOKUP(GO28,リスト!$CH$5:$CI$6,2,FALSE)) -> 
B29: =IF(明細!B23="","",明細!B23) ->  | C29: =IF(明細!C23="","",明細!C23) ->  | D29: =IF(明細!D23="","",明細!D23) ->  | E29: =IF(明細!E23="","",明細!E23) ->  | F29: =IF(明細!F23="","",明細!F23) ->  | G29: =IF(明細!G23="","",明細!G23) ->  | H29: =IF(明細!H23="","",明細!H23) ->  | I29: =IF(明細!I23="","",明細!I23) ->  | J29: =IF(明細!J23="","",明細!J23) ->  | K29: =IF(明細!K23="","",明細!K23) ->  | L29: =IF(明細!K23<>"",CONCATENATE($L$12,明細!L23),"") ->  | M29: =IF(明細!M23="","",明細!M23) ->  | N29: =IF(明細!N23="","",明細!N23) ->  | O29: =IF(明細!O23="","",明細!O23) ->  | P29: =IF(明細!P23="","",明細!P23) ->  | Q29: =IF(明細!Q23="","",明細!Q23) ->  | R29: =IF(明細!R23="","",明細!R23) ->  | S29: =IF(明細!S23="","",明細!S23) ->  | T29: =IF(明細!T23="","",明細!T23) ->  | U29: =IF(明細!U23="","",明細!U23) ->  | V29: =IF(明細!V23<>"","EA","") -> EA | W29: =IF(明細!W23="","",明細!W23) ->  | X29: =IF(明細!X23="","",明細!X23) ->  | Y29: =IF(明細!Y23="","",明細!Y23) ->  | Z29: =IF(明細!Z23="","",明細!Z23) ->  | AA29: =IF(明細!AA23="","",明細!AA23) ->  | AB29: =IF(明細!AB23="","",明細!AB23) ->  | AC29: =IF(明細!AC23="","",明細!AC23) ->  | AD29: =IF(明細!AD23="","",明細!AD23) ->  | AE29: =IF(明細!AE23="","",明細!AE23) -> 10% | AF29: =IF(明細!AF23="","",明細!AF23) ->  | AG29: =IF(明細!AG23="","",明細!AG23) ->  | AH29: =IF(明細!AH23="","",明細!AH23) ->  | AI29: =IF(明細!AI23="","",明細!AI23) ->  | AJ29: =IF(明細!AJ23="","",明細!AJ23) ->  | AK29: =IF(明細!AK23="","",明細!AK23) ->  | AL29: =IF(明細!AL23="","",明細!AL23) ->  | AM29: =IF(明細!AM23="","",明細!AM23) ->  | AN29: =IF(明細!AN23="","",明細!AN23) ->  | AO29: =IF(明細!AO23="","",明細!AO23) ->  | AP29: =IF(明細!AP23="","",明細!AP23) ->  | AQ29: =IF(明細!AQ23="","",明細!AQ23) ->  | AR29: =IF(明細!AR23="","",明細!AR23) ->  | AY29: =IF($AX29="","",VLOOKUP($AX29,リスト!$CL:$CM,2,FALSE)) ->  | BA29: =IF(BB29="","",VLOOKUP(BB29,リスト!$K:$L,2,FALSE)) ->  | BE29: =IF(BF29="","",VLOOKUP(BF29,リスト!$I:$J,2,FALSE)) ->  | BG29: =IF(BH29="","",VLOOKUP(BH29,リスト!$M:$N,2,FALSE)) ->  | BI29: =IF(BJ29="","",VLOOKUP(BJ29,リスト!$O:$P,2,FALSE)) ->  | BO29: =IF($BN29="","",VLOOKUP($BN29,リスト!$CL:$CM,2,FALSE)) ->  | BP29: =IF(BQ29="","",VLOOKUP(BQ29,リスト!$K$5:$L$7,2,FALSE)) ->  | BT29: =IF(BU29="","",VLOOKUP(BU29,リスト!I20:J38,2,FALSE)) ->  | BY29: =IF(BZ29="","",VLOOKUP(BZ29,リスト!$S$5:$T$6,2,FALSE)) ->  | CU29: =IF(CV29="","",VLOOKUP(CV29,リスト!$V$5:$W$6,2,FALSE)) ->  | CW29: =IF(CX29="","",VLOOKUP(CX29,リスト!$X$5:$Y$6,2,FALSE)) ->  | DE29: =IF(DF29="","",VLOOKUP(DF29,リスト!$Z$5:$AA$10,2,FALSE)) ->  | DG29: =IF(DH29="","",VLOOKUP(DH29,リスト!$AB$5:$AC$12,2,FALSE)) ->  | DI29: =IF(DJ29="","",VLOOKUP(DJ29,リスト!$AD$5:$AE$7,2,FALSE)) ->  | DK29: =IF(DL29="","",VLOOKUP(DL29,リスト!$AF$5:$AG$10,2,FALSE)) ->  | DM29: =IF(DN29="","",VLOOKUP(DN29,リスト!$AH$5:$AI$6,2,FALSE)) ->  | DO29: =IF(DP29="","",VLOOKUP(DP29,リスト!$AJ$5:$AK$6,2,FALSE)) ->  | DQ29: =IF(DR29="","",VLOOKUP(DR29,リスト!$AL$5:$AM$7,2,FALSE)) ->  | DV29: =IF(DW29="","",VLOOKUP(DW29,リスト!$AN$5:$AO$6,2,FALSE)) ->  | EB29: =IF(EC29="","",VLOOKUP(EC29,リスト!$AW$5:$AX$8,2,FALSE)) ->  | EE29: =IF(EF29="","",VLOOKUP(EF29,リスト!$AY$5:$AZ$10,2,FALSE)) ->  | EG29: =IF(EH29="","",VLOOKUP(EH29,リスト!$BA$5:$BB$10,2,FALSE)) ->  | EI29: =IF(EJ29="","",VLOOKUP(EJ29,リスト!$BC$5:$BD$10,2,FALSE)) ->  | EK29: =IF(EL29="","",VLOOKUP(EL29,リスト!$BE$5:$BF$10,2,FALSE)) ->  | ER29: =IF(ES29="","",VLOOKUP(ES29,リスト!$BG$5:$BH$10,2,FALSE)) ->  | FA29: =IF($EZ29="","",INDEX(リスト!$BI$5:$BJ$40,MATCH($EZ29,リスト!$BJ$5:$BJ$40,0),1)) ->  | FB29: =IF(FC29="","",VLOOKUP(FC29,リスト!$BK:$BL,2,FALSE)) ->  | FF29: =IF(FG29="","",VLOOKUP(FG29,リスト!$BO$5:$BP$6,2,FALSE)) ->  | FH29: =IF(FI29="","",VLOOKUP(FI29,リスト!$BQ$5:$BR$8,2,FALSE)) ->  | FK29: =IF(FL29="","",VLOOKUP(FL29,リスト!$BS$5:$BT$6,2,FALSE)) ->  | FV29: =IF(FW29="","",VLOOKUP(FW29,リスト!$BV$5:$BW$10,2,FALSE)) ->  | FY29: =IF(FZ29="","",VLOOKUP(FZ29,リスト!$BX$5:$BY$6,2,FALSE)) ->  | GA29: =IF(GB29="","",VLOOKUP(GB29,リスト!$BZ$5:$CA$6,2,FALSE)) ->  | GC29: =IF(GD29="","",VLOOKUP(GD29,リスト!$CB$5:$CC$6,2,FALSE)) ->  | GJ29: =IF(GK29="","",VLOOKUP(GK29,リスト!$CD$5:$CE$6,2,FALSE)) ->  | GL29: =IF(GM29="","",VLOOKUP(GM29,リスト!$CF$5:$CG$6,2,FALSE)) ->  | GN29: =IF(GO29="","",VLOOKUP(GO29,リスト!$CH$5:$CI$6,2,FALSE)) -> 
B30: =IF(明細!B24="","",明細!B24) ->  | C30: =IF(明細!C24="","",明細!C24) ->  | D30: =IF(明細!D24="","",明細!D24) ->  | E30: =IF(明細!E24="","",明細!E24) ->  | F30: =IF(明細!F24="","",明細!F24) ->  | G30: =IF(明細!G24="","",明細!G24) ->  | H30: =IF(明細!H24="","",明細!H24) ->  | I30: =IF(明細!I24="","",明細!I24) ->  | J30: =IF(明細!J24="","",明細!J24) ->  | K30: =IF(明細!K24="","",明細!K24) ->  | L30: =IF(明細!K24<>"",CONCATENATE($L$12,明細!L24),"") ->  | M30: =IF(明細!M24="","",明細!M24) ->  | N30: =IF(明細!N24="","",明細!N24) ->  | O30: =IF(明細!O24="","",明細!O24) ->  | P30: =IF(明細!P24="","",明細!P24) ->  | Q30: =IF(明細!Q24="","",明細!Q24) ->  | R30: =IF(明細!R24="","",明細!R24) ->  | S30: =IF(明細!S24="","",明細!S24) ->  | T30: =IF(明細!T24="","",明細!T24) ->  | U30: =IF(明細!U24="","",明細!U24) ->  | V30: =IF(明細!V24<>"","EA","") -> EA | W30: =IF(明細!W24="","",明細!W24) ->  | X30: =IF(明細!X24="","",明細!X24) ->  | Y30: =IF(明細!Y24="","",明細!Y24) ->  | Z30: =IF(明細!Z24="","",明細!Z24) ->  | AA30: =IF(明細!AA24="","",明細!AA24) ->  | AB30: =IF(明細!AB24="","",明細!AB24) ->  | AC30: =IF(明細!AC24="","",明細!AC24) ->  | AD30: =IF(明細!AD24="","",明細!AD24) ->  | AE30: =IF(明細!AE24="","",明細!AE24) -> 10% | AF30: =IF(明細!AF24="","",明細!AF24) ->  | AG30: =IF(明細!AG24="","",明細!AG24) ->  | AH30: =IF(明細!AH24="","",明細!AH24) ->  | AI30: =IF(明細!AI24="","",明細!AI24) ->  | AJ30: =IF(明細!AJ24="","",明細!AJ24) ->  | AK30: =IF(明細!AK24="","",明細!AK24) ->  | AL30: =IF(明細!AL24="","",明細!AL24) ->  | AM30: =IF(明細!AM24="","",明細!AM24) ->  | AN30: =IF(明細!AN24="","",明細!AN24) ->  | AO30: =IF(明細!AO24="","",明細!AO24) ->  | AP30: =IF(明細!AP24="","",明細!AP24) ->  | AQ30: =IF(明細!AQ24="","",明細!AQ24) ->  | AR30: =IF(明細!AR24="","",明細!AR24) ->  | AY30: =IF($AX30="","",VLOOKUP($AX30,リスト!$CL:$CM,2,FALSE)) ->  | BA30: =IF(BB30="","",VLOOKUP(BB30,リスト!$K:$L,2,FALSE)) ->  | BE30: =IF(BF30="","",VLOOKUP(BF30,リスト!$I:$J,2,FALSE)) ->  | BG30: =IF(BH30="","",VLOOKUP(BH30,リスト!$M:$N,2,FALSE)) ->  | BI30: =IF(BJ30="","",VLOOKUP(BJ30,リスト!$O:$P,2,FALSE)) ->  | BO30: =IF($BN30="","",VLOOKUP($BN30,リスト!$CL:$CM,2,FALSE)) ->  | BP30: =IF(BQ30="","",VLOOKUP(BQ30,リスト!$K$5:$L$7,2,FALSE)) ->  | BT30: =IF(BU30="","",VLOOKUP(BU30,リスト!I21:J39,2,FALSE)) ->  | BY30: =IF(BZ30="","",VLOOKUP(BZ30,リスト!$S$5:$T$6,2,FALSE)) ->  | CU30: =IF(CV30="","",VLOOKUP(CV30,リスト!$V$5:$W$6,2,FALSE)) ->  | CW30: =IF(CX30="","",VLOOKUP(CX30,リスト!$X$5:$Y$6,2,FALSE)) ->  | DE30: =IF(DF30="","",VLOOKUP(DF30,リスト!$Z$5:$AA$10,2,FALSE)) ->  | DG30: =IF(DH30="","",VLOOKUP(DH30,リスト!$AB$5:$AC$12,2,FALSE)) ->  | DI30: =IF(DJ30="","",VLOOKUP(DJ30,リスト!$AD$5:$AE$7,2,FALSE)) ->  | DK30: =IF(DL30="","",VLOOKUP(DL30,リスト!$AF$5:$AG$10,2,FALSE)) ->  | DM30: =IF(DN30="","",VLOOKUP(DN30,リスト!$AH$5:$AI$6,2,FALSE)) ->  | DO30: =IF(DP30="","",VLOOKUP(DP30,リスト!$AJ$5:$AK$6,2,FALSE)) ->  | DQ30: =IF(DR30="","",VLOOKUP(DR30,リスト!$AL$5:$AM$7,2,FALSE)) ->  | DV30: =IF(DW30="","",VLOOKUP(DW30,リスト!$AN$5:$AO$6,2,FALSE)) ->  | EB30: =IF(EC30="","",VLOOKUP(EC30,リスト!$AW$5:$AX$8,2,FALSE)) ->  | EE30: =IF(EF30="","",VLOOKUP(EF30,リスト!$AY$5:$AZ$10,2,FALSE)) ->  | EG30: =IF(EH30="","",VLOOKUP(EH30,リスト!$BA$5:$BB$10,2,FALSE)) ->  | EI30: =IF(EJ30="","",VLOOKUP(EJ30,リスト!$BC$5:$BD$10,2,FALSE)) ->  | EK30: =IF(EL30="","",VLOOKUP(EL30,リスト!$BE$5:$BF$10,2,FALSE)) ->  | ER30: =IF(ES30="","",VLOOKUP(ES30,リスト!$BG$5:$BH$10,2,FALSE)) ->  | FA30: =IF($EZ30="","",INDEX(リスト!$BI$5:$BJ$40,MATCH($EZ30,リスト!$BJ$5:$BJ$40,0),1)) ->  | FB30: =IF(FC30="","",VLOOKUP(FC30,リスト!$BK:$BL,2,FALSE)) ->  | FF30: =IF(FG30="","",VLOOKUP(FG30,リスト!$BO$5:$BP$6,2,FALSE)) ->  | FH30: =IF(FI30="","",VLOOKUP(FI30,リスト!$BQ$5:$BR$8,2,FALSE)) ->  | FK30: =IF(FL30="","",VLOOKUP(FL30,リスト!$BS$5:$BT$6,2,FALSE)) ->  | FV30: =IF(FW30="","",VLOOKUP(FW30,リスト!$BV$5:$BW$10,2,FALSE)) ->  | FY30: =IF(FZ30="","",VLOOKUP(FZ30,リスト!$BX$5:$BY$6,2,FALSE)) ->  | GA30: =IF(GB30="","",VLOOKUP(GB30,リスト!$BZ$5:$CA$6,2,FALSE)) ->  | GC30: =IF(GD30="","",VLOOKUP(GD30,リスト!$CB$5:$CC$6,2,FALSE)) ->  | GJ30: =IF(GK30="","",VLOOKUP(GK30,リスト!$CD$5:$CE$6,2,FALSE)) ->  | GL30: =IF(GM30="","",VLOOKUP(GM30,リスト!$CF$5:$CG$6,2,FALSE)) ->  | GN30: =IF(GO30="","",VLOOKUP(GO30,リスト!$CH$5:$CI$6,2,FALSE)) -> 
B31: =IF(明細!B25="","",明細!B25) ->  | C31: =IF(明細!C25="","",明細!C25) ->  | D31: =IF(明細!D25="","",明細!D25) ->  | E31: =IF(明細!E25="","",明細!E25) ->  | F31: =IF(明細!F25="","",明細!F25) ->  | G31: =IF(明細!G25="","",明細!G25) ->  | H31: =IF(明細!H25="","",明細!H25) ->  | I31: =IF(明細!I25="","",明細!I25) ->  | J31: =IF(明細!J25="","",明細!J25) ->  | K31: =IF(明細!K25="","",明細!K25) ->  | L31: =IF(明細!K25<>"",CONCATENATE($L$12,明細!L25),"") ->  | M31: =IF(明細!M25="","",明細!M25) ->  | N31: =IF(明細!N25="","",明細!N25) ->  | O31: =IF(明細!O25="","",明細!O25) ->  | P31: =IF(明細!P25="","",明細!P25) ->  | Q31: =IF(明細!Q25="","",明細!Q25) ->  | R31: =IF(明細!R25="","",明細!R25) ->  | S31: =IF(明細!S25="","",明細!S25) ->  | T31: =IF(明細!T25="","",明細!T25) ->  | U31: =IF(明細!U25="","",明細!U25) ->  | V31: =IF(明細!V25<>"","EA","") -> EA | W31: =IF(明細!W25="","",明細!W25) ->  | X31: =IF(明細!X25="","",明細!X25) ->  | Y31: =IF(明細!Y25="","",明細!Y25) ->  | Z31: =IF(明細!Z25="","",明細!Z25) ->  | AA31: =IF(明細!AA25="","",明細!AA25) ->  | AB31: =IF(明細!AB25="","",明細!AB25) ->  | AC31: =IF(明細!AC25="","",明細!AC25) ->  | AD31: =IF(明細!AD25="","",明細!AD25) ->  | AE31: =IF(明細!AE25="","",明細!AE25) -> 10% | AF31: =IF(明細!AF25="","",明細!AF25) ->  | AG31: =IF(明細!AG25="","",明細!AG25) ->  | AH31: =IF(明細!AH25="","",明細!AH25) ->  | AI31: =IF(明細!AI25="","",明細!AI25) ->  | AJ31: =IF(明細!AJ25="","",明細!AJ25) ->  | AK31: =IF(明細!AK25="","",明細!AK25) ->  | AL31: =IF(明細!AL25="","",明細!AL25) ->  | AM31: =IF(明細!AM25="","",明細!AM25) ->  | AN31: =IF(明細!AN25="","",明細!AN25) ->  | AO31: =IF(明細!AO25="","",明細!AO25) ->  | AP31: =IF(明細!AP25="","",明細!AP25) ->  | AQ31: =IF(明細!AQ25="","",明細!AQ25) ->  | AR31: =IF(明細!AR25="","",明細!AR25) ->  | AY31: =IF($AX31="","",VLOOKUP($AX31,リスト!$CL:$CM,2,FALSE)) ->  | BA31: =IF(BB31="","",VLOOKUP(BB31,リスト!$K:$L,2,FALSE)) ->  | BE31: =IF(BF31="","",VLOOKUP(BF31,リスト!$I:$J,2,FALSE)) ->  | BG31: =IF(BH31="","",VLOOKUP(BH31,リスト!$M:$N,2,FALSE)) ->  | BI31: =IF(BJ31="","",VLOOKUP(BJ31,リスト!$O:$P,2,FALSE)) ->  | BO31: =IF($BN31="","",VLOOKUP($BN31,リスト!$CL:$CM,2,FALSE)) ->  | BP31: =IF(BQ31="","",VLOOKUP(BQ31,リスト!$K$5:$L$7,2,FALSE)) ->  | BT31: =IF(BU31="","",VLOOKUP(BU31,リスト!I22:J40,2,FALSE)) ->  | BY31: =IF(BZ31="","",VLOOKUP(BZ31,リスト!$S$5:$T$6,2,FALSE)) ->  | CU31: =IF(CV31="","",VLOOKUP(CV31,リスト!$V$5:$W$6,2,FALSE)) ->  | CW31: =IF(CX31="","",VLOOKUP(CX31,リスト!$X$5:$Y$6,2,FALSE)) ->  | DE31: =IF(DF31="","",VLOOKUP(DF31,リスト!$Z$5:$AA$10,2,FALSE)) ->  | DG31: =IF(DH31="","",VLOOKUP(DH31,リスト!$AB$5:$AC$12,2,FALSE)) ->  | DI31: =IF(DJ31="","",VLOOKUP(DJ31,リスト!$AD$5:$AE$7,2,FALSE)) ->  | DK31: =IF(DL31="","",VLOOKUP(DL31,リスト!$AF$5:$AG$10,2,FALSE)) ->  | DM31: =IF(DN31="","",VLOOKUP(DN31,リスト!$AH$5:$AI$6,2,FALSE)) ->  | DO31: =IF(DP31="","",VLOOKUP(DP31,リスト!$AJ$5:$AK$6,2,FALSE)) ->  | DQ31: =IF(DR31="","",VLOOKUP(DR31,リスト!$AL$5:$AM$7,2,FALSE)) ->  | DV31: =IF(DW31="","",VLOOKUP(DW31,リスト!$AN$5:$AO$6,2,FALSE)) ->  | EB31: =IF(EC31="","",VLOOKUP(EC31,リスト!$AW$5:$AX$8,2,FALSE)) ->  | EE31: =IF(EF31="","",VLOOKUP(EF31,リスト!$AY$5:$AZ$10,2,FALSE)) ->  | EG31: =IF(EH31="","",VLOOKUP(EH31,リスト!$BA$5:$BB$10,2,FALSE)) ->  | EI31: =IF(EJ31="","",VLOOKUP(EJ31,リスト!$BC$5:$BD$10,2,FALSE)) ->  | EK31: =IF(EL31="","",VLOOKUP(EL31,リスト!$BE$5:$BF$10,2,FALSE)) ->  | ER31: =IF(ES31="","",VLOOKUP(ES31,リスト!$BG$5:$BH$10,2,FALSE)) ->  | FA31: =IF($EZ31="","",INDEX(リスト!$BI$5:$BJ$40,MATCH($EZ31,リスト!$BJ$5:$BJ$40,0),1)) ->  | FB31: =IF(FC31="","",VLOOKUP(FC31,リスト!$BK:$BL,2,FALSE)) ->  | FF31: =IF(FG31="","",VLOOKUP(FG31,リスト!$BO$5:$BP$6,2,FALSE)) ->  | FH31: =IF(FI31="","",VLOOKUP(FI31,リスト!$BQ$5:$BR$8,2,FALSE)) ->  | FK31: =IF(FL31="","",VLOOKUP(FL31,リスト!$BS$5:$BT$6,2,FALSE)) ->  | FV31: =IF(FW31="","",VLOOKUP(FW31,リスト!$BV$5:$BW$10,2,FALSE)) ->  | FY31: =IF(FZ31="","",VLOOKUP(FZ31,リスト!$BX$5:$BY$6,2,FALSE)) ->  | GA31: =IF(GB31="","",VLOOKUP(GB31,リスト!$BZ$5:$CA$6,2,FALSE)) ->  | GC31: =IF(GD31="","",VLOOKUP(GD31,リスト!$CB$5:$CC$6,2,FALSE)) ->  | GJ31: =IF(GK31="","",VLOOKUP(GK31,リスト!$CD$5:$CE$6,2,FALSE)) ->  | GL31: =IF(GM31="","",VLOOKUP(GM31,リスト!$CF$5:$CG$6,2,FALSE)) ->  | GN31: =IF(GO31="","",VLOOKUP(GO31,リスト!$CH$5:$CI$6,2,FALSE)) -> 
B32: =IF(明細!B26="","",明細!B26) ->  | C32: =IF(明細!C26="","",明細!C26) ->  | D32: =IF(明細!D26="","",明細!D26) ->  | E32: =IF(明細!E26="","",明細!E26) ->  | F32: =IF(明細!F26="","",明細!F26) ->  | G32: =IF(明細!G26="","",明細!G26) ->  | H32: =IF(明細!H26="","",明細!H26) ->  | I32: =IF(明細!I26="","",明細!I26) ->  | J32: =IF(明細!J26="","",明細!J26) ->  | K32: =IF(明細!K26="","",明細!K26) ->  | L32: =IF(明細!K26<>"",CONCATENATE($L$12,明細!L26),"") ->  | M32: =IF(明細!M26="","",明細!M26) ->  | N32: =IF(明細!N26="","",明細!N26) ->  | O32: =IF(明細!O26="","",明細!O26) ->  | P32: =IF(明細!P26="","",明細!P26) ->  | Q32: =IF(明細!Q26="","",明細!Q26) ->  | R32: =IF(明細!R26="","",明細!R26) ->  | S32: =IF(明細!S26="","",明細!S26) ->  | T32: =IF(明細!T26="","",明細!T26) ->  | U32: =IF(明細!U26="","",明細!U26) ->  | V32: =IF(明細!V26<>"","EA","") -> EA | W32: =IF(明細!W26="","",明細!W26) ->  | X32: =IF(明細!X26="","",明細!X26) ->  | Y32: =IF(明細!Y26="","",明細!Y26) ->  | Z32: =IF(明細!Z26="","",明細!Z26) ->  | AA32: =IF(明細!AA26="","",明細!AA26) ->  | AB32: =IF(明細!AB26="","",明細!AB26) ->  | AC32: =IF(明細!AC26="","",明細!AC26) ->  | AD32: =IF(明細!AD26="","",明細!AD26) ->  | AE32: =IF(明細!AE26="","",明細!AE26) -> 10% | AF32: =IF(明細!AF26="","",明細!AF26) ->  | AG32: =IF(明細!AG26="","",明細!AG26) ->  | AH32: =IF(明細!AH26="","",明細!AH26) ->  | AI32: =IF(明細!AI26="","",明細!AI26) ->  | AJ32: =IF(明細!AJ26="","",明細!AJ26) ->  | AK32: =IF(明細!AK26="","",明細!AK26) ->  | AL32: =IF(明細!AL26="","",明細!AL26) ->  | AM32: =IF(明細!AM26="","",明細!AM26) ->  | AN32: =IF(明細!AN26="","",明細!AN26) ->  | AO32: =IF(明細!AO26="","",明細!AO26) ->  | AP32: =IF(明細!AP26="","",明細!AP26) ->  | AQ32: =IF(明細!AQ26="","",明細!AQ26) ->  | AR32: =IF(明細!AR26="","",明細!AR26) ->  | AY32: =IF($AX32="","",VLOOKUP($AX32,リスト!$CL:$CM,2,FALSE)) ->  | BA32: =IF(BB32="","",VLOOKUP(BB32,リスト!$K:$L,2,FALSE)) ->  | BE32: =IF(BF32="","",VLOOKUP(BF32,リスト!$I:$J,2,FALSE)) ->  | BG32: =IF(BH32="","",VLOOKUP(BH32,リスト!$M:$N,2,FALSE)) ->  | BI32: =IF(BJ32="","",VLOOKUP(BJ32,リスト!$O:$P,2,FALSE)) ->  | BO32: =IF($BN32="","",VLOOKUP($BN32,リスト!$CL:$CM,2,FALSE)) ->  | BP32: =IF(BQ32="","",VLOOKUP(BQ32,リスト!$K$5:$L$7,2,FALSE)) ->  | BT32: =IF(BU32="","",VLOOKUP(BU32,リスト!I23:J41,2,FALSE)) ->  | BY32: =IF(BZ32="","",VLOOKUP(BZ32,リスト!$S$5:$T$6,2,FALSE)) ->  | CU32: =IF(CV32="","",VLOOKUP(CV32,リスト!$V$5:$W$6,2,FALSE)) ->  | CW32: =IF(CX32="","",VLOOKUP(CX32,リスト!$X$5:$Y$6,2,FALSE)) ->  | DE32: =IF(DF32="","",VLOOKUP(DF32,リスト!$Z$5:$AA$10,2,FALSE)) ->  | DG32: =IF(DH32="","",VLOOKUP(DH32,リスト!$AB$5:$AC$12,2,FALSE)) ->  | DI32: =IF(DJ32="","",VLOOKUP(DJ32,リスト!$AD$5:$AE$7,2,FALSE)) ->  | DK32: =IF(DL32="","",VLOOKUP(DL32,リスト!$AF$5:$AG$10,2,FALSE)) ->  | DM32: =IF(DN32="","",VLOOKUP(DN32,リスト!$AH$5:$AI$6,2,FALSE)) ->  | DO32: =IF(DP32="","",VLOOKUP(DP32,リスト!$AJ$5:$AK$6,2,FALSE)) ->  | DQ32: =IF(DR32="","",VLOOKUP(DR32,リスト!$AL$5:$AM$7,2,FALSE)) ->  | DV32: =IF(DW32="","",VLOOKUP(DW32,リスト!$AN$5:$AO$6,2,FALSE)) ->  | EB32: =IF(EC32="","",VLOOKUP(EC32,リスト!$AW$5:$AX$8,2,FALSE)) ->  | EE32: =IF(EF32="","",VLOOKUP(EF32,リスト!$AY$5:$AZ$10,2,FALSE)) ->  | EG32: =IF(EH32="","",VLOOKUP(EH32,リスト!$BA$5:$BB$10,2,FALSE)) ->  | EI32: =IF(EJ32="","",VLOOKUP(EJ32,リスト!$BC$5:$BD$10,2,FALSE)) ->  | EK32: =IF(EL32="","",VLOOKUP(EL32,リスト!$BE$5:$BF$10,2,FALSE)) ->  | ER32: =IF(ES32="","",VLOOKUP(ES32,リスト!$BG$5:$BH$10,2,FALSE)) ->  | FA32: =IF($EZ32="","",INDEX(リスト!$BI$5:$BJ$40,MATCH($EZ32,リスト!$BJ$5:$BJ$40,0),1)) ->  | FB32: =IF(FC32="","",VLOOKUP(FC32,リスト!$BK:$BL,2,FALSE)) ->  | FF32: =IF(FG32="","",VLOOKUP(FG32,リスト!$BO$5:$BP$6,2,FALSE)) ->  | FH32: =IF(FI32="","",VLOOKUP(FI32,リスト!$BQ$5:$BR$8,2,FALSE)) ->  | FK32: =IF(FL32="","",VLOOKUP(FL32,リスト!$BS$5:$BT$6,2,FALSE)) ->  | FV32: =IF(FW32="","",VLOOKUP(FW32,リスト!$BV$5:$BW$10,2,FALSE)) ->  | FY32: =IF(FZ32="","",VLOOKUP(FZ32,リスト!$BX$5:$BY$6,2,FALSE)) ->  | GA32: =IF(GB32="","",VLOOKUP(GB32,リスト!$BZ$5:$CA$6,2,FALSE)) ->  | GC32: =IF(GD32="","",VLOOKUP(GD32,リスト!$CB$5:$CC$6,2,FALSE)) ->  | GJ32: =IF(GK32="","",VLOOKUP(GK32,リスト!$CD$5:$CE$6,2,FALSE)) ->  | GL32: =IF(GM32="","",VLOOKUP(GM32,リスト!$CF$5:$CG$6,2,FALSE)) ->  | GN32: =IF(GO32="","",VLOOKUP(GO32,リスト!$CH$5:$CI$6,2,FALSE)) -> 
B33: =IF(明細!B27="","",明細!B27) ->  | C33: =IF(明細!C27="","",明細!C27) ->  | D33: =IF(明細!D27="","",明細!D27) ->  | E33: =IF(明細!E27="","",明細!E27) ->  | F33: =IF(明細!F27="","",明細!F27) ->  | G33: =IF(明細!G27="","",明細!G27) ->  | H33: =IF(明細!H27="","",明細!H27) ->  | I33: =IF(明細!I27="","",明細!I27) ->  | J33: =IF(明細!J27="","",明細!J27) ->  | K33: =IF(明細!K27="","",明細!K27) ->  | L33: =IF(明細!K27<>"",CONCATENATE($L$12,明細!L27),"") ->  | M33: =IF(明細!M27="","",明細!M27) ->  | N33: =IF(明細!N27="","",明細!N27) ->  | O33: =IF(明細!O27="","",明細!O27) ->  | P33: =IF(明細!P27="","",明細!P27) ->  | Q33: =IF(明細!Q27="","",明細!Q27) ->  | R33: =IF(明細!R27="","",明細!R27) ->  | S33: =IF(明細!S27="","",明細!S27) ->  | T33: =IF(明細!T27="","",明細!T27) ->  | U33: =IF(明細!U27="","",明細!U27) ->  | V33: =IF(明細!V27<>"","EA","") -> EA | W33: =IF(明細!W27="","",明細!W27) ->  | X33: =IF(明細!X27="","",明細!X27) ->  | Y33: =IF(明細!Y27="","",明細!Y27) ->  | Z33: =IF(明細!Z27="","",明細!Z27) ->  | AA33: =IF(明細!AA27="","",明細!AA27) ->  | AB33: =IF(明細!AB27="","",明細!AB27) ->  | AC33: =IF(明細!AC27="","",明細!AC27) ->  | AD33: =IF(明細!AD27="","",明細!AD27) ->  | AE33: =IF(明細!AE27="","",明細!AE27) -> 10% | AF33: =IF(明細!AF27="","",明細!AF27) ->  | AG33: =IF(明細!AG27="","",明細!AG27) ->  | AH33: =IF(明細!AH27="","",明細!AH27) ->  | AI33: =IF(明細!AI27="","",明細!AI27) ->  | AJ33: =IF(明細!AJ27="","",明細!AJ27) ->  | AK33: =IF(明細!AK27="","",明細!AK27) ->  | AL33: =IF(明細!AL27="","",明細!AL27) ->  | AM33: =IF(明細!AM27="","",明細!AM27) ->  | AN33: =IF(明細!AN27="","",明細!AN27) ->  | AO33: =IF(明細!AO27="","",明細!AO27) ->  | AP33: =IF(明細!AP27="","",明細!AP27) ->  | AQ33: =IF(明細!AQ27="","",明細!AQ27) ->  | AR33: =IF(明細!AR27="","",明細!AR27) ->  | AY33: =IF($AX33="","",VLOOKUP($AX33,リスト!$CL:$CM,2,FALSE)) ->  | BA33: =IF(BB33="","",VLOOKUP(BB33,リスト!$K:$L,2,FALSE)) ->  | BE33: =IF(BF33="","",VLOOKUP(BF33,リスト!$I:$J,2,FALSE)) ->  | BG33: =IF(BH33="","",VLOOKUP(BH33,リスト!$M:$N,2,FALSE)) ->  | BI33: =IF(BJ33="","",VLOOKUP(BJ33,リスト!$O:$P,2,FALSE)) ->  | BO33: =IF($BN33="","",VLOOKUP($BN33,リスト!$CL:$CM,2,FALSE)) ->  | BP33: =IF(BQ33="","",VLOOKUP(BQ33,リスト!$K$5:$L$7,2,FALSE)) ->  | BT33: =IF(BU33="","",VLOOKUP(BU33,リスト!I24:J42,2,FALSE)) ->  | BY33: =IF(BZ33="","",VLOOKUP(BZ33,リスト!$S$5:$T$6,2,FALSE)) ->  | CU33: =IF(CV33="","",VLOOKUP(CV33,リスト!$V$5:$W$6,2,FALSE)) ->  | CW33: =IF(CX33="","",VLOOKUP(CX33,リスト!$X$5:$Y$6,2,FALSE)) ->  | DE33: =IF(DF33="","",VLOOKUP(DF33,リスト!$Z$5:$AA$10,2,FALSE)) ->  | DG33: =IF(DH33="","",VLOOKUP(DH33,リスト!$AB$5:$AC$12,2,FALSE)) ->  | DI33: =IF(DJ33="","",VLOOKUP(DJ33,リスト!$AD$5:$AE$7,2,FALSE)) ->  | DK33: =IF(DL33="","",VLOOKUP(DL33,リスト!$AF$5:$AG$10,2,FALSE)) ->  | DM33: =IF(DN33="","",VLOOKUP(DN33,リスト!$AH$5:$AI$6,2,FALSE)) ->  | DO33: =IF(DP33="","",VLOOKUP(DP33,リスト!$AJ$5:$AK$6,2,FALSE)) ->  | DQ33: =IF(DR33="","",VLOOKUP(DR33,リスト!$AL$5:$AM$7,2,FALSE)) ->  | DV33: =IF(DW33="","",VLOOKUP(DW33,リスト!$AN$5:$AO$6,2,FALSE)) ->  | EB33: =IF(EC33="","",VLOOKUP(EC33,リスト!$AW$5:$AX$8,2,FALSE)) ->  | EE33: =IF(EF33="","",VLOOKUP(EF33,リスト!$AY$5:$AZ$10,2,FALSE)) ->  | EG33: =IF(EH33="","",VLOOKUP(EH33,リスト!$BA$5:$BB$10,2,FALSE)) ->  | EI33: =IF(EJ33="","",VLOOKUP(EJ33,リスト!$BC$5:$BD$10,2,FALSE)) ->  | EK33: =IF(EL33="","",VLOOKUP(EL33,リスト!$BE$5:$BF$10,2,FALSE)) ->  | ER33: =IF(ES33="","",VLOOKUP(ES33,リスト!$BG$5:$BH$10,2,FALSE)) ->  | FA33: =IF($EZ33="","",INDEX(リスト!$BI$5:$BJ$40,MATCH($EZ33,リスト!$BJ$5:$BJ$40,0),1)) ->  | FB33: =IF(FC33="","",VLOOKUP(FC33,リスト!$BK:$BL,2,FALSE)) ->  | FF33: =IF(FG33="","",VLOOKUP(FG33,リスト!$BO$5:$BP$6,2,FALSE)) ->  | FH33: =IF(FI33="","",VLOOKUP(FI33,リスト!$BQ$5:$BR$8,2,FALSE)) ->  | FK33: =IF(FL33="","",VLOOKUP(FL33,リスト!$BS$5:$BT$6,2,FALSE)) ->  | FV33: =IF(FW33="","",VLOOKUP(FW33,リスト!$BV$5:$BW$10,2,FALSE)) ->  | FY33: =IF(FZ33="","",VLOOKUP(FZ33,リスト!$BX$5:$BY$6,2,FALSE)) ->  | GA33: =IF(GB33="","",VLOOKUP(GB33,リスト!$BZ$5:$CA$6,2,FALSE)) ->  | GC33: =IF(GD33="","",VLOOKUP(GD33,リスト!$CB$5:$CC$6,2,FALSE)) ->  | GJ33: =IF(GK33="","",VLOOKUP(GK33,リスト!$CD$5:$CE$6,2,FALSE)) ->  | GL33: =IF(GM33="","",VLOOKUP(GM33,リスト!$CF$5:$CG$6,2,FALSE)) ->  | GN33: =IF(GO33="","",VLOOKUP(GO33,リスト!$CH$5:$CI$6,2,FALSE)) -> 
B34: =IF(明細!B28="","",明細!B28) ->  | C34: =IF(明細!C28="","",明細!C28) ->  | D34: =IF(明細!D28="","",明細!D28) ->  | E34: =IF(明細!E28="","",明細!E28) ->  | F34: =IF(明細!F28="","",明細!F28) ->  | G34: =IF(明細!G28="","",明細!G28) ->  | H34: =IF(明細!H28="","",明細!H28) ->  | I34: =IF(明細!I28="","",明細!I28) ->  | J34: =IF(明細!J28="","",明細!J28) ->  | K34: =IF(明細!K28="","",明細!K28) ->  | L34: =IF(明細!K28<>"",CONCATENATE($L$12,明細!L28),"") ->  | M34: =IF(明細!M28="","",明細!M28) ->  | N34: =IF(明細!N28="","",明細!N28) ->  | O34: =IF(明細!O28="","",明細!O28) ->  | P34: =IF(明細!P28="","",明細!P28) ->  | Q34: =IF(明細!Q28="","",明細!Q28) ->  | R34: =IF(明細!R28="","",明細!R28) ->  | S34: =IF(明細!S28="","",明細!S28) ->  | T34: =IF(明細!T28="","",明細!T28) ->  | U34: =IF(明細!U28="","",明細!U28) ->  | V34: =IF(明細!V28<>"","EA","") -> EA | W34: =IF(明細!W28="","",明細!W28) ->  | X34: =IF(明細!X28="","",明細!X28) ->  | Y34: =IF(明細!Y28="","",明細!Y28) ->  | Z34: =IF(明細!Z28="","",明細!Z28) ->  | AA34: =IF(明細!AA28="","",明細!AA28) ->  | AB34: =IF(明細!AB28="","",明細!AB28) ->  | AC34: =IF(明細!AC28="","",明細!AC28) ->  | AD34: =IF(明細!AD28="","",明細!AD28) ->  | AE34: =IF(明細!AE28="","",明細!AE28) -> 10% | AF34: =IF(明細!AF28="","",明細!AF28) ->  | AG34: =IF(明細!AG28="","",明細!AG28) ->  | AH34: =IF(明細!AH28="","",明細!AH28) ->  | AI34: =IF(明細!AI28="","",明細!AI28) ->  | AJ34: =IF(明細!AJ28="","",明細!AJ28) ->  | AK34: =IF(明細!AK28="","",明細!AK28) ->  | AL34: =IF(明細!AL28="","",明細!AL28) ->  | AM34: =IF(明細!AM28="","",明細!AM28) ->  | AN34: =IF(明細!AN28="","",明細!AN28) ->  | AO34: =IF(明細!AO28="","",明細!AO28) ->  | AP34: =IF(明細!AP28="","",明細!AP28) ->  | AQ34: =IF(明細!AQ28="","",明細!AQ28) ->  | AR34: =IF(明細!AR28="","",明細!AR28) ->  | AY34: =IF($AX34="","",VLOOKUP($AX34,リスト!$CL:$CM,2,FALSE)) ->  | BA34: =IF(BB34="","",VLOOKUP(BB34,リスト!$K:$L,2,FALSE)) ->  | BE34: =IF(BF34="","",VLOOKUP(BF34,リスト!$I:$J,2,FALSE)) ->  | BG34: =IF(BH34="","",VLOOKUP(BH34,リスト!$M:$N,2,FALSE)) ->  | BI34: =IF(BJ34="","",VLOOKUP(BJ34,リスト!$O:$P,2,FALSE)) ->  | BO34: =IF($BN34="","",VLOOKUP($BN34,リスト!$CL:$CM,2,FALSE)) ->  | BP34: =IF(BQ34="","",VLOOKUP(BQ34,リスト!$K$5:$L$7,2,FALSE)) ->  | BT34: =IF(BU34="","",VLOOKUP(BU34,リスト!I25:J43,2,FALSE)) ->  | BY34: =IF(BZ34="","",VLOOKUP(BZ34,リスト!$S$5:$T$6,2,FALSE)) ->  | CU34: =IF(CV34="","",VLOOKUP(CV34,リスト!$V$5:$W$6,2,FALSE)) ->  | CW34: =IF(CX34="","",VLOOKUP(CX34,リスト!$X$5:$Y$6,2,FALSE)) ->  | DE34: =IF(DF34="","",VLOOKUP(DF34,リスト!$Z$5:$AA$10,2,FALSE)) ->  | DG34: =IF(DH34="","",VLOOKUP(DH34,リスト!$AB$5:$AC$12,2,FALSE)) ->  | DI34: =IF(DJ34="","",VLOOKUP(DJ34,リスト!$AD$5:$AE$7,2,FALSE)) ->  | DK34: =IF(DL34="","",VLOOKUP(DL34,リスト!$AF$5:$AG$10,2,FALSE)) ->  | DM34: =IF(DN34="","",VLOOKUP(DN34,リスト!$AH$5:$AI$6,2,FALSE)) ->  | DO34: =IF(DP34="","",VLOOKUP(DP34,リスト!$AJ$5:$AK$6,2,FALSE)) ->  | DQ34: =IF(DR34="","",VLOOKUP(DR34,リスト!$AL$5:$AM$7,2,FALSE)) ->  | DV34: =IF(DW34="","",VLOOKUP(DW34,リスト!$AN$5:$AO$6,2,FALSE)) ->  | EB34: =IF(EC34="","",VLOOKUP(EC34,リスト!$AW$5:$AX$8,2,FALSE)) ->  | EE34: =IF(EF34="","",VLOOKUP(EF34,リスト!$AY$5:$AZ$10,2,FALSE)) ->  | EG34: =IF(EH34="","",VLOOKUP(EH34,リスト!$BA$5:$BB$10,2,FALSE)) ->  | EI34: =IF(EJ34="","",VLOOKUP(EJ34,リスト!$BC$5:$BD$10,2,FALSE)) ->  | EK34: =IF(EL34="","",VLOOKUP(EL34,リスト!$BE$5:$BF$10,2,FALSE)) ->  | ER34: =IF(ES34="","",VLOOKUP(ES34,リスト!$BG$5:$BH$10,2,FALSE)) ->  | FA34: =IF($EZ34="","",INDEX(リスト!$BI$5:$BJ$40,MATCH($EZ34,リスト!$BJ$5:$BJ$40,0),1)) ->  | FB34: =IF(FC34="","",VLOOKUP(FC34,リスト!$BK:$BL,2,FALSE)) ->  | FF34: =IF(FG34="","",VLOOKUP(FG34,リスト!$BO$5:$BP$6,2,FALSE)) ->  | FH34: =IF(FI34="","",VLOOKUP(FI34,リスト!$BQ$5:$BR$8,2,FALSE)) ->  | FK34: =IF(FL34="","",VLOOKUP(FL34,リスト!$BS$5:$BT$6,2,FALSE)) ->  | FV34: =IF(FW34="","",VLOOKUP(FW34,リスト!$BV$5:$BW$10,2,FALSE)) ->  | FY34: =IF(FZ34="","",VLOOKUP(FZ34,リスト!$BX$5:$BY$6,2,FALSE)) ->  | GA34: =IF(GB34="","",VLOOKUP(GB34,リスト!$BZ$5:$CA$6,2,FALSE)) ->  | GC34: =IF(GD34="","",VLOOKUP(GD34,リスト!$CB$5:$CC$6,2,FALSE)) ->  | GJ34: =IF(GK34="","",VLOOKUP(GK34,リスト!$CD$5:$CE$6,2,FALSE)) ->  | GL34: =IF(GM34="","",VLOOKUP(GM34,リスト!$CF$5:$CG$6,2,FALSE)) ->  | GN34: =IF(GO34="","",VLOOKUP(GO34,リスト!$CH$5:$CI$6,2,FALSE)) -> 
B35: =IF(明細!B29="","",明細!B29) ->  | C35: =IF(明細!C29="","",明細!C29) ->  | D35: =IF(明細!D29="","",明細!D29) ->  | E35: =IF(明細!E29="","",明細!E29) ->  | F35: =IF(明細!F29="","",明細!F29) ->  | G35: =IF(明細!G29="","",明細!G29) ->  | H35: =IF(明細!H29="","",明細!H29) ->  | I35: =IF(明細!I29="","",明細!I29) ->  | J35: =IF(明細!J29="","",明細!J29) ->  | K35: =IF(明細!K29="","",明細!K29) ->  | L35: =IF(明細!K29<>"",CONCATENATE($L$12,明細!L29),"") ->  | M35: =IF(明細!M29="","",明細!M29) ->  | N35: =IF(明細!N29="","",明細!N29) ->  | O35: =IF(明細!O29="","",明細!O29) ->  | P35: =IF(明細!P29="","",明細!P29) ->  | Q35: =IF(明細!Q29="","",明細!Q29) ->  | R35: =IF(明細!R29="","",明細!R29) ->  | S35: =IF(明細!S29="","",明細!S29) ->  | T35: =IF(明細!T29="","",明細!T29) ->  | U35: =IF(明細!U29="","",明細!U29) ->  | V35: =IF(明細!V29<>"","EA","") -> EA | W35: =IF(明細!W29="","",明細!W29) ->  | X35: =IF(明細!X29="","",明細!X29) ->  | Y35: =IF(明細!Y29="","",明細!Y29) ->  | Z35: =IF(明細!Z29="","",明細!Z29) ->  | AA35: =IF(明細!AA29="","",明細!AA29) ->  | AB35: =IF(明細!AB29="","",明細!AB29) ->  | AC35: =IF(明細!AC29="","",明細!AC29) ->  | AD35: =IF(明細!AD29="","",明細!AD29) ->  | AE35: =IF(明細!AE29="","",明細!AE29) -> 10% | AF35: =IF(明細!AF29="","",明細!AF29) ->  | AG35: =IF(明細!AG29="","",明細!AG29) ->  | AH35: =IF(明細!AH29="","",明細!AH29) ->  | AI35: =IF(明細!AI29="","",明細!AI29) ->  | AJ35: =IF(明細!AJ29="","",明細!AJ29) ->  | AK35: =IF(明細!AK29="","",明細!AK29) ->  | AL35: =IF(明細!AL29="","",明細!AL29) ->  | AM35: =IF(明細!AM29="","",明細!AM29) ->  | AN35: =IF(明細!AN29="","",明細!AN29) ->  | AO35: =IF(明細!AO29="","",明細!AO29) ->  | AP35: =IF(明細!AP29="","",明細!AP29) ->  | AQ35: =IF(明細!AQ29="","",明細!AQ29) ->  | AR35: =IF(明細!AR29="","",明細!AR29) ->  | AY35: =IF($AX35="","",VLOOKUP($AX35,リスト!$CL:$CM,2,FALSE)) ->  | BA35: =IF(BB35="","",VLOOKUP(BB35,リスト!$K:$L,2,FALSE)) ->  | BE35: =IF(BF35="","",VLOOKUP(BF35,リスト!$I:$J,2,FALSE)) ->  | BG35: =IF(BH35="","",VLOOKUP(BH35,リスト!$M:$N,2,FALSE)) ->  | BI35: =IF(BJ35="","",VLOOKUP(BJ35,リスト!$O:$P,2,FALSE)) ->  | BO35: =IF($BN35="","",VLOOKUP($BN35,リスト!$CL:$CM,2,FALSE)) ->  | BP35: =IF(BQ35="","",VLOOKUP(BQ35,リスト!$K$5:$L$7,2,FALSE)) ->  | BT35: =IF(BU35="","",VLOOKUP(BU35,リスト!I26:J44,2,FALSE)) ->  | BY35: =IF(BZ35="","",VLOOKUP(BZ35,リスト!$S$5:$T$6,2,FALSE)) ->  | CU35: =IF(CV35="","",VLOOKUP(CV35,リスト!$V$5:$W$6,2,FALSE)) ->  | CW35: =IF(CX35="","",VLOOKUP(CX35,リスト!$X$5:$Y$6,2,FALSE)) ->  | DE35: =IF(DF35="","",VLOOKUP(DF35,リスト!$Z$5:$AA$10,2,FALSE)) ->  | DG35: =IF(DH35="","",VLOOKUP(DH35,リスト!$AB$5:$AC$12,2,FALSE)) ->  | DI35: =IF(DJ35="","",VLOOKUP(DJ35,リスト!$AD$5:$AE$7,2,FALSE)) ->  | DK35: =IF(DL35="","",VLOOKUP(DL35,リスト!$AF$5:$AG$10,2,FALSE)) ->  | DM35: =IF(DN35="","",VLOOKUP(DN35,リスト!$AH$5:$AI$6,2,FALSE)) ->  | DO35: =IF(DP35="","",VLOOKUP(DP35,リスト!$AJ$5:$AK$6,2,FALSE)) ->  | DQ35: =IF(DR35="","",VLOOKUP(DR35,リスト!$AL$5:$AM$7,2,FALSE)) ->  | DV35: =IF(DW35="","",VLOOKUP(DW35,リスト!$AN$5:$AO$6,2,FALSE)) ->  | EB35: =IF(EC35="","",VLOOKUP(EC35,リスト!$AW$5:$AX$8,2,FALSE)) ->  | EE35: =IF(EF35="","",VLOOKUP(EF35,リスト!$AY$5:$AZ$10,2,FALSE)) ->  | EG35: =IF(EH35="","",VLOOKUP(EH35,リスト!$BA$5:$BB$10,2,FALSE)) ->  | EI35: =IF(EJ35="","",VLOOKUP(EJ35,リスト!$BC$5:$BD$10,2,FALSE)) ->  | EK35: =IF(EL35="","",VLOOKUP(EL35,リスト!$BE$5:$BF$10,2,FALSE)) ->  | ER35: =IF(ES35="","",VLOOKUP(ES35,リスト!$BG$5:$BH$10,2,FALSE)) ->  | FA35: =IF($EZ35="","",INDEX(リスト!$BI$5:$BJ$40,MATCH($EZ35,リスト!$BJ$5:$BJ$40,0),1)) ->  | FB35: =IF(FC35="","",VLOOKUP(FC35,リスト!$BK:$BL,2,FALSE)) ->  | FF35: =IF(FG35="","",VLOOKUP(FG35,リスト!$BO$5:$BP$6,2,FALSE)) ->  | FH35: =IF(FI35="","",VLOOKUP(FI35,リスト!$BQ$5:$BR$8,2,FALSE)) ->  | FK35: =IF(FL35="","",VLOOKUP(FL35,リスト!$BS$5:$BT$6,2,FALSE)) ->  | FV35: =IF(FW35="","",VLOOKUP(FW35,リスト!$BV$5:$BW$10,2,FALSE)) ->  | FY35: =IF(FZ35="","",VLOOKUP(FZ35,リスト!$BX$5:$BY$6,2,FALSE)) ->  | GA35: =IF(GB35="","",VLOOKUP(GB35,リスト!$BZ$5:$CA$6,2,FALSE)) ->  | GC35: =IF(GD35="","",VLOOKUP(GD35,リスト!$CB$5:$CC$6,2,FALSE)) ->  | GJ35: =IF(GK35="","",VLOOKUP(GK35,リスト!$CD$5:$CE$6,2,FALSE)) ->  | GL35: =IF(GM35="","",VLOOKUP(GM35,リスト!$CF$5:$CG$6,2,FALSE)) ->  | GN35: =IF(GO35="","",VLOOKUP(GO35,リスト!$CH$5:$CI$6,2,FALSE)) -> 
B36: =IF(明細!B30="","",明細!B30) ->  | C36: =IF(明細!C30="","",明細!C30) ->  | D36: =IF(明細!D30="","",明細!D30) ->  | E36: =IF(明細!E30="","",明細!E30) ->  | F36: =IF(明細!F30="","",明細!F30) ->  | G36: =IF(明細!G30="","",明細!G30) ->  | H36: =IF(明細!H30="","",明細!H30) ->  | I36: =IF(明細!I30="","",明細!I30) ->  | J36: =IF(明細!J30="","",明細!J30) ->  | K36: =IF(明細!K30="","",明細!K30) ->  | L36: =IF(明細!K30<>"",CONCATENATE($L$12,明細!L30),"") ->  | M36: =IF(明細!M30="","",明細!M30) ->  | N36: =IF(明細!N30="","",明細!N30) ->  | O36: =IF(明細!O30="","",明細!O30) ->  | P36: =IF(明細!P30="","",明細!P30) ->  | Q36: =IF(明細!Q30="","",明細!Q30) ->  | R36: =IF(明細!R30="","",明細!R30) ->  | S36: =IF(明細!S30="","",明細!S30) ->  | T36: =IF(明細!T30="","",明細!T30) ->  | U36: =IF(明細!U30="","",明細!U30) ->  | V36: =IF(明細!V30<>"","EA","") -> EA | W36: =IF(明細!W30="","",明細!W30) ->  | X36: =IF(明細!X30="","",明細!X30) ->  | Y36: =IF(明細!Y30="","",明細!Y30) ->  | Z36: =IF(明細!Z30="","",明細!Z30) ->  | AA36: =IF(明細!AA30="","",明細!AA30) ->  | AB36: =IF(明細!AB30="","",明細!AB30) ->  | AC36: =IF(明細!AC30="","",明細!AC30) ->  | AD36: =IF(明細!AD30="","",明細!AD30) ->  | AE36: =IF(明細!AE30="","",明細!AE30) -> 10% | AF36: =IF(明細!AF30="","",明細!AF30) ->  | AG36: =IF(明細!AG30="","",明細!AG30) ->  | AH36: =IF(明細!AH30="","",明細!AH30) ->  | AI36: =IF(明細!AI30="","",明細!AI30) ->  | AJ36: =IF(明細!AJ30="","",明細!AJ30) ->  | AK36: =IF(明細!AK30="","",明細!AK30) ->  | AL36: =IF(明細!AL30="","",明細!AL30) ->  | AM36: =IF(明細!AM30="","",明細!AM30) ->  | AN36: =IF(明細!AN30="","",明細!AN30) ->  | AO36: =IF(明細!AO30="","",明細!AO30) ->  | AP36: =IF(明細!AP30="","",明細!AP30) ->  | AQ36: =IF(明細!AQ30="","",明細!AQ30) ->  | AR36: =IF(明細!AR30="","",明細!AR30) ->  | AY36: =IF($AX36="","",VLOOKUP($AX36,リスト!$CL:$CM,2,FALSE)) ->  | BA36: =IF(BB36="","",VLOOKUP(BB36,リスト!$K:$L,2,FALSE)) ->  | BE36: =IF(BF36="","",VLOOKUP(BF36,リスト!$I:$J,2,FALSE)) ->  | BG36: =IF(BH36="","",VLOOKUP(BH36,リスト!$M:$N,2,FALSE)) ->  | BI36: =IF(BJ36="","",VLOOKUP(BJ36,リスト!$O:$P,2,FALSE)) ->  | BO36: =IF($BN36="","",VLOOKUP($BN36,リスト!$CL:$CM,2,FALSE)) ->  | BP36: =IF(BQ36="","",VLOOKUP(BQ36,リスト!$K$5:$L$7,2,FALSE)) ->  | BT36: =IF(BU36="","",VLOOKUP(BU36,リスト!I27:J45,2,FALSE)) ->  | BY36: =IF(BZ36="","",VLOOKUP(BZ36,リスト!$S$5:$T$6,2,FALSE)) ->  | CU36: =IF(CV36="","",VLOOKUP(CV36,リスト!$V$5:$W$6,2,FALSE)) ->  | CW36: =IF(CX36="","",VLOOKUP(CX36,リスト!$X$5:$Y$6,2,FALSE)) ->  | DE36: =IF(DF36="","",VLOOKUP(DF36,リスト!$Z$5:$AA$10,2,FALSE)) ->  | DG36: =IF(DH36="","",VLOOKUP(DH36,リスト!$AB$5:$AC$12,2,FALSE)) ->  | DI36: =IF(DJ36="","",VLOOKUP(DJ36,リスト!$AD$5:$AE$7,2,FALSE)) ->  | DK36: =IF(DL36="","",VLOOKUP(DL36,リスト!$AF$5:$AG$10,2,FALSE)) ->  | DM36: =IF(DN36="","",VLOOKUP(DN36,リスト!$AH$5:$AI$6,2,FALSE)) ->  | DO36: =IF(DP36="","",VLOOKUP(DP36,リスト!$AJ$5:$AK$6,2,FALSE)) ->  | DQ36: =IF(DR36="","",VLOOKUP(DR36,リスト!$AL$5:$AM$7,2,FALSE)) ->  | DV36: =IF(DW36="","",VLOOKUP(DW36,リスト!$AN$5:$AO$6,2,FALSE)) ->  | EB36: =IF(EC36="","",VLOOKUP(EC36,リスト!$AW$5:$AX$8,2,FALSE)) ->  | EE36: =IF(EF36="","",VLOOKUP(EF36,リスト!$AY$5:$AZ$10,2,FALSE)) ->  | EG36: =IF(EH36="","",VLOOKUP(EH36,リスト!$BA$5:$BB$10,2,FALSE)) ->  | EI36: =IF(EJ36="","",VLOOKUP(EJ36,リスト!$BC$5:$BD$10,2,FALSE)) ->  | EK36: =IF(EL36="","",VLOOKUP(EL36,リスト!$BE$5:$BF$10,2,FALSE)) ->  | ER36: =IF(ES36="","",VLOOKUP(ES36,リスト!$BG$5:$BH$10,2,FALSE)) ->  | FA36: =IF($EZ36="","",INDEX(リスト!$BI$5:$BJ$40,MATCH($EZ36,リスト!$BJ$5:$BJ$40,0),1)) ->  | FB36: =IF(FC36="","",VLOOKUP(FC36,リスト!$BK:$BL,2,FALSE)) ->  | FF36: =IF(FG36="","",VLOOKUP(FG36,リスト!$BO$5:$BP$6,2,FALSE)) ->  | FH36: =IF(FI36="","",VLOOKUP(FI36,リスト!$BQ$5:$BR$8,2,FALSE)) ->  | FK36: =IF(FL36="","",VLOOKUP(FL36,リスト!$BS$5:$BT$6,2,FALSE)) ->  | FV36: =IF(FW36="","",VLOOKUP(FW36,リスト!$BV$5:$BW$10,2,FALSE)) ->  | FY36: =IF(FZ36="","",VLOOKUP(FZ36,リスト!$BX$5:$BY$6,2,FALSE)) ->  | GA36: =IF(GB36="","",VLOOKUP(GB36,リスト!$BZ$5:$CA$6,2,FALSE)) ->  | GC36: =IF(GD36="","",VLOOKUP(GD36,リスト!$CB$5:$CC$6,2,FALSE)) ->  | GJ36: =IF(GK36="","",VLOOKUP(GK36,リスト!$CD$5:$CE$6,2,FALSE)) ->  | GL36: =IF(GM36="","",VLOOKUP(GM36,リスト!$CF$5:$CG$6,2,FALSE)) ->  | GN36: =IF(GO36="","",VLOOKUP(GO36,リスト!$CH$5:$CI$6,2,FALSE)) -> 
B37: =IF(明細!B31="","",明細!B31) ->  | C37: =IF(明細!C31="","",明細!C31) ->  | D37: =IF(明細!D31="","",明細!D31) ->  | E37: =IF(明細!E31="","",明細!E31) ->  | F37: =IF(明細!F31="","",明細!F31) ->  | G37: =IF(明細!G31="","",明細!G31) ->  | H37: =IF(明細!H31="","",明細!H31) ->  | I37: =IF(明細!I31="","",明細!I31) ->  | J37: =IF(明細!J31="","",明細!J31) ->  | K37: =IF(明細!K31="","",明細!K31) ->  | L37: =IF(明細!K31<>"",CONCATENATE($L$12,明細!L31),"") ->  | M37: =IF(明細!M31="","",明細!M31) ->  | N37: =IF(明細!N31="","",明細!N31) ->  | O37: =IF(明細!O31="","",明細!O31) ->  | P37: =IF(明細!P31="","",明細!P31) ->  | Q37: =IF(明細!Q31="","",明細!Q31) ->  | R37: =IF(明細!R31="","",明細!R31) ->  | S37: =IF(明細!S31="","",明細!S31) ->  | T37: =IF(明細!T31="","",明細!T31) ->  | U37: =IF(明細!U31="","",明細!U31) ->  | V37: =IF(明細!V31<>"","EA","") -> EA | W37: =IF(明細!W31="","",明細!W31) ->  | X37: =IF(明細!X31="","",明細!X31) ->  | Y37: =IF(明細!Y31="","",明細!Y31) ->  | Z37: =IF(明細!Z31="","",明細!Z31) ->  | AA37: =IF(明細!AA31="","",明細!AA31) ->  | AB37: =IF(明細!AB31="","",明細!AB31) ->  | AC37: =IF(明細!AC31="","",明細!AC31) ->  | AD37: =IF(明細!AD31="","",明細!AD31) ->  | AE37: =IF(明細!AE31="","",明細!AE31) -> 10% | AF37: =IF(明細!AF31="","",明細!AF31) ->  | AG37: =IF(明細!AG31="","",明細!AG31) ->  | AH37: =IF(明細!AH31="","",明細!AH31) ->  | AI37: =IF(明細!AI31="","",明細!AI31) ->  | AJ37: =IF(明細!AJ31="","",明細!AJ31) ->  | AK37: =IF(明細!AK31="","",明細!AK31) ->  | AL37: =IF(明細!AL31="","",明細!AL31) ->  | AM37: =IF(明細!AM31="","",明細!AM31) ->  | AN37: =IF(明細!AN31="","",明細!AN31) ->  | AO37: =IF(明細!AO31="","",明細!AO31) ->  | AP37: =IF(明細!AP31="","",明細!AP31) ->  | AQ37: =IF(明細!AQ31="","",明細!AQ31) ->  | AR37: =IF(明細!AR31="","",明細!AR31) ->  | AY37: =IF($AX37="","",VLOOKUP($AX37,リスト!$CL:$CM,2,FALSE)) ->  | BA37: =IF(BB37="","",VLOOKUP(BB37,リスト!$K:$L,2,FALSE)) ->  | BE37: =IF(BF37="","",VLOOKUP(BF37,リスト!$I:$J,2,FALSE)) ->  | BG37: =IF(BH37="","",VLOOKUP(BH37,リスト!$M:$N,2,FALSE)) ->  | BI37: =IF(BJ37="","",VLOOKUP(BJ37,リスト!$O:$P,2,FALSE)) ->  | BO37: =IF($BN37="","",VLOOKUP($BN37,リスト!$CL:$CM,2,FALSE)) ->  | BP37: =IF(BQ37="","",VLOOKUP(BQ37,リスト!$K$5:$L$7,2,FALSE)) ->  | BT37: =IF(BU37="","",VLOOKUP(BU37,リスト!I28:J46,2,FALSE)) ->  | BY37: =IF(BZ37="","",VLOOKUP(BZ37,リスト!$S$5:$T$6,2,FALSE)) ->  | CU37: =IF(CV37="","",VLOOKUP(CV37,リスト!$V$5:$W$6,2,FALSE)) ->  | CW37: =IF(CX37="","",VLOOKUP(CX37,リスト!$X$5:$Y$6,2,FALSE)) ->  | DE37: =IF(DF37="","",VLOOKUP(DF37,リスト!$Z$5:$AA$10,2,FALSE)) ->  | DG37: =IF(DH37="","",VLOOKUP(DH37,リスト!$AB$5:$AC$12,2,FALSE)) ->  | DI37: =IF(DJ37="","",VLOOKUP(DJ37,リスト!$AD$5:$AE$7,2,FALSE)) ->  | DK37: =IF(DL37="","",VLOOKUP(DL37,リスト!$AF$5:$AG$10,2,FALSE)) ->  | DM37: =IF(DN37="","",VLOOKUP(DN37,リスト!$AH$5:$AI$6,2,FALSE)) ->  | DO37: =IF(DP37="","",VLOOKUP(DP37,リスト!$AJ$5:$AK$6,2,FALSE)) ->  | DQ37: =IF(DR37="","",VLOOKUP(DR37,リスト!$AL$5:$AM$7,2,FALSE)) ->  | DV37: =IF(DW37="","",VLOOKUP(DW37,リスト!$AN$5:$AO$6,2,FALSE)) ->  | EB37: =IF(EC37="","",VLOOKUP(EC37,リスト!$AW$5:$AX$8,2,FALSE)) ->  | EE37: =IF(EF37="","",VLOOKUP(EF37,リスト!$AY$5:$AZ$10,2,FALSE)) ->  | EG37: =IF(EH37="","",VLOOKUP(EH37,リスト!$BA$5:$BB$10,2,FALSE)) ->  | EI37: =IF(EJ37="","",VLOOKUP(EJ37,リスト!$BC$5:$BD$10,2,FALSE)) ->  | EK37: =IF(EL37="","",VLOOKUP(EL37,リスト!$BE$5:$BF$10,2,FALSE)) ->  | ER37: =IF(ES37="","",VLOOKUP(ES37,リスト!$BG$5:$BH$10,2,FALSE)) ->  | FA37: =IF($EZ37="","",INDEX(リスト!$BI$5:$BJ$40,MATCH($EZ37,リスト!$BJ$5:$BJ$40,0),1)) ->  | FB37: =IF(FC37="","",VLOOKUP(FC37,リスト!$BK:$BL,2,FALSE)) ->  | FF37: =IF(FG37="","",VLOOKUP(FG37,リスト!$BO$5:$BP$6,2,FALSE)) ->  | FH37: =IF(FI37="","",VLOOKUP(FI37,リスト!$BQ$5:$BR$8,2,FALSE)) ->  | FK37: =IF(FL37="","",VLOOKUP(FL37,リスト!$BS$5:$BT$6,2,FALSE)) ->  | FV37: =IF(FW37="","",VLOOKUP(FW37,リスト!$BV$5:$BW$10,2,FALSE)) ->  | FY37: =IF(FZ37="","",VLOOKUP(FZ37,リスト!$BX$5:$BY$6,2,FALSE)) ->  | GA37: =IF(GB37="","",VLOOKUP(GB37,リスト!$BZ$5:$CA$6,2,FALSE)) ->  | GC37: =IF(GD37="","",VLOOKUP(GD37,リスト!$CB$5:$CC$6,2,FALSE)) ->  | GJ37: =IF(GK37="","",VLOOKUP(GK37,リスト!$CD$5:$CE$6,2,FALSE)) ->  | GL37: =IF(GM37="","",VLOOKUP(GM37,リスト!$CF$5:$CG$6,2,FALSE)) ->  | GN37: =IF(GO37="","",VLOOKUP(GO37,リスト!$CH$5:$CI$6,2,FALSE)) -> 
B38: =IF(明細!B32="","",明細!B32) ->  | C38: =IF(明細!C32="","",明細!C32) ->  | D38: =IF(明細!D32="","",明細!D32) ->  | E38: =IF(明細!E32="","",明細!E32) ->  | F38: =IF(明細!F32="","",明細!F32) ->  | G38: =IF(明細!G32="","",明細!G32) ->  | H38: =IF(明細!H32="","",明細!H32) ->  | I38: =IF(明細!I32="","",明細!I32) ->  | J38: =IF(明細!J32="","",明細!J32) ->  | K38: =IF(明細!K32="","",明細!K32) ->  | L38: =IF(明細!K32<>"",CONCATENATE($L$12,明細!L32),"") ->  | M38: =IF(明細!M32="","",明細!M32) ->  | N38: =IF(明細!N32="","",明細!N32) ->  | O38: =IF(明細!O32="","",明細!O32) ->  | P38: =IF(明細!P32="","",明細!P32) ->  | Q38: =IF(明細!Q32="","",明細!Q32) ->  | R38: =IF(明細!R32="","",明細!R32) ->  | S38: =IF(明細!S32="","",明細!S32) ->  | T38: =IF(明細!T32="","",明細!T32) ->  | U38: =IF(明細!U32="","",明細!U32) ->  | V38: =IF(明細!V32<>"","EA","") -> EA | W38: =IF(明細!W32="","",明細!W32) ->  | X38: =IF(明細!X32="","",明細!X32) ->  | Y38: =IF(明細!Y32="","",明細!Y32) ->  | Z38: =IF(明細!Z32="","",明細!Z32) ->  | AA38: =IF(明細!AA32="","",明細!AA32) ->  | AB38: =IF(明細!AB32="","",明細!AB32) ->  | AC38: =IF(明細!AC32="","",明細!AC32) ->  | AD38: =IF(明細!AD32="","",明細!AD32) ->  | AE38: =IF(明細!AE32="","",明細!AE32) -> 10% | AF38: =IF(明細!AF32="","",明細!AF32) ->  | AG38: =IF(明細!AG32="","",明細!AG32) ->  | AH38: =IF(明細!AH32="","",明細!AH32) ->  | AI38: =IF(明細!AI32="","",明細!AI32) ->  | AJ38: =IF(明細!AJ32="","",明細!AJ32) ->  | AK38: =IF(明細!AK32="","",明細!AK32) ->  | AL38: =IF(明細!AL32="","",明細!AL32) ->  | AM38: =IF(明細!AM32="","",明細!AM32) ->  | AN38: =IF(明細!AN32="","",明細!AN32) ->  | AO38: =IF(明細!AO32="","",明細!AO32) ->  | AP38: =IF(明細!AP32="","",明細!AP32) ->  | AQ38: =IF(明細!AQ32="","",明細!AQ32) ->  | AR38: =IF(明細!AR32="","",明細!AR32) ->  | AY38: =IF($AX38="","",VLOOKUP($AX38,リスト!$CL:$CM,2,FALSE)) ->  | BA38: =IF(BB38="","",VLOOKUP(BB38,リスト!$K:$L,2,FALSE)) ->  | BE38: =IF(BF38="","",VLOOKUP(BF38,リスト!$I:$J,2,FALSE)) ->  | BG38: =IF(BH38="","",VLOOKUP(BH38,リスト!$M:$N,2,FALSE)) ->  | BI38: =IF(BJ38="","",VLOOKUP(BJ38,リスト!$O:$P,2,FALSE)) ->  | BO38: =IF($BN38="","",VLOOKUP($BN38,リスト!$CL:$CM,2,FALSE)) ->  | BP38: =IF(BQ38="","",VLOOKUP(BQ38,リスト!$K$5:$L$7,2,FALSE)) ->  | BT38: =IF(BU38="","",VLOOKUP(BU38,リスト!I29:J47,2,FALSE)) ->  | BY38: =IF(BZ38="","",VLOOKUP(BZ38,リスト!$S$5:$T$6,2,FALSE)) ->  | CU38: =IF(CV38="","",VLOOKUP(CV38,リスト!$V$5:$W$6,2,FALSE)) ->  | CW38: =IF(CX38="","",VLOOKUP(CX38,リスト!$X$5:$Y$6,2,FALSE)) ->  | DE38: =IF(DF38="","",VLOOKUP(DF38,リスト!$Z$5:$AA$10,2,FALSE)) ->  | DG38: =IF(DH38="","",VLOOKUP(DH38,リスト!$AB$5:$AC$12,2,FALSE)) ->  | DI38: =IF(DJ38="","",VLOOKUP(DJ38,リスト!$AD$5:$AE$7,2,FALSE)) ->  | DK38: =IF(DL38="","",VLOOKUP(DL38,リスト!$AF$5:$AG$10,2,FALSE)) ->  | DM38: =IF(DN38="","",VLOOKUP(DN38,リスト!$AH$5:$AI$6,2,FALSE)) ->  | DO38: =IF(DP38="","",VLOOKUP(DP38,リスト!$AJ$5:$AK$6,2,FALSE)) ->  | DQ38: =IF(DR38="","",VLOOKUP(DR38,リスト!$AL$5:$AM$7,2,FALSE)) ->  | DV38: =IF(DW38="","",VLOOKUP(DW38,リスト!$AN$5:$AO$6,2,FALSE)) ->  | EB38: =IF(EC38="","",VLOOKUP(EC38,リスト!$AW$5:$AX$8,2,FALSE)) ->  | EE38: =IF(EF38="","",VLOOKUP(EF38,リスト!$AY$5:$AZ$10,2,FALSE)) ->  | EG38: =IF(EH38="","",VLOOKUP(EH38,リスト!$BA$5:$BB$10,2,FALSE)) ->  | EI38: =IF(EJ38="","",VLOOKUP(EJ38,リスト!$BC$5:$BD$10,2,FALSE)) ->  | EK38: =IF(EL38="","",VLOOKUP(EL38,リスト!$BE$5:$BF$10,2,FALSE)) ->  | ER38: =IF(ES38="","",VLOOKUP(ES38,リスト!$BG$5:$BH$10,2,FALSE)) ->  | FA38: =IF($EZ38="","",INDEX(リスト!$BI$5:$BJ$40,MATCH($EZ38,リスト!$BJ$5:$BJ$40,0),1)) ->  | FB38: =IF(FC38="","",VLOOKUP(FC38,リスト!$BK:$BL,2,FALSE)) ->  | FF38: =IF(FG38="","",VLOOKUP(FG38,リスト!$BO$5:$BP$6,2,FALSE)) ->  | FH38: =IF(FI38="","",VLOOKUP(FI38,リスト!$BQ$5:$BR$8,2,FALSE)) ->  | FK38: =IF(FL38="","",VLOOKUP(FL38,リスト!$BS$5:$BT$6,2,FALSE)) ->  | FV38: =IF(FW38="","",VLOOKUP(FW38,リスト!$BV$5:$BW$10,2,FALSE)) ->  | FY38: =IF(FZ38="","",VLOOKUP(FZ38,リスト!$BX$5:$BY$6,2,FALSE)) ->  | GA38: =IF(GB38="","",VLOOKUP(GB38,リスト!$BZ$5:$CA$6,2,FALSE)) ->  | GC38: =IF(GD38="","",VLOOKUP(GD38,リスト!$CB$5:$CC$6,2,FALSE)) ->  | GJ38: =IF(GK38="","",VLOOKUP(GK38,リスト!$CD$5:$CE$6,2,FALSE)) ->  | GL38: =IF(GM38="","",VLOOKUP(GM38,リスト!$CF$5:$CG$6,2,FALSE)) ->  | GN38: =IF(GO38="","",VLOOKUP(GO38,リスト!$CH$5:$CI$6,2,FALSE)) -> 
B39: =IF(明細!B33="","",明細!B33) ->  | C39: =IF(明細!C33="","",明細!C33) ->  | D39: =IF(明細!D33="","",明細!D33) ->  | E39: =IF(明細!E33="","",明細!E33) ->  | F39: =IF(明細!F33="","",明細!F33) ->  | G39: =IF(明細!G33="","",明細!G33) ->  | H39: =IF(明細!H33="","",明細!H33) ->  | I39: =IF(明細!I33="","",明細!I33) ->  | J39: =IF(明細!J33="","",明細!J33) ->  | K39: =IF(明細!K33="","",明細!K33) ->  | L39: =IF(明細!K33<>"",CONCATENATE($L$12,明細!L33),"") ->  | M39: =IF(明細!M33="","",明細!M33) ->  | N39: =IF(明細!N33="","",明細!N33) ->  | O39: =IF(明細!O33="","",明細!O33) ->  | P39: =IF(明細!P33="","",明細!P33) ->  | Q39: =IF(明細!Q33="","",明細!Q33) ->  | R39: =IF(明細!R33="","",明細!R33) ->  | S39: =IF(明細!S33="","",明細!S33) ->  | T39: =IF(明細!T33="","",明細!T33) ->  | U39: =IF(明細!U33="","",明細!U33) ->  | V39: =IF(明細!V33<>"","EA","") -> EA | W39: =IF(明細!W33="","",明細!W33) ->  | X39: =IF(明細!X33="","",明細!X33) ->  | Y39: =IF(明細!Y33="","",明細!Y33) ->  | Z39: =IF(明細!Z33="","",明細!Z33) ->  | AA39: =IF(明細!AA33="","",明細!AA33) ->  | AB39: =IF(明細!AB33="","",明細!AB33) ->  | AC39: =IF(明細!AC33="","",明細!AC33) ->  | AD39: =IF(明細!AD33="","",明細!AD33) ->  | AE39: =IF(明細!AE33="","",明細!AE33) -> 10% | AF39: =IF(明細!AF33="","",明細!AF33) ->  | AG39: =IF(明細!AG33="","",明細!AG33) ->  | AH39: =IF(明細!AH33="","",明細!AH33) ->  | AI39: =IF(明細!AI33="","",明細!AI33) ->  | AJ39: =IF(明細!AJ33="","",明細!AJ33) ->  | AK39: =IF(明細!AK33="","",明細!AK33) ->  | AL39: =IF(明細!AL33="","",明細!AL33) ->  | AM39: =IF(明細!AM33="","",明細!AM33) ->  | AN39: =IF(明細!AN33="","",明細!AN33) ->  | AO39: =IF(明細!AO33="","",明細!AO33) ->  | AP39: =IF(明細!AP33="","",明細!AP33) ->  | AQ39: =IF(明細!AQ33="","",明細!AQ33) ->  | AR39: =IF(明細!AR33="","",明細!AR33) ->  | AY39: =IF($AX39="","",VLOOKUP($AX39,リスト!$CL:$CM,2,FALSE)) ->  | BA39: =IF(BB39="","",VLOOKUP(BB39,リスト!$K:$L,2,FALSE)) ->  | BE39: =IF(BF39="","",VLOOKUP(BF39,リスト!$I:$J,2,FALSE)) ->  | BG39: =IF(BH39="","",VLOOKUP(BH39,リスト!$M:$N,2,FALSE)) ->  | BI39: =IF(BJ39="","",VLOOKUP(BJ39,リスト!$O:$P,2,FALSE)) ->  | BO39: =IF($BN39="","",VLOOKUP($BN39,リスト!$CL:$CM,2,FALSE)) ->  | BP39: =IF(BQ39="","",VLOOKUP(BQ39,リスト!$K$5:$L$7,2,FALSE)) ->  | BT39: =IF(BU39="","",VLOOKUP(BU39,リスト!I30:J48,2,FALSE)) ->  | BY39: =IF(BZ39="","",VLOOKUP(BZ39,リスト!$S$5:$T$6,2,FALSE)) ->  | CU39: =IF(CV39="","",VLOOKUP(CV39,リスト!$V$5:$W$6,2,FALSE)) ->  | CW39: =IF(CX39="","",VLOOKUP(CX39,リスト!$X$5:$Y$6,2,FALSE)) ->  | DE39: =IF(DF39="","",VLOOKUP(DF39,リスト!$Z$5:$AA$10,2,FALSE)) ->  | DG39: =IF(DH39="","",VLOOKUP(DH39,リスト!$AB$5:$AC$12,2,FALSE)) ->  | DI39: =IF(DJ39="","",VLOOKUP(DJ39,リスト!$AD$5:$AE$7,2,FALSE)) ->  | DK39: =IF(DL39="","",VLOOKUP(DL39,リスト!$AF$5:$AG$10,2,FALSE)) ->  | DM39: =IF(DN39="","",VLOOKUP(DN39,リスト!$AH$5:$AI$6,2,FALSE)) ->  | DO39: =IF(DP39="","",VLOOKUP(DP39,リスト!$AJ$5:$AK$6,2,FALSE)) ->  | DQ39: =IF(DR39="","",VLOOKUP(DR39,リスト!$AL$5:$AM$7,2,FALSE)) ->  | DV39: =IF(DW39="","",VLOOKUP(DW39,リスト!$AN$5:$AO$6,2,FALSE)) ->  | EB39: =IF(EC39="","",VLOOKUP(EC39,リスト!$AW$5:$AX$8,2,FALSE)) ->  | EE39: =IF(EF39="","",VLOOKUP(EF39,リスト!$AY$5:$AZ$10,2,FALSE)) ->  | EG39: =IF(EH39="","",VLOOKUP(EH39,リスト!$BA$5:$BB$10,2,FALSE)) ->  | EI39: =IF(EJ39="","",VLOOKUP(EJ39,リスト!$BC$5:$BD$10,2,FALSE)) ->  | EK39: =IF(EL39="","",VLOOKUP(EL39,リスト!$BE$5:$BF$10,2,FALSE)) ->  | ER39: =IF(ES39="","",VLOOKUP(ES39,リスト!$BG$5:$BH$10,2,FALSE)) ->  | FA39: =IF($EZ39="","",INDEX(リスト!$BI$5:$BJ$40,MATCH($EZ39,リスト!$BJ$5:$BJ$40,0),1)) ->  | FB39: =IF(FC39="","",VLOOKUP(FC39,リスト!$BK:$BL,2,FALSE)) ->  | FF39: =IF(FG39="","",VLOOKUP(FG39,リスト!$BO$5:$BP$6,2,FALSE)) ->  | FH39: =IF(FI39="","",VLOOKUP(FI39,リスト!$BQ$5:$BR$8,2,FALSE)) ->  | FK39: =IF(FL39="","",VLOOKUP(FL39,リスト!$BS$5:$BT$6,2,FALSE)) ->  | FV39: =IF(FW39="","",VLOOKUP(FW39,リスト!$BV$5:$BW$10,2,FALSE)) ->  | FY39: =IF(FZ39="","",VLOOKUP(FZ39,リスト!$BX$5:$BY$6,2,FALSE)) ->  | GA39: =IF(GB39="","",VLOOKUP(GB39,リスト!$BZ$5:$CA$6,2,FALSE)) ->  | GC39: =IF(GD39="","",VLOOKUP(GD39,リスト!$CB$5:$CC$6,2,FALSE)) ->  | GJ39: =IF(GK39="","",VLOOKUP(GK39,リスト!$CD$5:$CE$6,2,FALSE)) ->  | GL39: =IF(GM39="","",VLOOKUP(GM39,リスト!$CF$5:$CG$6,2,FALSE)) ->  | GN39: =IF(GO39="","",VLOOKUP(GO39,リスト!$CH$5:$CI$6,2,FALSE)) -> 
B40: =IF(明細!B34="","",明細!B34) ->  | C40: =IF(明細!C34="","",明細!C34) ->  | D40: =IF(明細!D34="","",明細!D34) ->  | E40: =IF(明細!E34="","",明細!E34) ->  | F40: =IF(明細!F34="","",明細!F34) ->  | G40: =IF(明細!G34="","",明細!G34) ->  | H40: =IF(明細!H34="","",明細!H34) ->  | I40: =IF(明細!I34="","",明細!I34) ->  | J40: =IF(明細!J34="","",明細!J34) ->  | K40: =IF(明細!K34="","",明細!K34) ->  | L40: =IF(明細!K34<>"",CONCATENATE($L$12,明細!L34),"") ->  | M40: =IF(明細!M34="","",明細!M34) ->  | N40: =IF(明細!N34="","",明細!N34) ->  | O40: =IF(明細!O34="","",明細!O34) ->  | P40: =IF(明細!P34="","",明細!P34) ->  | Q40: =IF(明細!Q34="","",明細!Q34) ->  | R40: =IF(明細!R34="","",明細!R34) ->  | S40: =IF(明細!S34="","",明細!S34) ->  | T40: =IF(明細!T34="","",明細!T34) ->  | U40: =IF(明細!U34="","",明細!U34) ->  | V40: =IF(明細!V34<>"","EA","") -> EA | W40: =IF(明細!W34="","",明細!W34) ->  | X40: =IF(明細!X34="","",明細!X34) ->  | Y40: =IF(明細!Y34="","",明細!Y34) ->  | Z40: =IF(明細!Z34="","",明細!Z34) ->  | AA40: =IF(明細!AA34="","",明細!AA34) ->  | AB40: =IF(明細!AB34="","",明細!AB34) ->  | AC40: =IF(明細!AC34="","",明細!AC34) ->  | AD40: =IF(明細!AD34="","",明細!AD34) ->  | AE40: =IF(明細!AE34="","",明細!AE34) -> 10% | AF40: =IF(明細!AF34="","",明細!AF34) ->  | AG40: =IF(明細!AG34="","",明細!AG34) ->  | AH40: =IF(明細!AH34="","",明細!AH34) ->  | AI40: =IF(明細!AI34="","",明細!AI34) ->  | AJ40: =IF(明細!AJ34="","",明細!AJ34) ->  | AK40: =IF(明細!AK34="","",明細!AK34) ->  | AL40: =IF(明細!AL34="","",明細!AL34) ->  | AM40: =IF(明細!AM34="","",明細!AM34) ->  | AN40: =IF(明細!AN34="","",明細!AN34) ->  | AO40: =IF(明細!AO34="","",明細!AO34) ->  | AP40: =IF(明細!AP34="","",明細!AP34) ->  | AQ40: =IF(明細!AQ34="","",明細!AQ34) ->  | AR40: =IF(明細!AR34="","",明細!AR34) ->  | AY40: =IF($AX40="","",VLOOKUP($AX40,リスト!$CL:$CM,2,FALSE)) ->  | BA40: =IF(BB40="","",VLOOKUP(BB40,リスト!$K:$L,2,FALSE)) ->  | BE40: =IF(BF40="","",VLOOKUP(BF40,リスト!$I:$J,2,FALSE)) ->  | BG40: =IF(BH40="","",VLOOKUP(BH40,リスト!$M:$N,2,FALSE)) ->  | BI40: =IF(BJ40="","",VLOOKUP(BJ40,リスト!$O:$P,2,FALSE)) ->  | BO40: =IF($BN40="","",VLOOKUP($BN40,リスト!$CL:$CM,2,FALSE)) ->  | BP40: =IF(BQ40="","",VLOOKUP(BQ40,リスト!$K$5:$L$7,2,FALSE)) ->  | BT40: =IF(BU40="","",VLOOKUP(BU40,リスト!I31:J49,2,FALSE)) ->  | BY40: =IF(BZ40="","",VLOOKUP(BZ40,リスト!$S$5:$T$6,2,FALSE)) ->  | CU40: =IF(CV40="","",VLOOKUP(CV40,リスト!$V$5:$W$6,2,FALSE)) ->  | CW40: =IF(CX40="","",VLOOKUP(CX40,リスト!$X$5:$Y$6,2,FALSE)) ->  | DE40: =IF(DF40="","",VLOOKUP(DF40,リスト!$Z$5:$AA$10,2,FALSE)) ->  | DG40: =IF(DH40="","",VLOOKUP(DH40,リスト!$AB$5:$AC$12,2,FALSE)) ->  | DI40: =IF(DJ40="","",VLOOKUP(DJ40,リスト!$AD$5:$AE$7,2,FALSE)) ->  | DK40: =IF(DL40="","",VLOOKUP(DL40,リスト!$AF$5:$AG$10,2,FALSE)) ->  | DM40: =IF(DN40="","",VLOOKUP(DN40,リスト!$AH$5:$AI$6,2,FALSE)) ->  | DO40: =IF(DP40="","",VLOOKUP(DP40,リスト!$AJ$5:$AK$6,2,FALSE)) ->  | DQ40: =IF(DR40="","",VLOOKUP(DR40,リスト!$AL$5:$AM$7,2,FALSE)) ->  | DV40: =IF(DW40="","",VLOOKUP(DW40,リスト!$AN$5:$AO$6,2,FALSE)) ->  | EB40: =IF(EC40="","",VLOOKUP(EC40,リスト!$AW$5:$AX$8,2,FALSE)) ->  | EE40: =IF(EF40="","",VLOOKUP(EF40,リスト!$AY$5:$AZ$10,2,FALSE)) ->  | EG40: =IF(EH40="","",VLOOKUP(EH40,リスト!$BA$5:$BB$10,2,FALSE)) ->  | EI40: =IF(EJ40="","",VLOOKUP(EJ40,リスト!$BC$5:$BD$10,2,FALSE)) ->  | EK40: =IF(EL40="","",VLOOKUP(EL40,リスト!$BE$5:$BF$10,2,FALSE)) ->  | ER40: =IF(ES40="","",VLOOKUP(ES40,リスト!$BG$5:$BH$10,2,FALSE)) ->  | FA40: =IF($EZ40="","",INDEX(リスト!$BI$5:$BJ$40,MATCH($EZ40,リスト!$BJ$5:$BJ$40,0),1)) ->  | FB40: =IF(FC40="","",VLOOKUP(FC40,リスト!$BK:$BL,2,FALSE)) ->  | FF40: =IF(FG40="","",VLOOKUP(FG40,リスト!$BO$5:$BP$6,2,FALSE)) ->  | FH40: =IF(FI40="","",VLOOKUP(FI40,リスト!$BQ$5:$BR$8,2,FALSE)) ->  | FK40: =IF(FL40="","",VLOOKUP(FL40,リスト!$BS$5:$BT$6,2,FALSE)) ->  | FV40: =IF(FW40="","",VLOOKUP(FW40,リスト!$BV$5:$BW$10,2,FALSE)) ->  | FY40: =IF(FZ40="","",VLOOKUP(FZ40,リスト!$BX$5:$BY$6,2,FALSE)) ->  | GA40: =IF(GB40="","",VLOOKUP(GB40,リスト!$BZ$5:$CA$6,2,FALSE)) ->  | GC40: =IF(GD40="","",VLOOKUP(GD40,リスト!$CB$5:$CC$6,2,FALSE)) ->  | GJ40: =IF(GK40="","",VLOOKUP(GK40,リスト!$CD$5:$CE$6,2,FALSE)) ->  | GL40: =IF(GM40="","",VLOOKUP(GM40,リスト!$CF$5:$CG$6,2,FALSE)) ->  | GN40: =IF(GO40="","",VLOOKUP(GO40,リスト!$CH$5:$CI$6,2,FALSE)) -> 
B41: =IF(明細!B35="","",明細!B35) ->  | C41: =IF(明細!C35="","",明細!C35) ->  | D41: =IF(明細!D35="","",明細!D35) ->  | E41: =IF(明細!E35="","",明細!E35) ->  | F41: =IF(明細!F35="","",明細!F35) ->  | G41: =IF(明細!G35="","",明細!G35) ->  | H41: =IF(明細!H35="","",明細!H35) ->  | I41: =IF(明細!I35="","",明細!I35) ->  | J41: =IF(明細!J35="","",明細!J35) ->  | K41: =IF(明細!K35="","",明細!K35) ->  | L41: =IF(明細!K35<>"",CONCATENATE($L$12,明細!L35),"") ->  | M41: =IF(明細!M35="","",明細!M35) ->  | N41: =IF(明細!N35="","",明細!N35) ->  | O41: =IF(明細!O35="","",明細!O35) ->  | P41: =IF(明細!P35="","",明細!P35) ->  | Q41: =IF(明細!Q35="","",明細!Q35) ->  | R41: =IF(明細!R35="","",明細!R35) ->  | S41: =IF(明細!S35="","",明細!S35) ->  | T41: =IF(明細!T35="","",明細!T35) ->  | U41: =IF(明細!U35="","",明細!U35) ->  | V41: =IF(明細!V35<>"","EA","") -> EA | W41: =IF(明細!W35="","",明細!W35) ->  | X41: =IF(明細!X35="","",明細!X35) ->  | Y41: =IF(明細!Y35="","",明細!Y35) ->  | Z41: =IF(明細!Z35="","",明細!Z35) ->  | AA41: =IF(明細!AA35="","",明細!AA35) ->  | AB41: =IF(明細!AB35="","",明細!AB35) ->  | AC41: =IF(明細!AC35="","",明細!AC35) ->  | AD41: =IF(明細!AD35="","",明細!AD35) ->  | AE41: =IF(明細!AE35="","",明細!AE35) -> 10% | AF41: =IF(明細!AF35="","",明細!AF35) ->  | AG41: =IF(明細!AG35="","",明細!AG35) ->  | AH41: =IF(明細!AH35="","",明細!AH35) ->  | AI41: =IF(明細!AI35="","",明細!AI35) ->  | AJ41: =IF(明細!AJ35="","",明細!AJ35) ->  | AK41: =IF(明細!AK35="","",明細!AK35) ->  | AL41: =IF(明細!AL35="","",明細!AL35) ->  | AM41: =IF(明細!AM35="","",明細!AM35) ->  | AN41: =IF(明細!AN35="","",明細!AN35) ->  | AO41: =IF(明細!AO35="","",明細!AO35) ->  | AP41: =IF(明細!AP35="","",明細!AP35) ->  | AQ41: =IF(明細!AQ35="","",明細!AQ35) ->  | AR41: =IF(明細!AR35="","",明細!AR35) ->  | AY41: =IF($AX41="","",VLOOKUP($AX41,リスト!$CL:$CM,2,FALSE)) ->  | BA41: =IF(BB41="","",VLOOKUP(BB41,リスト!$K:$L,2,FALSE)) ->  | BE41: =IF(BF41="","",VLOOKUP(BF41,リスト!$I:$J,2,FALSE)) ->  | BG41: =IF(BH41="","",VLOOKUP(BH41,リスト!$M:$N,2,FALSE)) ->  | BI41: =IF(BJ41="","",VLOOKUP(BJ41,リスト!$O:$P,2,FALSE)) ->  | BO41: =IF($BN41="","",VLOOKUP($BN41,リスト!$CL:$CM,2,FALSE)) ->  | BP41: =IF(BQ41="","",VLOOKUP(BQ41,リスト!$K$5:$L$7,2,FALSE)) ->  | BT41: =IF(BU41="","",VLOOKUP(BU41,リスト!I32:J50,2,FALSE)) ->  | BY41: =IF(BZ41="","",VLOOKUP(BZ41,リスト!$S$5:$T$6,2,FALSE)) ->  | CU41: =IF(CV41="","",VLOOKUP(CV41,リスト!$V$5:$W$6,2,FALSE)) ->  | CW41: =IF(CX41="","",VLOOKUP(CX41,リスト!$X$5:$Y$6,2,FALSE)) ->  | DE41: =IF(DF41="","",VLOOKUP(DF41,リスト!$Z$5:$AA$10,2,FALSE)) ->  | DG41: =IF(DH41="","",VLOOKUP(DH41,リスト!$AB$5:$AC$12,2,FALSE)) ->  | DI41: =IF(DJ41="","",VLOOKUP(DJ41,リスト!$AD$5:$AE$7,2,FALSE)) ->  | DK41: =IF(DL41="","",VLOOKUP(DL41,リスト!$AF$5:$AG$10,2,FALSE)) ->  | DM41: =IF(DN41="","",VLOOKUP(DN41,リスト!$AH$5:$AI$6,2,FALSE)) ->  | DO41: =IF(DP41="","",VLOOKUP(DP41,リスト!$AJ$5:$AK$6,2,FALSE)) ->  | DQ41: =IF(DR41="","",VLOOKUP(DR41,リスト!$AL$5:$AM$7,2,FALSE)) ->  | DV41: =IF(DW41="","",VLOOKUP(DW41,リスト!$AN$5:$AO$6,2,FALSE)) ->  | EB41: =IF(EC41="","",VLOOKUP(EC41,リスト!$AW$5:$AX$8,2,FALSE)) ->  | EE41: =IF(EF41="","",VLOOKUP(EF41,リスト!$AY$5:$AZ$10,2,FALSE)) ->  | EG41: =IF(EH41="","",VLOOKUP(EH41,リスト!$BA$5:$BB$10,2,FALSE)) ->  | EI41: =IF(EJ41="","",VLOOKUP(EJ41,リスト!$BC$5:$BD$10,2,FALSE)) ->  | EK41: =IF(EL41="","",VLOOKUP(EL41,リスト!$BE$5:$BF$10,2,FALSE)) ->  | ER41: =IF(ES41="","",VLOOKUP(ES41,リスト!$BG$5:$BH$10,2,FALSE)) ->  | FA41: =IF($EZ41="","",INDEX(リスト!$BI$5:$BJ$40,MATCH($EZ41,リスト!$BJ$5:$BJ$40,0),1)) ->  | FB41: =IF(FC41="","",VLOOKUP(FC41,リスト!$BK:$BL,2,FALSE)) ->  | FF41: =IF(FG41="","",VLOOKUP(FG41,リスト!$BO$5:$BP$6,2,FALSE)) ->  | FH41: =IF(FI41="","",VLOOKUP(FI41,リスト!$BQ$5:$BR$8,2,FALSE)) ->  | FK41: =IF(FL41="","",VLOOKUP(FL41,リスト!$BS$5:$BT$6,2,FALSE)) ->  | FV41: =IF(FW41="","",VLOOKUP(FW41,リスト!$BV$5:$BW$10,2,FALSE)) ->  | FY41: =IF(FZ41="","",VLOOKUP(FZ41,リスト!$BX$5:$BY$6,2,FALSE)) ->  | GA41: =IF(GB41="","",VLOOKUP(GB41,リスト!$BZ$5:$CA$6,2,FALSE)) ->  | GC41: =IF(GD41="","",VLOOKUP(GD41,リスト!$CB$5:$CC$6,2,FALSE)) ->  | GJ41: =IF(GK41="","",VLOOKUP(GK41,リスト!$CD$5:$CE$6,2,FALSE)) ->  | GL41: =IF(GM41="","",VLOOKUP(GM41,リスト!$CF$5:$CG$6,2,FALSE)) ->  | GN41: =IF(GO41="","",VLOOKUP(GO41,リスト!$CH$5:$CI$6,2,FALSE)) -> 
B42: =IF(明細!B36="","",明細!B36) ->  | C42: =IF(明細!C36="","",明細!C36) ->  | D42: =IF(明細!D36="","",明細!D36) ->  | E42: =IF(明細!E36="","",明細!E36) ->  | F42: =IF(明細!F36="","",明細!F36) ->  | G42: =IF(明細!G36="","",明細!G36) ->  | H42: =IF(明細!H36="","",明細!H36) ->  | I42: =IF(明細!I36="","",明細!I36) ->  | J42: =IF(明細!J36="","",明細!J36) ->  | K42: =IF(明細!K36="","",明細!K36) ->  | L42: =IF(明細!K36<>"",CONCATENATE($L$12,明細!L36),"") ->  | M42: =IF(明細!M36="","",明細!M36) ->  | N42: =IF(明細!N36="","",明細!N36) ->  | O42: =IF(明細!O36="","",明細!O36) ->  | P42: =IF(明細!P36="","",明細!P36) ->  | Q42: =IF(明細!Q36="","",明細!Q36) ->  | R42: =IF(明細!R36="","",明細!R36) ->  | S42: =IF(明細!S36="","",明細!S36) ->  | T42: =IF(明細!T36="","",明細!T36) ->  | U42: =IF(明細!U36="","",明細!U36) ->  | V42: =IF(明細!V36<>"","EA","") -> EA | W42: =IF(明細!W36="","",明細!W36) ->  | X42: =IF(明細!X36="","",明細!X36) ->  | Y42: =IF(明細!Y36="","",明細!Y36) ->  | Z42: =IF(明細!Z36="","",明細!Z36) ->  | AA42: =IF(明細!AA36="","",明細!AA36) ->  | AB42: =IF(明細!AB36="","",明細!AB36) ->  | AC42: =IF(明細!AC36="","",明細!AC36) ->  | AD42: =IF(明細!AD36="","",明細!AD36) ->  | AE42: =IF(明細!AE36="","",明細!AE36) -> 10% | AF42: =IF(明細!AF36="","",明細!AF36) ->  | AG42: =IF(明細!AG36="","",明細!AG36) ->  | AH42: =IF(明細!AH36="","",明細!AH36) ->  | AI42: =IF(明細!AI36="","",明細!AI36) ->  | AJ42: =IF(明細!AJ36="","",明細!AJ36) ->  | AK42: =IF(明細!AK36="","",明細!AK36) ->  | AL42: =IF(明細!AL36="","",明細!AL36) ->  | AM42: =IF(明細!AM36="","",明細!AM36) ->  | AN42: =IF(明細!AN36="","",明細!AN36) ->  | AO42: =IF(明細!AO36="","",明細!AO36) ->  | AP42: =IF(明細!AP36="","",明細!AP36) ->  | AQ42: =IF(明細!AQ36="","",明細!AQ36) ->  | AR42: =IF(明細!AR36="","",明細!AR36) ->  | AY42: =IF($AX42="","",VLOOKUP($AX42,リスト!$CL:$CM,2,FALSE)) ->  | BA42: =IF(BB42="","",VLOOKUP(BB42,リスト!$K:$L,2,FALSE)) ->  | BE42: =IF(BF42="","",VLOOKUP(BF42,リスト!$I:$J,2,FALSE)) ->  | BG42: =IF(BH42="","",VLOOKUP(BH42,リスト!$M:$N,2,FALSE)) ->  | BI42: =IF(BJ42="","",VLOOKUP(BJ42,リスト!$O:$P,2,FALSE)) ->  | BO42: =IF($BN42="","",VLOOKUP($BN42,リスト!$CL:$CM,2,FALSE)) ->  | BP42: =IF(BQ42="","",VLOOKUP(BQ42,リスト!$K$5:$L$7,2,FALSE)) ->  | BT42: =IF(BU42="","",VLOOKUP(BU42,リスト!I33:J51,2,FALSE)) ->  | BY42: =IF(BZ42="","",VLOOKUP(BZ42,リスト!$S$5:$T$6,2,FALSE)) ->  | CU42: =IF(CV42="","",VLOOKUP(CV42,リスト!$V$5:$W$6,2,FALSE)) ->  | CW42: =IF(CX42="","",VLOOKUP(CX42,リスト!$X$5:$Y$6,2,FALSE)) ->  | DE42: =IF(DF42="","",VLOOKUP(DF42,リスト!$Z$5:$AA$10,2,FALSE)) ->  | DG42: =IF(DH42="","",VLOOKUP(DH42,リスト!$AB$5:$AC$12,2,FALSE)) ->  | DI42: =IF(DJ42="","",VLOOKUP(DJ42,リスト!$AD$5:$AE$7,2,FALSE)) ->  | DK42: =IF(DL42="","",VLOOKUP(DL42,リスト!$AF$5:$AG$10,2,FALSE)) ->  | DM42: =IF(DN42="","",VLOOKUP(DN42,リスト!$AH$5:$AI$6,2,FALSE)) ->  | DO42: =IF(DP42="","",VLOOKUP(DP42,リスト!$AJ$5:$AK$6,2,FALSE)) ->  | DQ42: =IF(DR42="","",VLOOKUP(DR42,リスト!$AL$5:$AM$7,2,FALSE)) ->  | DV42: =IF(DW42="","",VLOOKUP(DW42,リスト!$AN$5:$AO$6,2,FALSE)) ->  | EB42: =IF(EC42="","",VLOOKUP(EC42,リスト!$AW$5:$AX$8,2,FALSE)) ->  | EE42: =IF(EF42="","",VLOOKUP(EF42,リスト!$AY$5:$AZ$10,2,FALSE)) ->  | EG42: =IF(EH42="","",VLOOKUP(EH42,リスト!$BA$5:$BB$10,2,FALSE)) ->  | EI42: =IF(EJ42="","",VLOOKUP(EJ42,リスト!$BC$5:$BD$10,2,FALSE)) ->  | EK42: =IF(EL42="","",VLOOKUP(EL42,リスト!$BE$5:$BF$10,2,FALSE)) ->  | ER42: =IF(ES42="","",VLOOKUP(ES42,リスト!$BG$5:$BH$10,2,FALSE)) ->  | FA42: =IF($EZ42="","",INDEX(リスト!$BI$5:$BJ$40,MATCH($EZ42,リスト!$BJ$5:$BJ$40,0),1)) ->  | FB42: =IF(FC42="","",VLOOKUP(FC42,リスト!$BK:$BL,2,FALSE)) ->  | FF42: =IF(FG42="","",VLOOKUP(FG42,リスト!$BO$5:$BP$6,2,FALSE)) ->  | FH42: =IF(FI42="","",VLOOKUP(FI42,リスト!$BQ$5:$BR$8,2,FALSE)) ->  | FK42: =IF(FL42="","",VLOOKUP(FL42,リスト!$BS$5:$BT$6,2,FALSE)) ->  | FV42: =IF(FW42="","",VLOOKUP(FW42,リスト!$BV$5:$BW$10,2,FALSE)) ->  | FY42: =IF(FZ42="","",VLOOKUP(FZ42,リスト!$BX$5:$BY$6,2,FALSE)) ->  | GA42: =IF(GB42="","",VLOOKUP(GB42,リスト!$BZ$5:$CA$6,2,FALSE)) ->  | GC42: =IF(GD42="","",VLOOKUP(GD42,リスト!$CB$5:$CC$6,2,FALSE)) ->  | GJ42: =IF(GK42="","",VLOOKUP(GK42,リスト!$CD$5:$CE$6,2,FALSE)) ->  | GL42: =IF(GM42="","",VLOOKUP(GM42,リスト!$CF$5:$CG$6,2,FALSE)) ->  | GN42: =IF(GO42="","",VLOOKUP(GO42,リスト!$CH$5:$CI$6,2,FALSE)) -> 
B43: =IF(明細!B37="","",明細!B37) ->  | C43: =IF(明細!C37="","",明細!C37) ->  | D43: =IF(明細!D37="","",明細!D37) ->  | E43: =IF(明細!E37="","",明細!E37) ->  | F43: =IF(明細!F37="","",明細!F37) ->  | G43: =IF(明細!G37="","",明細!G37) ->  | H43: =IF(明細!H37="","",明細!H37) ->  | I43: =IF(明細!I37="","",明細!I37) ->  | J43: =IF(明細!J37="","",明細!J37) ->  | K43: =IF(明細!K37="","",明細!K37) ->  | L43: =IF(明細!K37<>"",CONCATENATE($L$12,明細!L37),"") ->  | M43: =IF(明細!M37="","",明細!M37) ->  | N43: =IF(明細!N37="","",明細!N37) ->  | O43: =IF(明細!O37="","",明細!O37) ->  | P43: =IF(明細!P37="","",明細!P37) ->  | Q43: =IF(明細!Q37="","",明細!Q37) ->  | R43: =IF(明細!R37="","",明細!R37) ->  | S43: =IF(明細!S37="","",明細!S37) ->  | T43: =IF(明細!T37="","",明細!T37) ->  | U43: =IF(明細!U37="","",明細!U37) ->  | V43: =IF(明細!V37<>"","EA","") -> EA | W43: =IF(明細!W37="","",明細!W37) ->  | X43: =IF(明細!X37="","",明細!X37) ->  | Y43: =IF(明細!Y37="","",明細!Y37) ->  | Z43: =IF(明細!Z37="","",明細!Z37) ->  | AA43: =IF(明細!AA37="","",明細!AA37) ->  | AB43: =IF(明細!AB37="","",明細!AB37) ->  | AC43: =IF(明細!AC37="","",明細!AC37) ->  | AD43: =IF(明細!AD37="","",明細!AD37) ->  | AE43: =IF(明細!AE37="","",明細!AE37) -> 10% | AF43: =IF(明細!AF37="","",明細!AF37) ->  | AG43: =IF(明細!AG37="","",明細!AG37) ->  | AH43: =IF(明細!AH37="","",明細!AH37) ->  | AI43: =IF(明細!AI37="","",明細!AI37) ->  | AJ43: =IF(明細!AJ37="","",明細!AJ37) ->  | AK43: =IF(明細!AK37="","",明細!AK37) ->  | AL43: =IF(明細!AL37="","",明細!AL37) ->  | AM43: =IF(明細!AM37="","",明細!AM37) ->  | AN43: =IF(明細!AN37="","",明細!AN37) ->  | AO43: =IF(明細!AO37="","",明細!AO37) ->  | AP43: =IF(明細!AP37="","",明細!AP37) ->  | AQ43: =IF(明細!AQ37="","",明細!AQ37) ->  | AR43: =IF(明細!AR37="","",明細!AR37) ->  | AY43: =IF($AX43="","",VLOOKUP($AX43,リスト!$CL:$CM,2,FALSE)) ->  | BA43: =IF(BB43="","",VLOOKUP(BB43,リスト!$K:$L,2,FALSE)) ->  | BE43: =IF(BF43="","",VLOOKUP(BF43,リスト!$I:$J,2,FALSE)) ->  | BG43: =IF(BH43="","",VLOOKUP(BH43,リスト!$M:$N,2,FALSE)) ->  | BI43: =IF(BJ43="","",VLOOKUP(BJ43,リスト!$O:$P,2,FALSE)) ->  | BO43: =IF($BN43="","",VLOOKUP($BN43,リスト!$CL:$CM,2,FALSE)) ->  | BP43: =IF(BQ43="","",VLOOKUP(BQ43,リスト!$K$5:$L$7,2,FALSE)) ->  | BT43: =IF(BU43="","",VLOOKUP(BU43,リスト!I34:J52,2,FALSE)) ->  | BY43: =IF(BZ43="","",VLOOKUP(BZ43,リスト!$S$5:$T$6,2,FALSE)) ->  | CU43: =IF(CV43="","",VLOOKUP(CV43,リスト!$V$5:$W$6,2,FALSE)) ->  | CW43: =IF(CX43="","",VLOOKUP(CX43,リスト!$X$5:$Y$6,2,FALSE)) ->  | DE43: =IF(DF43="","",VLOOKUP(DF43,リスト!$Z$5:$AA$10,2,FALSE)) ->  | DG43: =IF(DH43="","",VLOOKUP(DH43,リスト!$AB$5:$AC$12,2,FALSE)) ->  | DI43: =IF(DJ43="","",VLOOKUP(DJ43,リスト!$AD$5:$AE$7,2,FALSE)) ->  | DK43: =IF(DL43="","",VLOOKUP(DL43,リスト!$AF$5:$AG$10,2,FALSE)) ->  | DM43: =IF(DN43="","",VLOOKUP(DN43,リスト!$AH$5:$AI$6,2,FALSE)) ->  | DO43: =IF(DP43="","",VLOOKUP(DP43,リスト!$AJ$5:$AK$6,2,FALSE)) ->  | DQ43: =IF(DR43="","",VLOOKUP(DR43,リスト!$AL$5:$AM$7,2,FALSE)) ->  | DV43: =IF(DW43="","",VLOOKUP(DW43,リスト!$AN$5:$AO$6,2,FALSE)) ->  | EB43: =IF(EC43="","",VLOOKUP(EC43,リスト!$AW$5:$AX$8,2,FALSE)) ->  | EE43: =IF(EF43="","",VLOOKUP(EF43,リスト!$AY$5:$AZ$10,2,FALSE)) ->  | EG43: =IF(EH43="","",VLOOKUP(EH43,リスト!$BA$5:$BB$10,2,FALSE)) ->  | EI43: =IF(EJ43="","",VLOOKUP(EJ43,リスト!$BC$5:$BD$10,2,FALSE)) ->  | EK43: =IF(EL43="","",VLOOKUP(EL43,リスト!$BE$5:$BF$10,2,FALSE)) ->  | ER43: =IF(ES43="","",VLOOKUP(ES43,リスト!$BG$5:$BH$10,2,FALSE)) ->  | FA43: =IF($EZ43="","",INDEX(リスト!$BI$5:$BJ$40,MATCH($EZ43,リスト!$BJ$5:$BJ$40,0),1)) ->  | FB43: =IF(FC43="","",VLOOKUP(FC43,リスト!$BK:$BL,2,FALSE)) ->  | FF43: =IF(FG43="","",VLOOKUP(FG43,リスト!$BO$5:$BP$6,2,FALSE)) ->  | FH43: =IF(FI43="","",VLOOKUP(FI43,リスト!$BQ$5:$BR$8,2,FALSE)) ->  | FK43: =IF(FL43="","",VLOOKUP(FL43,リスト!$BS$5:$BT$6,2,FALSE)) ->  | FV43: =IF(FW43="","",VLOOKUP(FW43,リスト!$BV$5:$BW$10,2,FALSE)) ->  | FY43: =IF(FZ43="","",VLOOKUP(FZ43,リスト!$BX$5:$BY$6,2,FALSE)) ->  | GA43: =IF(GB43="","",VLOOKUP(GB43,リスト!$BZ$5:$CA$6,2,FALSE)) ->  | GC43: =IF(GD43="","",VLOOKUP(GD43,リスト!$CB$5:$CC$6,2,FALSE)) ->  | GJ43: =IF(GK43="","",VLOOKUP(GK43,リスト!$CD$5:$CE$6,2,FALSE)) ->  | GL43: =IF(GM43="","",VLOOKUP(GM43,リスト!$CF$5:$CG$6,2,FALSE)) ->  | GN43: =IF(GO43="","",VLOOKUP(GO43,リスト!$CH$5:$CI$6,2,FALSE)) -> 
B44: =IF(明細!B38="","",明細!B38) ->  | C44: =IF(明細!C38="","",明細!C38) ->  | D44: =IF(明細!D38="","",明細!D38) ->  | E44: =IF(明細!E38="","",明細!E38) ->  | F44: =IF(明細!F38="","",明細!F38) ->  | G44: =IF(明細!G38="","",明細!G38) ->  | H44: =IF(明細!H38="","",明細!H38) ->  | I44: =IF(明細!I38="","",明細!I38) ->  | J44: =IF(明細!J38="","",明細!J38) ->  | K44: =IF(明細!K38="","",明細!K38) ->  | L44: =IF(明細!K38<>"",CONCATENATE($L$12,明細!L38),"") ->  | M44: =IF(明細!M38="","",明細!M38) ->  | N44: =IF(明細!N38="","",明細!N38) ->  | O44: =IF(明細!O38="","",明細!O38) ->  | P44: =IF(明細!P38="","",明細!P38) ->  | Q44: =IF(明細!Q38="","",明細!Q38) ->  | R44: =IF(明細!R38="","",明細!R38) ->  | S44: =IF(明細!S38="","",明細!S38) ->  | T44: =IF(明細!T38="","",明細!T38) ->  | U44: =IF(明細!U38="","",明細!U38) ->  | V44: =IF(明細!V38<>"","EA","") -> EA | W44: =IF(明細!W38="","",明細!W38) ->  | X44: =IF(明細!X38="","",明細!X38) ->  | Y44: =IF(明細!Y38="","",明細!Y38) ->  | Z44: =IF(明細!Z38="","",明細!Z38) ->  | AA44: =IF(明細!AA38="","",明細!AA38) ->  | AB44: =IF(明細!AB38="","",明細!AB38) ->  | AC44: =IF(明細!AC38="","",明細!AC38) ->  | AD44: =IF(明細!AD38="","",明細!AD38) ->  | AE44: =IF(明細!AE38="","",明細!AE38) -> 10% | AF44: =IF(明細!AF38="","",明細!AF38) ->  | AG44: =IF(明細!AG38="","",明細!AG38) ->  | AH44: =IF(明細!AH38="","",明細!AH38) ->  | AI44: =IF(明細!AI38="","",明細!AI38) ->  | AJ44: =IF(明細!AJ38="","",明細!AJ38) ->  | AK44: =IF(明細!AK38="","",明細!AK38) ->  | AL44: =IF(明細!AL38="","",明細!AL38) ->  | AM44: =IF(明細!AM38="","",明細!AM38) ->  | AN44: =IF(明細!AN38="","",明細!AN38) ->  | AO44: =IF(明細!AO38="","",明細!AO38) ->  | AP44: =IF(明細!AP38="","",明細!AP38) ->  | AQ44: =IF(明細!AQ38="","",明細!AQ38) ->  | AR44: =IF(明細!AR38="","",明細!AR38) ->  | AY44: =IF($AX44="","",VLOOKUP($AX44,リスト!$CL:$CM,2,FALSE)) ->  | BA44: =IF(BB44="","",VLOOKUP(BB44,リスト!$K:$L,2,FALSE)) ->  | BE44: =IF(BF44="","",VLOOKUP(BF44,リスト!$I:$J,2,FALSE)) ->  | BG44: =IF(BH44="","",VLOOKUP(BH44,リスト!$M:$N,2,FALSE)) ->  | BI44: =IF(BJ44="","",VLOOKUP(BJ44,リスト!$O:$P,2,FALSE)) ->  | BO44: =IF($BN44="","",VLOOKUP($BN44,リスト!$CL:$CM,2,FALSE)) ->  | BP44: =IF(BQ44="","",VLOOKUP(BQ44,リスト!$K$5:$L$7,2,FALSE)) ->  | BT44: =IF(BU44="","",VLOOKUP(BU44,リスト!I35:J53,2,FALSE)) ->  | BY44: =IF(BZ44="","",VLOOKUP(BZ44,リスト!$S$5:$T$6,2,FALSE)) ->  | CU44: =IF(CV44="","",VLOOKUP(CV44,リスト!$V$5:$W$6,2,FALSE)) ->  | CW44: =IF(CX44="","",VLOOKUP(CX44,リスト!$X$5:$Y$6,2,FALSE)) ->  | DE44: =IF(DF44="","",VLOOKUP(DF44,リスト!$Z$5:$AA$10,2,FALSE)) ->  | DG44: =IF(DH44="","",VLOOKUP(DH44,リスト!$AB$5:$AC$12,2,FALSE)) ->  | DI44: =IF(DJ44="","",VLOOKUP(DJ44,リスト!$AD$5:$AE$7,2,FALSE)) ->  | DK44: =IF(DL44="","",VLOOKUP(DL44,リスト!$AF$5:$AG$10,2,FALSE)) ->  | DM44: =IF(DN44="","",VLOOKUP(DN44,リスト!$AH$5:$AI$6,2,FALSE)) ->  | DO44: =IF(DP44="","",VLOOKUP(DP44,リスト!$AJ$5:$AK$6,2,FALSE)) ->  | DQ44: =IF(DR44="","",VLOOKUP(DR44,リスト!$AL$5:$AM$7,2,FALSE)) ->  | DV44: =IF(DW44="","",VLOOKUP(DW44,リスト!$AN$5:$AO$6,2,FALSE)) ->  | EB44: =IF(EC44="","",VLOOKUP(EC44,リスト!$AW$5:$AX$8,2,FALSE)) ->  | EE44: =IF(EF44="","",VLOOKUP(EF44,リスト!$AY$5:$AZ$10,2,FALSE)) ->  | EG44: =IF(EH44="","",VLOOKUP(EH44,リスト!$BA$5:$BB$10,2,FALSE)) ->  | EI44: =IF(EJ44="","",VLOOKUP(EJ44,リスト!$BC$5:$BD$10,2,FALSE)) ->  | EK44: =IF(EL44="","",VLOOKUP(EL44,リスト!$BE$5:$BF$10,2,FALSE)) ->  | ER44: =IF(ES44="","",VLOOKUP(ES44,リスト!$BG$5:$BH$10,2,FALSE)) ->  | FA44: =IF($EZ44="","",INDEX(リスト!$BI$5:$BJ$40,MATCH($EZ44,リスト!$BJ$5:$BJ$40,0),1)) ->  | FB44: =IF(FC44="","",VLOOKUP(FC44,リスト!$BK:$BL,2,FALSE)) ->  | FF44: =IF(FG44="","",VLOOKUP(FG44,リスト!$BO$5:$BP$6,2,FALSE)) ->  | FH44: =IF(FI44="","",VLOOKUP(FI44,リスト!$BQ$5:$BR$8,2,FALSE)) ->  | FK44: =IF(FL44="","",VLOOKUP(FL44,リスト!$BS$5:$BT$6,2,FALSE)) ->  | FV44: =IF(FW44="","",VLOOKUP(FW44,リスト!$BV$5:$BW$10,2,FALSE)) ->  | FY44: =IF(FZ44="","",VLOOKUP(FZ44,リスト!$BX$5:$BY$6,2,FALSE)) ->  | GA44: =IF(GB44="","",VLOOKUP(GB44,リスト!$BZ$5:$CA$6,2,FALSE)) ->  | GC44: =IF(GD44="","",VLOOKUP(GD44,リスト!$CB$5:$CC$6,2,FALSE)) ->  | GJ44: =IF(GK44="","",VLOOKUP(GK44,リスト!$CD$5:$CE$6,2,FALSE)) ->  | GL44: =IF(GM44="","",VLOOKUP(GM44,リスト!$CF$5:$CG$6,2,FALSE)) ->  | GN44: =IF(GO44="","",VLOOKUP(GO44,リスト!$CH$5:$CI$6,2,FALSE)) -> 
B45: =IF(明細!B39="","",明細!B39) ->  | C45: =IF(明細!C39="","",明細!C39) ->  | D45: =IF(明細!D39="","",明細!D39) ->  | E45: =IF(明細!E39="","",明細!E39) ->  | F45: =IF(明細!F39="","",明細!F39) ->  | G45: =IF(明細!G39="","",明細!G39) ->  | H45: =IF(明細!H39="","",明細!H39) ->  | I45: =IF(明細!I39="","",明細!I39) ->  | J45: =IF(明細!J39="","",明細!J39) ->  | K45: =IF(明細!K39="","",明細!K39) ->  | L45: =IF(明細!K39<>"",CONCATENATE($L$12,明細!L39),"") ->  | M45: =IF(明細!M39="","",明細!M39) ->  | N45: =IF(明細!N39="","",明細!N39) ->  | O45: =IF(明細!O39="","",明細!O39) ->  | P45: =IF(明細!P39="","",明細!P39) ->  | Q45: =IF(明細!Q39="","",明細!Q39) ->  | R45: =IF(明細!R39="","",明細!R39) ->  | S45: =IF(明細!S39="","",明細!S39) ->  | T45: =IF(明細!T39="","",明細!T39) ->  | U45: =IF(明細!U39="","",明細!U39) ->  | V45: =IF(明細!V39<>"","EA","") -> EA | W45: =IF(明細!W39="","",明細!W39) ->  | X45: =IF(明細!X39="","",明細!X39) ->  | Y45: =IF(明細!Y39="","",明細!Y39) ->  | Z45: =IF(明細!Z39="","",明細!Z39) ->  | AA45: =IF(明細!AA39="","",明細!AA39) ->  | AB45: =IF(明細!AB39="","",明細!AB39) ->  | AC45: =IF(明細!AC39="","",明細!AC39) ->  | AD45: =IF(明細!AD39="","",明細!AD39) ->  | AE45: =IF(明細!AE39="","",明細!AE39) -> 10% | AF45: =IF(明細!AF39="","",明細!AF39) ->  | AG45: =IF(明細!AG39="","",明細!AG39) ->  | AH45: =IF(明細!AH39="","",明細!AH39) ->  | AI45: =IF(明細!AI39="","",明細!AI39) ->  | AJ45: =IF(明細!AJ39="","",明細!AJ39) ->  | AK45: =IF(明細!AK39="","",明細!AK39) ->  | AL45: =IF(明細!AL39="","",明細!AL39) ->  | AM45: =IF(明細!AM39="","",明細!AM39) ->  | AN45: =IF(明細!AN39="","",明細!AN39) ->  | AO45: =IF(明細!AO39="","",明細!AO39) ->  | AP45: =IF(明細!AP39="","",明細!AP39) ->  | AQ45: =IF(明細!AQ39="","",明細!AQ39) ->  | AR45: =IF(明細!AR39="","",明細!AR39) ->  | AY45: =IF($AX45="","",VLOOKUP($AX45,リスト!$CL:$CM,2,FALSE)) ->  | BA45: =IF(BB45="","",VLOOKUP(BB45,リスト!$K:$L,2,FALSE)) ->  | BE45: =IF(BF45="","",VLOOKUP(BF45,リスト!$I:$J,2,FALSE)) ->  | BG45: =IF(BH45="","",VLOOKUP(BH45,リスト!$M:$N,2,FALSE)) ->  | BI45: =IF(BJ45="","",VLOOKUP(BJ45,リスト!$O:$P,2,FALSE)) ->  | BO45: =IF($BN45="","",VLOOKUP($BN45,リスト!$CL:$CM,2,FALSE)) ->  | BP45: =IF(BQ45="","",VLOOKUP(BQ45,リスト!$K$5:$L$7,2,FALSE)) ->  | BT45: =IF(BU45="","",VLOOKUP(BU45,リスト!I36:J54,2,FALSE)) ->  | BY45: =IF(BZ45="","",VLOOKUP(BZ45,リスト!$S$5:$T$6,2,FALSE)) ->  | CU45: =IF(CV45="","",VLOOKUP(CV45,リスト!$V$5:$W$6,2,FALSE)) ->  | CW45: =IF(CX45="","",VLOOKUP(CX45,リスト!$X$5:$Y$6,2,FALSE)) ->  | DE45: =IF(DF45="","",VLOOKUP(DF45,リスト!$Z$5:$AA$10,2,FALSE)) ->  | DG45: =IF(DH45="","",VLOOKUP(DH45,リスト!$AB$5:$AC$12,2,FALSE)) ->  | DI45: =IF(DJ45="","",VLOOKUP(DJ45,リスト!$AD$5:$AE$7,2,FALSE)) ->  | DK45: =IF(DL45="","",VLOOKUP(DL45,リスト!$AF$5:$AG$10,2,FALSE)) ->  | DM45: =IF(DN45="","",VLOOKUP(DN45,リスト!$AH$5:$AI$6,2,FALSE)) ->  | DO45: =IF(DP45="","",VLOOKUP(DP45,リスト!$AJ$5:$AK$6,2,FALSE)) ->  | DQ45: =IF(DR45="","",VLOOKUP(DR45,リスト!$AL$5:$AM$7,2,FALSE)) ->  | DV45: =IF(DW45="","",VLOOKUP(DW45,リスト!$AN$5:$AO$6,2,FALSE)) ->  | EB45: =IF(EC45="","",VLOOKUP(EC45,リスト!$AW$5:$AX$8,2,FALSE)) ->  | EE45: =IF(EF45="","",VLOOKUP(EF45,リスト!$AY$5:$AZ$10,2,FALSE)) ->  | EG45: =IF(EH45="","",VLOOKUP(EH45,リスト!$BA$5:$BB$10,2,FALSE)) ->  | EI45: =IF(EJ45="","",VLOOKUP(EJ45,リスト!$BC$5:$BD$10,2,FALSE)) ->  | EK45: =IF(EL45="","",VLOOKUP(EL45,リスト!$BE$5:$BF$10,2,FALSE)) ->  | ER45: =IF(ES45="","",VLOOKUP(ES45,リスト!$BG$5:$BH$10,2,FALSE)) ->  | FA45: =IF($EZ45="","",INDEX(リスト!$BI$5:$BJ$40,MATCH($EZ45,リスト!$BJ$5:$BJ$40,0),1)) ->  | FB45: =IF(FC45="","",VLOOKUP(FC45,リスト!$BK:$BL,2,FALSE)) ->  | FF45: =IF(FG45="","",VLOOKUP(FG45,リスト!$BO$5:$BP$6,2,FALSE)) ->  | FH45: =IF(FI45="","",VLOOKUP(FI45,リスト!$BQ$5:$BR$8,2,FALSE)) ->  | FK45: =IF(FL45="","",VLOOKUP(FL45,リスト!$BS$5:$BT$6,2,FALSE)) ->  | FV45: =IF(FW45="","",VLOOKUP(FW45,リスト!$BV$5:$BW$10,2,FALSE)) ->  | FY45: =IF(FZ45="","",VLOOKUP(FZ45,リスト!$BX$5:$BY$6,2,FALSE)) ->  | GA45: =IF(GB45="","",VLOOKUP(GB45,リスト!$BZ$5:$CA$6,2,FALSE)) ->  | GC45: =IF(GD45="","",VLOOKUP(GD45,リスト!$CB$5:$CC$6,2,FALSE)) ->  | GJ45: =IF(GK45="","",VLOOKUP(GK45,リスト!$CD$5:$CE$6,2,FALSE)) ->  | GL45: =IF(GM45="","",VLOOKUP(GM45,リスト!$CF$5:$CG$6,2,FALSE)) ->  | GN45: =IF(GO45="","",VLOOKUP(GO45,リスト!$CH$5:$CI$6,2,FALSE)) -> 
B46: =IF(明細!B40="","",明細!B40) ->  | C46: =IF(明細!C40="","",明細!C40) ->  | D46: =IF(明細!D40="","",明細!D40) ->  | E46: =IF(明細!E40="","",明細!E40) ->  | F46: =IF(明細!F40="","",明細!F40) ->  | G46: =IF(明細!G40="","",明細!G40) ->  | H46: =IF(明細!H40="","",明細!H40) ->  | I46: =IF(明細!I40="","",明細!I40) ->  | J46: =IF(明細!J40="","",明細!J40) ->  | K46: =IF(明細!K40="","",明細!K40) ->  | L46: =IF(明細!K40<>"",CONCATENATE($L$12,明細!L40),"") ->  | M46: =IF(明細!M40="","",明細!M40) ->  | N46: =IF(明細!N40="","",明細!N40) ->  | O46: =IF(明細!O40="","",明細!O40) ->  | P46: =IF(明細!P40="","",明細!P40) ->  | Q46: =IF(明細!Q40="","",明細!Q40) ->  | R46: =IF(明細!R40="","",明細!R40) ->  | S46: =IF(明細!S40="","",明細!S40) ->  | T46: =IF(明細!T40="","",明細!T40) ->  | U46: =IF(明細!U40="","",明細!U40) ->  | V46: =IF(明細!V40<>"","EA","") -> EA | W46: =IF(明細!W40="","",明細!W40) ->  | X46: =IF(明細!X40="","",明細!X40) ->  | Y46: =IF(明細!Y40="","",明細!Y40) ->  | Z46: =IF(明細!Z40="","",明細!Z40) ->  | AA46: =IF(明細!AA40="","",明細!AA40) ->  | AB46: =IF(明細!AB40="","",明細!AB40) ->  | AC46: =IF(明細!AC40="","",明細!AC40) ->  | AD46: =IF(明細!AD40="","",明細!AD40) ->  | AE46: =IF(明細!AE40="","",明細!AE40) -> 10% | AF46: =IF(明細!AF40="","",明細!AF40) ->  | AG46: =IF(明細!AG40="","",明細!AG40) ->  | AH46: =IF(明細!AH40="","",明細!AH40) ->  | AI46: =IF(明細!AI40="","",明細!AI40) ->  | AJ46: =IF(明細!AJ40="","",明細!AJ40) ->  | AK46: =IF(明細!AK40="","",明細!AK40) ->  | AL46: =IF(明細!AL40="","",明細!AL40) ->  | AM46: =IF(明細!AM40="","",明細!AM40) ->  | AN46: =IF(明細!AN40="","",明細!AN40) ->  | AO46: =IF(明細!AO40="","",明細!AO40) ->  | AP46: =IF(明細!AP40="","",明細!AP40) ->  | AQ46: =IF(明細!AQ40="","",明細!AQ40) ->  | AR46: =IF(明細!AR40="","",明細!AR40) ->  | AY46: =IF($AX46="","",VLOOKUP($AX46,リスト!$CL:$CM,2,FALSE)) ->  | BA46: =IF(BB46="","",VLOOKUP(BB46,リスト!$K:$L,2,FALSE)) ->  | BE46: =IF(BF46="","",VLOOKUP(BF46,リスト!$I:$J,2,FALSE)) ->  | BG46: =IF(BH46="","",VLOOKUP(BH46,リスト!$M:$N,2,FALSE)) ->  | BI46: =IF(BJ46="","",VLOOKUP(BJ46,リスト!$O:$P,2,FALSE)) ->  | BO46: =IF($BN46="","",VLOOKUP($BN46,リスト!$CL:$CM,2,FALSE)) ->  | BP46: =IF(BQ46="","",VLOOKUP(BQ46,リスト!$K$5:$L$7,2,FALSE)) ->  | BT46: =IF(BU46="","",VLOOKUP(BU46,リスト!I37:J55,2,FALSE)) ->  | BY46: =IF(BZ46="","",VLOOKUP(BZ46,リスト!$S$5:$T$6,2,FALSE)) ->  | CU46: =IF(CV46="","",VLOOKUP(CV46,リスト!$V$5:$W$6,2,FALSE)) ->  | CW46: =IF(CX46="","",VLOOKUP(CX46,リスト!$X$5:$Y$6,2,FALSE)) ->  | DE46: =IF(DF46="","",VLOOKUP(DF46,リスト!$Z$5:$AA$10,2,FALSE)) ->  | DG46: =IF(DH46="","",VLOOKUP(DH46,リスト!$AB$5:$AC$12,2,FALSE)) ->  | DI46: =IF(DJ46="","",VLOOKUP(DJ46,リスト!$AD$5:$AE$7,2,FALSE)) ->  | DK46: =IF(DL46="","",VLOOKUP(DL46,リスト!$AF$5:$AG$10,2,FALSE)) ->  | DM46: =IF(DN46="","",VLOOKUP(DN46,リスト!$AH$5:$AI$6,2,FALSE)) ->  | DO46: =IF(DP46="","",VLOOKUP(DP46,リスト!$AJ$5:$AK$6,2,FALSE)) ->  | DQ46: =IF(DR46="","",VLOOKUP(DR46,リスト!$AL$5:$AM$7,2,FALSE)) ->  | DV46: =IF(DW46="","",VLOOKUP(DW46,リスト!$AN$5:$AO$6,2,FALSE)) ->  | EB46: =IF(EC46="","",VLOOKUP(EC46,リスト!$AW$5:$AX$8,2,FALSE)) ->  | EE46: =IF(EF46="","",VLOOKUP(EF46,リスト!$AY$5:$AZ$10,2,FALSE)) ->  | EG46: =IF(EH46="","",VLOOKUP(EH46,リスト!$BA$5:$BB$10,2,FALSE)) ->  | EI46: =IF(EJ46="","",VLOOKUP(EJ46,リスト!$BC$5:$BD$10,2,FALSE)) ->  | EK46: =IF(EL46="","",VLOOKUP(EL46,リスト!$BE$5:$BF$10,2,FALSE)) ->  | ER46: =IF(ES46="","",VLOOKUP(ES46,リスト!$BG$5:$BH$10,2,FALSE)) ->  | FA46: =IF($EZ46="","",INDEX(リスト!$BI$5:$BJ$40,MATCH($EZ46,リスト!$BJ$5:$BJ$40,0),1)) ->  | FB46: =IF(FC46="","",VLOOKUP(FC46,リスト!$BK:$BL,2,FALSE)) ->  | FF46: =IF(FG46="","",VLOOKUP(FG46,リスト!$BO$5:$BP$6,2,FALSE)) ->  | FH46: =IF(FI46="","",VLOOKUP(FI46,リスト!$BQ$5:$BR$8,2,FALSE)) ->  | FK46: =IF(FL46="","",VLOOKUP(FL46,リスト!$BS$5:$BT$6,2,FALSE)) ->  | FV46: =IF(FW46="","",VLOOKUP(FW46,リスト!$BV$5:$BW$10,2,FALSE)) ->  | FY46: =IF(FZ46="","",VLOOKUP(FZ46,リスト!$BX$5:$BY$6,2,FALSE)) ->  | GA46: =IF(GB46="","",VLOOKUP(GB46,リスト!$BZ$5:$CA$6,2,FALSE)) ->  | GC46: =IF(GD46="","",VLOOKUP(GD46,リスト!$CB$5:$CC$6,2,FALSE)) ->  | GJ46: =IF(GK46="","",VLOOKUP(GK46,リスト!$CD$5:$CE$6,2,FALSE)) ->  | GL46: =IF(GM46="","",VLOOKUP(GM46,リスト!$CF$5:$CG$6,2,FALSE)) ->  | GN46: =IF(GO46="","",VLOOKUP(GO46,リスト!$CH$5:$CI$6,2,FALSE)) -> 
B47: =IF(明細!B41="","",明細!B41) ->  | C47: =IF(明細!C41="","",明細!C41) ->  | D47: =IF(明細!D41="","",明細!D41) ->  | E47: =IF(明細!E41="","",明細!E41) ->  | F47: =IF(明細!F41="","",明細!F41) ->  | G47: =IF(明細!G41="","",明細!G41) ->  | H47: =IF(明細!H41="","",明細!H41) ->  | I47: =IF(明細!I41="","",明細!I41) ->  | J47: =IF(明細!J41="","",明細!J41) ->  | K47: =IF(明細!K41="","",明細!K41) ->  | L47: =IF(明細!K41<>"",CONCATENATE($L$12,明細!L41),"") ->  | M47: =IF(明細!M41="","",明細!M41) ->  | N47: =IF(明細!N41="","",明細!N41) ->  | O47: =IF(明細!O41="","",明細!O41) ->  | P47: =IF(明細!P41="","",明細!P41) ->  | Q47: =IF(明細!Q41="","",明細!Q41) ->  | R47: =IF(明細!R41="","",明細!R41) ->  | S47: =IF(明細!S41="","",明細!S41) ->  | T47: =IF(明細!T41="","",明細!T41) ->  | U47: =IF(明細!U41="","",明細!U41) ->  | V47: =IF(明細!V41<>"","EA","") -> EA | W47: =IF(明細!W41="","",明細!W41) ->  | X47: =IF(明細!X41="","",明細!X41) ->  | Y47: =IF(明細!Y41="","",明細!Y41) ->  | Z47: =IF(明細!Z41="","",明細!Z41) ->  | AA47: =IF(明細!AA41="","",明細!AA41) ->  | AB47: =IF(明細!AB41="","",明細!AB41) ->  | AC47: =IF(明細!AC41="","",明細!AC41) ->  | AD47: =IF(明細!AD41="","",明細!AD41) ->  | AE47: =IF(明細!AE41="","",明細!AE41) -> 10% | AF47: =IF(明細!AF41="","",明細!AF41) ->  | AG47: =IF(明細!AG41="","",明細!AG41) ->  | AH47: =IF(明細!AH41="","",明細!AH41) ->  | AI47: =IF(明細!AI41="","",明細!AI41) ->  | AJ47: =IF(明細!AJ41="","",明細!AJ41) ->  | AK47: =IF(明細!AK41="","",明細!AK41) ->  | AL47: =IF(明細!AL41="","",明細!AL41) ->  | AM47: =IF(明細!AM41="","",明細!AM41) ->  | AN47: =IF(明細!AN41="","",明細!AN41) ->  | AO47: =IF(明細!AO41="","",明細!AO41) ->  | AP47: =IF(明細!AP41="","",明細!AP41) ->  | AQ47: =IF(明細!AQ41="","",明細!AQ41) ->  | AR47: =IF(明細!AR41="","",明細!AR41) ->  | AY47: =IF($AX47="","",VLOOKUP($AX47,リスト!$CL:$CM,2,FALSE)) ->  | BA47: =IF(BB47="","",VLOOKUP(BB47,リスト!$K:$L,2,FALSE)) ->  | BE47: =IF(BF47="","",VLOOKUP(BF47,リスト!$I:$J,2,FALSE)) ->  | BG47: =IF(BH47="","",VLOOKUP(BH47,リスト!$M:$N,2,FALSE)) ->  | BI47: =IF(BJ47="","",VLOOKUP(BJ47,リスト!$O:$P,2,FALSE)) ->  | BO47: =IF($BN47="","",VLOOKUP($BN47,リスト!$CL:$CM,2,FALSE)) ->  | BP47: =IF(BQ47="","",VLOOKUP(BQ47,リスト!$K$5:$L$7,2,FALSE)) ->  | BT47: =IF(BU47="","",VLOOKUP(BU47,リスト!I38:J56,2,FALSE)) ->  | BY47: =IF(BZ47="","",VLOOKUP(BZ47,リスト!$S$5:$T$6,2,FALSE)) ->  | CU47: =IF(CV47="","",VLOOKUP(CV47,リスト!$V$5:$W$6,2,FALSE)) ->  | CW47: =IF(CX47="","",VLOOKUP(CX47,リスト!$X$5:$Y$6,2,FALSE)) ->  | DE47: =IF(DF47="","",VLOOKUP(DF47,リスト!$Z$5:$AA$10,2,FALSE)) ->  | DG47: =IF(DH47="","",VLOOKUP(DH47,リスト!$AB$5:$AC$12,2,FALSE)) ->  | DI47: =IF(DJ47="","",VLOOKUP(DJ47,リスト!$AD$5:$AE$7,2,FALSE)) ->  | DK47: =IF(DL47="","",VLOOKUP(DL47,リスト!$AF$5:$AG$10,2,FALSE)) ->  | DM47: =IF(DN47="","",VLOOKUP(DN47,リスト!$AH$5:$AI$6,2,FALSE)) ->  | DO47: =IF(DP47="","",VLOOKUP(DP47,リスト!$AJ$5:$AK$6,2,FALSE)) ->  | DQ47: =IF(DR47="","",VLOOKUP(DR47,リスト!$AL$5:$AM$7,2,FALSE)) ->  | DV47: =IF(DW47="","",VLOOKUP(DW47,リスト!$AN$5:$AO$6,2,FALSE)) ->  | EB47: =IF(EC47="","",VLOOKUP(EC47,リスト!$AW$5:$AX$8,2,FALSE)) ->  | EE47: =IF(EF47="","",VLOOKUP(EF47,リスト!$AY$5:$AZ$10,2,FALSE)) ->  | EG47: =IF(EH47="","",VLOOKUP(EH47,リスト!$BA$5:$BB$10,2,FALSE)) ->  | EI47: =IF(EJ47="","",VLOOKUP(EJ47,リスト!$BC$5:$BD$10,2,FALSE)) ->  | EK47: =IF(EL47="","",VLOOKUP(EL47,リスト!$BE$5:$BF$10,2,FALSE)) ->  | ER47: =IF(ES47="","",VLOOKUP(ES47,リスト!$BG$5:$BH$10,2,FALSE)) ->  | FA47: =IF($EZ47="","",INDEX(リスト!$BI$5:$BJ$40,MATCH($EZ47,リスト!$BJ$5:$BJ$40,0),1)) ->  | FB47: =IF(FC47="","",VLOOKUP(FC47,リスト!$BK:$BL,2,FALSE)) ->  | FF47: =IF(FG47="","",VLOOKUP(FG47,リスト!$BO$5:$BP$6,2,FALSE)) ->  | FH47: =IF(FI47="","",VLOOKUP(FI47,リスト!$BQ$5:$BR$8,2,FALSE)) ->  | FK47: =IF(FL47="","",VLOOKUP(FL47,リスト!$BS$5:$BT$6,2,FALSE)) ->  | FV47: =IF(FW47="","",VLOOKUP(FW47,リスト!$BV$5:$BW$10,2,FALSE)) ->  | FY47: =IF(FZ47="","",VLOOKUP(FZ47,リスト!$BX$5:$BY$6,2,FALSE)) ->  | GA47: =IF(GB47="","",VLOOKUP(GB47,リスト!$BZ$5:$CA$6,2,FALSE)) ->  | GC47: =IF(GD47="","",VLOOKUP(GD47,リスト!$CB$5:$CC$6,2,FALSE)) ->  | GJ47: =IF(GK47="","",VLOOKUP(GK47,リスト!$CD$5:$CE$6,2,FALSE)) ->  | GL47: =IF(GM47="","",VLOOKUP(GM47,リスト!$CF$5:$CG$6,2,FALSE)) ->  | GN47: =IF(GO47="","",VLOOKUP(GO47,リスト!$CH$5:$CI$6,2,FALSE)) -> 
B48: =IF(明細!B42="","",明細!B42) ->  | C48: =IF(明細!C42="","",明細!C42) ->  | D48: =IF(明細!D42="","",明細!D42) ->  | E48: =IF(明細!E42="","",明細!E42) ->  | F48: =IF(明細!F42="","",明細!F42) ->  | G48: =IF(明細!G42="","",明細!G42) ->  | H48: =IF(明細!H42="","",明細!H42) ->  | I48: =IF(明細!I42="","",明細!I42) ->  | J48: =IF(明細!J42="","",明細!J42) ->  | K48: =IF(明細!K42="","",明細!K42) ->  | L48: =IF(明細!K42<>"",CONCATENATE($L$12,明細!L42),"") ->  | M48: =IF(明細!M42="","",明細!M42) ->  | N48: =IF(明細!N42="","",明細!N42) ->  | O48: =IF(明細!O42="","",明細!O42) ->  | P48: =IF(明細!P42="","",明細!P42) ->  | Q48: =IF(明細!Q42="","",明細!Q42) ->  | R48: =IF(明細!R42="","",明細!R42) ->  | S48: =IF(明細!S42="","",明細!S42) ->  | T48: =IF(明細!T42="","",明細!T42) ->  | U48: =IF(明細!U42="","",明細!U42) ->  | V48: =IF(明細!V42<>"","EA","") -> EA | W48: =IF(明細!W42="","",明細!W42) ->  | X48: =IF(明細!X42="","",明細!X42) ->  | Y48: =IF(明細!Y42="","",明細!Y42) ->  | Z48: =IF(明細!Z42="","",明細!Z42) ->  | AA48: =IF(明細!AA42="","",明細!AA42) ->  | AB48: =IF(明細!AB42="","",明細!AB42) ->  | AC48: =IF(明細!AC42="","",明細!AC42) ->  | AD48: =IF(明細!AD42="","",明細!AD42) ->  | AE48: =IF(明細!AE42="","",明細!AE42) -> 10% | AF48: =IF(明細!AF42="","",明細!AF42) ->  | AG48: =IF(明細!AG42="","",明細!AG42) ->  | AH48: =IF(明細!AH42="","",明細!AH42) ->  | AI48: =IF(明細!AI42="","",明細!AI42) ->  | AJ48: =IF(明細!AJ42="","",明細!AJ42) ->  | AK48: =IF(明細!AK42="","",明細!AK42) ->  | AL48: =IF(明細!AL42="","",明細!AL42) ->  | AM48: =IF(明細!AM42="","",明細!AM42) ->  | AN48: =IF(明細!AN42="","",明細!AN42) ->  | AO48: =IF(明細!AO42="","",明細!AO42) ->  | AP48: =IF(明細!AP42="","",明細!AP42) ->  | AQ48: =IF(明細!AQ42="","",明細!AQ42) ->  | AR48: =IF(明細!AR42="","",明細!AR42) ->  | AY48: =IF($AX48="","",VLOOKUP($AX48,リスト!$CL:$CM,2,FALSE)) ->  | BA48: =IF(BB48="","",VLOOKUP(BB48,リスト!$K:$L,2,FALSE)) ->  | BE48: =IF(BF48="","",VLOOKUP(BF48,リスト!$I:$J,2,FALSE)) ->  | BG48: =IF(BH48="","",VLOOKUP(BH48,リスト!$M:$N,2,FALSE)) ->  | BI48: =IF(BJ48="","",VLOOKUP(BJ48,リスト!$O:$P,2,FALSE)) ->  | BO48: =IF($BN48="","",VLOOKUP($BN48,リスト!$CL:$CM,2,FALSE)) ->  | BP48: =IF(BQ48="","",VLOOKUP(BQ48,リスト!$K$5:$L$7,2,FALSE)) ->  | BT48: =IF(BU48="","",VLOOKUP(BU48,リスト!I39:J57,2,FALSE)) ->  | BY48: =IF(BZ48="","",VLOOKUP(BZ48,リスト!$S$5:$T$6,2,FALSE)) ->  | CU48: =IF(CV48="","",VLOOKUP(CV48,リスト!$V$5:$W$6,2,FALSE)) ->  | CW48: =IF(CX48="","",VLOOKUP(CX48,リスト!$X$5:$Y$6,2,FALSE)) ->  | DE48: =IF(DF48="","",VLOOKUP(DF48,リスト!$Z$5:$AA$10,2,FALSE)) ->  | DG48: =IF(DH48="","",VLOOKUP(DH48,リスト!$AB$5:$AC$12,2,FALSE)) ->  | DI48: =IF(DJ48="","",VLOOKUP(DJ48,リスト!$AD$5:$AE$7,2,FALSE)) ->  | DK48: =IF(DL48="","",VLOOKUP(DL48,リスト!$AF$5:$AG$10,2,FALSE)) ->  | DM48: =IF(DN48="","",VLOOKUP(DN48,リスト!$AH$5:$AI$6,2,FALSE)) ->  | DO48: =IF(DP48="","",VLOOKUP(DP48,リスト!$AJ$5:$AK$6,2,FALSE)) ->  | DQ48: =IF(DR48="","",VLOOKUP(DR48,リスト!$AL$5:$AM$7,2,FALSE)) ->  | DV48: =IF(DW48="","",VLOOKUP(DW48,リスト!$AN$5:$AO$6,2,FALSE)) ->  | EB48: =IF(EC48="","",VLOOKUP(EC48,リスト!$AW$5:$AX$8,2,FALSE)) ->  | EE48: =IF(EF48="","",VLOOKUP(EF48,リスト!$AY$5:$AZ$10,2,FALSE)) ->  | EG48: =IF(EH48="","",VLOOKUP(EH48,リスト!$BA$5:$BB$10,2,FALSE)) ->  | EI48: =IF(EJ48="","",VLOOKUP(EJ48,リスト!$BC$5:$BD$10,2,FALSE)) ->  | EK48: =IF(EL48="","",VLOOKUP(EL48,リスト!$BE$5:$BF$10,2,FALSE)) ->  | ER48: =IF(ES48="","",VLOOKUP(ES48,リスト!$BG$5:$BH$10,2,FALSE)) ->  | FA48: =IF($EZ48="","",INDEX(リスト!$BI$5:$BJ$40,MATCH($EZ48,リスト!$BJ$5:$BJ$40,0),1)) ->  | FB48: =IF(FC48="","",VLOOKUP(FC48,リスト!$BK:$BL,2,FALSE)) ->  | FF48: =IF(FG48="","",VLOOKUP(FG48,リスト!$BO$5:$BP$6,2,FALSE)) ->  | FH48: =IF(FI48="","",VLOOKUP(FI48,リスト!$BQ$5:$BR$8,2,FALSE)) ->  | FK48: =IF(FL48="","",VLOOKUP(FL48,リスト!$BS$5:$BT$6,2,FALSE)) ->  | FV48: =IF(FW48="","",VLOOKUP(FW48,リスト!$BV$5:$BW$10,2,FALSE)) ->  | FY48: =IF(FZ48="","",VLOOKUP(FZ48,リスト!$BX$5:$BY$6,2,FALSE)) ->  | GA48: =IF(GB48="","",VLOOKUP(GB48,リスト!$BZ$5:$CA$6,2,FALSE)) ->  | GC48: =IF(GD48="","",VLOOKUP(GD48,リスト!$CB$5:$CC$6,2,FALSE)) ->  | GJ48: =IF(GK48="","",VLOOKUP(GK48,リスト!$CD$5:$CE$6,2,FALSE)) ->  | GL48: =IF(GM48="","",VLOOKUP(GM48,リスト!$CF$5:$CG$6,2,FALSE)) ->  | GN48: =IF(GO48="","",VLOOKUP(GO48,リスト!$CH$5:$CI$6,2,FALSE)) -> 
B49: =IF(明細!B43="","",明細!B43) ->  | C49: =IF(明細!C43="","",明細!C43) ->  | D49: =IF(明細!D43="","",明細!D43) ->  | E49: =IF(明細!E43="","",明細!E43) ->  | F49: =IF(明細!F43="","",明細!F43) ->  | G49: =IF(明細!G43="","",明細!G43) ->  | H49: =IF(明細!H43="","",明細!H43) ->  | I49: =IF(明細!I43="","",明細!I43) ->  | J49: =IF(明細!J43="","",明細!J43) ->  | K49: =IF(明細!K43="","",明細!K43) ->  | L49: =IF(明細!K43<>"",CONCATENATE($L$12,明細!L43),"") ->  | M49: =IF(明細!M43="","",明細!M43) ->  | N49: =IF(明細!N43="","",明細!N43) ->  | O49: =IF(明細!O43="","",明細!O43) ->  | P49: =IF(明細!P43="","",明細!P43) ->  | Q49: =IF(明細!Q43="","",明細!Q43) ->  | R49: =IF(明細!R43="","",明細!R43) ->  | S49: =IF(明細!S43="","",明細!S43) ->  | T49: =IF(明細!T43="","",明細!T43) ->  | U49: =IF(明細!U43="","",明細!U43) ->  | V49: =IF(明細!V43<>"","EA","") -> EA | W49: =IF(明細!W43="","",明細!W43) ->  | X49: =IF(明細!X43="","",明細!X43) ->  | Y49: =IF(明細!Y43="","",明細!Y43) ->  | Z49: =IF(明細!Z43="","",明細!Z43) ->  | AA49: =IF(明細!AA43="","",明細!AA43) ->  | AB49: =IF(明細!AB43="","",明細!AB43) ->  | AC49: =IF(明細!AC43="","",明細!AC43) ->  | AD49: =IF(明細!AD43="","",明細!AD43) ->  | AE49: =IF(明細!AE43="","",明細!AE43) -> 10% | AF49: =IF(明細!AF43="","",明細!AF43) ->  | AG49: =IF(明細!AG43="","",明細!AG43) ->  | AH49: =IF(明細!AH43="","",明細!AH43) ->  | AI49: =IF(明細!AI43="","",明細!AI43) ->  | AJ49: =IF(明細!AJ43="","",明細!AJ43) ->  | AK49: =IF(明細!AK43="","",明細!AK43) ->  | AL49: =IF(明細!AL43="","",明細!AL43) ->  | AM49: =IF(明細!AM43="","",明細!AM43) ->  | AN49: =IF(明細!AN43="","",明細!AN43) ->  | AO49: =IF(明細!AO43="","",明細!AO43) ->  | AP49: =IF(明細!AP43="","",明細!AP43) ->  | AQ49: =IF(明細!AQ43="","",明細!AQ43) ->  | AR49: =IF(明細!AR43="","",明細!AR43) ->  | AY49: =IF($AX49="","",VLOOKUP($AX49,リスト!$CL:$CM,2,FALSE)) ->  | BA49: =IF(BB49="","",VLOOKUP(BB49,リスト!$K:$L,2,FALSE)) ->  | BE49: =IF(BF49="","",VLOOKUP(BF49,リスト!$I:$J,2,FALSE)) ->  | BG49: =IF(BH49="","",VLOOKUP(BH49,リスト!$M:$N,2,FALSE)) ->  | BI49: =IF(BJ49="","",VLOOKUP(BJ49,リスト!$O:$P,2,FALSE)) ->  | BO49: =IF($BN49="","",VLOOKUP($BN49,リスト!$CL:$CM,2,FALSE)) ->  | BP49: =IF(BQ49="","",VLOOKUP(BQ49,リスト!$K$5:$L$7,2,FALSE)) ->  | BT49: =IF(BU49="","",VLOOKUP(BU49,リスト!I40:J58,2,FALSE)) ->  | BY49: =IF(BZ49="","",VLOOKUP(BZ49,リスト!$S$5:$T$6,2,FALSE)) ->  | CU49: =IF(CV49="","",VLOOKUP(CV49,リスト!$V$5:$W$6,2,FALSE)) ->  | CW49: =IF(CX49="","",VLOOKUP(CX49,リスト!$X$5:$Y$6,2,FALSE)) ->  | DE49: =IF(DF49="","",VLOOKUP(DF49,リスト!$Z$5:$AA$10,2,FALSE)) ->  | DG49: =IF(DH49="","",VLOOKUP(DH49,リスト!$AB$5:$AC$12,2,FALSE)) ->  | DI49: =IF(DJ49="","",VLOOKUP(DJ49,リスト!$AD$5:$AE$7,2,FALSE)) ->  | DK49: =IF(DL49="","",VLOOKUP(DL49,リスト!$AF$5:$AG$10,2,FALSE)) ->  | DM49: =IF(DN49="","",VLOOKUP(DN49,リスト!$AH$5:$AI$6,2,FALSE)) ->  | DO49: =IF(DP49="","",VLOOKUP(DP49,リスト!$AJ$5:$AK$6,2,FALSE)) ->  | DQ49: =IF(DR49="","",VLOOKUP(DR49,リスト!$AL$5:$AM$7,2,FALSE)) ->  | DV49: =IF(DW49="","",VLOOKUP(DW49,リスト!$AN$5:$AO$6,2,FALSE)) ->  | EB49: =IF(EC49="","",VLOOKUP(EC49,リスト!$AW$5:$AX$8,2,FALSE)) ->  | EE49: =IF(EF49="","",VLOOKUP(EF49,リスト!$AY$5:$AZ$10,2,FALSE)) ->  | EG49: =IF(EH49="","",VLOOKUP(EH49,リスト!$BA$5:$BB$10,2,FALSE)) ->  | EI49: =IF(EJ49="","",VLOOKUP(EJ49,リスト!$BC$5:$BD$10,2,FALSE)) ->  | EK49: =IF(EL49="","",VLOOKUP(EL49,リスト!$BE$5:$BF$10,2,FALSE)) ->  | ER49: =IF(ES49="","",VLOOKUP(ES49,リスト!$BG$5:$BH$10,2,FALSE)) ->  | FA49: =IF($EZ49="","",INDEX(リスト!$BI$5:$BJ$40,MATCH($EZ49,リスト!$BJ$5:$BJ$40,0),1)) ->  | FB49: =IF(FC49="","",VLOOKUP(FC49,リスト!$BK:$BL,2,FALSE)) ->  | FF49: =IF(FG49="","",VLOOKUP(FG49,リスト!$BO$5:$BP$6,2,FALSE)) ->  | FH49: =IF(FI49="","",VLOOKUP(FI49,リスト!$BQ$5:$BR$8,2,FALSE)) ->  | FK49: =IF(FL49="","",VLOOKUP(FL49,リスト!$BS$5:$BT$6,2,FALSE)) ->  | FV49: =IF(FW49="","",VLOOKUP(FW49,リスト!$BV$5:$BW$10,2,FALSE)) ->  | FY49: =IF(FZ49="","",VLOOKUP(FZ49,リスト!$BX$5:$BY$6,2,FALSE)) ->  | GA49: =IF(GB49="","",VLOOKUP(GB49,リスト!$BZ$5:$CA$6,2,FALSE)) ->  | GC49: =IF(GD49="","",VLOOKUP(GD49,リスト!$CB$5:$CC$6,2,FALSE)) ->  | GJ49: =IF(GK49="","",VLOOKUP(GK49,リスト!$CD$5:$CE$6,2,FALSE)) ->  | GL49: =IF(GM49="","",VLOOKUP(GM49,リスト!$CF$5:$CG$6,2,FALSE)) ->  | GN49: =IF(GO49="","",VLOOKUP(GO49,リスト!$CH$5:$CI$6,2,FALSE)) -> 
B50: =IF(明細!B44="","",明細!B44) ->  | C50: =IF(明細!C44="","",明細!C44) ->  | D50: =IF(明細!D44="","",明細!D44) ->  | E50: =IF(明細!E44="","",明細!E44) ->  | F50: =IF(明細!F44="","",明細!F44) ->  | G50: =IF(明細!G44="","",明細!G44) ->  | H50: =IF(明細!H44="","",明細!H44) ->  | I50: =IF(明細!I44="","",明細!I44) ->  | J50: =IF(明細!J44="","",明細!J44) ->  | K50: =IF(明細!K44="","",明細!K44) ->  | L50: =IF(明細!K44<>"",CONCATENATE($L$12,明細!L44),"") ->  | M50: =IF(明細!M44="","",明細!M44) ->  | N50: =IF(明細!N44="","",明細!N44) ->  | O50: =IF(明細!O44="","",明細!O44) ->  | P50: =IF(明細!P44="","",明細!P44) ->  | Q50: =IF(明細!Q44="","",明細!Q44) ->  | R50: =IF(明細!R44="","",明細!R44) ->  | S50: =IF(明細!S44="","",明細!S44) ->  | T50: =IF(明細!T44="","",明細!T44) ->  | U50: =IF(明細!U44="","",明細!U44) ->  | V50: =IF(明細!V44<>"","EA","") -> EA | W50: =IF(明細!W44="","",明細!W44) ->  | X50: =IF(明細!X44="","",明細!X44) ->  | Y50: =IF(明細!Y44="","",明細!Y44) ->  | Z50: =IF(明細!Z44="","",明細!Z44) ->  | AA50: =IF(明細!AA44="","",明細!AA44) ->  | AB50: =IF(明細!AB44="","",明細!AB44) ->  | AC50: =IF(明細!AC44="","",明細!AC44) ->  | AD50: =IF(明細!AD44="","",明細!AD44) ->  | AE50: =IF(明細!AE44="","",明細!AE44) -> 10% | AF50: =IF(明細!AF44="","",明細!AF44) ->  | AG50: =IF(明細!AG44="","",明細!AG44) ->  | AH50: =IF(明細!AH44="","",明細!AH44) ->  | AI50: =IF(明細!AI44="","",明細!AI44) ->  | AJ50: =IF(明細!AJ44="","",明細!AJ44) ->  | AK50: =IF(明細!AK44="","",明細!AK44) ->  | AL50: =IF(明細!AL44="","",明細!AL44) ->  | AM50: =IF(明細!AM44="","",明細!AM44) ->  | AN50: =IF(明細!AN44="","",明細!AN44) ->  | AO50: =IF(明細!AO44="","",明細!AO44) ->  | AP50: =IF(明細!AP44="","",明細!AP44) ->  | AQ50: =IF(明細!AQ44="","",明細!AQ44) ->  | AR50: =IF(明細!AR44="","",明細!AR44) ->  | AY50: =IF($AX50="","",VLOOKUP($AX50,リスト!$CL:$CM,2,FALSE)) ->  | BA50: =IF(BB50="","",VLOOKUP(BB50,リスト!$K:$L,2,FALSE)) ->  | BE50: =IF(BF50="","",VLOOKUP(BF50,リスト!$I:$J,2,FALSE)) ->  | BG50: =IF(BH50="","",VLOOKUP(BH50,リスト!$M:$N,2,FALSE)) ->  | BI50: =IF(BJ50="","",VLOOKUP(BJ50,リスト!$O:$P,2,FALSE)) ->  | BO50: =IF($BN50="","",VLOOKUP($BN50,リスト!$CL:$CM,2,FALSE)) ->  | BP50: =IF(BQ50="","",VLOOKUP(BQ50,リスト!$K$5:$L$7,2,FALSE)) ->  | BT50: =IF(BU50="","",VLOOKUP(BU50,リスト!I41:J59,2,FALSE)) ->  | BY50: =IF(BZ50="","",VLOOKUP(BZ50,リスト!$S$5:$T$6,2,FALSE)) ->  | CU50: =IF(CV50="","",VLOOKUP(CV50,リスト!$V$5:$W$6,2,FALSE)) ->  | CW50: =IF(CX50="","",VLOOKUP(CX50,リスト!$X$5:$Y$6,2,FALSE)) ->  | DE50: =IF(DF50="","",VLOOKUP(DF50,リスト!$Z$5:$AA$10,2,FALSE)) ->  | DG50: =IF(DH50="","",VLOOKUP(DH50,リスト!$AB$5:$AC$12,2,FALSE)) ->  | DI50: =IF(DJ50="","",VLOOKUP(DJ50,リスト!$AD$5:$AE$7,2,FALSE)) ->  | DK50: =IF(DL50="","",VLOOKUP(DL50,リスト!$AF$5:$AG$10,2,FALSE)) ->  | DM50: =IF(DN50="","",VLOOKUP(DN50,リスト!$AH$5:$AI$6,2,FALSE)) ->  | DO50: =IF(DP50="","",VLOOKUP(DP50,リスト!$AJ$5:$AK$6,2,FALSE)) ->  | DQ50: =IF(DR50="","",VLOOKUP(DR50,リスト!$AL$5:$AM$7,2,FALSE)) ->  | DV50: =IF(DW50="","",VLOOKUP(DW50,リスト!$AN$5:$AO$6,2,FALSE)) ->  | EB50: =IF(EC50="","",VLOOKUP(EC50,リスト!$AW$5:$AX$8,2,FALSE)) ->  | EE50: =IF(EF50="","",VLOOKUP(EF50,リスト!$AY$5:$AZ$10,2,FALSE)) ->  | EG50: =IF(EH50="","",VLOOKUP(EH50,リスト!$BA$5:$BB$10,2,FALSE)) ->  | EI50: =IF(EJ50="","",VLOOKUP(EJ50,リスト!$BC$5:$BD$10,2,FALSE)) ->  | EK50: =IF(EL50="","",VLOOKUP(EL50,リスト!$BE$5:$BF$10,2,FALSE)) ->  | ER50: =IF(ES50="","",VLOOKUP(ES50,リスト!$BG$5:$BH$10,2,FALSE)) ->  | FA50: =IF($EZ50="","",INDEX(リスト!$BI$5:$BJ$40,MATCH($EZ50,リスト!$BJ$5:$BJ$40,0),1)) ->  | FB50: =IF(FC50="","",VLOOKUP(FC50,リスト!$BK:$BL,2,FALSE)) ->  | FF50: =IF(FG50="","",VLOOKUP(FG50,リスト!$BO$5:$BP$6,2,FALSE)) ->  | FH50: =IF(FI50="","",VLOOKUP(FI50,リスト!$BQ$5:$BR$8,2,FALSE)) ->  | FK50: =IF(FL50="","",VLOOKUP(FL50,リスト!$BS$5:$BT$6,2,FALSE)) ->  | FV50: =IF(FW50="","",VLOOKUP(FW50,リスト!$BV$5:$BW$10,2,FALSE)) ->  | FY50: =IF(FZ50="","",VLOOKUP(FZ50,リスト!$BX$5:$BY$6,2,FALSE)) ->  | GA50: =IF(GB50="","",VLOOKUP(GB50,リスト!$BZ$5:$CA$6,2,FALSE)) ->  | GC50: =IF(GD50="","",VLOOKUP(GD50,リスト!$CB$5:$CC$6,2,FALSE)) ->  | GJ50: =IF(GK50="","",VLOOKUP(GK50,リスト!$CD$5:$CE$6,2,FALSE)) ->  | GL50: =IF(GM50="","",VLOOKUP(GM50,リスト!$CF$5:$CG$6,2,FALSE)) ->  | GN50: =IF(GO50="","",VLOOKUP(GO50,リスト!$CH$5:$CI$6,2,FALSE)) -> 
B51: =IF(明細!B45="","",明細!B45) ->  | C51: =IF(明細!C45="","",明細!C45) ->  | D51: =IF(明細!D45="","",明細!D45) ->  | E51: =IF(明細!E45="","",明細!E45) ->  | F51: =IF(明細!F45="","",明細!F45) ->  | G51: =IF(明細!G45="","",明細!G45) ->  | H51: =IF(明細!H45="","",明細!H45) ->  | I51: =IF(明細!I45="","",明細!I45) ->  | J51: =IF(明細!J45="","",明細!J45) ->  | K51: =IF(明細!K45="","",明細!K45) ->  | L51: =IF(明細!K45<>"",CONCATENATE($L$12,明細!L45),"") ->  | M51: =IF(明細!M45="","",明細!M45) ->  | N51: =IF(明細!N45="","",明細!N45) ->  | O51: =IF(明細!O45="","",明細!O45) ->  | P51: =IF(明細!P45="","",明細!P45) ->  | Q51: =IF(明細!Q45="","",明細!Q45) ->  | R51: =IF(明細!R45="","",明細!R45) ->  | S51: =IF(明細!S45="","",明細!S45) ->  | T51: =IF(明細!T45="","",明細!T45) ->  | U51: =IF(明細!U45="","",明細!U45) ->  | V51: =IF(明細!V45<>"","EA","") -> EA | W51: =IF(明細!W45="","",明細!W45) ->  | X51: =IF(明細!X45="","",明細!X45) ->  | Y51: =IF(明細!Y45="","",明細!Y45) ->  | Z51: =IF(明細!Z45="","",明細!Z45) ->  | AA51: =IF(明細!AA45="","",明細!AA45) ->  | AB51: =IF(明細!AB45="","",明細!AB45) ->  | AC51: =IF(明細!AC45="","",明細!AC45) ->  | AD51: =IF(明細!AD45="","",明細!AD45) ->  | AE51: =IF(明細!AE45="","",明細!AE45) -> 10% | AF51: =IF(明細!AF45="","",明細!AF45) ->  | AG51: =IF(明細!AG45="","",明細!AG45) ->  | AH51: =IF(明細!AH45="","",明細!AH45) ->  | AI51: =IF(明細!AI45="","",明細!AI45) ->  | AJ51: =IF(明細!AJ45="","",明細!AJ45) ->  | AK51: =IF(明細!AK45="","",明細!AK45) ->  | AL51: =IF(明細!AL45="","",明細!AL45) ->  | AM51: =IF(明細!AM45="","",明細!AM45) ->  | AN51: =IF(明細!AN45="","",明細!AN45) ->  | AO51: =IF(明細!AO45="","",明細!AO45) ->  | AP51: =IF(明細!AP45="","",明細!AP45) ->  | AQ51: =IF(明細!AQ45="","",明細!AQ45) ->  | AR51: =IF(明細!AR45="","",明細!AR45) ->  | AY51: =IF($AX51="","",VLOOKUP($AX51,リスト!$CL:$CM,2,FALSE)) ->  | BA51: =IF(BB51="","",VLOOKUP(BB51,リスト!$K:$L,2,FALSE)) ->  | BE51: =IF(BF51="","",VLOOKUP(BF51,リスト!$I:$J,2,FALSE)) ->  | BG51: =IF(BH51="","",VLOOKUP(BH51,リスト!$M:$N,2,FALSE)) ->  | BI51: =IF(BJ51="","",VLOOKUP(BJ51,リスト!$O:$P,2,FALSE)) ->  | BO51: =IF($BN51="","",VLOOKUP($BN51,リスト!$CL:$CM,2,FALSE)) ->  | BP51: =IF(BQ51="","",VLOOKUP(BQ51,リスト!$K$5:$L$7,2,FALSE)) ->  | BT51: =IF(BU51="","",VLOOKUP(BU51,リスト!I42:J60,2,FALSE)) ->  | BY51: =IF(BZ51="","",VLOOKUP(BZ51,リスト!$S$5:$T$6,2,FALSE)) ->  | CU51: =IF(CV51="","",VLOOKUP(CV51,リスト!$V$5:$W$6,2,FALSE)) ->  | CW51: =IF(CX51="","",VLOOKUP(CX51,リスト!$X$5:$Y$6,2,FALSE)) ->  | DE51: =IF(DF51="","",VLOOKUP(DF51,リスト!$Z$5:$AA$10,2,FALSE)) ->  | DG51: =IF(DH51="","",VLOOKUP(DH51,リスト!$AB$5:$AC$12,2,FALSE)) ->  | DI51: =IF(DJ51="","",VLOOKUP(DJ51,リスト!$AD$5:$AE$7,2,FALSE)) ->  | DK51: =IF(DL51="","",VLOOKUP(DL51,リスト!$AF$5:$AG$10,2,FALSE)) ->  | DM51: =IF(DN51="","",VLOOKUP(DN51,リスト!$AH$5:$AI$6,2,FALSE)) ->  | DO51: =IF(DP51="","",VLOOKUP(DP51,リスト!$AJ$5:$AK$6,2,FALSE)) ->  | DQ51: =IF(DR51="","",VLOOKUP(DR51,リスト!$AL$5:$AM$7,2,FALSE)) ->  | DV51: =IF(DW51="","",VLOOKUP(DW51,リスト!$AN$5:$AO$6,2,FALSE)) ->  | EB51: =IF(EC51="","",VLOOKUP(EC51,リスト!$AW$5:$AX$8,2,FALSE)) ->  | EE51: =IF(EF51="","",VLOOKUP(EF51,リスト!$AY$5:$AZ$10,2,FALSE)) ->  | EG51: =IF(EH51="","",VLOOKUP(EH51,リスト!$BA$5:$BB$10,2,FALSE)) ->  | EI51: =IF(EJ51="","",VLOOKUP(EJ51,リスト!$BC$5:$BD$10,2,FALSE)) ->  | EK51: =IF(EL51="","",VLOOKUP(EL51,リスト!$BE$5:$BF$10,2,FALSE)) ->  | ER51: =IF(ES51="","",VLOOKUP(ES51,リスト!$BG$5:$BH$10,2,FALSE)) ->  | FA51: =IF($EZ51="","",INDEX(リスト!$BI$5:$BJ$40,MATCH($EZ51,リスト!$BJ$5:$BJ$40,0),1)) ->  | FB51: =IF(FC51="","",VLOOKUP(FC51,リスト!$BK:$BL,2,FALSE)) ->  | FF51: =IF(FG51="","",VLOOKUP(FG51,リスト!$BO$5:$BP$6,2,FALSE)) ->  | FH51: =IF(FI51="","",VLOOKUP(FI51,リスト!$BQ$5:$BR$8,2,FALSE)) ->  | FK51: =IF(FL51="","",VLOOKUP(FL51,リスト!$BS$5:$BT$6,2,FALSE)) ->  | FV51: =IF(FW51="","",VLOOKUP(FW51,リスト!$BV$5:$BW$10,2,FALSE)) ->  | FY51: =IF(FZ51="","",VLOOKUP(FZ51,リスト!$BX$5:$BY$6,2,FALSE)) ->  | GA51: =IF(GB51="","",VLOOKUP(GB51,リスト!$BZ$5:$CA$6,2,FALSE)) ->  | GC51: =IF(GD51="","",VLOOKUP(GD51,リスト!$CB$5:$CC$6,2,FALSE)) ->  | GJ51: =IF(GK51="","",VLOOKUP(GK51,リスト!$CD$5:$CE$6,2,FALSE)) ->  | GL51: =IF(GM51="","",VLOOKUP(GM51,リスト!$CF$5:$CG$6,2,FALSE)) ->  | GN51: =IF(GO51="","",VLOOKUP(GO51,リスト!$CH$5:$CI$6,2,FALSE)) -> 
B52: =IF(明細!B46="","",明細!B46) ->  | C52: =IF(明細!C46="","",明細!C46) ->  | D52: =IF(明細!D46="","",明細!D46) ->  | E52: =IF(明細!E46="","",明細!E46) ->  | F52: =IF(明細!F46="","",明細!F46) ->  | G52: =IF(明細!G46="","",明細!G46) ->  | H52: =IF(明細!H46="","",明細!H46) ->  | I52: =IF(明細!I46="","",明細!I46) ->  | J52: =IF(明細!J46="","",明細!J46) ->  | K52: =IF(明細!K46="","",明細!K46) ->  | L52: =IF(明細!K46<>"",CONCATENATE($L$12,明細!L46),"") ->  | M52: =IF(明細!M46="","",明細!M46) ->  | N52: =IF(明細!N46="","",明細!N46) ->  | O52: =IF(明細!O46="","",明細!O46) ->  | P52: =IF(明細!P46="","",明細!P46) ->  | Q52: =IF(明細!Q46="","",明細!Q46) ->  | R52: =IF(明細!R46="","",明細!R46) ->  | S52: =IF(明細!S46="","",明細!S46) ->  | T52: =IF(明細!T46="","",明細!T46) ->  | U52: =IF(明細!U46="","",明細!U46) ->  | V52: =IF(明細!V46<>"","EA","") -> EA | W52: =IF(明細!W46="","",明細!W46) ->  | X52: =IF(明細!X46="","",明細!X46) ->  | Y52: =IF(明細!Y46="","",明細!Y46) ->  | Z52: =IF(明細!Z46="","",明細!Z46) ->  | AA52: =IF(明細!AA46="","",明細!AA46) ->  | AB52: =IF(明細!AB46="","",明細!AB46) ->  | AC52: =IF(明細!AC46="","",明細!AC46) ->  | AD52: =IF(明細!AD46="","",明細!AD46) ->  | AE52: =IF(明細!AE46="","",明細!AE46) -> 10% | AF52: =IF(明細!AF46="","",明細!AF46) ->  | AG52: =IF(明細!AG46="","",明細!AG46) ->  | AH52: =IF(明細!AH46="","",明細!AH46) ->  | AI52: =IF(明細!AI46="","",明細!AI46) ->  | AJ52: =IF(明細!AJ46="","",明細!AJ46) ->  | AK52: =IF(明細!AK46="","",明細!AK46) ->  | AL52: =IF(明細!AL46="","",明細!AL46) ->  | AM52: =IF(明細!AM46="","",明細!AM46) ->  | AN52: =IF(明細!AN46="","",明細!AN46) ->  | AO52: =IF(明細!AO46="","",明細!AO46) ->  | AP52: =IF(明細!AP46="","",明細!AP46) ->  | AQ52: =IF(明細!AQ46="","",明細!AQ46) ->  | AR52: =IF(明細!AR46="","",明細!AR46) ->  | AY52: =IF($AX52="","",VLOOKUP($AX52,リスト!$CL:$CM,2,FALSE)) ->  | BA52: =IF(BB52="","",VLOOKUP(BB52,リスト!$K:$L,2,FALSE)) ->  | BE52: =IF(BF52="","",VLOOKUP(BF52,リスト!$I:$J,2,FALSE)) ->  | BG52: =IF(BH52="","",VLOOKUP(BH52,リスト!$M:$N,2,FALSE)) ->  | BI52: =IF(BJ52="","",VLOOKUP(BJ52,リスト!$O:$P,2,FALSE)) ->  | BO52: =IF($BN52="","",VLOOKUP($BN52,リスト!$CL:$CM,2,FALSE)) ->  | BP52: =IF(BQ52="","",VLOOKUP(BQ52,リスト!$K$5:$L$7,2,FALSE)) ->  | BT52: =IF(BU52="","",VLOOKUP(BU52,リスト!I43:J61,2,FALSE)) ->  | BY52: =IF(BZ52="","",VLOOKUP(BZ52,リスト!$S$5:$T$6,2,FALSE)) ->  | CU52: =IF(CV52="","",VLOOKUP(CV52,リスト!$V$5:$W$6,2,FALSE)) ->  | CW52: =IF(CX52="","",VLOOKUP(CX52,リスト!$X$5:$Y$6,2,FALSE)) ->  | DE52: =IF(DF52="","",VLOOKUP(DF52,リスト!$Z$5:$AA$10,2,FALSE)) ->  | DG52: =IF(DH52="","",VLOOKUP(DH52,リスト!$AB$5:$AC$12,2,FALSE)) ->  | DI52: =IF(DJ52="","",VLOOKUP(DJ52,リスト!$AD$5:$AE$7,2,FALSE)) ->  | DK52: =IF(DL52="","",VLOOKUP(DL52,リスト!$AF$5:$AG$10,2,FALSE)) ->  | DM52: =IF(DN52="","",VLOOKUP(DN52,リスト!$AH$5:$AI$6,2,FALSE)) ->  | DO52: =IF(DP52="","",VLOOKUP(DP52,リスト!$AJ$5:$AK$6,2,FALSE)) ->  | DQ52: =IF(DR52="","",VLOOKUP(DR52,リスト!$AL$5:$AM$7,2,FALSE)) ->  | DV52: =IF(DW52="","",VLOOKUP(DW52,リスト!$AN$5:$AO$6,2,FALSE)) ->  | EB52: =IF(EC52="","",VLOOKUP(EC52,リスト!$AW$5:$AX$8,2,FALSE)) ->  | EE52: =IF(EF52="","",VLOOKUP(EF52,リスト!$AY$5:$AZ$10,2,FALSE)) ->  | EG52: =IF(EH52="","",VLOOKUP(EH52,リスト!$BA$5:$BB$10,2,FALSE)) ->  | EI52: =IF(EJ52="","",VLOOKUP(EJ52,リスト!$BC$5:$BD$10,2,FALSE)) ->  | EK52: =IF(EL52="","",VLOOKUP(EL52,リスト!$BE$5:$BF$10,2,FALSE)) ->  | ER52: =IF(ES52="","",VLOOKUP(ES52,リスト!$BG$5:$BH$10,2,FALSE)) ->  | FA52: =IF($EZ52="","",INDEX(リスト!$BI$5:$BJ$40,MATCH($EZ52,リスト!$BJ$5:$BJ$40,0),1)) ->  | FB52: =IF(FC52="","",VLOOKUP(FC52,リスト!$BK:$BL,2,FALSE)) ->  | FF52: =IF(FG52="","",VLOOKUP(FG52,リスト!$BO$5:$BP$6,2,FALSE)) ->  | FH52: =IF(FI52="","",VLOOKUP(FI52,リスト!$BQ$5:$BR$8,2,FALSE)) ->  | FK52: =IF(FL52="","",VLOOKUP(FL52,リスト!$BS$5:$BT$6,2,FALSE)) ->  | FV52: =IF(FW52="","",VLOOKUP(FW52,リスト!$BV$5:$BW$10,2,FALSE)) ->  | FY52: =IF(FZ52="","",VLOOKUP(FZ52,リスト!$BX$5:$BY$6,2,FALSE)) ->  | GA52: =IF(GB52="","",VLOOKUP(GB52,リスト!$BZ$5:$CA$6,2,FALSE)) ->  | GC52: =IF(GD52="","",VLOOKUP(GD52,リスト!$CB$5:$CC$6,2,FALSE)) ->  | GJ52: =IF(GK52="","",VLOOKUP(GK52,リスト!$CD$5:$CE$6,2,FALSE)) ->  | GL52: =IF(GM52="","",VLOOKUP(GM52,リスト!$CF$5:$CG$6,2,FALSE)) ->  | GN52: =IF(GO52="","",VLOOKUP(GO52,リスト!$CH$5:$CI$6,2,FALSE)) -> 
B53: =IF(明細!B47="","",明細!B47) ->  | C53: =IF(明細!C47="","",明細!C47) ->  | D53: =IF(明細!D47="","",明細!D47) ->  | E53: =IF(明細!E47="","",明細!E47) ->  | F53: =IF(明細!F47="","",明細!F47) ->  | G53: =IF(明細!G47="","",明細!G47) ->  | H53: =IF(明細!H47="","",明細!H47) ->  | I53: =IF(明細!I47="","",明細!I47) ->  | J53: =IF(明細!J47="","",明細!J47) ->  | K53: =IF(明細!K47="","",明細!K47) ->  | L53: =IF(明細!K47<>"",CONCATENATE($L$12,明細!L47),"") ->  | M53: =IF(明細!M47="","",明細!M47) ->  | N53: =IF(明細!N47="","",明細!N47) ->  | O53: =IF(明細!O47="","",明細!O47) ->  | P53: =IF(明細!P47="","",明細!P47) ->  | Q53: =IF(明細!Q47="","",明細!Q47) ->  | R53: =IF(明細!R47="","",明細!R47) ->  | S53: =IF(明細!S47="","",明細!S47) ->  | T53: =IF(明細!T47="","",明細!T47) ->  | U53: =IF(明細!U47="","",明細!U47) ->  | V53: =IF(明細!V47<>"","EA","") -> EA | W53: =IF(明細!W47="","",明細!W47) ->  | X53: =IF(明細!X47="","",明細!X47) ->  | Y53: =IF(明細!Y47="","",明細!Y47) ->  | Z53: =IF(明細!Z47="","",明細!Z47) ->  | AA53: =IF(明細!AA47="","",明細!AA47) ->  | AB53: =IF(明細!AB47="","",明細!AB47) ->  | AC53: =IF(明細!AC47="","",明細!AC47) ->  | AD53: =IF(明細!AD47="","",明細!AD47) ->  | AE53: =IF(明細!AE47="","",明細!AE47) -> 10% | AF53: =IF(明細!AF47="","",明細!AF47) ->  | AG53: =IF(明細!AG47="","",明細!AG47) ->  | AH53: =IF(明細!AH47="","",明細!AH47) ->  | AI53: =IF(明細!AI47="","",明細!AI47) ->  | AJ53: =IF(明細!AJ47="","",明細!AJ47) ->  | AK53: =IF(明細!AK47="","",明細!AK47) ->  | AL53: =IF(明細!AL47="","",明細!AL47) ->  | AM53: =IF(明細!AM47="","",明細!AM47) ->  | AN53: =IF(明細!AN47="","",明細!AN47) ->  | AO53: =IF(明細!AO47="","",明細!AO47) ->  | AP53: =IF(明細!AP47="","",明細!AP47) ->  | AQ53: =IF(明細!AQ47="","",明細!AQ47) ->  | AR53: =IF(明細!AR47="","",明細!AR47) ->  | AY53: =IF($AX53="","",VLOOKUP($AX53,リスト!$CL:$CM,2,FALSE)) ->  | BA53: =IF(BB53="","",VLOOKUP(BB53,リスト!$K:$L,2,FALSE)) ->  | BE53: =IF(BF53="","",VLOOKUP(BF53,リスト!$I:$J,2,FALSE)) ->  | BG53: =IF(BH53="","",VLOOKUP(BH53,リスト!$M:$N,2,FALSE)) ->  | BI53: =IF(BJ53="","",VLOOKUP(BJ53,リスト!$O:$P,2,FALSE)) ->  | BO53: =IF($BN53="","",VLOOKUP($BN53,リスト!$CL:$CM,2,FALSE)) ->  | BP53: =IF(BQ53="","",VLOOKUP(BQ53,リスト!$K$5:$L$7,2,FALSE)) ->  | BT53: =IF(BU53="","",VLOOKUP(BU53,リスト!I44:J62,2,FALSE)) ->  | BY53: =IF(BZ53="","",VLOOKUP(BZ53,リスト!$S$5:$T$6,2,FALSE)) ->  | CU53: =IF(CV53="","",VLOOKUP(CV53,リスト!$V$5:$W$6,2,FALSE)) ->  | CW53: =IF(CX53="","",VLOOKUP(CX53,リスト!$X$5:$Y$6,2,FALSE)) ->  | DE53: =IF(DF53="","",VLOOKUP(DF53,リスト!$Z$5:$AA$10,2,FALSE)) ->  | DG53: =IF(DH53="","",VLOOKUP(DH53,リスト!$AB$5:$AC$12,2,FALSE)) ->  | DI53: =IF(DJ53="","",VLOOKUP(DJ53,リスト!$AD$5:$AE$7,2,FALSE)) ->  | DK53: =IF(DL53="","",VLOOKUP(DL53,リスト!$AF$5:$AG$10,2,FALSE)) ->  | DM53: =IF(DN53="","",VLOOKUP(DN53,リスト!$AH$5:$AI$6,2,FALSE)) ->  | DO53: =IF(DP53="","",VLOOKUP(DP53,リスト!$AJ$5:$AK$6,2,FALSE)) ->  | DQ53: =IF(DR53="","",VLOOKUP(DR53,リスト!$AL$5:$AM$7,2,FALSE)) ->  | DV53: =IF(DW53="","",VLOOKUP(DW53,リスト!$AN$5:$AO$6,2,FALSE)) ->  | EB53: =IF(EC53="","",VLOOKUP(EC53,リスト!$AW$5:$AX$8,2,FALSE)) ->  | EE53: =IF(EF53="","",VLOOKUP(EF53,リスト!$AY$5:$AZ$10,2,FALSE)) ->  | EG53: =IF(EH53="","",VLOOKUP(EH53,リスト!$BA$5:$BB$10,2,FALSE)) ->  | EI53: =IF(EJ53="","",VLOOKUP(EJ53,リスト!$BC$5:$BD$10,2,FALSE)) ->  | EK53: =IF(EL53="","",VLOOKUP(EL53,リスト!$BE$5:$BF$10,2,FALSE)) ->  | ER53: =IF(ES53="","",VLOOKUP(ES53,リスト!$BG$5:$BH$10,2,FALSE)) ->  | FA53: =IF($EZ53="","",INDEX(リスト!$BI$5:$BJ$40,MATCH($EZ53,リスト!$BJ$5:$BJ$40,0),1)) ->  | FB53: =IF(FC53="","",VLOOKUP(FC53,リスト!$BK:$BL,2,FALSE)) ->  | FF53: =IF(FG53="","",VLOOKUP(FG53,リスト!$BO$5:$BP$6,2,FALSE)) ->  | FH53: =IF(FI53="","",VLOOKUP(FI53,リスト!$BQ$5:$BR$8,2,FALSE)) ->  | FK53: =IF(FL53="","",VLOOKUP(FL53,リスト!$BS$5:$BT$6,2,FALSE)) ->  | FV53: =IF(FW53="","",VLOOKUP(FW53,リスト!$BV$5:$BW$10,2,FALSE)) ->  | FY53: =IF(FZ53="","",VLOOKUP(FZ53,リスト!$BX$5:$BY$6,2,FALSE)) ->  | GA53: =IF(GB53="","",VLOOKUP(GB53,リスト!$BZ$5:$CA$6,2,FALSE)) ->  | GC53: =IF(GD53="","",VLOOKUP(GD53,リスト!$CB$5:$CC$6,2,FALSE)) ->  | GJ53: =IF(GK53="","",VLOOKUP(GK53,リスト!$CD$5:$CE$6,2,FALSE)) ->  | GL53: =IF(GM53="","",VLOOKUP(GM53,リスト!$CF$5:$CG$6,2,FALSE)) ->  | GN53: =IF(GO53="","",VLOOKUP(GO53,リスト!$CH$5:$CI$6,2,FALSE)) -> 
B54: =IF(明細!B48="","",明細!B48) ->  | C54: =IF(明細!C48="","",明細!C48) ->  | D54: =IF(明細!D48="","",明細!D48) ->  | E54: =IF(明細!E48="","",明細!E48) ->  | F54: =IF(明細!F48="","",明細!F48) ->  | G54: =IF(明細!G48="","",明細!G48) ->  | H54: =IF(明細!H48="","",明細!H48) ->  | I54: =IF(明細!I48="","",明細!I48) ->  | J54: =IF(明細!J48="","",明細!J48) ->  | K54: =IF(明細!K48="","",明細!K48) ->  | L54: =IF(明細!K48<>"",CONCATENATE($L$12,明細!L48),"") ->  | M54: =IF(明細!M48="","",明細!M48) ->  | N54: =IF(明細!N48="","",明細!N48) ->  | O54: =IF(明細!O48="","",明細!O48) ->  | P54: =IF(明細!P48="","",明細!P48) ->  | Q54: =IF(明細!Q48="","",明細!Q48) ->  | R54: =IF(明細!R48="","",明細!R48) ->  | S54: =IF(明細!S48="","",明細!S48) ->  | T54: =IF(明細!T48="","",明細!T48) ->  | U54: =IF(明細!U48="","",明細!U48) ->  | V54: =IF(明細!V48<>"","EA","") -> EA | W54: =IF(明細!W48="","",明細!W48) ->  | X54: =IF(明細!X48="","",明細!X48) ->  | Y54: =IF(明細!Y48="","",明細!Y48) ->  | Z54: =IF(明細!Z48="","",明細!Z48) ->  | AA54: =IF(明細!AA48="","",明細!AA48) ->  | AB54: =IF(明細!AB48="","",明細!AB48) ->  | AC54: =IF(明細!AC48="","",明細!AC48) ->  | AD54: =IF(明細!AD48="","",明細!AD48) ->  | AE54: =IF(明細!AE48="","",明細!AE48) -> 10% | AF54: =IF(明細!AF48="","",明細!AF48) ->  | AG54: =IF(明細!AG48="","",明細!AG48) ->  | AH54: =IF(明細!AH48="","",明細!AH48) ->  | AI54: =IF(明細!AI48="","",明細!AI48) ->  | AJ54: =IF(明細!AJ48="","",明細!AJ48) ->  | AK54: =IF(明細!AK48="","",明細!AK48) ->  | AL54: =IF(明細!AL48="","",明細!AL48) ->  | AM54: =IF(明細!AM48="","",明細!AM48) ->  | AN54: =IF(明細!AN48="","",明細!AN48) ->  | AO54: =IF(明細!AO48="","",明細!AO48) ->  | AP54: =IF(明細!AP48="","",明細!AP48) ->  | AQ54: =IF(明細!AQ48="","",明細!AQ48) ->  | AR54: =IF(明細!AR48="","",明細!AR48) ->  | AY54: =IF($AX54="","",VLOOKUP($AX54,リスト!$CL:$CM,2,FALSE)) ->  | BA54: =IF(BB54="","",VLOOKUP(BB54,リスト!$K:$L,2,FALSE)) ->  | BE54: =IF(BF54="","",VLOOKUP(BF54,リスト!$I:$J,2,FALSE)) ->  | BG54: =IF(BH54="","",VLOOKUP(BH54,リスト!$M:$N,2,FALSE)) ->  | BI54: =IF(BJ54="","",VLOOKUP(BJ54,リスト!$O:$P,2,FALSE)) ->  | BO54: =IF($BN54="","",VLOOKUP($BN54,リスト!$CL:$CM,2,FALSE)) ->  | BP54: =IF(BQ54="","",VLOOKUP(BQ54,リスト!$K$5:$L$7,2,FALSE)) ->  | BT54: =IF(BU54="","",VLOOKUP(BU54,リスト!I45:J63,2,FALSE)) ->  | BY54: =IF(BZ54="","",VLOOKUP(BZ54,リスト!$S$5:$T$6,2,FALSE)) ->  | CU54: =IF(CV54="","",VLOOKUP(CV54,リスト!$V$5:$W$6,2,FALSE)) ->  | CW54: =IF(CX54="","",VLOOKUP(CX54,リスト!$X$5:$Y$6,2,FALSE)) ->  | DE54: =IF(DF54="","",VLOOKUP(DF54,リスト!$Z$5:$AA$10,2,FALSE)) ->  | DG54: =IF(DH54="","",VLOOKUP(DH54,リスト!$AB$5:$AC$12,2,FALSE)) ->  | DI54: =IF(DJ54="","",VLOOKUP(DJ54,リスト!$AD$5:$AE$7,2,FALSE)) ->  | DK54: =IF(DL54="","",VLOOKUP(DL54,リスト!$AF$5:$AG$10,2,FALSE)) ->  | DM54: =IF(DN54="","",VLOOKUP(DN54,リスト!$AH$5:$AI$6,2,FALSE)) ->  | DO54: =IF(DP54="","",VLOOKUP(DP54,リスト!$AJ$5:$AK$6,2,FALSE)) ->  | DQ54: =IF(DR54="","",VLOOKUP(DR54,リスト!$AL$5:$AM$7,2,FALSE)) ->  | DV54: =IF(DW54="","",VLOOKUP(DW54,リスト!$AN$5:$AO$6,2,FALSE)) ->  | EB54: =IF(EC54="","",VLOOKUP(EC54,リスト!$AW$5:$AX$8,2,FALSE)) ->  | EE54: =IF(EF54="","",VLOOKUP(EF54,リスト!$AY$5:$AZ$10,2,FALSE)) ->  | EG54: =IF(EH54="","",VLOOKUP(EH54,リスト!$BA$5:$BB$10,2,FALSE)) ->  | EI54: =IF(EJ54="","",VLOOKUP(EJ54,リスト!$BC$5:$BD$10,2,FALSE)) ->  | EK54: =IF(EL54="","",VLOOKUP(EL54,リスト!$BE$5:$BF$10,2,FALSE)) ->  | ER54: =IF(ES54="","",VLOOKUP(ES54,リスト!$BG$5:$BH$10,2,FALSE)) ->  | FA54: =IF($EZ54="","",INDEX(リスト!$BI$5:$BJ$40,MATCH($EZ54,リスト!$BJ$5:$BJ$40,0),1)) ->  | FB54: =IF(FC54="","",VLOOKUP(FC54,リスト!$BK:$BL,2,FALSE)) ->  | FF54: =IF(FG54="","",VLOOKUP(FG54,リスト!$BO$5:$BP$6,2,FALSE)) ->  | FH54: =IF(FI54="","",VLOOKUP(FI54,リスト!$BQ$5:$BR$8,2,FALSE)) ->  | FK54: =IF(FL54="","",VLOOKUP(FL54,リスト!$BS$5:$BT$6,2,FALSE)) ->  | FV54: =IF(FW54="","",VLOOKUP(FW54,リスト!$BV$5:$BW$10,2,FALSE)) ->  | FY54: =IF(FZ54="","",VLOOKUP(FZ54,リスト!$BX$5:$BY$6,2,FALSE)) ->  | GA54: =IF(GB54="","",VLOOKUP(GB54,リスト!$BZ$5:$CA$6,2,FALSE)) ->  | GC54: =IF(GD54="","",VLOOKUP(GD54,リスト!$CB$5:$CC$6,2,FALSE)) ->  | GJ54: =IF(GK54="","",VLOOKUP(GK54,リスト!$CD$5:$CE$6,2,FALSE)) ->  | GL54: =IF(GM54="","",VLOOKUP(GM54,リスト!$CF$5:$CG$6,2,FALSE)) ->  | GN54: =IF(GO54="","",VLOOKUP(GO54,リスト!$CH$5:$CI$6,2,FALSE)) -> 
B55: =IF(明細!B49="","",明細!B49) ->  | C55: =IF(明細!C49="","",明細!C49) ->  | D55: =IF(明細!D49="","",明細!D49) ->  | E55: =IF(明細!E49="","",明細!E49) ->  | F55: =IF(明細!F49="","",明細!F49) ->  | G55: =IF(明細!G49="","",明細!G49) ->  | H55: =IF(明細!H49="","",明細!H49) ->  | I55: =IF(明細!I49="","",明細!I49) ->  | J55: =IF(明細!J49="","",明細!J49) ->  | K55: =IF(明細!K49="","",明細!K49) ->  | L55: =IF(明細!K49<>"",CONCATENATE($L$12,明細!L49),"") ->  | M55: =IF(明細!M49="","",明細!M49) ->  | N55: =IF(明細!N49="","",明細!N49) ->  | O55: =IF(明細!O49="","",明細!O49) ->  | P55: =IF(明細!P49="","",明細!P49) ->  | Q55: =IF(明細!Q49="","",明細!Q49) ->  | R55: =IF(明細!R49="","",明細!R49) ->  | S55: =IF(明細!S49="","",明細!S49) ->  | T55: =IF(明細!T49="","",明細!T49) ->  | U55: =IF(明細!U49="","",明細!U49) ->  | V55: =IF(明細!V49<>"","EA","") -> EA | W55: =IF(明細!W49="","",明細!W49) ->  | X55: =IF(明細!X49="","",明細!X49) ->  | Y55: =IF(明細!Y49="","",明細!Y49) ->  | Z55: =IF(明細!Z49="","",明細!Z49) ->  | AA55: =IF(明細!AA49="","",明細!AA49) ->  | AB55: =IF(明細!AB49="","",明細!AB49) ->  | AC55: =IF(明細!AC49="","",明細!AC49) ->  | AD55: =IF(明細!AD49="","",明細!AD49) ->  | AE55: =IF(明細!AE49="","",明細!AE49) -> 10% | AF55: =IF(明細!AF49="","",明細!AF49) ->  | AG55: =IF(明細!AG49="","",明細!AG49) ->  | AH55: =IF(明細!AH49="","",明細!AH49) ->  | AI55: =IF(明細!AI49="","",明細!AI49) ->  | AJ55: =IF(明細!AJ49="","",明細!AJ49) ->  | AK55: =IF(明細!AK49="","",明細!AK49) ->  | AL55: =IF(明細!AL49="","",明細!AL49) ->  | AM55: =IF(明細!AM49="","",明細!AM49) ->  | AN55: =IF(明細!AN49="","",明細!AN49) ->  | AO55: =IF(明細!AO49="","",明細!AO49) ->  | AP55: =IF(明細!AP49="","",明細!AP49) ->  | AQ55: =IF(明細!AQ49="","",明細!AQ49) ->  | AR55: =IF(明細!AR49="","",明細!AR49) ->  | AY55: =IF($AX55="","",VLOOKUP($AX55,リスト!$CL:$CM,2,FALSE)) ->  | BA55: =IF(BB55="","",VLOOKUP(BB55,リスト!$K:$L,2,FALSE)) ->  | BE55: =IF(BF55="","",VLOOKUP(BF55,リスト!$I:$J,2,FALSE)) ->  | BG55: =IF(BH55="","",VLOOKUP(BH55,リスト!$M:$N,2,FALSE)) ->  | BI55: =IF(BJ55="","",VLOOKUP(BJ55,リスト!$O:$P,2,FALSE)) ->  | BO55: =IF($BN55="","",VLOOKUP($BN55,リスト!$CL:$CM,2,FALSE)) ->  | BP55: =IF(BQ55="","",VLOOKUP(BQ55,リスト!$K$5:$L$7,2,FALSE)) ->  | BT55: =IF(BU55="","",VLOOKUP(BU55,リスト!I46:J64,2,FALSE)) ->  | BY55: =IF(BZ55="","",VLOOKUP(BZ55,リスト!$S$5:$T$6,2,FALSE)) ->  | CU55: =IF(CV55="","",VLOOKUP(CV55,リスト!$V$5:$W$6,2,FALSE)) ->  | CW55: =IF(CX55="","",VLOOKUP(CX55,リスト!$X$5:$Y$6,2,FALSE)) ->  | DE55: =IF(DF55="","",VLOOKUP(DF55,リスト!$Z$5:$AA$10,2,FALSE)) ->  | DG55: =IF(DH55="","",VLOOKUP(DH55,リスト!$AB$5:$AC$12,2,FALSE)) ->  | DI55: =IF(DJ55="","",VLOOKUP(DJ55,リスト!$AD$5:$AE$7,2,FALSE)) ->  | DK55: =IF(DL55="","",VLOOKUP(DL55,リスト!$AF$5:$AG$10,2,FALSE)) ->  | DM55: =IF(DN55="","",VLOOKUP(DN55,リスト!$AH$5:$AI$6,2,FALSE)) ->  | DO55: =IF(DP55="","",VLOOKUP(DP55,リスト!$AJ$5:$AK$6,2,FALSE)) ->  | DQ55: =IF(DR55="","",VLOOKUP(DR55,リスト!$AL$5:$AM$7,2,FALSE)) ->  | DV55: =IF(DW55="","",VLOOKUP(DW55,リスト!$AN$5:$AO$6,2,FALSE)) ->  | EB55: =IF(EC55="","",VLOOKUP(EC55,リスト!$AW$5:$AX$8,2,FALSE)) ->  | EE55: =IF(EF55="","",VLOOKUP(EF55,リスト!$AY$5:$AZ$10,2,FALSE)) ->  | EG55: =IF(EH55="","",VLOOKUP(EH55,リスト!$BA$5:$BB$10,2,FALSE)) ->  | EI55: =IF(EJ55="","",VLOOKUP(EJ55,リスト!$BC$5:$BD$10,2,FALSE)) ->  | EK55: =IF(EL55="","",VLOOKUP(EL55,リスト!$BE$5:$BF$10,2,FALSE)) ->  | ER55: =IF(ES55="","",VLOOKUP(ES55,リスト!$BG$5:$BH$10,2,FALSE)) ->  | FA55: =IF($EZ55="","",INDEX(リスト!$BI$5:$BJ$40,MATCH($EZ55,リスト!$BJ$5:$BJ$40,0),1)) ->  | FB55: =IF(FC55="","",VLOOKUP(FC55,リスト!$BK:$BL,2,FALSE)) ->  | FF55: =IF(FG55="","",VLOOKUP(FG55,リスト!$BO$5:$BP$6,2,FALSE)) ->  | FH55: =IF(FI55="","",VLOOKUP(FI55,リスト!$BQ$5:$BR$8,2,FALSE)) ->  | FK55: =IF(FL55="","",VLOOKUP(FL55,リスト!$BS$5:$BT$6,2,FALSE)) ->  | FV55: =IF(FW55="","",VLOOKUP(FW55,リスト!$BV$5:$BW$10,2,FALSE)) ->  | FY55: =IF(FZ55="","",VLOOKUP(FZ55,リスト!$BX$5:$BY$6,2,FALSE)) ->  | GA55: =IF(GB55="","",VLOOKUP(GB55,リスト!$BZ$5:$CA$6,2,FALSE)) ->  | GC55: =IF(GD55="","",VLOOKUP(GD55,リスト!$CB$5:$CC$6,2,FALSE)) ->  | GJ55: =IF(GK55="","",VLOOKUP(GK55,リスト!$CD$5:$CE$6,2,FALSE)) ->  | GL55: =IF(GM55="","",VLOOKUP(GM55,リスト!$CF$5:$CG$6,2,FALSE)) ->  | GN55: =IF(GO55="","",VLOOKUP(GO55,リスト!$CH$5:$CI$6,2,FALSE)) -> 
B56: =IF(明細!B50="","",明細!B50) ->  | C56: =IF(明細!C50="","",明細!C50) ->  | D56: =IF(明細!D50="","",明細!D50) ->  | E56: =IF(明細!E50="","",明細!E50) ->  | F56: =IF(明細!F50="","",明細!F50) ->  | G56: =IF(明細!G50="","",明細!G50) ->  | H56: =IF(明細!H50="","",明細!H50) ->  | I56: =IF(明細!I50="","",明細!I50) ->  | J56: =IF(明細!J50="","",明細!J50) ->  | K56: =IF(明細!K50="","",明細!K50) ->  | L56: =IF(明細!K50<>"",CONCATENATE($L$12,明細!L50),"") ->  | M56: =IF(明細!M50="","",明細!M50) ->  | N56: =IF(明細!N50="","",明細!N50) ->  | O56: =IF(明細!O50="","",明細!O50) ->  | P56: =IF(明細!P50="","",明細!P50) ->  | Q56: =IF(明細!Q50="","",明細!Q50) ->  | R56: =IF(明細!R50="","",明細!R50) ->  | S56: =IF(明細!S50="","",明細!S50) ->  | T56: =IF(明細!T50="","",明細!T50) ->  | U56: =IF(明細!U50="","",明細!U50) ->  | V56: =IF(明細!V50<>"","EA","") -> EA | W56: =IF(明細!W50="","",明細!W50) ->  | X56: =IF(明細!X50="","",明細!X50) ->  | Y56: =IF(明細!Y50="","",明細!Y50) ->  | Z56: =IF(明細!Z50="","",明細!Z50) ->  | AA56: =IF(明細!AA50="","",明細!AA50) ->  | AB56: =IF(明細!AB50="","",明細!AB50) ->  | AC56: =IF(明細!AC50="","",明細!AC50) ->  | AD56: =IF(明細!AD50="","",明細!AD50) ->  | AE56: =IF(明細!AE50="","",明細!AE50) -> 10% | AF56: =IF(明細!AF50="","",明細!AF50) ->  | AG56: =IF(明細!AG50="","",明細!AG50) ->  | AH56: =IF(明細!AH50="","",明細!AH50) ->  | AI56: =IF(明細!AI50="","",明細!AI50) ->  | AJ56: =IF(明細!AJ50="","",明細!AJ50) ->  | AK56: =IF(明細!AK50="","",明細!AK50) ->  | AL56: =IF(明細!AL50="","",明細!AL50) ->  | AM56: =IF(明細!AM50="","",明細!AM50) ->  | AN56: =IF(明細!AN50="","",明細!AN50) ->  | AO56: =IF(明細!AO50="","",明細!AO50) ->  | AP56: =IF(明細!AP50="","",明細!AP50) ->  | AQ56: =IF(明細!AQ50="","",明細!AQ50) ->  | AR56: =IF(明細!AR50="","",明細!AR50) ->  | AY56: =IF($AX56="","",VLOOKUP($AX56,リスト!$CL:$CM,2,FALSE)) ->  | BA56: =IF(BB56="","",VLOOKUP(BB56,リスト!$K:$L,2,FALSE)) ->  | BE56: =IF(BF56="","",VLOOKUP(BF56,リスト!$I:$J,2,FALSE)) ->  | BG56: =IF(BH56="","",VLOOKUP(BH56,リスト!$M:$N,2,FALSE)) ->  | BI56: =IF(BJ56="","",VLOOKUP(BJ56,リスト!$O:$P,2,FALSE)) ->  | BO56: =IF($BN56="","",VLOOKUP($BN56,リスト!$CL:$CM,2,FALSE)) ->  | BP56: =IF(BQ56="","",VLOOKUP(BQ56,リスト!$K$5:$L$7,2,FALSE)) ->  | BT56: =IF(BU56="","",VLOOKUP(BU56,リスト!I47:J65,2,FALSE)) ->  | BY56: =IF(BZ56="","",VLOOKUP(BZ56,リスト!$S$5:$T$6,2,FALSE)) ->  | CU56: =IF(CV56="","",VLOOKUP(CV56,リスト!$V$5:$W$6,2,FALSE)) ->  | CW56: =IF(CX56="","",VLOOKUP(CX56,リスト!$X$5:$Y$6,2,FALSE)) ->  | DE56: =IF(DF56="","",VLOOKUP(DF56,リスト!$Z$5:$AA$10,2,FALSE)) ->  | DG56: =IF(DH56="","",VLOOKUP(DH56,リスト!$AB$5:$AC$12,2,FALSE)) ->  | DI56: =IF(DJ56="","",VLOOKUP(DJ56,リスト!$AD$5:$AE$7,2,FALSE)) ->  | DK56: =IF(DL56="","",VLOOKUP(DL56,リスト!$AF$5:$AG$10,2,FALSE)) ->  | DM56: =IF(DN56="","",VLOOKUP(DN56,リスト!$AH$5:$AI$6,2,FALSE)) ->  | DO56: =IF(DP56="","",VLOOKUP(DP56,リスト!$AJ$5:$AK$6,2,FALSE)) ->  | DQ56: =IF(DR56="","",VLOOKUP(DR56,リスト!$AL$5:$AM$7,2,FALSE)) ->  | DV56: =IF(DW56="","",VLOOKUP(DW56,リスト!$AN$5:$AO$6,2,FALSE)) ->  | EB56: =IF(EC56="","",VLOOKUP(EC56,リスト!$AW$5:$AX$8,2,FALSE)) ->  | EE56: =IF(EF56="","",VLOOKUP(EF56,リスト!$AY$5:$AZ$10,2,FALSE)) ->  | EG56: =IF(EH56="","",VLOOKUP(EH56,リスト!$BA$5:$BB$10,2,FALSE)) ->  | EI56: =IF(EJ56="","",VLOOKUP(EJ56,リスト!$BC$5:$BD$10,2,FALSE)) ->  | EK56: =IF(EL56="","",VLOOKUP(EL56,リスト!$BE$5:$BF$10,2,FALSE)) ->  | ER56: =IF(ES56="","",VLOOKUP(ES56,リスト!$BG$5:$BH$10,2,FALSE)) ->  | FA56: =IF($EZ56="","",INDEX(リスト!$BI$5:$BJ$40,MATCH($EZ56,リスト!$BJ$5:$BJ$40,0),1)) ->  | FB56: =IF(FC56="","",VLOOKUP(FC56,リスト!$BK:$BL,2,FALSE)) ->  | FF56: =IF(FG56="","",VLOOKUP(FG56,リスト!$BO$5:$BP$6,2,FALSE)) ->  | FH56: =IF(FI56="","",VLOOKUP(FI56,リスト!$BQ$5:$BR$8,2,FALSE)) ->  | FK56: =IF(FL56="","",VLOOKUP(FL56,リスト!$BS$5:$BT$6,2,FALSE)) ->  | FV56: =IF(FW56="","",VLOOKUP(FW56,リスト!$BV$5:$BW$10,2,FALSE)) ->  | FY56: =IF(FZ56="","",VLOOKUP(FZ56,リスト!$BX$5:$BY$6,2,FALSE)) ->  | GA56: =IF(GB56="","",VLOOKUP(GB56,リスト!$BZ$5:$CA$6,2,FALSE)) ->  | GC56: =IF(GD56="","",VLOOKUP(GD56,リスト!$CB$5:$CC$6,2,FALSE)) ->  | GJ56: =IF(GK56="","",VLOOKUP(GK56,リスト!$CD$5:$CE$6,2,FALSE)) ->  | GL56: =IF(GM56="","",VLOOKUP(GM56,リスト!$CF$5:$CG$6,2,FALSE)) ->  | GN56: =IF(GO56="","",VLOOKUP(GO56,リスト!$CH$5:$CI$6,2,FALSE)) -> 
B57: =IF(明細!B51="","",明細!B51) ->  | C57: =IF(明細!C51="","",明細!C51) ->  | D57: =IF(明細!D51="","",明細!D51) ->  | E57: =IF(明細!E51="","",明細!E51) ->  | F57: =IF(明細!F51="","",明細!F51) ->  | G57: =IF(明細!G51="","",明細!G51) ->  | H57: =IF(明細!H51="","",明細!H51) ->  | I57: =IF(明細!I51="","",明細!I51) ->  | J57: =IF(明細!J51="","",明細!J51) ->  | K57: =IF(明細!K51="","",明細!K51) ->  | L57: =IF(明細!K51<>"",CONCATENATE($L$12,明細!L51),"") ->  | M57: =IF(明細!M51="","",明細!M51) ->  | N57: =IF(明細!N51="","",明細!N51) ->  | O57: =IF(明細!O51="","",明細!O51) ->  | P57: =IF(明細!P51="","",明細!P51) ->  | Q57: =IF(明細!Q51="","",明細!Q51) ->  | R57: =IF(明細!R51="","",明細!R51) ->  | S57: =IF(明細!S51="","",明細!S51) ->  | T57: =IF(明細!T51="","",明細!T51) ->  | U57: =IF(明細!U51="","",明細!U51) ->  | V57: =IF(明細!V51<>"","EA","") -> EA | W57: =IF(明細!W51="","",明細!W51) ->  | X57: =IF(明細!X51="","",明細!X51) ->  | Y57: =IF(明細!Y51="","",明細!Y51) ->  | Z57: =IF(明細!Z51="","",明細!Z51) ->  | AA57: =IF(明細!AA51="","",明細!AA51) ->  | AB57: =IF(明細!AB51="","",明細!AB51) ->  | AC57: =IF(明細!AC51="","",明細!AC51) ->  | AD57: =IF(明細!AD51="","",明細!AD51) ->  | AE57: =IF(明細!AE51="","",明細!AE51) -> 10% | AF57: =IF(明細!AF51="","",明細!AF51) ->  | AG57: =IF(明細!AG51="","",明細!AG51) ->  | AH57: =IF(明細!AH51="","",明細!AH51) ->  | AI57: =IF(明細!AI51="","",明細!AI51) ->  | AJ57: =IF(明細!AJ51="","",明細!AJ51) ->  | AK57: =IF(明細!AK51="","",明細!AK51) ->  | AL57: =IF(明細!AL51="","",明細!AL51) ->  | AM57: =IF(明細!AM51="","",明細!AM51) ->  | AN57: =IF(明細!AN51="","",明細!AN51) ->  | AO57: =IF(明細!AO51="","",明細!AO51) ->  | AP57: =IF(明細!AP51="","",明細!AP51) ->  | AQ57: =IF(明細!AQ51="","",明細!AQ51) ->  | AR57: =IF(明細!AR51="","",明細!AR51) ->  | AY57: =IF($AX57="","",VLOOKUP($AX57,リスト!$CL:$CM,2,FALSE)) ->  | BA57: =IF(BB57="","",VLOOKUP(BB57,リスト!$K:$L,2,FALSE)) ->  | BE57: =IF(BF57="","",VLOOKUP(BF57,リスト!$I:$J,2,FALSE)) ->  | BG57: =IF(BH57="","",VLOOKUP(BH57,リスト!$M:$N,2,FALSE)) ->  | BI57: =IF(BJ57="","",VLOOKUP(BJ57,リスト!$O:$P,2,FALSE)) ->  | BO57: =IF($BN57="","",VLOOKUP($BN57,リスト!$CL:$CM,2,FALSE)) ->  | BP57: =IF(BQ57="","",VLOOKUP(BQ57,リスト!$K$5:$L$7,2,FALSE)) ->  | BT57: =IF(BU57="","",VLOOKUP(BU57,リスト!I48:J66,2,FALSE)) ->  | BY57: =IF(BZ57="","",VLOOKUP(BZ57,リスト!$S$5:$T$6,2,FALSE)) ->  | CU57: =IF(CV57="","",VLOOKUP(CV57,リスト!$V$5:$W$6,2,FALSE)) ->  | CW57: =IF(CX57="","",VLOOKUP(CX57,リスト!$X$5:$Y$6,2,FALSE)) ->  | DE57: =IF(DF57="","",VLOOKUP(DF57,リスト!$Z$5:$AA$10,2,FALSE)) ->  | DG57: =IF(DH57="","",VLOOKUP(DH57,リスト!$AB$5:$AC$12,2,FALSE)) ->  | DI57: =IF(DJ57="","",VLOOKUP(DJ57,リスト!$AD$5:$AE$7,2,FALSE)) ->  | DK57: =IF(DL57="","",VLOOKUP(DL57,リスト!$AF$5:$AG$10,2,FALSE)) ->  | DM57: =IF(DN57="","",VLOOKUP(DN57,リスト!$AH$5:$AI$6,2,FALSE)) ->  | DO57: =IF(DP57="","",VLOOKUP(DP57,リスト!$AJ$5:$AK$6,2,FALSE)) ->  | DQ57: =IF(DR57="","",VLOOKUP(DR57,リスト!$AL$5:$AM$7,2,FALSE)) ->  | DV57: =IF(DW57="","",VLOOKUP(DW57,リスト!$AN$5:$AO$6,2,FALSE)) ->  | EB57: =IF(EC57="","",VLOOKUP(EC57,リスト!$AW$5:$AX$8,2,FALSE)) ->  | EE57: =IF(EF57="","",VLOOKUP(EF57,リスト!$AY$5:$AZ$10,2,FALSE)) ->  | EG57: =IF(EH57="","",VLOOKUP(EH57,リスト!$BA$5:$BB$10,2,FALSE)) ->  | EI57: =IF(EJ57="","",VLOOKUP(EJ57,リスト!$BC$5:$BD$10,2,FALSE)) ->  | EK57: =IF(EL57="","",VLOOKUP(EL57,リスト!$BE$5:$BF$10,2,FALSE)) ->  | ER57: =IF(ES57="","",VLOOKUP(ES57,リスト!$BG$5:$BH$10,2,FALSE)) ->  | FA57: =IF($EZ57="","",INDEX(リスト!$BI$5:$BJ$40,MATCH($EZ57,リスト!$BJ$5:$BJ$40,0),1)) ->  | FB57: =IF(FC57="","",VLOOKUP(FC57,リスト!$BK:$BL,2,FALSE)) ->  | FF57: =IF(FG57="","",VLOOKUP(FG57,リスト!$BO$5:$BP$6,2,FALSE)) ->  | FH57: =IF(FI57="","",VLOOKUP(FI57,リスト!$BQ$5:$BR$8,2,FALSE)) ->  | FK57: =IF(FL57="","",VLOOKUP(FL57,リスト!$BS$5:$BT$6,2,FALSE)) ->  | FV57: =IF(FW57="","",VLOOKUP(FW57,リスト!$BV$5:$BW$10,2,FALSE)) ->  | FY57: =IF(FZ57="","",VLOOKUP(FZ57,リスト!$BX$5:$BY$6,2,FALSE)) ->  | GA57: =IF(GB57="","",VLOOKUP(GB57,リスト!$BZ$5:$CA$6,2,FALSE)) ->  | GC57: =IF(GD57="","",VLOOKUP(GD57,リスト!$CB$5:$CC$6,2,FALSE)) ->  | GJ57: =IF(GK57="","",VLOOKUP(GK57,リスト!$CD$5:$CE$6,2,FALSE)) ->  | GL57: =IF(GM57="","",VLOOKUP(GM57,リスト!$CF$5:$CG$6,2,FALSE)) ->  | GN57: =IF(GO57="","",VLOOKUP(GO57,リスト!$CH$5:$CI$6,2,FALSE)) -> 
B58: =IF(明細!B52="","",明細!B52) ->  | C58: =IF(明細!C52="","",明細!C52) ->  | D58: =IF(明細!D52="","",明細!D52) ->  | E58: =IF(明細!E52="","",明細!E52) ->  | F58: =IF(明細!F52="","",明細!F52) ->  | G58: =IF(明細!G52="","",明細!G52) ->  | H58: =IF(明細!H52="","",明細!H52) ->  | I58: =IF(明細!I52="","",明細!I52) ->  | J58: =IF(明細!J52="","",明細!J52) ->  | K58: =IF(明細!K52="","",明細!K52) ->  | L58: =IF(明細!K52<>"",CONCATENATE($L$12,明細!L52),"") ->  | M58: =IF(明細!M52="","",明細!M52) ->  | N58: =IF(明細!N52="","",明細!N52) ->  | O58: =IF(明細!O52="","",明細!O52) ->  | P58: =IF(明細!P52="","",明細!P52) ->  | Q58: =IF(明細!Q52="","",明細!Q52) ->  | R58: =IF(明細!R52="","",明細!R52) ->  | S58: =IF(明細!S52="","",明細!S52) ->  | T58: =IF(明細!T52="","",明細!T52) ->  | U58: =IF(明細!U52="","",明細!U52) ->  | V58: =IF(明細!V52<>"","EA","") -> EA | W58: =IF(明細!W52="","",明細!W52) ->  | X58: =IF(明細!X52="","",明細!X52) ->  | Y58: =IF(明細!Y52="","",明細!Y52) ->  | Z58: =IF(明細!Z52="","",明細!Z52) ->  | AA58: =IF(明細!AA52="","",明細!AA52) ->  | AB58: =IF(明細!AB52="","",明細!AB52) ->  | AC58: =IF(明細!AC52="","",明細!AC52) ->  | AD58: =IF(明細!AD52="","",明細!AD52) ->  | AE58: =IF(明細!AE52="","",明細!AE52) -> 10% | AF58: =IF(明細!AF52="","",明細!AF52) ->  | AG58: =IF(明細!AG52="","",明細!AG52) ->  | AH58: =IF(明細!AH52="","",明細!AH52) ->  | AI58: =IF(明細!AI52="","",明細!AI52) ->  | AJ58: =IF(明細!AJ52="","",明細!AJ52) ->  | AK58: =IF(明細!AK52="","",明細!AK52) ->  | AL58: =IF(明細!AL52="","",明細!AL52) ->  | AM58: =IF(明細!AM52="","",明細!AM52) ->  | AN58: =IF(明細!AN52="","",明細!AN52) ->  | AO58: =IF(明細!AO52="","",明細!AO52) ->  | AP58: =IF(明細!AP52="","",明細!AP52) ->  | AQ58: =IF(明細!AQ52="","",明細!AQ52) ->  | AR58: =IF(明細!AR52="","",明細!AR52) ->  | AY58: =IF($AX58="","",VLOOKUP($AX58,リスト!$CL:$CM,2,FALSE)) ->  | BA58: =IF(BB58="","",VLOOKUP(BB58,リスト!$K:$L,2,FALSE)) ->  | BE58: =IF(BF58="","",VLOOKUP(BF58,リスト!$I:$J,2,FALSE)) ->  | BG58: =IF(BH58="","",VLOOKUP(BH58,リスト!$M:$N,2,FALSE)) ->  | BI58: =IF(BJ58="","",VLOOKUP(BJ58,リスト!$O:$P,2,FALSE)) ->  | BO58: =IF($BN58="","",VLOOKUP($BN58,リスト!$CL:$CM,2,FALSE)) ->  | BP58: =IF(BQ58="","",VLOOKUP(BQ58,リスト!$K$5:$L$7,2,FALSE)) ->  | BT58: =IF(BU58="","",VLOOKUP(BU58,リスト!I49:J67,2,FALSE)) ->  | BY58: =IF(BZ58="","",VLOOKUP(BZ58,リスト!$S$5:$T$6,2,FALSE)) ->  | CU58: =IF(CV58="","",VLOOKUP(CV58,リスト!$V$5:$W$6,2,FALSE)) ->  | CW58: =IF(CX58="","",VLOOKUP(CX58,リスト!$X$5:$Y$6,2,FALSE)) ->  | DE58: =IF(DF58="","",VLOOKUP(DF58,リスト!$Z$5:$AA$10,2,FALSE)) ->  | DG58: =IF(DH58="","",VLOOKUP(DH58,リスト!$AB$5:$AC$12,2,FALSE)) ->  | DI58: =IF(DJ58="","",VLOOKUP(DJ58,リスト!$AD$5:$AE$7,2,FALSE)) ->  | DK58: =IF(DL58="","",VLOOKUP(DL58,リスト!$AF$5:$AG$10,2,FALSE)) ->  | DM58: =IF(DN58="","",VLOOKUP(DN58,リスト!$AH$5:$AI$6,2,FALSE)) ->  | DO58: =IF(DP58="","",VLOOKUP(DP58,リスト!$AJ$5:$AK$6,2,FALSE)) ->  | DQ58: =IF(DR58="","",VLOOKUP(DR58,リスト!$AL$5:$AM$7,2,FALSE)) ->  | DV58: =IF(DW58="","",VLOOKUP(DW58,リスト!$AN$5:$AO$6,2,FALSE)) ->  | EB58: =IF(EC58="","",VLOOKUP(EC58,リスト!$AW$5:$AX$8,2,FALSE)) ->  | EE58: =IF(EF58="","",VLOOKUP(EF58,リスト!$AY$5:$AZ$10,2,FALSE)) ->  | EG58: =IF(EH58="","",VLOOKUP(EH58,リスト!$BA$5:$BB$10,2,FALSE)) ->  | EI58: =IF(EJ58="","",VLOOKUP(EJ58,リスト!$BC$5:$BD$10,2,FALSE)) ->  | EK58: =IF(EL58="","",VLOOKUP(EL58,リスト!$BE$5:$BF$10,2,FALSE)) ->  | ER58: =IF(ES58="","",VLOOKUP(ES58,リスト!$BG$5:$BH$10,2,FALSE)) ->  | FA58: =IF($EZ58="","",INDEX(リスト!$BI$5:$BJ$40,MATCH($EZ58,リスト!$BJ$5:$BJ$40,0),1)) ->  | FB58: =IF(FC58="","",VLOOKUP(FC58,リスト!$BK:$BL,2,FALSE)) ->  | FF58: =IF(FG58="","",VLOOKUP(FG58,リスト!$BO$5:$BP$6,2,FALSE)) ->  | FH58: =IF(FI58="","",VLOOKUP(FI58,リスト!$BQ$5:$BR$8,2,FALSE)) ->  | FK58: =IF(FL58="","",VLOOKUP(FL58,リスト!$BS$5:$BT$6,2,FALSE)) ->  | FV58: =IF(FW58="","",VLOOKUP(FW58,リスト!$BV$5:$BW$10,2,FALSE)) ->  | FY58: =IF(FZ58="","",VLOOKUP(FZ58,リスト!$BX$5:$BY$6,2,FALSE)) ->  | GA58: =IF(GB58="","",VLOOKUP(GB58,リスト!$BZ$5:$CA$6,2,FALSE)) ->  | GC58: =IF(GD58="","",VLOOKUP(GD58,リスト!$CB$5:$CC$6,2,FALSE)) ->  | GJ58: =IF(GK58="","",VLOOKUP(GK58,リスト!$CD$5:$CE$6,2,FALSE)) ->  | GL58: =IF(GM58="","",VLOOKUP(GM58,リスト!$CF$5:$CG$6,2,FALSE)) ->  | GN58: =IF(GO58="","",VLOOKUP(GO58,リスト!$CH$5:$CI$6,2,FALSE)) -> 
B59: =IF(明細!B53="","",明細!B53) ->  | C59: =IF(明細!C53="","",明細!C53) ->  | D59: =IF(明細!D53="","",明細!D53) ->  | E59: =IF(明細!E53="","",明細!E53) ->  | F59: =IF(明細!F53="","",明細!F53) ->  | G59: =IF(明細!G53="","",明細!G53) ->  | H59: =IF(明細!H53="","",明細!H53) ->  | I59: =IF(明細!I53="","",明細!I53) ->  | J59: =IF(明細!J53="","",明細!J53) ->  | K59: =IF(明細!K53="","",明細!K53) ->  | L59: =IF(明細!K53<>"",CONCATENATE($L$12,明細!L53),"") ->  | M59: =IF(明細!M53="","",明細!M53) ->  | N59: =IF(明細!N53="","",明細!N53) ->  | O59: =IF(明細!O53="","",明細!O53) ->  | P59: =IF(明細!P53="","",明細!P53) ->  | Q59: =IF(明細!Q53="","",明細!Q53) ->  | R59: =IF(明細!R53="","",明細!R53) ->  | S59: =IF(明細!S53="","",明細!S53) ->  | T59: =IF(明細!T53="","",明細!T53) ->  | U59: =IF(明細!U53="","",明細!U53) ->  | V59: =IF(明細!V53<>"","EA","") -> EA | W59: =IF(明細!W53="","",明細!W53) ->  | X59: =IF(明細!X53="","",明細!X53) ->  | Y59: =IF(明細!Y53="","",明細!Y53) ->  | Z59: =IF(明細!Z53="","",明細!Z53) ->  | AA59: =IF(明細!AA53="","",明細!AA53) ->  | AB59: =IF(明細!AB53="","",明細!AB53) ->  | AC59: =IF(明細!AC53="","",明細!AC53) ->  | AD59: =IF(明細!AD53="","",明細!AD53) ->  | AE59: =IF(明細!AE53="","",明細!AE53) -> 10% | AF59: =IF(明細!AF53="","",明細!AF53) ->  | AG59: =IF(明細!AG53="","",明細!AG53) ->  | AH59: =IF(明細!AH53="","",明細!AH53) ->  | AI59: =IF(明細!AI53="","",明細!AI53) ->  | AJ59: =IF(明細!AJ53="","",明細!AJ53) ->  | AK59: =IF(明細!AK53="","",明細!AK53) ->  | AL59: =IF(明細!AL53="","",明細!AL53) ->  | AM59: =IF(明細!AM53="","",明細!AM53) ->  | AN59: =IF(明細!AN53="","",明細!AN53) ->  | AO59: =IF(明細!AO53="","",明細!AO53) ->  | AP59: =IF(明細!AP53="","",明細!AP53) ->  | AQ59: =IF(明細!AQ53="","",明細!AQ53) ->  | AR59: =IF(明細!AR53="","",明細!AR53) ->  | AY59: =IF($AX59="","",VLOOKUP($AX59,リスト!$CL:$CM,2,FALSE)) ->  | BA59: =IF(BB59="","",VLOOKUP(BB59,リスト!$K:$L,2,FALSE)) ->  | BE59: =IF(BF59="","",VLOOKUP(BF59,リスト!$I:$J,2,FALSE)) ->  | BG59: =IF(BH59="","",VLOOKUP(BH59,リスト!$M:$N,2,FALSE)) ->  | BI59: =IF(BJ59="","",VLOOKUP(BJ59,リスト!$O:$P,2,FALSE)) ->  | BO59: =IF($BN59="","",VLOOKUP($BN59,リスト!$CL:$CM,2,FALSE)) ->  | BP59: =IF(BQ59="","",VLOOKUP(BQ59,リスト!$K$5:$L$7,2,FALSE)) ->  | BT59: =IF(BU59="","",VLOOKUP(BU59,リスト!I50:J68,2,FALSE)) ->  | BY59: =IF(BZ59="","",VLOOKUP(BZ59,リスト!$S$5:$T$6,2,FALSE)) ->  | CU59: =IF(CV59="","",VLOOKUP(CV59,リスト!$V$5:$W$6,2,FALSE)) ->  | CW59: =IF(CX59="","",VLOOKUP(CX59,リスト!$X$5:$Y$6,2,FALSE)) ->  | DE59: =IF(DF59="","",VLOOKUP(DF59,リスト!$Z$5:$AA$10,2,FALSE)) ->  | DG59: =IF(DH59="","",VLOOKUP(DH59,リスト!$AB$5:$AC$12,2,FALSE)) ->  | DI59: =IF(DJ59="","",VLOOKUP(DJ59,リスト!$AD$5:$AE$7,2,FALSE)) ->  | DK59: =IF(DL59="","",VLOOKUP(DL59,リスト!$AF$5:$AG$10,2,FALSE)) ->  | DM59: =IF(DN59="","",VLOOKUP(DN59,リスト!$AH$5:$AI$6,2,FALSE)) ->  | DO59: =IF(DP59="","",VLOOKUP(DP59,リスト!$AJ$5:$AK$6,2,FALSE)) ->  | DQ59: =IF(DR59="","",VLOOKUP(DR59,リスト!$AL$5:$AM$7,2,FALSE)) ->  | DV59: =IF(DW59="","",VLOOKUP(DW59,リスト!$AN$5:$AO$6,2,FALSE)) ->  | EB59: =IF(EC59="","",VLOOKUP(EC59,リスト!$AW$5:$AX$8,2,FALSE)) ->  | EE59: =IF(EF59="","",VLOOKUP(EF59,リスト!$AY$5:$AZ$10,2,FALSE)) ->  | EG59: =IF(EH59="","",VLOOKUP(EH59,リスト!$BA$5:$BB$10,2,FALSE)) ->  | EI59: =IF(EJ59="","",VLOOKUP(EJ59,リスト!$BC$5:$BD$10,2,FALSE)) ->  | EK59: =IF(EL59="","",VLOOKUP(EL59,リスト!$BE$5:$BF$10,2,FALSE)) ->  | ER59: =IF(ES59="","",VLOOKUP(ES59,リスト!$BG$5:$BH$10,2,FALSE)) ->  | FA59: =IF($EZ59="","",INDEX(リスト!$BI$5:$BJ$40,MATCH($EZ59,リスト!$BJ$5:$BJ$40,0),1)) ->  | FB59: =IF(FC59="","",VLOOKUP(FC59,リスト!$BK:$BL,2,FALSE)) ->  | FF59: =IF(FG59="","",VLOOKUP(FG59,リスト!$BO$5:$BP$6,2,FALSE)) ->  | FH59: =IF(FI59="","",VLOOKUP(FI59,リスト!$BQ$5:$BR$8,2,FALSE)) ->  | FK59: =IF(FL59="","",VLOOKUP(FL59,リスト!$BS$5:$BT$6,2,FALSE)) ->  | FV59: =IF(FW59="","",VLOOKUP(FW59,リスト!$BV$5:$BW$10,2,FALSE)) ->  | FY59: =IF(FZ59="","",VLOOKUP(FZ59,リスト!$BX$5:$BY$6,2,FALSE)) ->  | GA59: =IF(GB59="","",VLOOKUP(GB59,リスト!$BZ$5:$CA$6,2,FALSE)) ->  | GC59: =IF(GD59="","",VLOOKUP(GD59,リスト!$CB$5:$CC$6,2,FALSE)) ->  | GJ59: =IF(GK59="","",VLOOKUP(GK59,リスト!$CD$5:$CE$6,2,FALSE)) ->  | GL59: =IF(GM59="","",VLOOKUP(GM59,リスト!$CF$5:$CG$6,2,FALSE)) ->  | GN59: =IF(GO59="","",VLOOKUP(GO59,リスト!$CH$5:$CI$6,2,FALSE)) -> 
B60: =IF(明細!B54="","",明細!B54) ->  | C60: =IF(明細!C54="","",明細!C54) ->  | D60: =IF(明細!D54="","",明細!D54) ->  | E60: =IF(明細!E54="","",明細!E54) ->  | F60: =IF(明細!F54="","",明細!F54) ->  | G60: =IF(明細!G54="","",明細!G54) ->  | H60: =IF(明細!H54="","",明細!H54) ->  | I60: =IF(明細!I54="","",明細!I54) ->  | J60: =IF(明細!J54="","",明細!J54) ->  | K60: =IF(明細!K54="","",明細!K54) ->  | L60: =IF(明細!K54<>"",CONCATENATE($L$12,明細!L54),"") ->  | M60: =IF(明細!M54="","",明細!M54) ->  | N60: =IF(明細!N54="","",明細!N54) ->  | O60: =IF(明細!O54="","",明細!O54) ->  | P60: =IF(明細!P54="","",明細!P54) ->  | Q60: =IF(明細!Q54="","",明細!Q54) ->  | R60: =IF(明細!R54="","",明細!R54) ->  | S60: =IF(明細!S54="","",明細!S54) ->  | T60: =IF(明細!T54="","",明細!T54) ->  | U60: =IF(明細!U54="","",明細!U54) ->  | V60: =IF(明細!V54<>"","EA","") -> EA | W60: =IF(明細!W54="","",明細!W54) ->  | X60: =IF(明細!X54="","",明細!X54) ->  | Y60: =IF(明細!Y54="","",明細!Y54) ->  | Z60: =IF(明細!Z54="","",明細!Z54) ->  | AA60: =IF(明細!AA54="","",明細!AA54) ->  | AB60: =IF(明細!AB54="","",明細!AB54) ->  | AC60: =IF(明細!AC54="","",明細!AC54) ->  | AD60: =IF(明細!AD54="","",明細!AD54) ->  | AE60: =IF(明細!AE54="","",明細!AE54) -> 10% | AF60: =IF(明細!AF54="","",明細!AF54) ->  | AG60: =IF(明細!AG54="","",明細!AG54) ->  | AH60: =IF(明細!AH54="","",明細!AH54) ->  | AI60: =IF(明細!AI54="","",明細!AI54) ->  | AJ60: =IF(明細!AJ54="","",明細!AJ54) ->  | AK60: =IF(明細!AK54="","",明細!AK54) ->  | AL60: =IF(明細!AL54="","",明細!AL54) ->  | AM60: =IF(明細!AM54="","",明細!AM54) ->  | AN60: =IF(明細!AN54="","",明細!AN54) ->  | AO60: =IF(明細!AO54="","",明細!AO54) ->  | AP60: =IF(明細!AP54="","",明細!AP54) ->  | AQ60: =IF(明細!AQ54="","",明細!AQ54) ->  | AR60: =IF(明細!AR54="","",明細!AR54) ->  | AY60: =IF($AX60="","",VLOOKUP($AX60,リスト!$CL:$CM,2,FALSE)) ->  | BA60: =IF(BB60="","",VLOOKUP(BB60,リスト!$K:$L,2,FALSE)) ->  | BE60: =IF(BF60="","",VLOOKUP(BF60,リスト!$I:$J,2,FALSE)) ->  | BG60: =IF(BH60="","",VLOOKUP(BH60,リスト!$M:$N,2,FALSE)) ->  | BI60: =IF(BJ60="","",VLOOKUP(BJ60,リスト!$O:$P,2,FALSE)) ->  | BO60: =IF($BN60="","",VLOOKUP($BN60,リスト!$CL:$CM,2,FALSE)) ->  | BP60: =IF(BQ60="","",VLOOKUP(BQ60,リスト!$K$5:$L$7,2,FALSE)) ->  | BT60: =IF(BU60="","",VLOOKUP(BU60,リスト!I51:J69,2,FALSE)) ->  | BY60: =IF(BZ60="","",VLOOKUP(BZ60,リスト!$S$5:$T$6,2,FALSE)) ->  | CU60: =IF(CV60="","",VLOOKUP(CV60,リスト!$V$5:$W$6,2,FALSE)) ->  | CW60: =IF(CX60="","",VLOOKUP(CX60,リスト!$X$5:$Y$6,2,FALSE)) ->  | DE60: =IF(DF60="","",VLOOKUP(DF60,リスト!$Z$5:$AA$10,2,FALSE)) ->  | DG60: =IF(DH60="","",VLOOKUP(DH60,リスト!$AB$5:$AC$12,2,FALSE)) ->  | DI60: =IF(DJ60="","",VLOOKUP(DJ60,リスト!$AD$5:$AE$7,2,FALSE)) ->  | DK60: =IF(DL60="","",VLOOKUP(DL60,リスト!$AF$5:$AG$10,2,FALSE)) ->  | DM60: =IF(DN60="","",VLOOKUP(DN60,リスト!$AH$5:$AI$6,2,FALSE)) ->  | DO60: =IF(DP60="","",VLOOKUP(DP60,リスト!$AJ$5:$AK$6,2,FALSE)) ->  | DQ60: =IF(DR60="","",VLOOKUP(DR60,リスト!$AL$5:$AM$7,2,FALSE)) ->  | DV60: =IF(DW60="","",VLOOKUP(DW60,リスト!$AN$5:$AO$6,2,FALSE)) ->  | EB60: =IF(EC60="","",VLOOKUP(EC60,リスト!$AW$5:$AX$8,2,FALSE)) ->  | EE60: =IF(EF60="","",VLOOKUP(EF60,リスト!$AY$5:$AZ$10,2,FALSE)) ->  | EG60: =IF(EH60="","",VLOOKUP(EH60,リスト!$BA$5:$BB$10,2,FALSE)) ->  | EI60: =IF(EJ60="","",VLOOKUP(EJ60,リスト!$BC$5:$BD$10,2,FALSE)) ->  | EK60: =IF(EL60="","",VLOOKUP(EL60,リスト!$BE$5:$BF$10,2,FALSE)) ->  | ER60: =IF(ES60="","",VLOOKUP(ES60,リスト!$BG$5:$BH$10,2,FALSE)) ->  | FA60: =IF($EZ60="","",INDEX(リスト!$BI$5:$BJ$40,MATCH($EZ60,リスト!$BJ$5:$BJ$40,0),1)) ->  | FB60: =IF(FC60="","",VLOOKUP(FC60,リスト!$BK:$BL,2,FALSE)) ->  | FF60: =IF(FG60="","",VLOOKUP(FG60,リスト!$BO$5:$BP$6,2,FALSE)) ->  | FH60: =IF(FI60="","",VLOOKUP(FI60,リスト!$BQ$5:$BR$8,2,FALSE)) ->  | FK60: =IF(FL60="","",VLOOKUP(FL60,リスト!$BS$5:$BT$6,2,FALSE)) ->  | FV60: =IF(FW60="","",VLOOKUP(FW60,リスト!$BV$5:$BW$10,2,FALSE)) ->  | FY60: =IF(FZ60="","",VLOOKUP(FZ60,リスト!$BX$5:$BY$6,2,FALSE)) ->  | GA60: =IF(GB60="","",VLOOKUP(GB60,リスト!$BZ$5:$CA$6,2,FALSE)) ->  | GC60: =IF(GD60="","",VLOOKUP(GD60,リスト!$CB$5:$CC$6,2,FALSE)) ->  | GJ60: =IF(GK60="","",VLOOKUP(GK60,リスト!$CD$5:$CE$6,2,FALSE)) ->  | GL60: =IF(GM60="","",VLOOKUP(GM60,リスト!$CF$5:$CG$6,2,FALSE)) ->  | GN60: =IF(GO60="","",VLOOKUP(GO60,リスト!$CH$5:$CI$6,2,FALSE)) -> 
B61: =IF(明細!B55="","",明細!B55) ->  | C61: =IF(明細!C55="","",明細!C55) ->  | D61: =IF(明細!D55="","",明細!D55) ->  | E61: =IF(明細!E55="","",明細!E55) ->  | F61: =IF(明細!F55="","",明細!F55) ->  | G61: =IF(明細!G55="","",明細!G55) ->  | H61: =IF(明細!H55="","",明細!H55) ->  | I61: =IF(明細!I55="","",明細!I55) ->  | J61: =IF(明細!J55="","",明細!J55) ->  | K61: =IF(明細!K55="","",明細!K55) ->  | L61: =IF(明細!K55<>"",CONCATENATE($L$12,明細!L55),"") ->  | M61: =IF(明細!M55="","",明細!M55) ->  | N61: =IF(明細!N55="","",明細!N55) ->  | O61: =IF(明細!O55="","",明細!O55) ->  | P61: =IF(明細!P55="","",明細!P55) ->  | Q61: =IF(明細!Q55="","",明細!Q55) ->  | R61: =IF(明細!R55="","",明細!R55) ->  | S61: =IF(明細!S55="","",明細!S55) ->  | T61: =IF(明細!T55="","",明細!T55) ->  | U61: =IF(明細!U55="","",明細!U55) ->  | V61: =IF(明細!V55<>"","EA","") -> EA | W61: =IF(明細!W55="","",明細!W55) ->  | X61: =IF(明細!X55="","",明細!X55) ->  | Y61: =IF(明細!Y55="","",明細!Y55) ->  | Z61: =IF(明細!Z55="","",明細!Z55) ->  | AA61: =IF(明細!AA55="","",明細!AA55) ->  | AB61: =IF(明細!AB55="","",明細!AB55) ->  | AC61: =IF(明細!AC55="","",明細!AC55) ->  | AD61: =IF(明細!AD55="","",明細!AD55) ->  | AE61: =IF(明細!AE55="","",明細!AE55) -> 10% | AF61: =IF(明細!AF55="","",明細!AF55) ->  | AG61: =IF(明細!AG55="","",明細!AG55) ->  | AH61: =IF(明細!AH55="","",明細!AH55) ->  | AI61: =IF(明細!AI55="","",明細!AI55) ->  | AJ61: =IF(明細!AJ55="","",明細!AJ55) ->  | AK61: =IF(明細!AK55="","",明細!AK55) ->  | AL61: =IF(明細!AL55="","",明細!AL55) ->  | AM61: =IF(明細!AM55="","",明細!AM55) ->  | AN61: =IF(明細!AN55="","",明細!AN55) ->  | AO61: =IF(明細!AO55="","",明細!AO55) ->  | AP61: =IF(明細!AP55="","",明細!AP55) ->  | AQ61: =IF(明細!AQ55="","",明細!AQ55) ->  | AR61: =IF(明細!AR55="","",明細!AR55) ->  | AY61: =IF($AX61="","",VLOOKUP($AX61,リスト!$CL:$CM,2,FALSE)) ->  | BA61: =IF(BB61="","",VLOOKUP(BB61,リスト!$K:$L,2,FALSE)) ->  | BE61: =IF(BF61="","",VLOOKUP(BF61,リスト!$I:$J,2,FALSE)) ->  | BG61: =IF(BH61="","",VLOOKUP(BH61,リスト!$M:$N,2,FALSE)) ->  | BI61: =IF(BJ61="","",VLOOKUP(BJ61,リスト!$O:$P,2,FALSE)) ->  | BO61: =IF($BN61="","",VLOOKUP($BN61,リスト!$CL:$CM,2,FALSE)) ->  | BP61: =IF(BQ61="","",VLOOKUP(BQ61,リスト!$K$5:$L$7,2,FALSE)) ->  | BT61: =IF(BU61="","",VLOOKUP(BU61,リスト!I52:J70,2,FALSE)) ->  | BY61: =IF(BZ61="","",VLOOKUP(BZ61,リスト!$S$5:$T$6,2,FALSE)) ->  | CU61: =IF(CV61="","",VLOOKUP(CV61,リスト!$V$5:$W$6,2,FALSE)) ->  | CW61: =IF(CX61="","",VLOOKUP(CX61,リスト!$X$5:$Y$6,2,FALSE)) ->  | DE61: =IF(DF61="","",VLOOKUP(DF61,リスト!$Z$5:$AA$10,2,FALSE)) ->  | DG61: =IF(DH61="","",VLOOKUP(DH61,リスト!$AB$5:$AC$12,2,FALSE)) ->  | DI61: =IF(DJ61="","",VLOOKUP(DJ61,リスト!$AD$5:$AE$7,2,FALSE)) ->  | DK61: =IF(DL61="","",VLOOKUP(DL61,リスト!$AF$5:$AG$10,2,FALSE)) ->  | DM61: =IF(DN61="","",VLOOKUP(DN61,リスト!$AH$5:$AI$6,2,FALSE)) ->  | DO61: =IF(DP61="","",VLOOKUP(DP61,リスト!$AJ$5:$AK$6,2,FALSE)) ->  | DQ61: =IF(DR61="","",VLOOKUP(DR61,リスト!$AL$5:$AM$7,2,FALSE)) ->  | DV61: =IF(DW61="","",VLOOKUP(DW61,リスト!$AN$5:$AO$6,2,FALSE)) ->  | EB61: =IF(EC61="","",VLOOKUP(EC61,リスト!$AW$5:$AX$8,2,FALSE)) ->  | EE61: =IF(EF61="","",VLOOKUP(EF61,リスト!$AY$5:$AZ$10,2,FALSE)) ->  | EG61: =IF(EH61="","",VLOOKUP(EH61,リスト!$BA$5:$BB$10,2,FALSE)) ->  | EI61: =IF(EJ61="","",VLOOKUP(EJ61,リスト!$BC$5:$BD$10,2,FALSE)) ->  | EK61: =IF(EL61="","",VLOOKUP(EL61,リスト!$BE$5:$BF$10,2,FALSE)) ->  | ER61: =IF(ES61="","",VLOOKUP(ES61,リスト!$BG$5:$BH$10,2,FALSE)) ->  | FA61: =IF($EZ61="","",INDEX(リスト!$BI$5:$BJ$40,MATCH($EZ61,リスト!$BJ$5:$BJ$40,0),1)) ->  | FB61: =IF(FC61="","",VLOOKUP(FC61,リスト!$BK:$BL,2,FALSE)) ->  | FF61: =IF(FG61="","",VLOOKUP(FG61,リスト!$BO$5:$BP$6,2,FALSE)) ->  | FH61: =IF(FI61="","",VLOOKUP(FI61,リスト!$BQ$5:$BR$8,2,FALSE)) ->  | FK61: =IF(FL61="","",VLOOKUP(FL61,リスト!$BS$5:$BT$6,2,FALSE)) ->  | FV61: =IF(FW61="","",VLOOKUP(FW61,リスト!$BV$5:$BW$10,2,FALSE)) ->  | FY61: =IF(FZ61="","",VLOOKUP(FZ61,リスト!$BX$5:$BY$6,2,FALSE)) ->  | GA61: =IF(GB61="","",VLOOKUP(GB61,リスト!$BZ$5:$CA$6,2,FALSE)) ->  | GC61: =IF(GD61="","",VLOOKUP(GD61,リスト!$CB$5:$CC$6,2,FALSE)) ->  | GJ61: =IF(GK61="","",VLOOKUP(GK61,リスト!$CD$5:$CE$6,2,FALSE)) ->  | GL61: =IF(GM61="","",VLOOKUP(GM61,リスト!$CF$5:$CG$6,2,FALSE)) ->  | GN61: =IF(GO61="","",VLOOKUP(GO61,リスト!$CH$5:$CI$6,2,FALSE)) -> 
B62: =IF(明細!B56="","",明細!B56) ->  | C62: =IF(明細!C56="","",明細!C56) ->  | D62: =IF(明細!D56="","",明細!D56) ->  | E62: =IF(明細!E56="","",明細!E56) ->  | F62: =IF(明細!F56="","",明細!F56) ->  | G62: =IF(明細!G56="","",明細!G56) ->  | H62: =IF(明細!H56="","",明細!H56) ->  | I62: =IF(明細!I56="","",明細!I56) ->  | J62: =IF(明細!J56="","",明細!J56) ->  | K62: =IF(明細!K56="","",明細!K56) ->  | L62: =IF(明細!K56<>"",CONCATENATE($L$12,明細!L56),"") ->  | M62: =IF(明細!M56="","",明細!M56) ->  | N62: =IF(明細!N56="","",明細!N56) ->  | O62: =IF(明細!O56="","",明細!O56) ->  | P62: =IF(明細!P56="","",明細!P56) ->  | Q62: =IF(明細!Q56="","",明細!Q56) ->  | R62: =IF(明細!R56="","",明細!R56) ->  | S62: =IF(明細!S56="","",明細!S56) ->  | T62: =IF(明細!T56="","",明細!T56) ->  | U62: =IF(明細!U56="","",明細!U56) ->  | V62: =IF(明細!V56<>"","EA","") -> EA | W62: =IF(明細!W56="","",明細!W56) ->  | X62: =IF(明細!X56="","",明細!X56) ->  | Y62: =IF(明細!Y56="","",明細!Y56) ->  | Z62: =IF(明細!Z56="","",明細!Z56) ->  | AA62: =IF(明細!AA56="","",明細!AA56) ->  | AB62: =IF(明細!AB56="","",明細!AB56) ->  | AC62: =IF(明細!AC56="","",明細!AC56) ->  | AD62: =IF(明細!AD56="","",明細!AD56) ->  | AE62: =IF(明細!AE56="","",明細!AE56) -> 10% | AF62: =IF(明細!AF56="","",明細!AF56) ->  | AG62: =IF(明細!AG56="","",明細!AG56) ->  | AH62: =IF(明細!AH56="","",明細!AH56) ->  | AI62: =IF(明細!AI56="","",明細!AI56) ->  | AJ62: =IF(明細!AJ56="","",明細!AJ56) ->  | AK62: =IF(明細!AK56="","",明細!AK56) ->  | AL62: =IF(明細!AL56="","",明細!AL56) ->  | AM62: =IF(明細!AM56="","",明細!AM56) ->  | AN62: =IF(明細!AN56="","",明細!AN56) ->  | AO62: =IF(明細!AO56="","",明細!AO56) ->  | AP62: =IF(明細!AP56="","",明細!AP56) ->  | AQ62: =IF(明細!AQ56="","",明細!AQ56) ->  | AR62: =IF(明細!AR56="","",明細!AR56) ->  | AY62: =IF($AX62="","",VLOOKUP($AX62,リスト!$CL:$CM,2,FALSE)) ->  | BA62: =IF(BB62="","",VLOOKUP(BB62,リスト!$K:$L,2,FALSE)) ->  | BE62: =IF(BF62="","",VLOOKUP(BF62,リスト!$I:$J,2,FALSE)) ->  | BG62: =IF(BH62="","",VLOOKUP(BH62,リスト!$M:$N,2,FALSE)) ->  | BI62: =IF(BJ62="","",VLOOKUP(BJ62,リスト!$O:$P,2,FALSE)) ->  | BO62: =IF($BN62="","",VLOOKUP($BN62,リスト!$CL:$CM,2,FALSE)) ->  | BP62: =IF(BQ62="","",VLOOKUP(BQ62,リスト!$K$5:$L$7,2,FALSE)) ->  | BT62: =IF(BU62="","",VLOOKUP(BU62,リスト!I53:J71,2,FALSE)) ->  | BY62: =IF(BZ62="","",VLOOKUP(BZ62,リスト!$S$5:$T$6,2,FALSE)) ->  | CU62: =IF(CV62="","",VLOOKUP(CV62,リスト!$V$5:$W$6,2,FALSE)) ->  | CW62: =IF(CX62="","",VLOOKUP(CX62,リスト!$X$5:$Y$6,2,FALSE)) ->  | DE62: =IF(DF62="","",VLOOKUP(DF62,リスト!$Z$5:$AA$10,2,FALSE)) ->  | DG62: =IF(DH62="","",VLOOKUP(DH62,リスト!$AB$5:$AC$12,2,FALSE)) ->  | DI62: =IF(DJ62="","",VLOOKUP(DJ62,リスト!$AD$5:$AE$7,2,FALSE)) ->  | DK62: =IF(DL62="","",VLOOKUP(DL62,リスト!$AF$5:$AG$10,2,FALSE)) ->  | DM62: =IF(DN62="","",VLOOKUP(DN62,リスト!$AH$5:$AI$6,2,FALSE)) ->  | DO62: =IF(DP62="","",VLOOKUP(DP62,リスト!$AJ$5:$AK$6,2,FALSE)) ->  | DQ62: =IF(DR62="","",VLOOKUP(DR62,リスト!$AL$5:$AM$7,2,FALSE)) ->  | DV62: =IF(DW62="","",VLOOKUP(DW62,リスト!$AN$5:$AO$6,2,FALSE)) ->  | EB62: =IF(EC62="","",VLOOKUP(EC62,リスト!$AW$5:$AX$8,2,FALSE)) ->  | EE62: =IF(EF62="","",VLOOKUP(EF62,リスト!$AY$5:$AZ$10,2,FALSE)) ->  | EG62: =IF(EH62="","",VLOOKUP(EH62,リスト!$BA$5:$BB$10,2,FALSE)) ->  | EI62: =IF(EJ62="","",VLOOKUP(EJ62,リスト!$BC$5:$BD$10,2,FALSE)) ->  | EK62: =IF(EL62="","",VLOOKUP(EL62,リスト!$BE$5:$BF$10,2,FALSE)) ->  | ER62: =IF(ES62="","",VLOOKUP(ES62,リスト!$BG$5:$BH$10,2,FALSE)) ->  | FA62: =IF($EZ62="","",INDEX(リスト!$BI$5:$BJ$40,MATCH($EZ62,リスト!$BJ$5:$BJ$40,0),1)) ->  | FB62: =IF(FC62="","",VLOOKUP(FC62,リスト!$BK:$BL,2,FALSE)) ->  | FF62: =IF(FG62="","",VLOOKUP(FG62,リスト!$BO$5:$BP$6,2,FALSE)) ->  | FH62: =IF(FI62="","",VLOOKUP(FI62,リスト!$BQ$5:$BR$8,2,FALSE)) ->  | FK62: =IF(FL62="","",VLOOKUP(FL62,リスト!$BS$5:$BT$6,2,FALSE)) ->  | FV62: =IF(FW62="","",VLOOKUP(FW62,リスト!$BV$5:$BW$10,2,FALSE)) ->  | FY62: =IF(FZ62="","",VLOOKUP(FZ62,リスト!$BX$5:$BY$6,2,FALSE)) ->  | GA62: =IF(GB62="","",VLOOKUP(GB62,リスト!$BZ$5:$CA$6,2,FALSE)) ->  | GC62: =IF(GD62="","",VLOOKUP(GD62,リスト!$CB$5:$CC$6,2,FALSE)) ->  | GJ62: =IF(GK62="","",VLOOKUP(GK62,リスト!$CD$5:$CE$6,2,FALSE)) ->  | GL62: =IF(GM62="","",VLOOKUP(GM62,リスト!$CF$5:$CG$6,2,FALSE)) ->  | GN62: =IF(GO62="","",VLOOKUP(GO62,リスト!$CH$5:$CI$6,2,FALSE)) -> 
B63: =IF(明細!B57="","",明細!B57) ->  | C63: =IF(明細!C57="","",明細!C57) ->  | D63: =IF(明細!D57="","",明細!D57) ->  | E63: =IF(明細!E57="","",明細!E57) ->  | F63: =IF(明細!F57="","",明細!F57) ->  | G63: =IF(明細!G57="","",明細!G57) ->  | H63: =IF(明細!H57="","",明細!H57) ->  | I63: =IF(明細!I57="","",明細!I57) ->  | J63: =IF(明細!J57="","",明細!J57) ->  | K63: =IF(明細!K57="","",明細!K57) ->  | L63: =IF(明細!K57<>"",CONCATENATE($L$12,明細!L57),"") ->  | M63: =IF(明細!M57="","",明細!M57) ->  | N63: =IF(明細!N57="","",明細!N57) ->  | O63: =IF(明細!O57="","",明細!O57) ->  | P63: =IF(明細!P57="","",明細!P57) ->  | Q63: =IF(明細!Q57="","",明細!Q57) ->  | R63: =IF(明細!R57="","",明細!R57) ->  | S63: =IF(明細!S57="","",明細!S57) ->  | T63: =IF(明細!T57="","",明細!T57) ->  | U63: =IF(明細!U57="","",明細!U57) ->  | V63: =IF(明細!V57<>"","EA","") -> EA | W63: =IF(明細!W57="","",明細!W57) ->  | X63: =IF(明細!X57="","",明細!X57) ->  | Y63: =IF(明細!Y57="","",明細!Y57) ->  | Z63: =IF(明細!Z57="","",明細!Z57) ->  | AA63: =IF(明細!AA57="","",明細!AA57) ->  | AB63: =IF(明細!AB57="","",明細!AB57) ->  | AC63: =IF(明細!AC57="","",明細!AC57) ->  | AD63: =IF(明細!AD57="","",明細!AD57) ->  | AE63: =IF(明細!AE57="","",明細!AE57) -> 10% | AF63: =IF(明細!AF57="","",明細!AF57) ->  | AG63: =IF(明細!AG57="","",明細!AG57) ->  | AH63: =IF(明細!AH57="","",明細!AH57) ->  | AI63: =IF(明細!AI57="","",明細!AI57) ->  | AJ63: =IF(明細!AJ57="","",明細!AJ57) ->  | AK63: =IF(明細!AK57="","",明細!AK57) ->  | AL63: =IF(明細!AL57="","",明細!AL57) ->  | AM63: =IF(明細!AM57="","",明細!AM57) ->  | AN63: =IF(明細!AN57="","",明細!AN57) ->  | AO63: =IF(明細!AO57="","",明細!AO57) ->  | AP63: =IF(明細!AP57="","",明細!AP57) ->  | AQ63: =IF(明細!AQ57="","",明細!AQ57) ->  | AR63: =IF(明細!AR57="","",明細!AR57) ->  | AY63: =IF($AX63="","",VLOOKUP($AX63,リスト!$CL:$CM,2,FALSE)) ->  | BA63: =IF(BB63="","",VLOOKUP(BB63,リスト!$K:$L,2,FALSE)) ->  | BE63: =IF(BF63="","",VLOOKUP(BF63,リスト!$I:$J,2,FALSE)) ->  | BG63: =IF(BH63="","",VLOOKUP(BH63,リスト!$M:$N,2,FALSE)) ->  | BI63: =IF(BJ63="","",VLOOKUP(BJ63,リスト!$O:$P,2,FALSE)) ->  | BO63: =IF($BN63="","",VLOOKUP($BN63,リスト!$CL:$CM,2,FALSE)) ->  | BP63: =IF(BQ63="","",VLOOKUP(BQ63,リスト!$K$5:$L$7,2,FALSE)) ->  | BT63: =IF(BU63="","",VLOOKUP(BU63,リスト!I54:J72,2,FALSE)) ->  | BY63: =IF(BZ63="","",VLOOKUP(BZ63,リスト!$S$5:$T$6,2,FALSE)) ->  | CU63: =IF(CV63="","",VLOOKUP(CV63,リスト!$V$5:$W$6,2,FALSE)) ->  | CW63: =IF(CX63="","",VLOOKUP(CX63,リスト!$X$5:$Y$6,2,FALSE)) ->  | DE63: =IF(DF63="","",VLOOKUP(DF63,リスト!$Z$5:$AA$10,2,FALSE)) ->  | DG63: =IF(DH63="","",VLOOKUP(DH63,リスト!$AB$5:$AC$12,2,FALSE)) ->  | DI63: =IF(DJ63="","",VLOOKUP(DJ63,リスト!$AD$5:$AE$7,2,FALSE)) ->  | DK63: =IF(DL63="","",VLOOKUP(DL63,リスト!$AF$5:$AG$10,2,FALSE)) ->  | DM63: =IF(DN63="","",VLOOKUP(DN63,リスト!$AH$5:$AI$6,2,FALSE)) ->  | DO63: =IF(DP63="","",VLOOKUP(DP63,リスト!$AJ$5:$AK$6,2,FALSE)) ->  | DQ63: =IF(DR63="","",VLOOKUP(DR63,リスト!$AL$5:$AM$7,2,FALSE)) ->  | DV63: =IF(DW63="","",VLOOKUP(DW63,リスト!$AN$5:$AO$6,2,FALSE)) ->  | EB63: =IF(EC63="","",VLOOKUP(EC63,リスト!$AW$5:$AX$8,2,FALSE)) ->  | EE63: =IF(EF63="","",VLOOKUP(EF63,リスト!$AY$5:$AZ$10,2,FALSE)) ->  | EG63: =IF(EH63="","",VLOOKUP(EH63,リスト!$BA$5:$BB$10,2,FALSE)) ->  | EI63: =IF(EJ63="","",VLOOKUP(EJ63,リスト!$BC$5:$BD$10,2,FALSE)) ->  | EK63: =IF(EL63="","",VLOOKUP(EL63,リスト!$BE$5:$BF$10,2,FALSE)) ->  | ER63: =IF(ES63="","",VLOOKUP(ES63,リスト!$BG$5:$BH$10,2,FALSE)) ->  | FA63: =IF($EZ63="","",INDEX(リスト!$BI$5:$BJ$40,MATCH($EZ63,リスト!$BJ$5:$BJ$40,0),1)) ->  | FB63: =IF(FC63="","",VLOOKUP(FC63,リスト!$BK:$BL,2,FALSE)) ->  | FF63: =IF(FG63="","",VLOOKUP(FG63,リスト!$BO$5:$BP$6,2,FALSE)) ->  | FH63: =IF(FI63="","",VLOOKUP(FI63,リスト!$BQ$5:$BR$8,2,FALSE)) ->  | FK63: =IF(FL63="","",VLOOKUP(FL63,リスト!$BS$5:$BT$6,2,FALSE)) ->  | FV63: =IF(FW63="","",VLOOKUP(FW63,リスト!$BV$5:$BW$10,2,FALSE)) ->  | FY63: =IF(FZ63="","",VLOOKUP(FZ63,リスト!$BX$5:$BY$6,2,FALSE)) ->  | GA63: =IF(GB63="","",VLOOKUP(GB63,リスト!$BZ$5:$CA$6,2,FALSE)) ->  | GC63: =IF(GD63="","",VLOOKUP(GD63,リスト!$CB$5:$CC$6,2,FALSE)) ->  | GJ63: =IF(GK63="","",VLOOKUP(GK63,リスト!$CD$5:$CE$6,2,FALSE)) ->  | GL63: =IF(GM63="","",VLOOKUP(GM63,リスト!$CF$5:$CG$6,2,FALSE)) ->  | GN63: =IF(GO63="","",VLOOKUP(GO63,リスト!$CH$5:$CI$6,2,FALSE)) -> 
B64: =IF(明細!B58="","",明細!B58) ->  | C64: =IF(明細!C58="","",明細!C58) ->  | D64: =IF(明細!D58="","",明細!D58) ->  | E64: =IF(明細!E58="","",明細!E58) ->  | F64: =IF(明細!F58="","",明細!F58) ->  | G64: =IF(明細!G58="","",明細!G58) ->  | H64: =IF(明細!H58="","",明細!H58) ->  | I64: =IF(明細!I58="","",明細!I58) ->  | J64: =IF(明細!J58="","",明細!J58) ->  | K64: =IF(明細!K58="","",明細!K58) ->  | L64: =IF(明細!K58<>"",CONCATENATE($L$12,明細!L58),"") ->  | M64: =IF(明細!M58="","",明細!M58) ->  | N64: =IF(明細!N58="","",明細!N58) ->  | O64: =IF(明細!O58="","",明細!O58) ->  | P64: =IF(明細!P58="","",明細!P58) ->  | Q64: =IF(明細!Q58="","",明細!Q58) ->  | R64: =IF(明細!R58="","",明細!R58) ->  | S64: =IF(明細!S58="","",明細!S58) ->  | T64: =IF(明細!T58="","",明細!T58) ->  | U64: =IF(明細!U58="","",明細!U58) ->  | V64: =IF(明細!V58<>"","EA","") -> EA | W64: =IF(明細!W58="","",明細!W58) ->  | X64: =IF(明細!X58="","",明細!X58) ->  | Y64: =IF(明細!Y58="","",明細!Y58) ->  | Z64: =IF(明細!Z58="","",明細!Z58) ->  | AA64: =IF(明細!AA58="","",明細!AA58) ->  | AB64: =IF(明細!AB58="","",明細!AB58) ->  | AC64: =IF(明細!AC58="","",明細!AC58) ->  | AD64: =IF(明細!AD58="","",明細!AD58) ->  | AE64: =IF(明細!AE58="","",明細!AE58) -> 10% | AF64: =IF(明細!AF58="","",明細!AF58) ->  | AG64: =IF(明細!AG58="","",明細!AG58) ->  | AH64: =IF(明細!AH58="","",明細!AH58) ->  | AI64: =IF(明細!AI58="","",明細!AI58) ->  | AJ64: =IF(明細!AJ58="","",明細!AJ58) ->  | AK64: =IF(明細!AK58="","",明細!AK58) ->  | AL64: =IF(明細!AL58="","",明細!AL58) ->  | AM64: =IF(明細!AM58="","",明細!AM58) ->  | AN64: =IF(明細!AN58="","",明細!AN58) ->  | AO64: =IF(明細!AO58="","",明細!AO58) ->  | AP64: =IF(明細!AP58="","",明細!AP58) ->  | AQ64: =IF(明細!AQ58="","",明細!AQ58) ->  | AR64: =IF(明細!AR58="","",明細!AR58) ->  | AY64: =IF($AX64="","",VLOOKUP($AX64,リスト!$CL:$CM,2,FALSE)) ->  | BA64: =IF(BB64="","",VLOOKUP(BB64,リスト!$K:$L,2,FALSE)) ->  | BE64: =IF(BF64="","",VLOOKUP(BF64,リスト!$I:$J,2,FALSE)) ->  | BG64: =IF(BH64="","",VLOOKUP(BH64,リスト!$M:$N,2,FALSE)) ->  | BI64: =IF(BJ64="","",VLOOKUP(BJ64,リスト!$O:$P,2,FALSE)) ->  | BO64: =IF($BN64="","",VLOOKUP($BN64,リスト!$CL:$CM,2,FALSE)) ->  | BP64: =IF(BQ64="","",VLOOKUP(BQ64,リスト!$K$5:$L$7,2,FALSE)) ->  | BT64: =IF(BU64="","",VLOOKUP(BU64,リスト!I55:J73,2,FALSE)) ->  | BY64: =IF(BZ64="","",VLOOKUP(BZ64,リスト!$S$5:$T$6,2,FALSE)) ->  | CU64: =IF(CV64="","",VLOOKUP(CV64,リスト!$V$5:$W$6,2,FALSE)) ->  | CW64: =IF(CX64="","",VLOOKUP(CX64,リスト!$X$5:$Y$6,2,FALSE)) ->  | DE64: =IF(DF64="","",VLOOKUP(DF64,リスト!$Z$5:$AA$10,2,FALSE)) ->  | DG64: =IF(DH64="","",VLOOKUP(DH64,リスト!$AB$5:$AC$12,2,FALSE)) ->  | DI64: =IF(DJ64="","",VLOOKUP(DJ64,リスト!$AD$5:$AE$7,2,FALSE)) ->  | DK64: =IF(DL64="","",VLOOKUP(DL64,リスト!$AF$5:$AG$10,2,FALSE)) ->  | DM64: =IF(DN64="","",VLOOKUP(DN64,リスト!$AH$5:$AI$6,2,FALSE)) ->  | DO64: =IF(DP64="","",VLOOKUP(DP64,リスト!$AJ$5:$AK$6,2,FALSE)) ->  | DQ64: =IF(DR64="","",VLOOKUP(DR64,リスト!$AL$5:$AM$7,2,FALSE)) ->  | DV64: =IF(DW64="","",VLOOKUP(DW64,リスト!$AN$5:$AO$6,2,FALSE)) ->  | EB64: =IF(EC64="","",VLOOKUP(EC64,リスト!$AW$5:$AX$8,2,FALSE)) ->  | EE64: =IF(EF64="","",VLOOKUP(EF64,リスト!$AY$5:$AZ$10,2,FALSE)) ->  | EG64: =IF(EH64="","",VLOOKUP(EH64,リスト!$BA$5:$BB$10,2,FALSE)) ->  | EI64: =IF(EJ64="","",VLOOKUP(EJ64,リスト!$BC$5:$BD$10,2,FALSE)) ->  | EK64: =IF(EL64="","",VLOOKUP(EL64,リスト!$BE$5:$BF$10,2,FALSE)) ->  | ER64: =IF(ES64="","",VLOOKUP(ES64,リスト!$BG$5:$BH$10,2,FALSE)) ->  | FA64: =IF($EZ64="","",INDEX(リスト!$BI$5:$BJ$40,MATCH($EZ64,リスト!$BJ$5:$BJ$40,0),1)) ->  | FB64: =IF(FC64="","",VLOOKUP(FC64,リスト!$BK:$BL,2,FALSE)) ->  | FF64: =IF(FG64="","",VLOOKUP(FG64,リスト!$BO$5:$BP$6,2,FALSE)) ->  | FH64: =IF(FI64="","",VLOOKUP(FI64,リスト!$BQ$5:$BR$8,2,FALSE)) ->  | FK64: =IF(FL64="","",VLOOKUP(FL64,リスト!$BS$5:$BT$6,2,FALSE)) ->  | FV64: =IF(FW64="","",VLOOKUP(FW64,リスト!$BV$5:$BW$10,2,FALSE)) ->  | FY64: =IF(FZ64="","",VLOOKUP(FZ64,リスト!$BX$5:$BY$6,2,FALSE)) ->  | GA64: =IF(GB64="","",VLOOKUP(GB64,リスト!$BZ$5:$CA$6,2,FALSE)) ->  | GC64: =IF(GD64="","",VLOOKUP(GD64,リスト!$CB$5:$CC$6,2,FALSE)) ->  | GJ64: =IF(GK64="","",VLOOKUP(GK64,リスト!$CD$5:$CE$6,2,FALSE)) ->  | GL64: =IF(GM64="","",VLOOKUP(GM64,リスト!$CF$5:$CG$6,2,FALSE)) ->  | GN64: =IF(GO64="","",VLOOKUP(GO64,リスト!$CH$5:$CI$6,2,FALSE)) -> 
B65: =IF(明細!B59="","",明細!B59) ->  | C65: =IF(明細!C59="","",明細!C59) ->  | D65: =IF(明細!D59="","",明細!D59) ->  | E65: =IF(明細!E59="","",明細!E59) ->  | F65: =IF(明細!F59="","",明細!F59) ->  | G65: =IF(明細!G59="","",明細!G59) ->  | H65: =IF(明細!H59="","",明細!H59) ->  | I65: =IF(明細!I59="","",明細!I59) ->  | J65: =IF(明細!J59="","",明細!J59) ->  | K65: =IF(明細!K59="","",明細!K59) ->  | L65: =IF(明細!K59<>"",CONCATENATE($L$12,明細!L59),"") ->  | M65: =IF(明細!M59="","",明細!M59) ->  | N65: =IF(明細!N59="","",明細!N59) ->  | O65: =IF(明細!O59="","",明細!O59) ->  | P65: =IF(明細!P59="","",明細!P59) ->  | Q65: =IF(明細!Q59="","",明細!Q59) ->  | R65: =IF(明細!R59="","",明細!R59) ->  | S65: =IF(明細!S59="","",明細!S59) ->  | T65: =IF(明細!T59="","",明細!T59) ->  | U65: =IF(明細!U59="","",明細!U59) ->  | V65: =IF(明細!V59<>"","EA","") -> EA | W65: =IF(明細!W59="","",明細!W59) ->  | X65: =IF(明細!X59="","",明細!X59) ->  | Y65: =IF(明細!Y59="","",明細!Y59) ->  | Z65: =IF(明細!Z59="","",明細!Z59) ->  | AA65: =IF(明細!AA59="","",明細!AA59) ->  | AB65: =IF(明細!AB59="","",明細!AB59) ->  | AC65: =IF(明細!AC59="","",明細!AC59) ->  | AD65: =IF(明細!AD59="","",明細!AD59) ->  | AE65: =IF(明細!AE59="","",明細!AE59) -> 10% | AF65: =IF(明細!AF59="","",明細!AF59) ->  | AG65: =IF(明細!AG59="","",明細!AG59) ->  | AH65: =IF(明細!AH59="","",明細!AH59) ->  | AI65: =IF(明細!AI59="","",明細!AI59) ->  | AJ65: =IF(明細!AJ59="","",明細!AJ59) ->  | AK65: =IF(明細!AK59="","",明細!AK59) ->  | AL65: =IF(明細!AL59="","",明細!AL59) ->  | AM65: =IF(明細!AM59="","",明細!AM59) ->  | AN65: =IF(明細!AN59="","",明細!AN59) ->  | AO65: =IF(明細!AO59="","",明細!AO59) ->  | AP65: =IF(明細!AP59="","",明細!AP59) ->  | AQ65: =IF(明細!AQ59="","",明細!AQ59) ->  | AR65: =IF(明細!AR59="","",明細!AR59) ->  | AY65: =IF($AX65="","",VLOOKUP($AX65,リスト!$CL:$CM,2,FALSE)) ->  | BA65: =IF(BB65="","",VLOOKUP(BB65,リスト!$K:$L,2,FALSE)) ->  | BE65: =IF(BF65="","",VLOOKUP(BF65,リスト!$I:$J,2,FALSE)) ->  | BG65: =IF(BH65="","",VLOOKUP(BH65,リスト!$M:$N,2,FALSE)) ->  | BI65: =IF(BJ65="","",VLOOKUP(BJ65,リスト!$O:$P,2,FALSE)) ->  | BO65: =IF($BN65="","",VLOOKUP($BN65,リスト!$CL:$CM,2,FALSE)) ->  | BP65: =IF(BQ65="","",VLOOKUP(BQ65,リスト!$K$5:$L$7,2,FALSE)) ->  | BT65: =IF(BU65="","",VLOOKUP(BU65,リスト!I56:J74,2,FALSE)) ->  | BY65: =IF(BZ65="","",VLOOKUP(BZ65,リスト!$S$5:$T$6,2,FALSE)) ->  | CU65: =IF(CV65="","",VLOOKUP(CV65,リスト!$V$5:$W$6,2,FALSE)) ->  | CW65: =IF(CX65="","",VLOOKUP(CX65,リスト!$X$5:$Y$6,2,FALSE)) ->  | DE65: =IF(DF65="","",VLOOKUP(DF65,リスト!$Z$5:$AA$10,2,FALSE)) ->  | DG65: =IF(DH65="","",VLOOKUP(DH65,リスト!$AB$5:$AC$12,2,FALSE)) ->  | DI65: =IF(DJ65="","",VLOOKUP(DJ65,リスト!$AD$5:$AE$7,2,FALSE)) ->  | DK65: =IF(DL65="","",VLOOKUP(DL65,リスト!$AF$5:$AG$10,2,FALSE)) ->  | DM65: =IF(DN65="","",VLOOKUP(DN65,リスト!$AH$5:$AI$6,2,FALSE)) ->  | DO65: =IF(DP65="","",VLOOKUP(DP65,リスト!$AJ$5:$AK$6,2,FALSE)) ->  | DQ65: =IF(DR65="","",VLOOKUP(DR65,リスト!$AL$5:$AM$7,2,FALSE)) ->  | DV65: =IF(DW65="","",VLOOKUP(DW65,リスト!$AN$5:$AO$6,2,FALSE)) ->  | EB65: =IF(EC65="","",VLOOKUP(EC65,リスト!$AW$5:$AX$8,2,FALSE)) ->  | EE65: =IF(EF65="","",VLOOKUP(EF65,リスト!$AY$5:$AZ$10,2,FALSE)) ->  | EG65: =IF(EH65="","",VLOOKUP(EH65,リスト!$BA$5:$BB$10,2,FALSE)) ->  | EI65: =IF(EJ65="","",VLOOKUP(EJ65,リスト!$BC$5:$BD$10,2,FALSE)) ->  | EK65: =IF(EL65="","",VLOOKUP(EL65,リスト!$BE$5:$BF$10,2,FALSE)) ->  | ER65: =IF(ES65="","",VLOOKUP(ES65,リスト!$BG$5:$BH$10,2,FALSE)) ->  | FA65: =IF($EZ65="","",INDEX(リスト!$BI$5:$BJ$40,MATCH($EZ65,リスト!$BJ$5:$BJ$40,0),1)) ->  | FB65: =IF(FC65="","",VLOOKUP(FC65,リスト!$BK:$BL,2,FALSE)) ->  | FF65: =IF(FG65="","",VLOOKUP(FG65,リスト!$BO$5:$BP$6,2,FALSE)) ->  | FH65: =IF(FI65="","",VLOOKUP(FI65,リスト!$BQ$5:$BR$8,2,FALSE)) ->  | FK65: =IF(FL65="","",VLOOKUP(FL65,リスト!$BS$5:$BT$6,2,FALSE)) ->  | FV65: =IF(FW65="","",VLOOKUP(FW65,リスト!$BV$5:$BW$10,2,FALSE)) ->  | FY65: =IF(FZ65="","",VLOOKUP(FZ65,リスト!$BX$5:$BY$6,2,FALSE)) ->  | GA65: =IF(GB65="","",VLOOKUP(GB65,リスト!$BZ$5:$CA$6,2,FALSE)) ->  | GC65: =IF(GD65="","",VLOOKUP(GD65,リスト!$CB$5:$CC$6,2,FALSE)) ->  | GJ65: =IF(GK65="","",VLOOKUP(GK65,リスト!$CD$5:$CE$6,2,FALSE)) ->  | GL65: =IF(GM65="","",VLOOKUP(GM65,リスト!$CF$5:$CG$6,2,FALSE)) ->  | GN65: =IF(GO65="","",VLOOKUP(GO65,リスト!$CH$5:$CI$6,2,FALSE)) -> 
B66: =IF(明細!B60="","",明細!B60) ->  | C66: =IF(明細!C60="","",明細!C60) ->  | D66: =IF(明細!D60="","",明細!D60) ->  | E66: =IF(明細!E60="","",明細!E60) ->  | F66: =IF(明細!F60="","",明細!F60) ->  | G66: =IF(明細!G60="","",明細!G60) ->  | H66: =IF(明細!H60="","",明細!H60) ->  | I66: =IF(明細!I60="","",明細!I60) ->  | J66: =IF(明細!J60="","",明細!J60) ->  | K66: =IF(明細!K60="","",明細!K60) ->  | L66: =IF(明細!K60<>"",CONCATENATE($L$12,明細!L60),"") ->  | M66: =IF(明細!M60="","",明細!M60) ->  | N66: =IF(明細!N60="","",明細!N60) ->  | O66: =IF(明細!O60="","",明細!O60) ->  | P66: =IF(明細!P60="","",明細!P60) ->  | Q66: =IF(明細!Q60="","",明細!Q60) ->  | R66: =IF(明細!R60="","",明細!R60) ->  | S66: =IF(明細!S60="","",明細!S60) ->  | T66: =IF(明細!T60="","",明細!T60) ->  | U66: =IF(明細!U60="","",明細!U60) ->  | V66: =IF(明細!V60<>"","EA","") -> EA | W66: =IF(明細!W60="","",明細!W60) ->  | X66: =IF(明細!X60="","",明細!X60) ->  | Y66: =IF(明細!Y60="","",明細!Y60) ->  | Z66: =IF(明細!Z60="","",明細!Z60) ->  | AA66: =IF(明細!AA60="","",明細!AA60) ->  | AB66: =IF(明細!AB60="","",明細!AB60) ->  | AC66: =IF(明細!AC60="","",明細!AC60) ->  | AD66: =IF(明細!AD60="","",明細!AD60) ->  | AE66: =IF(明細!AE60="","",明細!AE60) -> 10% | AF66: =IF(明細!AF60="","",明細!AF60) ->  | AG66: =IF(明細!AG60="","",明細!AG60) ->  | AH66: =IF(明細!AH60="","",明細!AH60) ->  | AI66: =IF(明細!AI60="","",明細!AI60) ->  | AJ66: =IF(明細!AJ60="","",明細!AJ60) ->  | AK66: =IF(明細!AK60="","",明細!AK60) ->  | AL66: =IF(明細!AL60="","",明細!AL60) ->  | AM66: =IF(明細!AM60="","",明細!AM60) ->  | AN66: =IF(明細!AN60="","",明細!AN60) ->  | AO66: =IF(明細!AO60="","",明細!AO60) ->  | AP66: =IF(明細!AP60="","",明細!AP60) ->  | AQ66: =IF(明細!AQ60="","",明細!AQ60) ->  | AR66: =IF(明細!AR60="","",明細!AR60) ->  | AY66: =IF($AX66="","",VLOOKUP($AX66,リスト!$CL:$CM,2,FALSE)) ->  | BA66: =IF(BB66="","",VLOOKUP(BB66,リスト!$K:$L,2,FALSE)) ->  | BE66: =IF(BF66="","",VLOOKUP(BF66,リスト!$I:$J,2,FALSE)) ->  | BG66: =IF(BH66="","",VLOOKUP(BH66,リスト!$M:$N,2,FALSE)) ->  | BI66: =IF(BJ66="","",VLOOKUP(BJ66,リスト!$O:$P,2,FALSE)) ->  | BO66: =IF($BN66="","",VLOOKUP($BN66,リスト!$CL:$CM,2,FALSE)) ->  | BP66: =IF(BQ66="","",VLOOKUP(BQ66,リスト!$K$5:$L$7,2,FALSE)) ->  | BT66: =IF(BU66="","",VLOOKUP(BU66,リスト!I57:J75,2,FALSE)) ->  | BY66: =IF(BZ66="","",VLOOKUP(BZ66,リスト!$S$5:$T$6,2,FALSE)) ->  | CU66: =IF(CV66="","",VLOOKUP(CV66,リスト!$V$5:$W$6,2,FALSE)) ->  | CW66: =IF(CX66="","",VLOOKUP(CX66,リスト!$X$5:$Y$6,2,FALSE)) ->  | DE66: =IF(DF66="","",VLOOKUP(DF66,リスト!$Z$5:$AA$10,2,FALSE)) ->  | DG66: =IF(DH66="","",VLOOKUP(DH66,リスト!$AB$5:$AC$12,2,FALSE)) ->  | DI66: =IF(DJ66="","",VLOOKUP(DJ66,リスト!$AD$5:$AE$7,2,FALSE)) ->  | DK66: =IF(DL66="","",VLOOKUP(DL66,リスト!$AF$5:$AG$10,2,FALSE)) ->  | DM66: =IF(DN66="","",VLOOKUP(DN66,リスト!$AH$5:$AI$6,2,FALSE)) ->  | DO66: =IF(DP66="","",VLOOKUP(DP66,リスト!$AJ$5:$AK$6,2,FALSE)) ->  | DQ66: =IF(DR66="","",VLOOKUP(DR66,リスト!$AL$5:$AM$7,2,FALSE)) ->  | DV66: =IF(DW66="","",VLOOKUP(DW66,リスト!$AN$5:$AO$6,2,FALSE)) ->  | EB66: =IF(EC66="","",VLOOKUP(EC66,リスト!$AW$5:$AX$8,2,FALSE)) ->  | EE66: =IF(EF66="","",VLOOKUP(EF66,リスト!$AY$5:$AZ$10,2,FALSE)) ->  | EG66: =IF(EH66="","",VLOOKUP(EH66,リスト!$BA$5:$BB$10,2,FALSE)) ->  | EI66: =IF(EJ66="","",VLOOKUP(EJ66,リスト!$BC$5:$BD$10,2,FALSE)) ->  | EK66: =IF(EL66="","",VLOOKUP(EL66,リスト!$BE$5:$BF$10,2,FALSE)) ->  | ER66: =IF(ES66="","",VLOOKUP(ES66,リスト!$BG$5:$BH$10,2,FALSE)) ->  | FA66: =IF($EZ66="","",INDEX(リスト!$BI$5:$BJ$40,MATCH($EZ66,リスト!$BJ$5:$BJ$40,0),1)) ->  | FB66: =IF(FC66="","",VLOOKUP(FC66,リスト!$BK:$BL,2,FALSE)) ->  | FF66: =IF(FG66="","",VLOOKUP(FG66,リスト!$BO$5:$BP$6,2,FALSE)) ->  | FH66: =IF(FI66="","",VLOOKUP(FI66,リスト!$BQ$5:$BR$8,2,FALSE)) ->  | FK66: =IF(FL66="","",VLOOKUP(FL66,リスト!$BS$5:$BT$6,2,FALSE)) ->  | FV66: =IF(FW66="","",VLOOKUP(FW66,リスト!$BV$5:$BW$10,2,FALSE)) ->  | FY66: =IF(FZ66="","",VLOOKUP(FZ66,リスト!$BX$5:$BY$6,2,FALSE)) ->  | GA66: =IF(GB66="","",VLOOKUP(GB66,リスト!$BZ$5:$CA$6,2,FALSE)) ->  | GC66: =IF(GD66="","",VLOOKUP(GD66,リスト!$CB$5:$CC$6,2,FALSE)) ->  | GJ66: =IF(GK66="","",VLOOKUP(GK66,リスト!$CD$5:$CE$6,2,FALSE)) ->  | GL66: =IF(GM66="","",VLOOKUP(GM66,リスト!$CF$5:$CG$6,2,FALSE)) ->  | GN66: =IF(GO66="","",VLOOKUP(GO66,リスト!$CH$5:$CI$6,2,FALSE)) -> 
B67: =IF(明細!B61="","",明細!B61) ->  | C67: =IF(明細!C61="","",明細!C61) ->  | D67: =IF(明細!D61="","",明細!D61) ->  | E67: =IF(明細!E61="","",明細!E61) ->  | F67: =IF(明細!F61="","",明細!F61) ->  | G67: =IF(明細!G61="","",明細!G61) ->  | H67: =IF(明細!H61="","",明細!H61) ->  | I67: =IF(明細!I61="","",明細!I61) ->  | J67: =IF(明細!J61="","",明細!J61) ->  | K67: =IF(明細!K61="","",明細!K61) ->  | L67: =IF(明細!K61<>"",CONCATENATE($L$12,明細!L61),"") ->  | M67: =IF(明細!M61="","",明細!M61) ->  | N67: =IF(明細!N61="","",明細!N61) ->  | O67: =IF(明細!O61="","",明細!O61) ->  | P67: =IF(明細!P61="","",明細!P61) ->  | Q67: =IF(明細!Q61="","",明細!Q61) ->  | R67: =IF(明細!R61="","",明細!R61) ->  | S67: =IF(明細!S61="","",明細!S61) ->  | T67: =IF(明細!T61="","",明細!T61) ->  | U67: =IF(明細!U61="","",明細!U61) ->  | V67: =IF(明細!V61<>"","EA","") -> EA | W67: =IF(明細!W61="","",明細!W61) ->  | X67: =IF(明細!X61="","",明細!X61) ->  | Y67: =IF(明細!Y61="","",明細!Y61) ->  | Z67: =IF(明細!Z61="","",明細!Z61) ->  | AA67: =IF(明細!AA61="","",明細!AA61) ->  | AB67: =IF(明細!AB61="","",明細!AB61) ->  | AC67: =IF(明細!AC61="","",明細!AC61) ->  | AD67: =IF(明細!AD61="","",明細!AD61) ->  | AE67: =IF(明細!AE61="","",明細!AE61) -> 10% | AF67: =IF(明細!AF61="","",明細!AF61) ->  | AG67: =IF(明細!AG61="","",明細!AG61) ->  | AH67: =IF(明細!AH61="","",明細!AH61) ->  | AI67: =IF(明細!AI61="","",明細!AI61) ->  | AJ67: =IF(明細!AJ61="","",明細!AJ61) ->  | AK67: =IF(明細!AK61="","",明細!AK61) ->  | AL67: =IF(明細!AL61="","",明細!AL61) ->  | AM67: =IF(明細!AM61="","",明細!AM61) ->  | AN67: =IF(明細!AN61="","",明細!AN61) ->  | AO67: =IF(明細!AO61="","",明細!AO61) ->  | AP67: =IF(明細!AP61="","",明細!AP61) ->  | AQ67: =IF(明細!AQ61="","",明細!AQ61) ->  | AR67: =IF(明細!AR61="","",明細!AR61) ->  | AY67: =IF($AX67="","",VLOOKUP($AX67,リスト!$CL:$CM,2,FALSE)) ->  | BA67: =IF(BB67="","",VLOOKUP(BB67,リスト!$K:$L,2,FALSE)) ->  | BE67: =IF(BF67="","",VLOOKUP(BF67,リスト!$I:$J,2,FALSE)) ->  | BG67: =IF(BH67="","",VLOOKUP(BH67,リスト!$M:$N,2,FALSE)) ->  | BI67: =IF(BJ67="","",VLOOKUP(BJ67,リスト!$O:$P,2,FALSE)) ->  | BO67: =IF($BN67="","",VLOOKUP($BN67,リスト!$CL:$CM,2,FALSE)) ->  | BP67: =IF(BQ67="","",VLOOKUP(BQ67,リスト!$K$5:$L$7,2,FALSE)) ->  | BT67: =IF(BU67="","",VLOOKUP(BU67,リスト!I58:J76,2,FALSE)) ->  | BY67: =IF(BZ67="","",VLOOKUP(BZ67,リスト!$S$5:$T$6,2,FALSE)) ->  | CU67: =IF(CV67="","",VLOOKUP(CV67,リスト!$V$5:$W$6,2,FALSE)) ->  | CW67: =IF(CX67="","",VLOOKUP(CX67,リスト!$X$5:$Y$6,2,FALSE)) ->  | DE67: =IF(DF67="","",VLOOKUP(DF67,リスト!$Z$5:$AA$10,2,FALSE)) ->  | DG67: =IF(DH67="","",VLOOKUP(DH67,リスト!$AB$5:$AC$12,2,FALSE)) ->  | DI67: =IF(DJ67="","",VLOOKUP(DJ67,リスト!$AD$5:$AE$7,2,FALSE)) ->  | DK67: =IF(DL67="","",VLOOKUP(DL67,リスト!$AF$5:$AG$10,2,FALSE)) ->  | DM67: =IF(DN67="","",VLOOKUP(DN67,リスト!$AH$5:$AI$6,2,FALSE)) ->  | DO67: =IF(DP67="","",VLOOKUP(DP67,リスト!$AJ$5:$AK$6,2,FALSE)) ->  | DQ67: =IF(DR67="","",VLOOKUP(DR67,リスト!$AL$5:$AM$7,2,FALSE)) ->  | DV67: =IF(DW67="","",VLOOKUP(DW67,リスト!$AN$5:$AO$6,2,FALSE)) ->  | EB67: =IF(EC67="","",VLOOKUP(EC67,リスト!$AW$5:$AX$8,2,FALSE)) ->  | EE67: =IF(EF67="","",VLOOKUP(EF67,リスト!$AY$5:$AZ$10,2,FALSE)) ->  | EG67: =IF(EH67="","",VLOOKUP(EH67,リスト!$BA$5:$BB$10,2,FALSE)) ->  | EI67: =IF(EJ67="","",VLOOKUP(EJ67,リスト!$BC$5:$BD$10,2,FALSE)) ->  | EK67: =IF(EL67="","",VLOOKUP(EL67,リスト!$BE$5:$BF$10,2,FALSE)) ->  | ER67: =IF(ES67="","",VLOOKUP(ES67,リスト!$BG$5:$BH$10,2,FALSE)) ->  | FA67: =IF($EZ67="","",INDEX(リスト!$BI$5:$BJ$40,MATCH($EZ67,リスト!$BJ$5:$BJ$40,0),1)) ->  | FB67: =IF(FC67="","",VLOOKUP(FC67,リスト!$BK:$BL,2,FALSE)) ->  | FF67: =IF(FG67="","",VLOOKUP(FG67,リスト!$BO$5:$BP$6,2,FALSE)) ->  | FH67: =IF(FI67="","",VLOOKUP(FI67,リスト!$BQ$5:$BR$8,2,FALSE)) ->  | FK67: =IF(FL67="","",VLOOKUP(FL67,リスト!$BS$5:$BT$6,2,FALSE)) ->  | FV67: =IF(FW67="","",VLOOKUP(FW67,リスト!$BV$5:$BW$10,2,FALSE)) ->  | FY67: =IF(FZ67="","",VLOOKUP(FZ67,リスト!$BX$5:$BY$6,2,FALSE)) ->  | GA67: =IF(GB67="","",VLOOKUP(GB67,リスト!$BZ$5:$CA$6,2,FALSE)) ->  | GC67: =IF(GD67="","",VLOOKUP(GD67,リスト!$CB$5:$CC$6,2,FALSE)) ->  | GJ67: =IF(GK67="","",VLOOKUP(GK67,リスト!$CD$5:$CE$6,2,FALSE)) ->  | GL67: =IF(GM67="","",VLOOKUP(GM67,リスト!$CF$5:$CG$6,2,FALSE)) ->  | GN67: =IF(GO67="","",VLOOKUP(GO67,リスト!$CH$5:$CI$6,2,FALSE)) -> 
B68: =IF(明細!B62="","",明細!B62) ->  | C68: =IF(明細!C62="","",明細!C62) ->  | D68: =IF(明細!D62="","",明細!D62) ->  | E68: =IF(明細!E62="","",明細!E62) ->  | F68: =IF(明細!F62="","",明細!F62) ->  | G68: =IF(明細!G62="","",明細!G62) ->  | H68: =IF(明細!H62="","",明細!H62) ->  | I68: =IF(明細!I62="","",明細!I62) ->  | J68: =IF(明細!J62="","",明細!J62) ->  | K68: =IF(明細!K62="","",明細!K62) ->  | L68: =IF(明細!K62<>"",CONCATENATE($L$12,明細!L62),"") ->  | M68: =IF(明細!M62="","",明細!M62) ->  | N68: =IF(明細!N62="","",明細!N62) ->  | O68: =IF(明細!O62="","",明細!O62) ->  | P68: =IF(明細!P62="","",明細!P62) ->  | Q68: =IF(明細!Q62="","",明細!Q62) ->  | R68: =IF(明細!R62="","",明細!R62) ->  | S68: =IF(明細!S62="","",明細!S62) ->  | T68: =IF(明細!T62="","",明細!T62) ->  | U68: =IF(明細!U62="","",明細!U62) ->  | V68: =IF(明細!V62<>"","EA","") -> EA | W68: =IF(明細!W62="","",明細!W62) ->  | X68: =IF(明細!X62="","",明細!X62) ->  | Y68: =IF(明細!Y62="","",明細!Y62) ->  | Z68: =IF(明細!Z62="","",明細!Z62) ->  | AA68: =IF(明細!AA62="","",明細!AA62) ->  | AB68: =IF(明細!AB62="","",明細!AB62) ->  | AC68: =IF(明細!AC62="","",明細!AC62) ->  | AD68: =IF(明細!AD62="","",明細!AD62) ->  | AE68: =IF(明細!AE62="","",明細!AE62) -> 10% | AF68: =IF(明細!AF62="","",明細!AF62) ->  | AG68: =IF(明細!AG62="","",明細!AG62) ->  | AH68: =IF(明細!AH62="","",明細!AH62) ->  | AI68: =IF(明細!AI62="","",明細!AI62) ->  | AJ68: =IF(明細!AJ62="","",明細!AJ62) ->  | AK68: =IF(明細!AK62="","",明細!AK62) ->  | AL68: =IF(明細!AL62="","",明細!AL62) ->  | AM68: =IF(明細!AM62="","",明細!AM62) ->  | AN68: =IF(明細!AN62="","",明細!AN62) ->  | AO68: =IF(明細!AO62="","",明細!AO62) ->  | AP68: =IF(明細!AP62="","",明細!AP62) ->  | AQ68: =IF(明細!AQ62="","",明細!AQ62) ->  | AR68: =IF(明細!AR62="","",明細!AR62) ->  | AY68: =IF($AX68="","",VLOOKUP($AX68,リスト!$CL:$CM,2,FALSE)) ->  | BA68: =IF(BB68="","",VLOOKUP(BB68,リスト!$K:$L,2,FALSE)) ->  | BE68: =IF(BF68="","",VLOOKUP(BF68,リスト!$I:$J,2,FALSE)) ->  | BG68: =IF(BH68="","",VLOOKUP(BH68,リスト!$M:$N,2,FALSE)) ->  | BI68: =IF(BJ68="","",VLOOKUP(BJ68,リスト!$O:$P,2,FALSE)) ->  | BO68: =IF($BN68="","",VLOOKUP($BN68,リスト!$CL:$CM,2,FALSE)) ->  | BP68: =IF(BQ68="","",VLOOKUP(BQ68,リスト!$K$5:$L$7,2,FALSE)) ->  | BT68: =IF(BU68="","",VLOOKUP(BU68,リスト!I59:J77,2,FALSE)) ->  | BY68: =IF(BZ68="","",VLOOKUP(BZ68,リスト!$S$5:$T$6,2,FALSE)) ->  | CU68: =IF(CV68="","",VLOOKUP(CV68,リスト!$V$5:$W$6,2,FALSE)) ->  | CW68: =IF(CX68="","",VLOOKUP(CX68,リスト!$X$5:$Y$6,2,FALSE)) ->  | DE68: =IF(DF68="","",VLOOKUP(DF68,リスト!$Z$5:$AA$10,2,FALSE)) ->  | DG68: =IF(DH68="","",VLOOKUP(DH68,リスト!$AB$5:$AC$12,2,FALSE)) ->  | DI68: =IF(DJ68="","",VLOOKUP(DJ68,リスト!$AD$5:$AE$7,2,FALSE)) ->  | DK68: =IF(DL68="","",VLOOKUP(DL68,リスト!$AF$5:$AG$10,2,FALSE)) ->  | DM68: =IF(DN68="","",VLOOKUP(DN68,リスト!$AH$5:$AI$6,2,FALSE)) ->  | DO68: =IF(DP68="","",VLOOKUP(DP68,リスト!$AJ$5:$AK$6,2,FALSE)) ->  | DQ68: =IF(DR68="","",VLOOKUP(DR68,リスト!$AL$5:$AM$7,2,FALSE)) ->  | DV68: =IF(DW68="","",VLOOKUP(DW68,リスト!$AN$5:$AO$6,2,FALSE)) ->  | EB68: =IF(EC68="","",VLOOKUP(EC68,リスト!$AW$5:$AX$8,2,FALSE)) ->  | EE68: =IF(EF68="","",VLOOKUP(EF68,リスト!$AY$5:$AZ$10,2,FALSE)) ->  | EG68: =IF(EH68="","",VLOOKUP(EH68,リスト!$BA$5:$BB$10,2,FALSE)) ->  | EI68: =IF(EJ68="","",VLOOKUP(EJ68,リスト!$BC$5:$BD$10,2,FALSE)) ->  | EK68: =IF(EL68="","",VLOOKUP(EL68,リスト!$BE$5:$BF$10,2,FALSE)) ->  | ER68: =IF(ES68="","",VLOOKUP(ES68,リスト!$BG$5:$BH$10,2,FALSE)) ->  | FA68: =IF($EZ68="","",INDEX(リスト!$BI$5:$BJ$40,MATCH($EZ68,リスト!$BJ$5:$BJ$40,0),1)) ->  | FB68: =IF(FC68="","",VLOOKUP(FC68,リスト!$BK:$BL,2,FALSE)) ->  | FF68: =IF(FG68="","",VLOOKUP(FG68,リスト!$BO$5:$BP$6,2,FALSE)) ->  | FH68: =IF(FI68="","",VLOOKUP(FI68,リスト!$BQ$5:$BR$8,2,FALSE)) ->  | FK68: =IF(FL68="","",VLOOKUP(FL68,リスト!$BS$5:$BT$6,2,FALSE)) ->  | FV68: =IF(FW68="","",VLOOKUP(FW68,リスト!$BV$5:$BW$10,2,FALSE)) ->  | FY68: =IF(FZ68="","",VLOOKUP(FZ68,リスト!$BX$5:$BY$6,2,FALSE)) ->  | GA68: =IF(GB68="","",VLOOKUP(GB68,リスト!$BZ$5:$CA$6,2,FALSE)) ->  | GC68: =IF(GD68="","",VLOOKUP(GD68,リスト!$CB$5:$CC$6,2,FALSE)) ->  | GJ68: =IF(GK68="","",VLOOKUP(GK68,リスト!$CD$5:$CE$6,2,FALSE)) ->  | GL68: =IF(GM68="","",VLOOKUP(GM68,リスト!$CF$5:$CG$6,2,FALSE)) ->  | GN68: =IF(GO68="","",VLOOKUP(GO68,リスト!$CH$5:$CI$6,2,FALSE)) -> 
B69: =IF(明細!B63="","",明細!B63) ->  | C69: =IF(明細!C63="","",明細!C63) ->  | D69: =IF(明細!D63="","",明細!D63) ->  | E69: =IF(明細!E63="","",明細!E63) ->  | F69: =IF(明細!F63="","",明細!F63) ->  | G69: =IF(明細!G63="","",明細!G63) ->  | H69: =IF(明細!H63="","",明細!H63) ->  | I69: =IF(明細!I63="","",明細!I63) ->  | J69: =IF(明細!J63="","",明細!J63) ->  | K69: =IF(明細!K63="","",明細!K63) ->  | L69: =IF(明細!K63<>"",CONCATENATE($L$12,明細!L63),"") ->  | M69: =IF(明細!M63="","",明細!M63) ->  | N69: =IF(明細!N63="","",明細!N63) ->  | O69: =IF(明細!O63="","",明細!O63) ->  | P69: =IF(明細!P63="","",明細!P63) ->  | Q69: =IF(明細!Q63="","",明細!Q63) ->  | R69: =IF(明細!R63="","",明細!R63) ->  | S69: =IF(明細!S63="","",明細!S63) ->  | T69: =IF(明細!T63="","",明細!T63) ->  | U69: =IF(明細!U63="","",明細!U63) ->  | V69: =IF(明細!V63<>"","EA","") -> EA | W69: =IF(明細!W63="","",明細!W63) ->  | X69: =IF(明細!X63="","",明細!X63) ->  | Y69: =IF(明細!Y63="","",明細!Y63) ->  | Z69: =IF(明細!Z63="","",明細!Z63) ->  | AA69: =IF(明細!AA63="","",明細!AA63) ->  | AB69: =IF(明細!AB63="","",明細!AB63) ->  | AC69: =IF(明細!AC63="","",明細!AC63) ->  | AD69: =IF(明細!AD63="","",明細!AD63) ->  | AE69: =IF(明細!AE63="","",明細!AE63) -> 10% | AF69: =IF(明細!AF63="","",明細!AF63) ->  | AG69: =IF(明細!AG63="","",明細!AG63) ->  | AH69: =IF(明細!AH63="","",明細!AH63) ->  | AI69: =IF(明細!AI63="","",明細!AI63) ->  | AJ69: =IF(明細!AJ63="","",明細!AJ63) ->  | AK69: =IF(明細!AK63="","",明細!AK63) ->  | AL69: =IF(明細!AL63="","",明細!AL63) ->  | AM69: =IF(明細!AM63="","",明細!AM63) ->  | AN69: =IF(明細!AN63="","",明細!AN63) ->  | AO69: =IF(明細!AO63="","",明細!AO63) ->  | AP69: =IF(明細!AP63="","",明細!AP63) ->  | AQ69: =IF(明細!AQ63="","",明細!AQ63) ->  | AR69: =IF(明細!AR63="","",明細!AR63) ->  | AY69: =IF($AX69="","",VLOOKUP($AX69,リスト!$CL:$CM,2,FALSE)) ->  | BA69: =IF(BB69="","",VLOOKUP(BB69,リスト!$K:$L,2,FALSE)) ->  | BE69: =IF(BF69="","",VLOOKUP(BF69,リスト!$I:$J,2,FALSE)) ->  | BG69: =IF(BH69="","",VLOOKUP(BH69,リスト!$M:$N,2,FALSE)) ->  | BI69: =IF(BJ69="","",VLOOKUP(BJ69,リスト!$O:$P,2,FALSE)) ->  | BO69: =IF($BN69="","",VLOOKUP($BN69,リスト!$CL:$CM,2,FALSE)) ->  | BP69: =IF(BQ69="","",VLOOKUP(BQ69,リスト!$K$5:$L$7,2,FALSE)) ->  | BT69: =IF(BU69="","",VLOOKUP(BU69,リスト!I60:J78,2,FALSE)) ->  | BY69: =IF(BZ69="","",VLOOKUP(BZ69,リスト!$S$5:$T$6,2,FALSE)) ->  | CU69: =IF(CV69="","",VLOOKUP(CV69,リスト!$V$5:$W$6,2,FALSE)) ->  | CW69: =IF(CX69="","",VLOOKUP(CX69,リスト!$X$5:$Y$6,2,FALSE)) ->  | DE69: =IF(DF69="","",VLOOKUP(DF69,リスト!$Z$5:$AA$10,2,FALSE)) ->  | DG69: =IF(DH69="","",VLOOKUP(DH69,リスト!$AB$5:$AC$12,2,FALSE)) ->  | DI69: =IF(DJ69="","",VLOOKUP(DJ69,リスト!$AD$5:$AE$7,2,FALSE)) ->  | DK69: =IF(DL69="","",VLOOKUP(DL69,リスト!$AF$5:$AG$10,2,FALSE)) ->  | DM69: =IF(DN69="","",VLOOKUP(DN69,リスト!$AH$5:$AI$6,2,FALSE)) ->  | DO69: =IF(DP69="","",VLOOKUP(DP69,リスト!$AJ$5:$AK$6,2,FALSE)) ->  | DQ69: =IF(DR69="","",VLOOKUP(DR69,リスト!$AL$5:$AM$7,2,FALSE)) ->  | DV69: =IF(DW69="","",VLOOKUP(DW69,リスト!$AN$5:$AO$6,2,FALSE)) ->  | EB69: =IF(EC69="","",VLOOKUP(EC69,リスト!$AW$5:$AX$8,2,FALSE)) ->  | EE69: =IF(EF69="","",VLOOKUP(EF69,リスト!$AY$5:$AZ$10,2,FALSE)) ->  | EG69: =IF(EH69="","",VLOOKUP(EH69,リスト!$BA$5:$BB$10,2,FALSE)) ->  | EI69: =IF(EJ69="","",VLOOKUP(EJ69,リスト!$BC$5:$BD$10,2,FALSE)) ->  | EK69: =IF(EL69="","",VLOOKUP(EL69,リスト!$BE$5:$BF$10,2,FALSE)) ->  | ER69: =IF(ES69="","",VLOOKUP(ES69,リスト!$BG$5:$BH$10,2,FALSE)) ->  | FA69: =IF($EZ69="","",INDEX(リスト!$BI$5:$BJ$40,MATCH($EZ69,リスト!$BJ$5:$BJ$40,0),1)) ->  | FB69: =IF(FC69="","",VLOOKUP(FC69,リスト!$BK:$BL,2,FALSE)) ->  | FF69: =IF(FG69="","",VLOOKUP(FG69,リスト!$BO$5:$BP$6,2,FALSE)) ->  | FH69: =IF(FI69="","",VLOOKUP(FI69,リスト!$BQ$5:$BR$8,2,FALSE)) ->  | FK69: =IF(FL69="","",VLOOKUP(FL69,リスト!$BS$5:$BT$6,2,FALSE)) ->  | FV69: =IF(FW69="","",VLOOKUP(FW69,リスト!$BV$5:$BW$10,2,FALSE)) ->  | FY69: =IF(FZ69="","",VLOOKUP(FZ69,リスト!$BX$5:$BY$6,2,FALSE)) ->  | GA69: =IF(GB69="","",VLOOKUP(GB69,リスト!$BZ$5:$CA$6,2,FALSE)) ->  | GC69: =IF(GD69="","",VLOOKUP(GD69,リスト!$CB$5:$CC$6,2,FALSE)) ->  | GJ69: =IF(GK69="","",VLOOKUP(GK69,リスト!$CD$5:$CE$6,2,FALSE)) ->  | GL69: =IF(GM69="","",VLOOKUP(GM69,リスト!$CF$5:$CG$6,2,FALSE)) ->  | GN69: =IF(GO69="","",VLOOKUP(GO69,リスト!$CH$5:$CI$6,2,FALSE)) -> 
B70: =IF(明細!B64="","",明細!B64) ->  | C70: =IF(明細!C64="","",明細!C64) ->  | D70: =IF(明細!D64="","",明細!D64) ->  | E70: =IF(明細!E64="","",明細!E64) ->  | F70: =IF(明細!F64="","",明細!F64) ->  | G70: =IF(明細!G64="","",明細!G64) ->  | H70: =IF(明細!H64="","",明細!H64) ->  | I70: =IF(明細!I64="","",明細!I64) ->  | J70: =IF(明細!J64="","",明細!J64) ->  | K70: =IF(明細!K64="","",明細!K64) ->  | L70: =IF(明細!K64<>"",CONCATENATE($L$12,明細!L64),"") ->  | M70: =IF(明細!M64="","",明細!M64) ->  | N70: =IF(明細!N64="","",明細!N64) ->  | O70: =IF(明細!O64="","",明細!O64) ->  | P70: =IF(明細!P64="","",明細!P64) ->  | Q70: =IF(明細!Q64="","",明細!Q64) ->  | R70: =IF(明細!R64="","",明細!R64) ->  | S70: =IF(明細!S64="","",明細!S64) ->  | T70: =IF(明細!T64="","",明細!T64) ->  | U70: =IF(明細!U64="","",明細!U64) ->  | V70: =IF(明細!V64<>"","EA","") -> EA | W70: =IF(明細!W64="","",明細!W64) ->  | X70: =IF(明細!X64="","",明細!X64) ->  | Y70: =IF(明細!Y64="","",明細!Y64) ->  | Z70: =IF(明細!Z64="","",明細!Z64) ->  | AA70: =IF(明細!AA64="","",明細!AA64) ->  | AB70: =IF(明細!AB64="","",明細!AB64) ->  | AC70: =IF(明細!AC64="","",明細!AC64) ->  | AD70: =IF(明細!AD64="","",明細!AD64) ->  | AE70: =IF(明細!AE64="","",明細!AE64) -> 10% | AF70: =IF(明細!AF64="","",明細!AF64) ->  | AG70: =IF(明細!AG64="","",明細!AG64) ->  | AH70: =IF(明細!AH64="","",明細!AH64) ->  | AI70: =IF(明細!AI64="","",明細!AI64) ->  | AJ70: =IF(明細!AJ64="","",明細!AJ64) ->  | AK70: =IF(明細!AK64="","",明細!AK64) ->  | AL70: =IF(明細!AL64="","",明細!AL64) ->  | AM70: =IF(明細!AM64="","",明細!AM64) ->  | AN70: =IF(明細!AN64="","",明細!AN64) ->  | AO70: =IF(明細!AO64="","",明細!AO64) ->  | AP70: =IF(明細!AP64="","",明細!AP64) ->  | AQ70: =IF(明細!AQ64="","",明細!AQ64) ->  | AR70: =IF(明細!AR64="","",明細!AR64) ->  | AY70: =IF($AX70="","",VLOOKUP($AX70,リスト!$CL:$CM,2,FALSE)) ->  | BA70: =IF(BB70="","",VLOOKUP(BB70,リスト!$K:$L,2,FALSE)) ->  | BE70: =IF(BF70="","",VLOOKUP(BF70,リスト!$I:$J,2,FALSE)) ->  | BG70: =IF(BH70="","",VLOOKUP(BH70,リスト!$M:$N,2,FALSE)) ->  | BI70: =IF(BJ70="","",VLOOKUP(BJ70,リスト!$O:$P,2,FALSE)) ->  | BO70: =IF($BN70="","",VLOOKUP($BN70,リスト!$CL:$CM,2,FALSE)) ->  | BP70: =IF(BQ70="","",VLOOKUP(BQ70,リスト!$K$5:$L$7,2,FALSE)) ->  | BT70: =IF(BU70="","",VLOOKUP(BU70,リスト!I61:J79,2,FALSE)) ->  | BY70: =IF(BZ70="","",VLOOKUP(BZ70,リスト!$S$5:$T$6,2,FALSE)) ->  | CU70: =IF(CV70="","",VLOOKUP(CV70,リスト!$V$5:$W$6,2,FALSE)) ->  | CW70: =IF(CX70="","",VLOOKUP(CX70,リスト!$X$5:$Y$6,2,FALSE)) ->  | DE70: =IF(DF70="","",VLOOKUP(DF70,リスト!$Z$5:$AA$10,2,FALSE)) ->  | DG70: =IF(DH70="","",VLOOKUP(DH70,リスト!$AB$5:$AC$12,2,FALSE)) ->  | DI70: =IF(DJ70="","",VLOOKUP(DJ70,リスト!$AD$5:$AE$7,2,FALSE)) ->  | DK70: =IF(DL70="","",VLOOKUP(DL70,リスト!$AF$5:$AG$10,2,FALSE)) ->  | DM70: =IF(DN70="","",VLOOKUP(DN70,リスト!$AH$5:$AI$6,2,FALSE)) ->  | DO70: =IF(DP70="","",VLOOKUP(DP70,リスト!$AJ$5:$AK$6,2,FALSE)) ->  | DQ70: =IF(DR70="","",VLOOKUP(DR70,リスト!$AL$5:$AM$7,2,FALSE)) ->  | DV70: =IF(DW70="","",VLOOKUP(DW70,リスト!$AN$5:$AO$6,2,FALSE)) ->  | EB70: =IF(EC70="","",VLOOKUP(EC70,リスト!$AW$5:$AX$8,2,FALSE)) ->  | EE70: =IF(EF70="","",VLOOKUP(EF70,リスト!$AY$5:$AZ$10,2,FALSE)) ->  | EG70: =IF(EH70="","",VLOOKUP(EH70,リスト!$BA$5:$BB$10,2,FALSE)) ->  | EI70: =IF(EJ70="","",VLOOKUP(EJ70,リスト!$BC$5:$BD$10,2,FALSE)) ->  | EK70: =IF(EL70="","",VLOOKUP(EL70,リスト!$BE$5:$BF$10,2,FALSE)) ->  | ER70: =IF(ES70="","",VLOOKUP(ES70,リスト!$BG$5:$BH$10,2,FALSE)) ->  | FA70: =IF($EZ70="","",INDEX(リスト!$BI$5:$BJ$40,MATCH($EZ70,リスト!$BJ$5:$BJ$40,0),1)) ->  | FB70: =IF(FC70="","",VLOOKUP(FC70,リスト!$BK:$BL,2,FALSE)) ->  | FF70: =IF(FG70="","",VLOOKUP(FG70,リスト!$BO$5:$BP$6,2,FALSE)) ->  | FH70: =IF(FI70="","",VLOOKUP(FI70,リスト!$BQ$5:$BR$8,2,FALSE)) ->  | FK70: =IF(FL70="","",VLOOKUP(FL70,リスト!$BS$5:$BT$6,2,FALSE)) ->  | FV70: =IF(FW70="","",VLOOKUP(FW70,リスト!$BV$5:$BW$10,2,FALSE)) ->  | FY70: =IF(FZ70="","",VLOOKUP(FZ70,リスト!$BX$5:$BY$6,2,FALSE)) ->  | GA70: =IF(GB70="","",VLOOKUP(GB70,リスト!$BZ$5:$CA$6,2,FALSE)) ->  | GC70: =IF(GD70="","",VLOOKUP(GD70,リスト!$CB$5:$CC$6,2,FALSE)) ->  | GJ70: =IF(GK70="","",VLOOKUP(GK70,リスト!$CD$5:$CE$6,2,FALSE)) ->  | GL70: =IF(GM70="","",VLOOKUP(GM70,リスト!$CF$5:$CG$6,2,FALSE)) ->  | GN70: =IF(GO70="","",VLOOKUP(GO70,リスト!$CH$5:$CI$6,2,FALSE)) -> 
